Workbook

Sheet RatingCurve-R2
A1: ใส่ข้อมูลกำหนดค่าแกนด้วย | B1: ค่าสูงสุด แกน X = | D1: สูงสุดแกน Y = | F1: ค่าต่ำสุด แกนX | H1: ต่ำสุดแกน Y =
B3: RID Computer Center, Processing : | E3: =NOW() -> 2023-09-27T10:41:27.940 | K3: Program By IEC Center
B4: Station - | C4: ='c-form'!C10 -> Ban Mae Lamao, Mae Sot, Tak,SW.6 | K4: Royal Irrigation Department
B5: Stream - | C5: ='c-form'!C12 -> Huai Mae Lamao | K5: Thailand
B6: River - | C6: ='c-form'!N12 -> Huai Mae Lamao | K6: Hydrology Division
B7: River System - | C7: ='c-form'!T12 -> Huai Mae Lamao | K7: Rating Curve | M7: =[0]!rating -> HC2 014/Y2022
M8: Gage Height | N8: Flow | Q8: Flow | R8: Gage Height
M9: =IF(TRIM('c-form'!D63)="","",'c-form'!D63) ->  | N9: =IF(TRIM('c-form'!F63)="","",'c-form'!F63) ->  | Q9: 0 | R9: 163.4 | T9: =IF(TRIM(C1)="",MAX(Q9:Q58),C1) -> 127.75 | U9: =IF(TRIM(G1)="",MIN(Q9:Q58),G1) -> 0 | V9: =IF(OR(TRIM(C1)="",TRIM(G1)=""),(T9-U9)/5,(C1-G1)/5) -> 25.55 | W9: =MIN(W11:W12) -> 0
M10: =IF(TRIM('c-form'!H63)="","",'c-form'!H63) ->  | N10: =IF(TRIM('c-form'!J63)="","",'c-form'!J63) ->  | Q10: 0.75 | R10: 163.5 | T10: =IF(TRIM(E1)="",MAX(R9:R58),E1) -> 165.4 | U10: =IF(TRIM(I1)="",MIN(R9:R58),I1) -> 163.4 | V10: =IF(OR(TRIM(E1)="",TRIM(I1)=""),(T10-U10)/5,(E1-I1)/5) -> 0.4
M11: =IF(TRIM('c-form'!M63)="","",'c-form'!M63) ->  | N11: =IF(TRIM('c-form'!P63)="","",'c-form'!P63) ->  | Q11: 2 | R11: 163.6 | W11: =COUNT(M9:M58) -> 0
M12: =IF(TRIM('c-form'!R63)="","",'c-form'!R63) ->  | N12: =IF(TRIM('c-form'!T63)="","",'c-form'!T63) ->  | Q12: 6 | R12: 163.8 | W12: =COUNT(N9:N58) -> 0
M13: =IF(TRIM('c-form'!W63)="","",'c-form'!W63) ->  | N13: =IF(TRIM('c-form'!AA63)="","",'c-form'!AA63) ->  | Q13: 8.5 | R13: 163.9
M14: =IF(TRIM('c-form'!D64)="","",'c-form'!D64) ->  | N14: =IF(TRIM('c-form'!F64)="","",'c-form'!F64) ->  | Q14: 11.5 | R14: 164
M15: =IF(TRIM('c-form'!H64)="","",'c-form'!H64) ->  | N15: =IF(TRIM('c-form'!J64)="","",'c-form'!J64) ->  | Q15: 15 | R15: 164.1
M16: =IF(TRIM('c-form'!M64)="","",'c-form'!M64) ->  | N16: =IF(TRIM('c-form'!P64)="","",'c-form'!P64) ->  | Q16: 19 | R16: 164.2
M17: =IF(TRIM('c-form'!R64)="","",'c-form'!R64) ->  | N17: =IF(TRIM('c-form'!T64)="","",'c-form'!T64) ->  | Q17: 23.5 | R17: 164.3
M18: =IF(TRIM('c-form'!W64)="","",'c-form'!W64) ->  | N18: =IF(TRIM('c-form'!AA64)="","",'c-form'!AA64) ->  | Q18: 29 | R18: 164.4
M19: =IF(TRIM('c-form'!D65)="","",'c-form'!D65) ->  | N19: =IF(TRIM('c-form'!F65)="","",'c-form'!F65) ->  | Q19: 35 | R19: 164.5
M20: =IF(TRIM('c-form'!H65)="","",'c-form'!H65) ->  | N20: =IF(TRIM('c-form'!J65)="","",'c-form'!J65) ->  | Q20: 42 | R20: 164.6
M21: =IF(TRIM('c-form'!M65)="","",'c-form'!M65) ->  | N21: =IF(TRIM('c-form'!P65)="","",'c-form'!P65) ->  | Q21: 50 | R21: 164.7
M22: =IF(TRIM('c-form'!R65)="","",'c-form'!R65) ->  | N22: =IF(TRIM('c-form'!T65)="","",'c-form'!T65) ->  | Q22: 80 | R22: 165
M23: =IF(TRIM('c-form'!W65)="","",'c-form'!W65) ->  | N23: =IF(TRIM('c-form'!AA65)="","",'c-form'!AA65) ->  | Q23: 102 | R23: 165.2
M24: =IF(TRIM('c-form'!D66)="","",'c-form'!D66) ->  | N24: =IF(TRIM('c-form'!F66)="","",'c-form'!F66) ->  | Q24: 114.75 | R24: 165.3
M25: =IF(TRIM('c-form'!H66)="","",'c-form'!H66) ->  | N25: =IF(TRIM('c-form'!J66)="","",'c-form'!J66) ->  | Q25: 127.75 | R25: 165.4
M26: =IF(TRIM('c-form'!M66)="","",'c-form'!M66) ->  | N26: =IF(TRIM('c-form'!P66)="","",'c-form'!P66) -> 
M27: =IF(TRIM('c-form'!R66)="","",'c-form'!R66) ->  | N27: =IF(TRIM('c-form'!T66)="","",'c-form'!T66) -> 
M28: =IF(TRIM('c-form'!W66)="","",'c-form'!W66) ->  | N28: =IF(TRIM('c-form'!AA66)="","",'c-form'!AA66) -> 
M29: =IF(TRIM('c-form'!D67)="","",'c-form'!D67) ->  | N29: =IF(TRIM('c-form'!F67)="","",'c-form'!F67) -> 
M30: =IF(TRIM('c-form'!H67)="","",'c-form'!H67) ->  | N30: =IF(TRIM('c-form'!J67)="","",'c-form'!J67) -> 
M31: =IF(TRIM('c-form'!M67)="","",'c-form'!M67) ->  | N31: =IF(TRIM('c-form'!P67)="","",'c-form'!P67) -> 
M32: =IF(TRIM('c-form'!R67)="","",'c-form'!R67) ->  | N32: =IF(TRIM('c-form'!T67)="","",'c-form'!T67) -> 
M33: =IF(TRIM('c-form'!W67)="","",'c-form'!W67) ->  | N33: =IF(TRIM('c-form'!AA67)="","",'c-form'!AA67) -> 
M34: =IF(TRIM('c-form'!D68)="","",'c-form'!D68) ->  | N34: =IF(TRIM('c-form'!F68)="","",'c-form'!F68) -> 
M35: =IF(TRIM('c-form'!H68)="","",'c-form'!H68) ->  | N35: =IF(TRIM('c-form'!J68)="","",'c-form'!J68) -> 
M36: =IF(TRIM('c-form'!M68)="","",'c-form'!M68) ->  | N36: =IF(TRIM('c-form'!P68)="","",'c-form'!P68) -> 
M37: =IF(TRIM('c-form'!R68)="","",'c-form'!R68) ->  | N37: =IF(TRIM('c-form'!T68)="","",'c-form'!T68) -> 
M38: =IF(TRIM('c-form'!W68)="","",'c-form'!W68) ->  | N38: =IF(TRIM('c-form'!AA68)="","",'c-form'!AA68) -> 
M39: =IF(TRIM('c-form'!D69)="","",'c-form'!D69) ->  | N39: =IF(TRIM('c-form'!F69)="","",'c-form'!F6) -> 
M40: =IF(TRIM('c-form'!H69)="","",'c-form'!H69) ->  | N40: =IF(TRIM('c-form'!J69)="","",'c-form'!J69) -> 
M41: =IF(TRIM('c-form'!M69)="","",'c-form'!M69) ->  | N41: =IF(TRIM('c-form'!P69)="","",'c-form'!P69) -> 
M42: =IF(TRIM('c-form'!R69)="","",'c-form'!R69) ->  | N42: =IF(TRIM('c-form'!T69)="","",'c-form'!T69) -> 
M43: =IF(TRIM('c-form'!R69)="","",'c-form'!W69) ->  | N43: =IF(TRIM('c-form'!AA69)="","",'c-form'!AA69) -> 
M44: =IF(TRIM('c-form'!D70)="","",'c-form'!D70) ->  | N44: =IF(TRIM('c-form'!F70)="","",'c-form'!F70) -> 
M45: =IF(TRIM('c-form'!H70)="","",'c-form'!H70) ->  | N45: =IF(TRIM('c-form'!J70)="","",'c-form'!J70) -> 
M46: =IF(TRIM('c-form'!M70)="","",'c-form'!M29) ->  | N46: =IF(TRIM('c-form'!P70)="","",'c-form'!P70) -> 
M47: =IF(TRIM('c-form'!R70)="","",'c-form'!R70) ->  | N47: =IF(TRIM('c-form'!T70)="","",'c-form'!T70) -> 
M48: =IF(TRIM('c-form'!W70)="","",'c-form'!W70) ->  | N48: =IF(TRIM('c-form'!AA70)="","",'c-form'!AA70) -> 
M49: =IF(TRIM('c-form'!D71)="","",'c-form'!D71) ->  | N49: =IF(TRIM('c-form'!F71)="","",'c-form'!F71) -> 
M50: =IF(TRIM('c-form'!H71)="","",'c-form'!H71) ->  | N50: =IF(TRIM('c-form'!J71)="","",'c-form'!J71) -> 
M51: =IF(TRIM('c-form'!M71)="","",'c-form'!M71) ->  | N51: =IF(TRIM('c-form'!P71)="","",'c-form'!P71) -> 
M52: =IF(TRIM('c-form'!R71)="","",'c-form'!R71) ->  | N52: =IF(TRIM('c-form'!T71)="","",'c-form'!T71) -> 
M53: =IF(TRIM('c-form'!W71)="","",'c-form'!W71) ->  | N53: =IF(TRIM('c-form'!AA71)="","",'c-form'!AA71) -> 
M54: =IF(TRIM('c-form'!D72)="","",'c-form'!D72) ->  | N54: =IF(TRIM('c-form'!F72)="","",'c-form'!F72) -> 
M55: =IF(TRIM('c-form'!H72)="","",'c-form'!H72) ->  | N55: =IF(TRIM('c-form'!J72)="","",'c-form'!J72) -> 
M56: =IF(TRIM('c-form'!M72)="","",'c-form'!M72) ->  | N56: =IF(TRIM('c-form'!P72)="","",'c-form'!P72) -> 
M57: =IF(TRIM('c-form'!R72)="","",'c-form'!R72) ->  | N57: =IF(TRIM('c-form'!T72)="","",'c-form'!T72) -> 
M58: =IF(TRIM('c-form'!W72)="","",'c-form'!W72) ->  | N58: =IF(TRIM('c-form'!AA72)="","",'c-form'!AA72) -> 

Sheet RatingCurve-R1
A1: ใส่ข้อมูลกำหนดค่าแกนด้วย | B1: ค่าสูงสุด แกน X = | D1: สูงสุดแกน Y = | F1: ค่าต่ำสุด แกนX | H1: ต่ำสุดแกน Y =
B3: RID Computer Center, Processing : | E3: =NOW() -> 2023-09-27T10:41:27.940 | K3: Program By IEC Center
B4: Station | C4: - | D4: ='c-form'!C52 -> Ban Mae Lamao, Mae Sot, Tak,SW.6 | K4: Royal Irrigation Department
B5: Stream | C5: - | D5: ='c-form'!C54 -> Huai Mae Lamao | K5: Thailand
B6: River | C6: - | D6: ='c-form'!N54 -> Huai Mae Lamao | K6: Hydrology Division
B7: River System | C7: - | D7: ='c-form'!T54 -> Huai Mae Lamao | K7: Rating Curve | M7: ='c-form'!C18 -> HC2 014/Y2022
M8: Gage Height | N8: Flow | Q8: Flow | R8: Gage Height
M9: =IF(TRIM('c-form'!D21)="","",'c-form'!D21) -> 268.5 | N9: =IF(TRIM('c-form'!F21)="","",'c-form'!F21) -> 0 | Q9: 0 | R9: 159.8 | T9: =IF(TRIM(C1)="",MAX(Q9:Q58),C1) -> 148.1 | U9: =IF(TRIM(G1)="",MIN(Q9:Q58),G1) -> 0 | V9: =IF(OR(TRIM(C1)="",TRIM(G1)=""),(T9-U9)/5,(C1-G1)/5) -> 29.62 | W9: =MIN(W12:W13) -> 27
M10: =IF(TRIM('c-form'!H21)="","",'c-form'!H21) -> 268.6 | N10: =IF(TRIM('c-form'!J21)="","",'c-form'!J21) -> 0.7 | Q10: 0.2 | R10: 159.9 | T10: =IF(TRIM(E1)="",MAX(R9:R58),E1) -> 166 | U10: =IF(TRIM(I1)="",MIN(R9:R58),I1) -> 159.8 | V10: =IF(OR(TRIM(E1)="",TRIM(I1)=""),(T10-U10)/5,(E1-I1)/5) -> 1.24
M11: =IF(TRIM('c-form'!M21)="","",'c-form'!M21) -> 268.7 | N11: =IF(TRIM('c-form'!P21)="","",'c-form'!P21) -> 2 | Q11: 1.4 | R11: 160.3
M12: =IF(TRIM('c-form'!R21)="","",'c-form'!R21) -> 268.8 | N12: =IF(TRIM('c-form'!T21)="","",'c-form'!T21) -> 3.9 | Q12: 3 | R12: 160.7 | W12: =COUNT(N9:N58) -> 27
M13: =IF(TRIM('c-form'!W21)="","",'c-form'!W21) -> 268.9 | N13: =IF(TRIM('c-form'!AA21)="","",'c-form'!AA21) -> 6.7 | Q13: 3.5 | R13: 160.8 | W13: =COUNT(M9:M58) -> 27
M14: =IF(TRIM('c-form'!D22)="","",'c-form'!D22) -> 269 | N14: =IF(TRIM('c-form'!F22)="","",'c-form'!F22) -> 10 | Q14: 4.2 | R14: 160.9
M15: =IF(TRIM('c-form'!H22)="","",'c-form'!H22) -> 269.2 | N15: =IF(TRIM('c-form'!J22)="","",'c-form'!J22) -> 18.4 | Q15: 9 | R15: 161.5
M16: =IF(TRIM('c-form'!M22)="","",'c-form'!M22) -> 269.6 | N16: =IF(TRIM('c-form'!P22)="","",'c-form'!P22) -> 36.4 | Q16: 13.8 | R16: 161.9
M17: =IF(TRIM('c-form'!R22)="","",'c-form'!R22) -> 269.8 | N17: =IF(TRIM('c-form'!T22)="","",'c-form'!T22) -> 46 | Q17: 15.2 | R17: 162
M18: =IF(TRIM('c-form'!W22)="","",'c-form'!W22) -> 270 | N18: =IF(TRIM('c-form'!AA22)="","",'c-form'!AA22) -> 56.1 | Q18: 25.7 | R18: 162.5
M19: =IF(TRIM('c-form'!D23)="","",'c-form'!D23) -> 270.4 | N19: =IF(TRIM('c-form'!F23)="","",'c-form'!F23) -> 77.3 | Q19: 30.3 | R19: 162.7
M20: =IF(TRIM('c-form'!H23)="","",'c-form'!H23) -> 270.6 | N20: =IF(TRIM('c-form'!J23)="","",'c-form'!J23) -> 88.7 | Q20: 33 | R20: 162.8
M21: =IF(TRIM('c-form'!M23)="","",'c-form'!M23) -> 270.8 | N21: =IF(TRIM('c-form'!P23)="","",'c-form'!P23) -> 100.6 | Q21: 52.6 | R21: 163.5
M22: =IF(TRIM('c-form'!R23)="","",'c-form'!R23) -> 271 | N22: =IF(TRIM('c-form'!T23)="","",'c-form'!T23) -> 113 | Q22: 68.6 | R22: 164
M23: =IF(TRIM('c-form'!W23)="","",'c-form'!W23) -> 271.2 | N23: =IF(TRIM('c-form'!AA23)="","",'c-form'!AA23) -> 125.6 | Q23: 85.6 | R23: 164.5
M24: =IF(TRIM('c-form'!D24)="","",'c-form'!D24) -> 271.4 | N24: =IF(TRIM('c-form'!F24)="","",'c-form'!F24) -> 139 | Q24: 105.1 | R24: 165
M25: =IF(TRIM('c-form'!H24)="","",'c-form'!H24) -> 271.6 | N25: =IF(TRIM('c-form'!J24)="","",'c-form'!J24) -> 153.1 | Q25: 125.1 | R25: 165.5
M26: =IF(TRIM('c-form'!M24)="","",'c-form'!M24) -> 271.8 | N26: =IF(TRIM('c-form'!P24)="","",'c-form'!P24) -> 167.6 | Q26: 148.1 | R26: 166
M27: =IF(TRIM('c-form'!R24)="","",'c-form'!R24) -> 272 | N27: =IF(TRIM('c-form'!T24)="","",'c-form'!T24) -> 182.4
M28: =IF(TRIM('c-form'!W24)="","",'c-form'!W24) -> 272.2 | N28: =IF(TRIM('c-form'!AA24)="","",'c-form'!AA24) -> 197.9
M29: =IF(TRIM('c-form'!D25)="","",'c-form'!D25) -> 272.8 | N29: =IF(TRIM('c-form'!F25)="","",'c-form'!F25) -> 245.3
M30: =IF(TRIM('c-form'!H25)="","",'c-form'!H25) -> 273 | N30: =IF(TRIM('c-form'!J25)="","",'c-form'!J25) -> 261.6
M31: =IF(TRIM('c-form'!M25)="","",'c-form'!M25) -> 273.2 | N31: =IF(TRIM('c-form'!P25)="","",'c-form'!P25) -> 278.7
M32: =IF(TRIM('c-form'!R25)="","",'c-form'!R25) -> 273.6 | N32: =IF(TRIM('c-form'!T25)="","",'c-form'!T25) -> 314.5
M33: =IF(TRIM('c-form'!W25)="","",'c-form'!W25) -> 273.8 | N33: =IF(TRIM('c-form'!AA25)="","",'c-form'!AA25) -> 332.5
M34: =IF(TRIM('c-form'!D26)="","",'c-form'!D26) -> 274 | N34: =IF(TRIM('c-form'!F26)="","",'c-form'!F26) -> 350.8
M35: =IF(TRIM('c-form'!H26)="","",'c-form'!H26) -> 274.2 | N35: =IF(TRIM('c-form'!J26)="","",'c-form'!J26) -> 370
M36: =IF(TRIM('c-form'!M26)="","",'c-form'!M26) ->  | N36: =IF(TRIM('c-form'!P26)="","",'c-form'!P26) -> 
M37: =IF(TRIM('c-form'!R26)="","",'c-form'!R26) ->  | N37: =IF(TRIM('c-form'!T26)="","",'c-form'!T26) -> 
M38: =IF(TRIM('c-form'!W26)="","",'c-form'!W26) ->  | N38: =IF(TRIM('c-form'!AA26)="","",'c-form'!AA26) -> 
M39: =IF(TRIM('c-form'!D27)="","",'c-form'!D27) ->  | N39: =IF(TRIM('c-form'!F27)="","",'c-form'!F27) -> 
M40: =IF(TRIM('c-form'!H27)="","",'c-form'!H27) ->  | N40: =IF(TRIM('c-form'!J27)="","",'c-form'!J27) -> 
M41: =IF(TRIM('c-form'!M27)="","",'c-form'!M27) ->  | N41: =IF(TRIM('c-form'!P27)="","",'c-form'!P27) -> 
M42: =IF(TRIM('c-form'!R27)="","",'c-form'!R27) ->  | N42: =IF(TRIM('c-form'!T27)="","",'c-form'!T27) -> 
M43: =IF(TRIM('c-form'!R27)="","",'c-form'!W27) ->  | N43: =IF(TRIM('c-form'!AA27)="","",'c-form'!AA27) -> 
M44: =IF(TRIM('c-form'!D28)="","",'c-form'!D28) ->  | N44: =IF(TRIM('c-form'!F28)="","",'c-form'!F28) -> 
M45: =IF(TRIM('c-form'!H28)="","",'c-form'!H28) ->  | N45: =IF(TRIM('c-form'!J28)="","",'c-form'!J28) -> 
M46: =IF(TRIM('c-form'!M28)="","",'c-form'!M28) ->  | N46: =IF(TRIM('c-form'!P28)="","",'c-form'!P28) -> 
M47: =IF(TRIM('c-form'!R28)="","",'c-form'!R28) ->  | N47: =IF(TRIM('c-form'!T28)="","",'c-form'!T28) -> 
M48: =IF(TRIM('c-form'!W28)="","",'c-form'!W28) ->  | N48: =IF(TRIM('c-form'!AA28)="","",'c-form'!AA28) -> 
M49: =IF(TRIM('c-form'!D29)="","",'c-form'!D29) ->  | N49: =IF(TRIM('c-form'!F29)="","",'c-form'!F29) -> 
M50: =IF(TRIM('c-form'!H29)="","",'c-form'!H29) ->  | N50: =IF(TRIM('c-form'!J29)="","",'c-form'!J29) -> 
M51: =IF(TRIM('c-form'!M29)="","",'c-form'!M29) ->  | N51: =IF(TRIM('c-form'!P29)="","",'c-form'!P29) -> 
M52: =IF(TRIM('c-form'!R29)="","",'c-form'!R29) ->  | N52: =IF(TRIM('c-form'!T29)="","",'c-form'!T29) -> 
M53: =IF(TRIM('c-form'!W29)="","",'c-form'!W29) ->  | N53: =IF(TRIM('c-form'!AA29)="","",'c-form'!AA29) -> 
M54: =IF(TRIM('c-form'!D30)="","",'c-form'!D30) ->  | N54: =IF(TRIM('c-form'!F30)="","",'c-form'!F30) -> 
M55: =IF(TRIM('c-form'!H30)="","",'c-form'!H30) ->  | N55: =IF(TRIM('c-form'!J30)="","",'c-form'!J30) -> 
M56: =IF(TRIM('c-form'!M30)="","",'c-form'!M30) ->  | N56: =IF(TRIM('c-form'!P30)="","",'c-form'!P30) -> 
M57: =IF(TRIM('c-form'!R30)="","",'c-form'!R30) ->  | N57: =IF(TRIM('c-form'!T30)="","",'c-form'!T30) -> 
M58: =IF(TRIM('c-form'!W30)="","",'c-form'!W30) ->  | N58: =IF(TRIM('c-form'!AA30)="","",'c-form'!AA30) -> 

Sheet Graph-Hou
BI1: Apr | BM1: May | BQ1: Jun | BU1: Jul | BY1: Aug | CC1: Sep | CG1: Oct | CK1: Nov | CO1: Dec | CS1: Jan | CW1: Feb | DA1: Mar
BF2: 1 | BG2: 1 | BH2: 1 | BI2: ='HourGH-APR'!C11 -> 0 | BJ2: 1 | BK2: 1 | BL2: 1 | BM2: ='HourGH-MAY'!C11 -> 0 | BN2: 1 | BO2: 1 | BP2: 1 | BQ2: ='HourGH-JUN'!C11 -> 0 | BR2: 1 | BS2: 1 | BT2: 1 | BU2: ='HourGH-JUL'!C11 -> 0 | BV2: 1 | BW2: 1 | BX2: 1 | BY2: ='HourGH-AUG'!C11 -> 0 | BZ2: 1 | CA2: 1 | CB2: 1 | CC2: ='HourGH-SEP'!C11 -> 0 | CD2: 1 | CE2: 1 | CF2: 1 | CG2: ='HourGH-OCT'!C11 -> 0 | CH2: 1 | CI2: 1 | CJ2: 1 | CK2: ='HourGH-NOV'!C11 -> 0 | CL2: 1 | CM2: 1 | CN2: 1 | CO2: ='HourGH-DEC'!C11 -> 0 | CP2: 1 | CQ2: 1 | CR2: 1 | CS2: ='HourGH-JAN'!C11 -> 0 | CT2: 1 | CU2: 1 | CV2: 1 | CW2: ='HourGH-FEB'!C11 -> 0 | CX2: 1 | CY2: 1 | CZ2: 1 | DA2: ='HourGH-MAR'!C11 -> 0
BF3: 2 | BG3: 1 | BH3: 2 | BI3: ='HourGH-APR'!D11 -> 0 | BJ3: 2 | BK3: 1 | BL3: 2 | BM3: ='HourGH-MAY'!D11 -> 0 | BN3: 2 | BO3: 1 | BP3: 2 | BQ3: ='HourGH-JUN'!D11 -> 0 | BR3: 2 | BS3: 1 | BT3: 2 | BU3: ='HourGH-JUL'!D11 -> 0 | BV3: 2 | BW3: 1 | BX3: 2 | BY3: ='HourGH-AUG'!D11 -> 0 | BZ3: 2 | CA3: 1 | CB3: 2 | CC3: ='HourGH-SEP'!D11 -> 0 | CD3: 2 | CE3: 1 | CF3: 2 | CG3: ='HourGH-OCT'!D11 -> 0 | CH3: 2 | CI3: 1 | CJ3: 2 | CK3: ='HourGH-NOV'!D11 -> 0 | CL3: 2 | CM3: 1 | CN3: 2 | CO3: ='HourGH-DEC'!D11 -> 0 | CP3: 2 | CQ3: 1 | CR3: 2 | CS3: ='HourGH-JAN'!D11 -> 0 | CT3: 2 | CU3: 1 | CV3: 2 | CW3: ='HourGH-FEB'!D11 -> 0 | CX3: 2 | CY3: 1 | CZ3: 2 | DA3: ='HourGH-MAR'!D11 -> 0
BF4: 3 | BG4: 1 | BH4: 3 | BI4: ='HourGH-APR'!E11 -> 0 | BJ4: 3 | BK4: 1 | BL4: 3 | BM4: ='HourGH-MAY'!E11 -> 0 | BN4: 3 | BO4: 1 | BP4: 3 | BQ4: ='HourGH-JUN'!E11 -> 0 | BR4: 3 | BS4: 1 | BT4: 3 | BU4: ='HourGH-JUL'!E11 -> 0 | BV4: 3 | BW4: 1 | BX4: 3 | BY4: ='HourGH-AUG'!E11 -> 0 | BZ4: 3 | CA4: 1 | CB4: 3 | CC4: ='HourGH-SEP'!E11 -> 0 | CD4: 3 | CE4: 1 | CF4: 3 | CG4: ='HourGH-OCT'!E11 -> 0 | CH4: 3 | CI4: 1 | CJ4: 3 | CK4: ='HourGH-NOV'!E11 -> 0 | CL4: 3 | CM4: 1 | CN4: 3 | CO4: ='HourGH-DEC'!E11 -> 0 | CP4: 3 | CQ4: 1 | CR4: 3 | CS4: ='HourGH-JAN'!E11 -> 0 | CT4: 3 | CU4: 1 | CV4: 3 | CW4: ='HourGH-FEB'!E11 -> 0 | CX4: 3 | CY4: 1 | CZ4: 3 | DA4: ='HourGH-MAR'!E11 -> 0
BF5: 4 | BG5: 1 | BH5: 4 | BI5: ='HourGH-APR'!F11 -> 0 | BJ5: 4 | BK5: 1 | BL5: 4 | BM5: ='HourGH-MAY'!F11 -> 0 | BN5: 4 | BO5: 1 | BP5: 4 | BQ5: ='HourGH-JUN'!F11 -> 0 | BR5: 4 | BS5: 1 | BT5: 4 | BU5: ='HourGH-JUL'!F11 -> 0 | BV5: 4 | BW5: 1 | BX5: 4 | BY5: ='HourGH-AUG'!F11 -> 0 | BZ5: 4 | CA5: 1 | CB5: 4 | CC5: ='HourGH-SEP'!F11 -> 0 | CD5: 4 | CE5: 1 | CF5: 4 | CG5: ='HourGH-OCT'!F11 -> 0 | CH5: 4 | CI5: 1 | CJ5: 4 | CK5: ='HourGH-NOV'!F11 -> 0 | CL5: 4 | CM5: 1 | CN5: 4 | CO5: ='HourGH-DEC'!F11 -> 0 | CP5: 4 | CQ5: 1 | CR5: 4 | CS5: ='HourGH-JAN'!F11 -> 0 | CT5: 4 | CU5: 1 | CV5: 4 | CW5: ='HourGH-FEB'!F11 -> 0 | CX5: 4 | CY5: 1 | CZ5: 4 | DA5: ='HourGH-MAR'!F11 -> 0
BF6: 5 | BG6: 1 | BH6: 5 | BI6: ='HourGH-APR'!G11 -> 0 | BJ6: 5 | BK6: 1 | BL6: 5 | BM6: ='HourGH-MAY'!G11 -> 0 | BN6: 5 | BO6: 1 | BP6: 5 | BQ6: ='HourGH-JUN'!G11 -> 0 | BR6: 5 | BS6: 1 | BT6: 5 | BU6: ='HourGH-JUL'!G11 -> 0 | BV6: 5 | BW6: 1 | BX6: 5 | BY6: ='HourGH-AUG'!G11 -> 0 | BZ6: 5 | CA6: 1 | CB6: 5 | CC6: ='HourGH-SEP'!G11 -> 0 | CD6: 5 | CE6: 1 | CF6: 5 | CG6: ='HourGH-OCT'!G11 -> 0 | CH6: 5 | CI6: 1 | CJ6: 5 | CK6: ='HourGH-NOV'!G11 -> 0 | CL6: 5 | CM6: 1 | CN6: 5 | CO6: ='HourGH-DEC'!G11 -> 0 | CP6: 5 | CQ6: 1 | CR6: 5 | CS6: ='HourGH-JAN'!G11 -> 0 | CT6: 5 | CU6: 1 | CV6: 5 | CW6: ='HourGH-FEB'!G11 -> 0 | CX6: 5 | CY6: 1 | CZ6: 5 | DA6: ='HourGH-MAR'!G11 -> 0
BF7: 6 | BG7: 1 | BH7: 6 | BI7: ='HourGH-APR'!H11 -> 0.37 | BJ7: 6 | BK7: 1 | BL7: 6 | BM7: ='HourGH-MAY'!H11 -> 0.39 | BN7: 6 | BO7: 1 | BP7: 6 | BQ7: ='HourGH-JUN'!H11 -> 0.41 | BR7: 6 | BS7: 1 | BT7: 6 | BU7: ='HourGH-JUL'!H11 -> 0.39 | BV7: 6 | BW7: 1 | BX7: 6 | BY7: ='HourGH-AUG'!H11 -> 0.57 | BZ7: 6 | CA7: 1 | CB7: 6 | CC7: ='HourGH-SEP'!H11 -> 0 | CD7: 6 | CE7: 1 | CF7: 6 | CG7: ='HourGH-OCT'!H11 -> 0 | CH7: 6 | CI7: 1 | CJ7: 6 | CK7: ='HourGH-NOV'!H11 -> 0 | CL7: 6 | CM7: 1 | CN7: 6 | CO7: ='HourGH-DEC'!H11 -> 0 | CP7: 6 | CQ7: 1 | CR7: 6 | CS7: ='HourGH-JAN'!H11 -> 0 | CT7: 6 | CU7: 1 | CV7: 6 | CW7: ='HourGH-FEB'!H11 -> 0 | CX7: 6 | CY7: 1 | CZ7: 6 | DA7: ='HourGH-MAR'!H11 -> 0
BF8: 7 | BG8: 1 | BH8: 7 | BI8: ='HourGH-APR'!I11 -> 0 | BJ8: 7 | BK8: 1 | BL8: 7 | BM8: ='HourGH-MAY'!I11 -> 0 | BN8: 7 | BO8: 1 | BP8: 7 | BQ8: ='HourGH-JUN'!I11 -> 0 | BR8: 7 | BS8: 1 | BT8: 7 | BU8: ='HourGH-JUL'!I11 -> 0 | BV8: 7 | BW8: 1 | BX8: 7 | BY8: ='HourGH-AUG'!I11 -> 0 | BZ8: 7 | CA8: 1 | CB8: 7 | CC8: ='HourGH-SEP'!I11 -> 0 | CD8: 7 | CE8: 1 | CF8: 7 | CG8: ='HourGH-OCT'!I11 -> 0 | CH8: 7 | CI8: 1 | CJ8: 7 | CK8: ='HourGH-NOV'!I11 -> 0 | CL8: 7 | CM8: 1 | CN8: 7 | CO8: ='HourGH-DEC'!I11 -> 0 | CP8: 7 | CQ8: 1 | CR8: 7 | CS8: ='HourGH-JAN'!I11 -> 0 | CT8: 7 | CU8: 1 | CV8: 7 | CW8: ='HourGH-FEB'!I11 -> 0 | CX8: 7 | CY8: 1 | CZ8: 7 | DA8: ='HourGH-MAR'!I11 -> 0
BF9: 8 | BG9: 1 | BH9: 8 | BI9: ='HourGH-APR'!J11 -> 0 | BJ9: 8 | BK9: 1 | BL9: 8 | BM9: ='HourGH-MAY'!J11 -> 0 | BN9: 8 | BO9: 1 | BP9: 8 | BQ9: ='HourGH-JUN'!J11 -> 0 | BR9: 8 | BS9: 1 | BT9: 8 | BU9: ='HourGH-JUL'!J11 -> 0 | BV9: 8 | BW9: 1 | BX9: 8 | BY9: ='HourGH-AUG'!J11 -> 0 | BZ9: 8 | CA9: 1 | CB9: 8 | CC9: ='HourGH-SEP'!J11 -> 0 | CD9: 8 | CE9: 1 | CF9: 8 | CG9: ='HourGH-OCT'!J11 -> 0 | CH9: 8 | CI9: 1 | CJ9: 8 | CK9: ='HourGH-NOV'!J11 -> 0 | CL9: 8 | CM9: 1 | CN9: 8 | CO9: ='HourGH-DEC'!J11 -> 0 | CP9: 8 | CQ9: 1 | CR9: 8 | CS9: ='HourGH-JAN'!J11 -> 0 | CT9: 8 | CU9: 1 | CV9: 8 | CW9: ='HourGH-FEB'!J11 -> 0 | CX9: 8 | CY9: 1 | CZ9: 8 | DA9: ='HourGH-MAR'!J11 -> 0
BF10: 9 | BG10: 1 | BH10: 9 | BI10: ='HourGH-APR'!K11 -> 0.37 | BJ10: 9 | BK10: 1 | BL10: 9 | BM10: ='HourGH-MAY'!K11 -> 0.39 | BN10: 9 | BO10: 1 | BP10: 9 | BQ10: ='HourGH-JUN'!K11 -> 0.41 | BR10: 9 | BS10: 1 | BT10: 9 | BU10: ='HourGH-JUL'!K11 -> 0.39 | BV10: 9 | BW10: 1 | BX10: 9 | BY10: ='HourGH-AUG'!K11 -> 0.57 | BZ10: 9 | CA10: 1 | CB10: 9 | CC10: ='HourGH-SEP'!K11 -> 0 | CD10: 9 | CE10: 1 | CF10: 9 | CG10: ='HourGH-OCT'!K11 -> 0 | CH10: 9 | CI10: 1 | CJ10: 9 | CK10: ='HourGH-NOV'!K11 -> 0 | CL10: 9 | CM10: 1 | CN10: 9 | CO10: ='HourGH-DEC'!K11 -> 0 | CP10: 9 | CQ10: 1 | CR10: 9 | CS10: ='HourGH-JAN'!K11 -> 0 | CT10: 9 | CU10: 1 | CV10: 9 | CW10: ='HourGH-FEB'!K11 -> 0 | CX10: 9 | CY10: 1 | CZ10: 9 | DA10: ='HourGH-MAR'!K11 -> 0
BF11: 10 | BG11: 1 | BH11: 10 | BI11: ='HourGH-APR'!L11 -> 0 | BJ11: 10 | BK11: 1 | BL11: 10 | BM11: ='HourGH-MAY'!L11 -> 0 | BN11: 10 | BO11: 1 | BP11: 10 | BQ11: ='HourGH-JUN'!L11 -> 0 | BR11: 10 | BS11: 1 | BT11: 10 | BU11: ='HourGH-JUL'!L11 -> 0 | BV11: 10 | BW11: 1 | BX11: 10 | BY11: ='HourGH-AUG'!L11 -> 0 | BZ11: 10 | CA11: 1 | CB11: 10 | CC11: ='HourGH-SEP'!L11 -> 0 | CD11: 10 | CE11: 1 | CF11: 10 | CG11: ='HourGH-OCT'!L11 -> 0 | CH11: 10 | CI11: 1 | CJ11: 10 | CK11: ='HourGH-NOV'!L11 -> 0 | CL11: 10 | CM11: 1 | CN11: 10 | CO11: ='HourGH-DEC'!L11 -> 0 | CP11: 10 | CQ11: 1 | CR11: 10 | CS11: ='HourGH-JAN'!L11 -> 0 | CT11: 10 | CU11: 1 | CV11: 10 | CW11: ='HourGH-FEB'!L11 -> 0 | CX11: 10 | CY11: 1 | CZ11: 10 | DA11: ='HourGH-MAR'!L11 -> 0
BF12: 11 | BG12: 1 | BH12: 11 | BI12: ='HourGH-APR'!M11 -> 0 | BJ12: 11 | BK12: 1 | BL12: 11 | BM12: ='HourGH-MAY'!M11 -> 0 | BN12: 11 | BO12: 1 | BP12: 11 | BQ12: ='HourGH-JUN'!M11 -> 0 | BR12: 11 | BS12: 1 | BT12: 11 | BU12: ='HourGH-JUL'!M11 -> 0 | BV12: 11 | BW12: 1 | BX12: 11 | BY12: ='HourGH-AUG'!M11 -> 0 | BZ12: 11 | CA12: 1 | CB12: 11 | CC12: ='HourGH-SEP'!M11 -> 0 | CD12: 11 | CE12: 1 | CF12: 11 | CG12: ='HourGH-OCT'!M11 -> 0 | CH12: 11 | CI12: 1 | CJ12: 11 | CK12: ='HourGH-NOV'!M11 -> 0 | CL12: 11 | CM12: 1 | CN12: 11 | CO12: ='HourGH-DEC'!M11 -> 0 | CP12: 11 | CQ12: 1 | CR12: 11 | CS12: ='HourGH-JAN'!M11 -> 0 | CT12: 11 | CU12: 1 | CV12: 11 | CW12: ='HourGH-FEB'!M11 -> 0 | CX12: 11 | CY12: 1 | CZ12: 11 | DA12: ='HourGH-MAR'!M11 -> 0
BF13: 12 | BG13: 1 | BH13: 12 | BI13: ='HourGH-APR'!N11 -> 0.37 | BJ13: 12 | BK13: 1 | BL13: 12 | BM13: ='HourGH-MAY'!N11 -> 0.38 | BN13: 12 | BO13: 1 | BP13: 12 | BQ13: ='HourGH-JUN'!N11 -> 0.41 | BR13: 12 | BS13: 1 | BT13: 12 | BU13: ='HourGH-JUL'!N11 -> 0.39 | BV13: 12 | BW13: 1 | BX13: 12 | BY13: ='HourGH-AUG'!N11 -> 0.57 | BZ13: 12 | CA13: 1 | CB13: 12 | CC13: ='HourGH-SEP'!N11 -> 0 | CD13: 12 | CE13: 1 | CF13: 12 | CG13: ='HourGH-OCT'!N11 -> 0 | CH13: 12 | CI13: 1 | CJ13: 12 | CK13: ='HourGH-NOV'!N11 -> 0 | CL13: 12 | CM13: 1 | CN13: 12 | CO13: ='HourGH-DEC'!N11 -> 0 | CP13: 12 | CQ13: 1 | CR13: 12 | CS13: ='HourGH-JAN'!N11 -> 0 | CT13: 12 | CU13: 1 | CV13: 12 | CW13: ='HourGH-FEB'!N11 -> 0 | CX13: 12 | CY13: 1 | CZ13: 12 | DA13: ='HourGH-MAR'!N11 -> 0
BF14: 13 | BG14: 1 | BH14: 13 | BI14: ='HourGH-APR'!O11 -> 0 | BJ14: 13 | BK14: 1 | BL14: 13 | BM14: ='HourGH-MAY'!O11 -> 0 | BN14: 13 | BO14: 1 | BP14: 13 | BQ14: ='HourGH-JUN'!O11 -> 0 | BR14: 13 | BS14: 1 | BT14: 13 | BU14: ='HourGH-JUL'!O11 -> 0 | BV14: 13 | BW14: 1 | BX14: 13 | BY14: ='HourGH-AUG'!O11 -> 0 | BZ14: 13 | CA14: 1 | CB14: 13 | CC14: ='HourGH-SEP'!O11 -> 0 | CD14: 13 | CE14: 1 | CF14: 13 | CG14: ='HourGH-OCT'!O11 -> 0 | CH14: 13 | CI14: 1 | CJ14: 13 | CK14: ='HourGH-NOV'!O11 -> 0 | CL14: 13 | CM14: 1 | CN14: 13 | CO14: ='HourGH-DEC'!O11 -> 0 | CP14: 13 | CQ14: 1 | CR14: 13 | CS14: ='HourGH-JAN'!O11 -> 0 | CT14: 13 | CU14: 1 | CV14: 13 | CW14: ='HourGH-FEB'!O11 -> 0 | CX14: 13 | CY14: 1 | CZ14: 13 | DA14: ='HourGH-MAR'!O11 -> 0
BF15: 14 | BG15: 1 | BH15: 14 | BI15: ='HourGH-APR'!P11 -> 0 | BJ15: 14 | BK15: 1 | BL15: 14 | BM15: ='HourGH-MAY'!P11 -> 0 | BN15: 14 | BO15: 1 | BP15: 14 | BQ15: ='HourGH-JUN'!P11 -> 0 | BR15: 14 | BS15: 1 | BT15: 14 | BU15: ='HourGH-JUL'!P11 -> 0 | BV15: 14 | BW15: 1 | BX15: 14 | BY15: ='HourGH-AUG'!P11 -> 0 | BZ15: 14 | CA15: 1 | CB15: 14 | CC15: ='HourGH-SEP'!P11 -> 0 | CD15: 14 | CE15: 1 | CF15: 14 | CG15: ='HourGH-OCT'!P11 -> 0 | CH15: 14 | CI15: 1 | CJ15: 14 | CK15: ='HourGH-NOV'!P11 -> 0 | CL15: 14 | CM15: 1 | CN15: 14 | CO15: ='HourGH-DEC'!P11 -> 0 | CP15: 14 | CQ15: 1 | CR15: 14 | CS15: ='HourGH-JAN'!P11 -> 0 | CT15: 14 | CU15: 1 | CV15: 14 | CW15: ='HourGH-FEB'!P11 -> 0 | CX15: 14 | CY15: 1 | CZ15: 14 | DA15: ='HourGH-MAR'!P11 -> 0
BF16: 15 | BG16: 1 | BH16: 15 | BI16: ='HourGH-APR'!Q11 -> 0.37 | BJ16: 15 | BK16: 1 | BL16: 15 | BM16: ='HourGH-MAY'!Q11 -> 0.38 | BN16: 15 | BO16: 1 | BP16: 15 | BQ16: ='HourGH-JUN'!Q11 -> 0.41 | BR16: 15 | BS16: 1 | BT16: 15 | BU16: ='HourGH-JUL'!Q11 -> 0.39 | BV16: 15 | BW16: 1 | BX16: 15 | BY16: ='HourGH-AUG'!Q11 -> 0.57 | BZ16: 15 | CA16: 1 | CB16: 15 | CC16: ='HourGH-SEP'!Q11 -> 0 | CD16: 15 | CE16: 1 | CF16: 15 | CG16: ='HourGH-OCT'!Q11 -> 0 | CH16: 15 | CI16: 1 | CJ16: 15 | CK16: ='HourGH-NOV'!Q11 -> 0 | CL16: 15 | CM16: 1 | CN16: 15 | CO16: ='HourGH-DEC'!Q11 -> 0 | CP16: 15 | CQ16: 1 | CR16: 15 | CS16: ='HourGH-JAN'!Q11 -> 0 | CT16: 15 | CU16: 1 | CV16: 15 | CW16: ='HourGH-FEB'!Q11 -> 0 | CX16: 15 | CY16: 1 | CZ16: 15 | DA16: ='HourGH-MAR'!Q11 -> 0
BF17: 16 | BG17: 1 | BH17: 16 | BI17: ='HourGH-APR'!R11 -> 0 | BJ17: 16 | BK17: 1 | BL17: 16 | BM17: ='HourGH-MAY'!R11 -> 0 | BN17: 16 | BO17: 1 | BP17: 16 | BQ17: ='HourGH-JUN'!R11 -> 0 | BR17: 16 | BS17: 1 | BT17: 16 | BU17: ='HourGH-JUL'!R11 -> 0 | BV17: 16 | BW17: 1 | BX17: 16 | BY17: ='HourGH-AUG'!R11 -> 0 | BZ17: 16 | CA17: 1 | CB17: 16 | CC17: ='HourGH-SEP'!R11 -> 0 | CD17: 16 | CE17: 1 | CF17: 16 | CG17: ='HourGH-OCT'!R11 -> 0 | CH17: 16 | CI17: 1 | CJ17: 16 | CK17: ='HourGH-NOV'!R11 -> 0 | CL17: 16 | CM17: 1 | CN17: 16 | CO17: ='HourGH-DEC'!R11 -> 0 | CP17: 16 | CQ17: 1 | CR17: 16 | CS17: ='HourGH-JAN'!R11 -> 0 | CT17: 16 | CU17: 1 | CV17: 16 | CW17: ='HourGH-FEB'!R11 -> 0 | CX17: 16 | CY17: 1 | CZ17: 16 | DA17: ='HourGH-MAR'!R11 -> 0
BF18: 17 | BG18: 1 | BH18: 17 | BI18: ='HourGH-APR'!S11 -> 0 | BJ18: 17 | BK18: 1 | BL18: 17 | BM18: ='HourGH-MAY'!S11 -> 0 | BN18: 17 | BO18: 1 | BP18: 17 | BQ18: ='HourGH-JUN'!S11 -> 0 | BR18: 17 | BS18: 1 | BT18: 17 | BU18: ='HourGH-JUL'!S11 -> 0 | BV18: 17 | BW18: 1 | BX18: 17 | BY18: ='HourGH-AUG'!S11 -> 0 | BZ18: 17 | CA18: 1 | CB18: 17 | CC18: ='HourGH-SEP'!S11 -> 0 | CD18: 17 | CE18: 1 | CF18: 17 | CG18: ='HourGH-OCT'!S11 -> 0 | CH18: 17 | CI18: 1 | CJ18: 17 | CK18: ='HourGH-NOV'!S11 -> 0 | CL18: 17 | CM18: 1 | CN18: 17 | CO18: ='HourGH-DEC'!S11 -> 0 | CP18: 17 | CQ18: 1 | CR18: 17 | CS18: ='HourGH-JAN'!S11 -> 0 | CT18: 17 | CU18: 1 | CV18: 17 | CW18: ='HourGH-FEB'!S11 -> 0 | CX18: 17 | CY18: 1 | CZ18: 17 | DA18: ='HourGH-MAR'!S11 -> 0
BF19: 18 | BG19: 1 | BH19: 18 | BI19: ='HourGH-APR'!T11 -> 0.37 | BJ19: 18 | BK19: 1 | BL19: 18 | BM19: ='HourGH-MAY'!T11 -> 0.38 | BN19: 18 | BO19: 1 | BP19: 18 | BQ19: ='HourGH-JUN'!T11 -> 0.41 | BR19: 18 | BS19: 1 | BT19: 18 | BU19: ='HourGH-JUL'!T11 -> 0.39 | BV19: 18 | BW19: 1 | BX19: 18 | BY19: ='HourGH-AUG'!T11 -> 0.57 | BZ19: 18 | CA19: 1 | CB19: 18 | CC19: ='HourGH-SEP'!T11 -> 0 | CD19: 18 | CE19: 1 | CF19: 18 | CG19: ='HourGH-OCT'!T11 -> 0 | CH19: 18 | CI19: 1 | CJ19: 18 | CK19: ='HourGH-NOV'!T11 -> 0 | CL19: 18 | CM19: 1 | CN19: 18 | CO19: ='HourGH-DEC'!T11 -> 0 | CP19: 18 | CQ19: 1 | CR19: 18 | CS19: ='HourGH-JAN'!T11 -> 0 | CT19: 18 | CU19: 1 | CV19: 18 | CW19: ='HourGH-FEB'!T11 -> 0 | CX19: 18 | CY19: 1 | CZ19: 18 | DA19: ='HourGH-MAR'!T11 -> 0
BF20: 19 | BG20: 1 | BH20: 19 | BI20: ='HourGH-APR'!U11 -> 0 | BJ20: 19 | BK20: 1 | BL20: 19 | BM20: ='HourGH-MAY'!U11 -> 0 | BN20: 19 | BO20: 1 | BP20: 19 | BQ20: ='HourGH-JUN'!U11 -> 0 | BR20: 19 | BS20: 1 | BT20: 19 | BU20: ='HourGH-JUL'!U11 -> 0 | BV20: 19 | BW20: 1 | BX20: 19 | BY20: ='HourGH-AUG'!U11 -> 0 | BZ20: 19 | CA20: 1 | CB20: 19 | CC20: ='HourGH-SEP'!U11 -> 0 | CD20: 19 | CE20: 1 | CF20: 19 | CG20: ='HourGH-OCT'!U11 -> 0 | CH20: 19 | CI20: 1 | CJ20: 19 | CK20: ='HourGH-NOV'!U11 -> 0 | CL20: 19 | CM20: 1 | CN20: 19 | CO20: ='HourGH-DEC'!U11 -> 0 | CP20: 19 | CQ20: 1 | CR20: 19 | CS20: ='HourGH-JAN'!U11 -> 0 | CT20: 19 | CU20: 1 | CV20: 19 | CW20: ='HourGH-FEB'!U11 -> 0 | CX20: 19 | CY20: 1 | CZ20: 19 | DA20: ='HourGH-MAR'!U11 -> 0
BF21: 20 | BG21: 1 | BH21: 20 | BI21: ='HourGH-APR'!V11 -> 0 | BJ21: 20 | BK21: 1 | BL21: 20 | BM21: ='HourGH-MAY'!V11 -> 0 | BN21: 20 | BO21: 1 | BP21: 20 | BQ21: ='HourGH-JUN'!V11 -> 0 | BR21: 20 | BS21: 1 | BT21: 20 | BU21: ='HourGH-JUL'!V11 -> 0 | BV21: 20 | BW21: 1 | BX21: 20 | BY21: ='HourGH-AUG'!V11 -> 0 | BZ21: 20 | CA21: 1 | CB21: 20 | CC21: ='HourGH-SEP'!V11 -> 0 | CD21: 20 | CE21: 1 | CF21: 20 | CG21: ='HourGH-OCT'!V11 -> 0 | CH21: 20 | CI21: 1 | CJ21: 20 | CK21: ='HourGH-NOV'!V11 -> 0 | CL21: 20 | CM21: 1 | CN21: 20 | CO21: ='HourGH-DEC'!V11 -> 0 | CP21: 20 | CQ21: 1 | CR21: 20 | CS21: ='HourGH-JAN'!V11 -> 0 | CT21: 20 | CU21: 1 | CV21: 20 | CW21: ='HourGH-FEB'!V11 -> 0 | CX21: 20 | CY21: 1 | CZ21: 20 | DA21: ='HourGH-MAR'!V11 -> 0
BF22: 21 | BG22: 1 | BH22: 21 | BI22: ='HourGH-APR'!W11 -> 0 | BJ22: 21 | BK22: 1 | BL22: 21 | BM22: ='HourGH-MAY'!W11 -> 0 | BN22: 21 | BO22: 1 | BP22: 21 | BQ22: ='HourGH-JUN'!W11 -> 0 | BR22: 21 | BS22: 1 | BT22: 21 | BU22: ='HourGH-JUL'!W11 -> 0 | BV22: 21 | BW22: 1 | BX22: 21 | BY22: ='HourGH-AUG'!W11 -> 0 | BZ22: 21 | CA22: 1 | CB22: 21 | CC22: ='HourGH-SEP'!W11 -> 0 | CD22: 21 | CE22: 1 | CF22: 21 | CG22: ='HourGH-OCT'!W11 -> 0 | CH22: 21 | CI22: 1 | CJ22: 21 | CK22: ='HourGH-NOV'!W11 -> 0 | CL22: 21 | CM22: 1 | CN22: 21 | CO22: ='HourGH-DEC'!W11 -> 0 | CP22: 21 | CQ22: 1 | CR22: 21 | CS22: ='HourGH-JAN'!W11 -> 0 | CT22: 21 | CU22: 1 | CV22: 21 | CW22: ='HourGH-FEB'!W11 -> 0 | CX22: 21 | CY22: 1 | CZ22: 21 | DA22: ='HourGH-MAR'!W11 -> 0
BF23: 22 | BG23: 1 | BH23: 22 | BI23: ='HourGH-APR'!X11 -> 0 | BJ23: 22 | BK23: 1 | BL23: 22 | BM23: ='HourGH-MAY'!X11 -> 0 | BN23: 22 | BO23: 1 | BP23: 22 | BQ23: ='HourGH-JUN'!X11 -> 0 | BR23: 22 | BS23: 1 | BT23: 22 | BU23: ='HourGH-JUL'!X11 -> 0 | BV23: 22 | BW23: 1 | BX23: 22 | BY23: ='HourGH-AUG'!X11 -> 0 | BZ23: 22 | CA23: 1 | CB23: 22 | CC23: ='HourGH-SEP'!X11 -> 0 | CD23: 22 | CE23: 1 | CF23: 22 | CG23: ='HourGH-OCT'!X11 -> 0 | CH23: 22 | CI23: 1 | CJ23: 22 | CK23: ='HourGH-NOV'!X11 -> 0 | CL23: 22 | CM23: 1 | CN23: 22 | CO23: ='HourGH-DEC'!X11 -> 0 | CP23: 22 | CQ23: 1 | CR23: 22 | CS23: ='HourGH-JAN'!X11 -> 0 | CT23: 22 | CU23: 1 | CV23: 22 | CW23: ='HourGH-FEB'!X11 -> 0 | CX23: 22 | CY23: 1 | CZ23: 22 | DA23: ='HourGH-MAR'!X11 -> 0
BF24: 23 | BG24: 1 | BH24: 23 | BI24: ='HourGH-APR'!Y11 -> 0 | BJ24: 23 | BK24: 1 | BL24: 23 | BM24: ='HourGH-MAY'!Y11 -> 0 | BN24: 23 | BO24: 1 | BP24: 23 | BQ24: ='HourGH-JUN'!Y11 -> 0 | BR24: 23 | BS24: 1 | BT24: 23 | BU24: ='HourGH-JUL'!Y11 -> 0 | BV24: 23 | BW24: 1 | BX24: 23 | BY24: ='HourGH-AUG'!Y11 -> 0 | BZ24: 23 | CA24: 1 | CB24: 23 | CC24: ='HourGH-SEP'!Y11 -> 0 | CD24: 23 | CE24: 1 | CF24: 23 | CG24: ='HourGH-OCT'!Y11 -> 0 | CH24: 23 | CI24: 1 | CJ24: 23 | CK24: ='HourGH-NOV'!Y11 -> 0 | CL24: 23 | CM24: 1 | CN24: 23 | CO24: ='HourGH-DEC'!Y11 -> 0 | CP24: 23 | CQ24: 1 | CR24: 23 | CS24: ='HourGH-JAN'!Y11 -> 0 | CT24: 23 | CU24: 1 | CV24: 23 | CW24: ='HourGH-FEB'!Y11 -> 0 | CX24: 23 | CY24: 1 | CZ24: 23 | DA24: ='HourGH-MAR'!Y11 -> 0
BF25: 24 | BG25: 1 | BH25: 24 | BI25: ='HourGH-APR'!Z11 -> 0 | BJ25: 24 | BK25: 1 | BL25: 24 | BM25: ='HourGH-MAY'!Z11 -> 0 | BN25: 24 | BO25: 1 | BP25: 24 | BQ25: ='HourGH-JUN'!Z11 -> 0 | BR25: 24 | BS25: 1 | BT25: 24 | BU25: ='HourGH-JUL'!Z11 -> 0 | BV25: 24 | BW25: 1 | BX25: 24 | BY25: ='HourGH-AUG'!Z11 -> 0 | BZ25: 24 | CA25: 1 | CB25: 24 | CC25: ='HourGH-SEP'!Z11 -> 0 | CD25: 24 | CE25: 1 | CF25: 24 | CG25: ='HourGH-OCT'!Z11 -> 0 | CH25: 24 | CI25: 1 | CJ25: 24 | CK25: ='HourGH-NOV'!Z11 -> 0 | CL25: 24 | CM25: 1 | CN25: 24 | CO25: ='HourGH-DEC'!Z11 -> 0 | CP25: 24 | CQ25: 1 | CR25: 24 | CS25: ='HourGH-JAN'!Z11 -> 0 | CT25: 24 | CU25: 1 | CV25: 24 | CW25: ='HourGH-FEB'!Z11 -> 0 | CX25: 24 | CY25: 1 | CZ25: 24 | DA25: ='HourGH-MAR'!Z11 -> 0
BF26: 25 | BG26: 2 | BH26: 1 | BI26: ='HourGH-APR'!C12 -> 0 | BJ26: 25 | BK26: 2 | BL26: 1 | BM26: ='HourGH-MAY'!C12 -> 0 | BN26: 25 | BO26: 2 | BP26: 1 | BQ26: ='HourGH-JUN'!C12 -> 0 | BR26: 25 | BS26: 2 | BT26: 1 | BU26: ='HourGH-JUL'!C12 -> 0 | BV26: 25 | BW26: 2 | BX26: 1 | BY26: ='HourGH-AUG'!C12 -> 0 | BZ26: 25 | CA26: 2 | CB26: 1 | CC26: ='HourGH-SEP'!C12 -> 0 | CD26: 25 | CE26: 2 | CF26: 1 | CG26: ='HourGH-OCT'!C12 -> 0 | CH26: 25 | CI26: 2 | CJ26: 1 | CK26: ='HourGH-NOV'!C12 -> 0 | CL26: 25 | CM26: 2 | CN26: 1 | CO26: ='HourGH-DEC'!C12 -> 0 | CP26: 25 | CQ26: 2 | CR26: 1 | CS26: ='HourGH-JAN'!C12 -> 0 | CT26: 25 | CU26: 2 | CV26: 1 | CW26: ='HourGH-FEB'!C12 -> 0 | CX26: 25 | CY26: 2 | CZ26: 1 | DA26: ='HourGH-MAR'!C12 -> 0
BF27: 26 | BG27: 2 | BH27: 2 | BI27: ='HourGH-APR'!D12 -> 0 | BJ27: 26 | BK27: 2 | BL27: 2 | BM27: ='HourGH-MAY'!D12 -> 0 | BN27: 26 | BO27: 2 | BP27: 2 | BQ27: ='HourGH-JUN'!D12 -> 0 | BR27: 26 | BS27: 2 | BT27: 2 | BU27: ='HourGH-JUL'!D12 -> 0 | BV27: 26 | BW27: 2 | BX27: 2 | BY27: ='HourGH-AUG'!D12 -> 0 | BZ27: 26 | CA27: 2 | CB27: 2 | CC27: ='HourGH-SEP'!D12 -> 0 | CD27: 26 | CE27: 2 | CF27: 2 | CG27: ='HourGH-OCT'!D12 -> 0 | CH27: 26 | CI27: 2 | CJ27: 2 | CK27: ='HourGH-NOV'!D12 -> 0 | CL27: 26 | CM27: 2 | CN27: 2 | CO27: ='HourGH-DEC'!D12 -> 0 | CP27: 26 | CQ27: 2 | CR27: 2 | CS27: ='HourGH-JAN'!D12 -> 0 | CT27: 26 | CU27: 2 | CV27: 2 | CW27: ='HourGH-FEB'!D12 -> 0 | CX27: 26 | CY27: 2 | CZ27: 2 | DA27: ='HourGH-MAR'!D12 -> 0
BF28: 27 | BG28: 2 | BH28: 3 | BI28: ='HourGH-APR'!E12 -> 0 | BJ28: 27 | BK28: 2 | BL28: 3 | BM28: ='HourGH-MAY'!E12 -> 0 | BN28: 27 | BO28: 2 | BP28: 3 | BQ28: ='HourGH-JUN'!E12 -> 0 | BR28: 27 | BS28: 2 | BT28: 3 | BU28: ='HourGH-JUL'!E12 -> 0 | BV28: 27 | BW28: 2 | BX28: 3 | BY28: ='HourGH-AUG'!E12 -> 0 | BZ28: 27 | CA28: 2 | CB28: 3 | CC28: ='HourGH-SEP'!E12 -> 0 | CD28: 27 | CE28: 2 | CF28: 3 | CG28: ='HourGH-OCT'!E12 -> 0 | CH28: 27 | CI28: 2 | CJ28: 3 | CK28: ='HourGH-NOV'!E12 -> 0 | CL28: 27 | CM28: 2 | CN28: 3 | CO28: ='HourGH-DEC'!E12 -> 0 | CP28: 27 | CQ28: 2 | CR28: 3 | CS28: ='HourGH-JAN'!E12 -> 0 | CT28: 27 | CU28: 2 | CV28: 3 | CW28: ='HourGH-FEB'!E12 -> 0 | CX28: 27 | CY28: 2 | CZ28: 3 | DA28: ='HourGH-MAR'!E12 -> 0
BF29: 28 | BG29: 2 | BH29: 4 | BI29: ='HourGH-APR'!F12 -> 0 | BJ29: 28 | BK29: 2 | BL29: 4 | BM29: ='HourGH-MAY'!F12 -> 0 | BN29: 28 | BO29: 2 | BP29: 4 | BQ29: ='HourGH-JUN'!F12 -> 0 | BR29: 28 | BS29: 2 | BT29: 4 | BU29: ='HourGH-JUL'!F12 -> 0 | BV29: 28 | BW29: 2 | BX29: 4 | BY29: ='HourGH-AUG'!F12 -> 0 | BZ29: 28 | CA29: 2 | CB29: 4 | CC29: ='HourGH-SEP'!F12 -> 0 | CD29: 28 | CE29: 2 | CF29: 4 | CG29: ='HourGH-OCT'!F12 -> 0 | CH29: 28 | CI29: 2 | CJ29: 4 | CK29: ='HourGH-NOV'!F12 -> 0 | CL29: 28 | CM29: 2 | CN29: 4 | CO29: ='HourGH-DEC'!F12 -> 0 | CP29: 28 | CQ29: 2 | CR29: 4 | CS29: ='HourGH-JAN'!F12 -> 0 | CT29: 28 | CU29: 2 | CV29: 4 | CW29: ='HourGH-FEB'!F12 -> 0 | CX29: 28 | CY29: 2 | CZ29: 4 | DA29: ='HourGH-MAR'!F12 -> 0
BF30: 29 | BG30: 2 | BH30: 5 | BI30: ='HourGH-APR'!G12 -> 0 | BJ30: 29 | BK30: 2 | BL30: 5 | BM30: ='HourGH-MAY'!G12 -> 0 | BN30: 29 | BO30: 2 | BP30: 5 | BQ30: ='HourGH-JUN'!G12 -> 0 | BR30: 29 | BS30: 2 | BT30: 5 | BU30: ='HourGH-JUL'!G12 -> 0 | BV30: 29 | BW30: 2 | BX30: 5 | BY30: ='HourGH-AUG'!G12 -> 0 | BZ30: 29 | CA30: 2 | CB30: 5 | CC30: ='HourGH-SEP'!G12 -> 0 | CD30: 29 | CE30: 2 | CF30: 5 | CG30: ='HourGH-OCT'!G12 -> 0 | CH30: 29 | CI30: 2 | CJ30: 5 | CK30: ='HourGH-NOV'!G12 -> 0 | CL30: 29 | CM30: 2 | CN30: 5 | CO30: ='HourGH-DEC'!G12 -> 0 | CP30: 29 | CQ30: 2 | CR30: 5 | CS30: ='HourGH-JAN'!G12 -> 0 | CT30: 29 | CU30: 2 | CV30: 5 | CW30: ='HourGH-FEB'!G12 -> 0 | CX30: 29 | CY30: 2 | CZ30: 5 | DA30: ='HourGH-MAR'!G12 -> 0
BF31: 30 | BG31: 2 | BH31: 6 | BI31: ='HourGH-APR'!H12 -> 0.36 | BJ31: 30 | BK31: 2 | BL31: 6 | BM31: ='HourGH-MAY'!H12 -> 0.42 | BN31: 30 | BO31: 2 | BP31: 6 | BQ31: ='HourGH-JUN'!H12 -> 0.39 | BR31: 30 | BS31: 2 | BT31: 6 | BU31: ='HourGH-JUL'!H12 -> 0.39 | BV31: 30 | BW31: 2 | BX31: 6 | BY31: ='HourGH-AUG'!H12 -> 0.66 | BZ31: 30 | CA31: 2 | CB31: 6 | CC31: ='HourGH-SEP'!H12 -> 0 | CD31: 30 | CE31: 2 | CF31: 6 | CG31: ='HourGH-OCT'!H12 -> 0 | CH31: 30 | CI31: 2 | CJ31: 6 | CK31: ='HourGH-NOV'!H12 -> 0 | CL31: 30 | CM31: 2 | CN31: 6 | CO31: ='HourGH-DEC'!H12 -> 0 | CP31: 30 | CQ31: 2 | CR31: 6 | CS31: ='HourGH-JAN'!H12 -> 0 | CT31: 30 | CU31: 2 | CV31: 6 | CW31: ='HourGH-FEB'!H12 -> 0 | CX31: 30 | CY31: 2 | CZ31: 6 | DA31: ='HourGH-MAR'!H12 -> 0
BF32: 31 | BG32: 2 | BH32: 7 | BI32: ='HourGH-APR'!I12 -> 0 | BJ32: 31 | BK32: 2 | BL32: 7 | BM32: ='HourGH-MAY'!I12 -> 0 | BN32: 31 | BO32: 2 | BP32: 7 | BQ32: ='HourGH-JUN'!I12 -> 0 | BR32: 31 | BS32: 2 | BT32: 7 | BU32: ='HourGH-JUL'!I12 -> 0 | BV32: 31 | BW32: 2 | BX32: 7 | BY32: ='HourGH-AUG'!I12 -> 0 | BZ32: 31 | CA32: 2 | CB32: 7 | CC32: ='HourGH-SEP'!I12 -> 0 | CD32: 31 | CE32: 2 | CF32: 7 | CG32: ='HourGH-OCT'!I12 -> 0 | CH32: 31 | CI32: 2 | CJ32: 7 | CK32: ='HourGH-NOV'!I12 -> 0 | CL32: 31 | CM32: 2 | CN32: 7 | CO32: ='HourGH-DEC'!I12 -> 0 | CP32: 31 | CQ32: 2 | CR32: 7 | CS32: ='HourGH-JAN'!I12 -> 0 | CT32: 31 | CU32: 2 | CV32: 7 | CW32: ='HourGH-FEB'!I12 -> 0 | CX32: 31 | CY32: 2 | CZ32: 7 | DA32: ='HourGH-MAR'!I12 -> 0
BF33: 32 | BG33: 2 | BH33: 8 | BI33: ='HourGH-APR'!J12 -> 0 | BJ33: 32 | BK33: 2 | BL33: 8 | BM33: ='HourGH-MAY'!J12 -> 0 | BN33: 32 | BO33: 2 | BP33: 8 | BQ33: ='HourGH-JUN'!J12 -> 0 | BR33: 32 | BS33: 2 | BT33: 8 | BU33: ='HourGH-JUL'!J12 -> 0 | BV33: 32 | BW33: 2 | BX33: 8 | BY33: ='HourGH-AUG'!J12 -> 0 | BZ33: 32 | CA33: 2 | CB33: 8 | CC33: ='HourGH-SEP'!J12 -> 0 | CD33: 32 | CE33: 2 | CF33: 8 | CG33: ='HourGH-OCT'!J12 -> 0 | CH33: 32 | CI33: 2 | CJ33: 8 | CK33: ='HourGH-NOV'!J12 -> 0 | CL33: 32 | CM33: 2 | CN33: 8 | CO33: ='HourGH-DEC'!J12 -> 0 | CP33: 32 | CQ33: 2 | CR33: 8 | CS33: ='HourGH-JAN'!J12 -> 0 | CT33: 32 | CU33: 2 | CV33: 8 | CW33: ='HourGH-FEB'!J12 -> 0 | CX33: 32 | CY33: 2 | CZ33: 8 | DA33: ='HourGH-MAR'!J12 -> 0
BF34: 33 | BG34: 2 | BH34: 9 | BI34: ='HourGH-APR'!K12 -> 0.36 | BJ34: 33 | BK34: 2 | BL34: 9 | BM34: ='HourGH-MAY'!K12 -> 0.4 | BN34: 33 | BO34: 2 | BP34: 9 | BQ34: ='HourGH-JUN'!K12 -> 0.39 | BR34: 33 | BS34: 2 | BT34: 9 | BU34: ='HourGH-JUL'!K12 -> 0.39 | BV34: 33 | BW34: 2 | BX34: 9 | BY34: ='HourGH-AUG'!K12 -> 0.68 | BZ34: 33 | CA34: 2 | CB34: 9 | CC34: ='HourGH-SEP'!K12 -> 0 | CD34: 33 | CE34: 2 | CF34: 9 | CG34: ='HourGH-OCT'!K12 -> 0 | CH34: 33 | CI34: 2 | CJ34: 9 | CK34: ='HourGH-NOV'!K12 -> 0 | CL34: 33 | CM34: 2 | CN34: 9 | CO34: ='HourGH-DEC'!K12 -> 0 | CP34: 33 | CQ34: 2 | CR34: 9 | CS34: ='HourGH-JAN'!K12 -> 0 | CT34: 33 | CU34: 2 | CV34: 9 | CW34: ='HourGH-FEB'!K12 -> 0 | CX34: 33 | CY34: 2 | CZ34: 9 | DA34: ='HourGH-MAR'!K12 -> 0
BF35: 34 | BG35: 2 | BH35: 10 | BI35: ='HourGH-APR'!L12 -> 0 | BJ35: 34 | BK35: 2 | BL35: 10 | BM35: ='HourGH-MAY'!L12 -> 0 | BN35: 34 | BO35: 2 | BP35: 10 | BQ35: ='HourGH-JUN'!L12 -> 0 | BR35: 34 | BS35: 2 | BT35: 10 | BU35: ='HourGH-JUL'!L12 -> 0 | BV35: 34 | BW35: 2 | BX35: 10 | BY35: ='HourGH-AUG'!L12 -> 0 | BZ35: 34 | CA35: 2 | CB35: 10 | CC35: ='HourGH-SEP'!L12 -> 0 | CD35: 34 | CE35: 2 | CF35: 10 | CG35: ='HourGH-OCT'!L12 -> 0 | CH35: 34 | CI35: 2 | CJ35: 10 | CK35: ='HourGH-NOV'!L12 -> 0 | CL35: 34 | CM35: 2 | CN35: 10 | CO35: ='HourGH-DEC'!L12 -> 0 | CP35: 34 | CQ35: 2 | CR35: 10 | CS35: ='HourGH-JAN'!L12 -> 0 | CT35: 34 | CU35: 2 | CV35: 10 | CW35: ='HourGH-FEB'!L12 -> 0 | CX35: 34 | CY35: 2 | CZ35: 10 | DA35: ='HourGH-MAR'!L12 -> 0
BF36: 35 | BG36: 2 | BH36: 11 | BI36: ='HourGH-APR'!M12 -> 0 | BJ36: 35 | BK36: 2 | BL36: 11 | BM36: ='HourGH-MAY'!M12 -> 0 | BN36: 35 | BO36: 2 | BP36: 11 | BQ36: ='HourGH-JUN'!M12 -> 0 | BR36: 35 | BS36: 2 | BT36: 11 | BU36: ='HourGH-JUL'!M12 -> 0 | BV36: 35 | BW36: 2 | BX36: 11 | BY36: ='HourGH-AUG'!M12 -> 0 | BZ36: 35 | CA36: 2 | CB36: 11 | CC36: ='HourGH-SEP'!M12 -> 0 | CD36: 35 | CE36: 2 | CF36: 11 | CG36: ='HourGH-OCT'!M12 -> 0 | CH36: 35 | CI36: 2 | CJ36: 11 | CK36: ='HourGH-NOV'!M12 -> 0 | CL36: 35 | CM36: 2 | CN36: 11 | CO36: ='HourGH-DEC'!M12 -> 0 | CP36: 35 | CQ36: 2 | CR36: 11 | CS36: ='HourGH-JAN'!M12 -> 0 | CT36: 35 | CU36: 2 | CV36: 11 | CW36: ='HourGH-FEB'!M12 -> 0 | CX36: 35 | CY36: 2 | CZ36: 11 | DA36: ='HourGH-MAR'!M12 -> 0
BF37: 36 | BG37: 2 | BH37: 12 | BI37: ='HourGH-APR'!N12 -> 0.36 | BJ37: 36 | BK37: 2 | BL37: 12 | BM37: ='HourGH-MAY'!N12 -> 0.4 | BN37: 36 | BO37: 2 | BP37: 12 | BQ37: ='HourGH-JUN'!N12 -> 0.39 | BR37: 36 | BS37: 2 | BT37: 12 | BU37: ='HourGH-JUL'!N12 -> 0.39 | BV37: 36 | BW37: 2 | BX37: 12 | BY37: ='HourGH-AUG'!N12 -> 0.73 | BZ37: 36 | CA37: 2 | CB37: 12 | CC37: ='HourGH-SEP'!N12 -> 0 | CD37: 36 | CE37: 2 | CF37: 12 | CG37: ='HourGH-OCT'!N12 -> 0 | CH37: 36 | CI37: 2 | CJ37: 12 | CK37: ='HourGH-NOV'!N12 -> 0 | CL37: 36 | CM37: 2 | CN37: 12 | CO37: ='HourGH-DEC'!N12 -> 0 | CP37: 36 | CQ37: 2 | CR37: 12 | CS37: ='HourGH-JAN'!N12 -> 0 | CT37: 36 | CU37: 2 | CV37: 12 | CW37: ='HourGH-FEB'!N12 -> 0 | CX37: 36 | CY37: 2 | CZ37: 12 | DA37: ='HourGH-MAR'!N12 -> 0
BF38: 37 | BG38: 2 | BH38: 13 | BI38: ='HourGH-APR'!O12 -> 0 | BJ38: 37 | BK38: 2 | BL38: 13 | BM38: ='HourGH-MAY'!O12 -> 0 | BN38: 37 | BO38: 2 | BP38: 13 | BQ38: ='HourGH-JUN'!O12 -> 0 | BR38: 37 | BS38: 2 | BT38: 13 | BU38: ='HourGH-JUL'!O12 -> 0 | BV38: 37 | BW38: 2 | BX38: 13 | BY38: ='HourGH-AUG'!O12 -> 0 | BZ38: 37 | CA38: 2 | CB38: 13 | CC38: ='HourGH-SEP'!O12 -> 0 | CD38: 37 | CE38: 2 | CF38: 13 | CG38: ='HourGH-OCT'!O12 -> 0 | CH38: 37 | CI38: 2 | CJ38: 13 | CK38: ='HourGH-NOV'!O12 -> 0 | CL38: 37 | CM38: 2 | CN38: 13 | CO38: ='HourGH-DEC'!O12 -> 0 | CP38: 37 | CQ38: 2 | CR38: 13 | CS38: ='HourGH-JAN'!O12 -> 0 | CT38: 37 | CU38: 2 | CV38: 13 | CW38: ='HourGH-FEB'!O12 -> 0 | CX38: 37 | CY38: 2 | CZ38: 13 | DA38: ='HourGH-MAR'!O12 -> 0
BF39: 38 | BG39: 2 | BH39: 14 | BI39: ='HourGH-APR'!P12 -> 0 | BJ39: 38 | BK39: 2 | BL39: 14 | BM39: ='HourGH-MAY'!P12 -> 0 | BN39: 38 | BO39: 2 | BP39: 14 | BQ39: ='HourGH-JUN'!P12 -> 0 | BR39: 38 | BS39: 2 | BT39: 14 | BU39: ='HourGH-JUL'!P12 -> 0 | BV39: 38 | BW39: 2 | BX39: 14 | BY39: ='HourGH-AUG'!P12 -> 0 | BZ39: 38 | CA39: 2 | CB39: 14 | CC39: ='HourGH-SEP'!P12 -> 0 | CD39: 38 | CE39: 2 | CF39: 14 | CG39: ='HourGH-OCT'!P12 -> 0 | CH39: 38 | CI39: 2 | CJ39: 14 | CK39: ='HourGH-NOV'!P12 -> 0 | CL39: 38 | CM39: 2 | CN39: 14 | CO39: ='HourGH-DEC'!P12 -> 0 | CP39: 38 | CQ39: 2 | CR39: 14 | CS39: ='HourGH-JAN'!P12 -> 0 | CT39: 38 | CU39: 2 | CV39: 14 | CW39: ='HourGH-FEB'!P12 -> 0 | CX39: 38 | CY39: 2 | CZ39: 14 | DA39: ='HourGH-MAR'!P12 -> 0
BF40: 39 | BG40: 2 | BH40: 15 | BI40: ='HourGH-APR'!Q12 -> 0.36 | BJ40: 39 | BK40: 2 | BL40: 15 | BM40: ='HourGH-MAY'!Q12 -> 0.37 | BN40: 39 | BO40: 2 | BP40: 15 | BQ40: ='HourGH-JUN'!Q12 -> 0.39 | BR40: 39 | BS40: 2 | BT40: 15 | BU40: ='HourGH-JUL'!Q12 -> 0.39 | BV40: 39 | BW40: 2 | BX40: 15 | BY40: ='HourGH-AUG'!Q12 -> 0.73 | BZ40: 39 | CA40: 2 | CB40: 15 | CC40: ='HourGH-SEP'!Q12 -> 0 | CD40: 39 | CE40: 2 | CF40: 15 | CG40: ='HourGH-OCT'!Q12 -> 0 | CH40: 39 | CI40: 2 | CJ40: 15 | CK40: ='HourGH-NOV'!Q12 -> 0 | CL40: 39 | CM40: 2 | CN40: 15 | CO40: ='HourGH-DEC'!Q12 -> 0 | CP40: 39 | CQ40: 2 | CR40: 15 | CS40: ='HourGH-JAN'!Q12 -> 0 | CT40: 39 | CU40: 2 | CV40: 15 | CW40: ='HourGH-FEB'!Q12 -> 0 | CX40: 39 | CY40: 2 | CZ40: 15 | DA40: ='HourGH-MAR'!Q12 -> 0
BF41: 40 | BG41: 2 | BH41: 16 | BI41: ='HourGH-APR'!R12 -> 0 | BJ41: 40 | BK41: 2 | BL41: 16 | BM41: ='HourGH-MAY'!R12 -> 0 | BN41: 40 | BO41: 2 | BP41: 16 | BQ41: ='HourGH-JUN'!R12 -> 0 | BR41: 40 | BS41: 2 | BT41: 16 | BU41: ='HourGH-JUL'!R12 -> 0 | BV41: 40 | BW41: 2 | BX41: 16 | BY41: ='HourGH-AUG'!R12 -> 0 | BZ41: 40 | CA41: 2 | CB41: 16 | CC41: ='HourGH-SEP'!R12 -> 0 | CD41: 40 | CE41: 2 | CF41: 16 | CG41: ='HourGH-OCT'!R12 -> 0 | CH41: 40 | CI41: 2 | CJ41: 16 | CK41: ='HourGH-NOV'!R12 -> 0 | CL41: 40 | CM41: 2 | CN41: 16 | CO41: ='HourGH-DEC'!R12 -> 0 | CP41: 40 | CQ41: 2 | CR41: 16 | CS41: ='HourGH-JAN'!R12 -> 0 | CT41: 40 | CU41: 2 | CV41: 16 | CW41: ='HourGH-FEB'!R12 -> 0 | CX41: 40 | CY41: 2 | CZ41: 16 | DA41: ='HourGH-MAR'!R12 -> 0
BF42: 41 | BG42: 2 | BH42: 17 | BI42: ='HourGH-APR'!S12 -> 0 | BJ42: 41 | BK42: 2 | BL42: 17 | BM42: ='HourGH-MAY'!S12 -> 0 | BN42: 41 | BO42: 2 | BP42: 17 | BQ42: ='HourGH-JUN'!S12 -> 0 | BR42: 41 | BS42: 2 | BT42: 17 | BU42: ='HourGH-JUL'!S12 -> 0 | BV42: 41 | BW42: 2 | BX42: 17 | BY42: ='HourGH-AUG'!S12 -> 0 | BZ42: 41 | CA42: 2 | CB42: 17 | CC42: ='HourGH-SEP'!S12 -> 0 | CD42: 41 | CE42: 2 | CF42: 17 | CG42: ='HourGH-OCT'!S12 -> 0 | CH42: 41 | CI42: 2 | CJ42: 17 | CK42: ='HourGH-NOV'!S12 -> 0 | CL42: 41 | CM42: 2 | CN42: 17 | CO42: ='HourGH-DEC'!S12 -> 0 | CP42: 41 | CQ42: 2 | CR42: 17 | CS42: ='HourGH-JAN'!S12 -> 0 | CT42: 41 | CU42: 2 | CV42: 17 | CW42: ='HourGH-FEB'!S12 -> 0 | CX42: 41 | CY42: 2 | CZ42: 17 | DA42: ='HourGH-MAR'!S12 -> 0
BF43: 42 | BG43: 2 | BH43: 18 | BI43: ='HourGH-APR'!T12 -> 0.36 | BJ43: 42 | BK43: 2 | BL43: 18 | BM43: ='HourGH-MAY'!T12 -> 0.37 | BN43: 42 | BO43: 2 | BP43: 18 | BQ43: ='HourGH-JUN'!T12 -> 0.39 | BR43: 42 | BS43: 2 | BT43: 18 | BU43: ='HourGH-JUL'!T12 -> 0.39 | BV43: 42 | BW43: 2 | BX43: 18 | BY43: ='HourGH-AUG'!T12 -> 0.7 | BZ43: 42 | CA43: 2 | CB43: 18 | CC43: ='HourGH-SEP'!T12 -> 0 | CD43: 42 | CE43: 2 | CF43: 18 | CG43: ='HourGH-OCT'!T12 -> 0 | CH43: 42 | CI43: 2 | CJ43: 18 | CK43: ='HourGH-NOV'!T12 -> 0 | CL43: 42 | CM43: 2 | CN43: 18 | CO43: ='HourGH-DEC'!T12 -> 0 | CP43: 42 | CQ43: 2 | CR43: 18 | CS43: ='HourGH-JAN'!T12 -> 0 | CT43: 42 | CU43: 2 | CV43: 18 | CW43: ='HourGH-FEB'!T12 -> 0 | CX43: 42 | CY43: 2 | CZ43: 18 | DA43: ='HourGH-MAR'!T12 -> 0
BF44: 43 | BG44: 2 | BH44: 19 | BI44: ='HourGH-APR'!U12 -> 0 | BJ44: 43 | BK44: 2 | BL44: 19 | BM44: ='HourGH-MAY'!U12 -> 0 | BN44: 43 | BO44: 2 | BP44: 19 | BQ44: ='HourGH-JUN'!U12 -> 0 | BR44: 43 | BS44: 2 | BT44: 19 | BU44: ='HourGH-JUL'!U12 -> 0 | BV44: 43 | BW44: 2 | BX44: 19 | BY44: ='HourGH-AUG'!U12 -> 0 | BZ44: 43 | CA44: 2 | CB44: 19 | CC44: ='HourGH-SEP'!U12 -> 0 | CD44: 43 | CE44: 2 | CF44: 19 | CG44: ='HourGH-OCT'!U12 -> 0 | CH44: 43 | CI44: 2 | CJ44: 19 | CK44: ='HourGH-NOV'!U12 -> 0 | CL44: 43 | CM44: 2 | CN44: 19 | CO44: ='HourGH-DEC'!U12 -> 0 | CP44: 43 | CQ44: 2 | CR44: 19 | CS44: ='HourGH-JAN'!U12 -> 0 | CT44: 43 | CU44: 2 | CV44: 19 | CW44: ='HourGH-FEB'!U12 -> 0 | CX44: 43 | CY44: 2 | CZ44: 19 | DA44: ='HourGH-MAR'!U12 -> 0
BF45: 44 | BG45: 2 | BH45: 20 | BI45: ='HourGH-APR'!V12 -> 0 | BJ45: 44 | BK45: 2 | BL45: 20 | BM45: ='HourGH-MAY'!V12 -> 0 | BN45: 44 | BO45: 2 | BP45: 20 | BQ45: ='HourGH-JUN'!V12 -> 0 | BR45: 44 | BS45: 2 | BT45: 20 | BU45: ='HourGH-JUL'!V12 -> 0 | BV45: 44 | BW45: 2 | BX45: 20 | BY45: ='HourGH-AUG'!V12 -> 0 | BZ45: 44 | CA45: 2 | CB45: 20 | CC45: ='HourGH-SEP'!V12 -> 0 | CD45: 44 | CE45: 2 | CF45: 20 | CG45: ='HourGH-OCT'!V12 -> 0 | CH45: 44 | CI45: 2 | CJ45: 20 | CK45: ='HourGH-NOV'!V12 -> 0 | CL45: 44 | CM45: 2 | CN45: 20 | CO45: ='HourGH-DEC'!V12 -> 0 | CP45: 44 | CQ45: 2 | CR45: 20 | CS45: ='HourGH-JAN'!V12 -> 0 | CT45: 44 | CU45: 2 | CV45: 20 | CW45: ='HourGH-FEB'!V12 -> 0 | CX45: 44 | CY45: 2 | CZ45: 20 | DA45: ='HourGH-MAR'!V12 -> 0
BF46: 45 | BG46: 2 | BH46: 21 | BI46: ='HourGH-APR'!W12 -> 0 | BJ46: 45 | BK46: 2 | BL46: 21 | BM46: ='HourGH-MAY'!W12 -> 0 | BN46: 45 | BO46: 2 | BP46: 21 | BQ46: ='HourGH-JUN'!W12 -> 0 | BR46: 45 | BS46: 2 | BT46: 21 | BU46: ='HourGH-JUL'!W12 -> 0 | BV46: 45 | BW46: 2 | BX46: 21 | BY46: ='HourGH-AUG'!W12 -> 0 | BZ46: 45 | CA46: 2 | CB46: 21 | CC46: ='HourGH-SEP'!W12 -> 0 | CD46: 45 | CE46: 2 | CF46: 21 | CG46: ='HourGH-OCT'!W12 -> 0 | CH46: 45 | CI46: 2 | CJ46: 21 | CK46: ='HourGH-NOV'!W12 -> 0 | CL46: 45 | CM46: 2 | CN46: 21 | CO46: ='HourGH-DEC'!W12 -> 0 | CP46: 45 | CQ46: 2 | CR46: 21 | CS46: ='HourGH-JAN'!W12 -> 0 | CT46: 45 | CU46: 2 | CV46: 21 | CW46: ='HourGH-FEB'!W12 -> 0 | CX46: 45 | CY46: 2 | CZ46: 21 | DA46: ='HourGH-MAR'!W12 -> 0
BF47: 46 | BG47: 2 | BH47: 22 | BI47: ='HourGH-APR'!X12 -> 0 | BJ47: 46 | BK47: 2 | BL47: 22 | BM47: ='HourGH-MAY'!X12 -> 0 | BN47: 46 | BO47: 2 | BP47: 22 | BQ47: ='HourGH-JUN'!X12 -> 0 | BR47: 46 | BS47: 2 | BT47: 22 | BU47: ='HourGH-JUL'!X12 -> 0 | BV47: 46 | BW47: 2 | BX47: 22 | BY47: ='HourGH-AUG'!X12 -> 0 | BZ47: 46 | CA47: 2 | CB47: 22 | CC47: ='HourGH-SEP'!X12 -> 0 | CD47: 46 | CE47: 2 | CF47: 22 | CG47: ='HourGH-OCT'!X12 -> 0 | CH47: 46 | CI47: 2 | CJ47: 22 | CK47: ='HourGH-NOV'!X12 -> 0 | CL47: 46 | CM47: 2 | CN47: 22 | CO47: ='HourGH-DEC'!X12 -> 0 | CP47: 46 | CQ47: 2 | CR47: 22 | CS47: ='HourGH-JAN'!X12 -> 0 | CT47: 46 | CU47: 2 | CV47: 22 | CW47: ='HourGH-FEB'!X12 -> 0 | CX47: 46 | CY47: 2 | CZ47: 22 | DA47: ='HourGH-MAR'!X12 -> 0
BF48: 47 | BG48: 2 | BH48: 23 | BI48: ='HourGH-APR'!Y12 -> 0 | BJ48: 47 | BK48: 2 | BL48: 23 | BM48: ='HourGH-MAY'!Y12 -> 0 | BN48: 47 | BO48: 2 | BP48: 23 | BQ48: ='HourGH-JUN'!Y12 -> 0 | BR48: 47 | BS48: 2 | BT48: 23 | BU48: ='HourGH-JUL'!Y12 -> 0 | BV48: 47 | BW48: 2 | BX48: 23 | BY48: ='HourGH-AUG'!Y12 -> 0 | BZ48: 47 | CA48: 2 | CB48: 23 | CC48: ='HourGH-SEP'!Y12 -> 0 | CD48: 47 | CE48: 2 | CF48: 23 | CG48: ='HourGH-OCT'!Y12 -> 0 | CH48: 47 | CI48: 2 | CJ48: 23 | CK48: ='HourGH-NOV'!Y12 -> 0 | CL48: 47 | CM48: 2 | CN48: 23 | CO48: ='HourGH-DEC'!Y12 -> 0 | CP48: 47 | CQ48: 2 | CR48: 23 | CS48: ='HourGH-JAN'!Y12 -> 0 | CT48: 47 | CU48: 2 | CV48: 23 | CW48: ='HourGH-FEB'!Y12 -> 0 | CX48: 47 | CY48: 2 | CZ48: 23 | DA48: ='HourGH-MAR'!Y12 -> 0
BF49: 48 | BG49: 2 | BH49: 24 | BI49: ='HourGH-APR'!Z12 -> 0 | BJ49: 48 | BK49: 2 | BL49: 24 | BM49: ='HourGH-MAY'!Z12 -> 0 | BN49: 48 | BO49: 2 | BP49: 24 | BQ49: ='HourGH-JUN'!Z12 -> 0 | BR49: 48 | BS49: 2 | BT49: 24 | BU49: ='HourGH-JUL'!Z12 -> 0 | BV49: 48 | BW49: 2 | BX49: 24 | BY49: ='HourGH-AUG'!Z12 -> 0 | BZ49: 48 | CA49: 2 | CB49: 24 | CC49: ='HourGH-SEP'!Z12 -> 0 | CD49: 48 | CE49: 2 | CF49: 24 | CG49: ='HourGH-OCT'!Z12 -> 0 | CH49: 48 | CI49: 2 | CJ49: 24 | CK49: ='HourGH-NOV'!Z12 -> 0 | CL49: 48 | CM49: 2 | CN49: 24 | CO49: ='HourGH-DEC'!Z12 -> 0 | CP49: 48 | CQ49: 2 | CR49: 24 | CS49: ='HourGH-JAN'!Z12 -> 0 | CT49: 48 | CU49: 2 | CV49: 24 | CW49: ='HourGH-FEB'!Z12 -> 0 | CX49: 48 | CY49: 2 | CZ49: 24 | DA49: ='HourGH-MAR'!Z12 -> 0
BF50: 49 | BG50: 3 | BH50: 1 | BI50: ='HourGH-APR'!C13 -> 0 | BJ50: 49 | BK50: 3 | BL50: 1 | BM50: ='HourGH-MAY'!C13 -> 0 | BN50: 49 | BO50: 3 | BP50: 1 | BQ50: ='HourGH-JUN'!C13 -> 0 | BR50: 49 | BS50: 3 | BT50: 1 | BU50: ='HourGH-JUL'!C13 -> 0 | BV50: 49 | BW50: 3 | BX50: 1 | BY50: ='HourGH-AUG'!C13 -> 0 | BZ50: 49 | CA50: 3 | CB50: 1 | CC50: ='HourGH-SEP'!C13 -> 0 | CD50: 49 | CE50: 3 | CF50: 1 | CG50: ='HourGH-OCT'!C13 -> 0 | CH50: 49 | CI50: 3 | CJ50: 1 | CK50: ='HourGH-NOV'!C13 -> 0 | CL50: 49 | CM50: 3 | CN50: 1 | CO50: ='HourGH-DEC'!C13 -> 0 | CP50: 49 | CQ50: 3 | CR50: 1 | CS50: ='HourGH-JAN'!C13 -> 0 | CT50: 49 | CU50: 3 | CV50: 1 | CW50: ='HourGH-FEB'!C13 -> 0 | CX50: 49 | CY50: 3 | CZ50: 1 | DA50: ='HourGH-MAR'!C13 -> 0
BF51: 50 | BG51: 3 | BH51: 2 | BI51: ='HourGH-APR'!D13 -> 0 | BJ51: 50 | BK51: 3 | BL51: 2 | BM51: ='HourGH-MAY'!D13 -> 0 | BN51: 50 | BO51: 3 | BP51: 2 | BQ51: ='HourGH-JUN'!D13 -> 0 | BR51: 50 | BS51: 3 | BT51: 2 | BU51: ='HourGH-JUL'!D13 -> 0 | BV51: 50 | BW51: 3 | BX51: 2 | BY51: ='HourGH-AUG'!D13 -> 0 | BZ51: 50 | CA51: 3 | CB51: 2 | CC51: ='HourGH-SEP'!D13 -> 0 | CD51: 50 | CE51: 3 | CF51: 2 | CG51: ='HourGH-OCT'!D13 -> 0 | CH51: 50 | CI51: 3 | CJ51: 2 | CK51: ='HourGH-NOV'!D13 -> 0 | CL51: 50 | CM51: 3 | CN51: 2 | CO51: ='HourGH-DEC'!D13 -> 0 | CP51: 50 | CQ51: 3 | CR51: 2 | CS51: ='HourGH-JAN'!D13 -> 0 | CT51: 50 | CU51: 3 | CV51: 2 | CW51: ='HourGH-FEB'!D13 -> 0 | CX51: 50 | CY51: 3 | CZ51: 2 | DA51: ='HourGH-MAR'!D13 -> 0
BF52: 51 | BG52: 3 | BH52: 3 | BI52: ='HourGH-APR'!E13 -> 0 | BJ52: 51 | BK52: 3 | BL52: 3 | BM52: ='HourGH-MAY'!E13 -> 0 | BN52: 51 | BO52: 3 | BP52: 3 | BQ52: ='HourGH-JUN'!E13 -> 0 | BR52: 51 | BS52: 3 | BT52: 3 | BU52: ='HourGH-JUL'!E13 -> 0 | BV52: 51 | BW52: 3 | BX52: 3 | BY52: ='HourGH-AUG'!E13 -> 0 | BZ52: 51 | CA52: 3 | CB52: 3 | CC52: ='HourGH-SEP'!E13 -> 0 | CD52: 51 | CE52: 3 | CF52: 3 | CG52: ='HourGH-OCT'!E13 -> 0 | CH52: 51 | CI52: 3 | CJ52: 3 | CK52: ='HourGH-NOV'!E13 -> 0 | CL52: 51 | CM52: 3 | CN52: 3 | CO52: ='HourGH-DEC'!E13 -> 0 | CP52: 51 | CQ52: 3 | CR52: 3 | CS52: ='HourGH-JAN'!E13 -> 0 | CT52: 51 | CU52: 3 | CV52: 3 | CW52: ='HourGH-FEB'!E13 -> 0 | CX52: 51 | CY52: 3 | CZ52: 3 | DA52: ='HourGH-MAR'!E13 -> 0
BF53: 52 | BG53: 3 | BH53: 4 | BI53: ='HourGH-APR'!F13 -> 0 | BJ53: 52 | BK53: 3 | BL53: 4 | BM53: ='HourGH-MAY'!F13 -> 0 | BN53: 52 | BO53: 3 | BP53: 4 | BQ53: ='HourGH-JUN'!F13 -> 0 | BR53: 52 | BS53: 3 | BT53: 4 | BU53: ='HourGH-JUL'!F13 -> 0 | BV53: 52 | BW53: 3 | BX53: 4 | BY53: ='HourGH-AUG'!F13 -> 0 | BZ53: 52 | CA53: 3 | CB53: 4 | CC53: ='HourGH-SEP'!F13 -> 0 | CD53: 52 | CE53: 3 | CF53: 4 | CG53: ='HourGH-OCT'!F13 -> 0 | CH53: 52 | CI53: 3 | CJ53: 4 | CK53: ='HourGH-NOV'!F13 -> 0 | CL53: 52 | CM53: 3 | CN53: 4 | CO53: ='HourGH-DEC'!F13 -> 0 | CP53: 52 | CQ53: 3 | CR53: 4 | CS53: ='HourGH-JAN'!F13 -> 0 | CT53: 52 | CU53: 3 | CV53: 4 | CW53: ='HourGH-FEB'!F13 -> 0 | CX53: 52 | CY53: 3 | CZ53: 4 | DA53: ='HourGH-MAR'!F13 -> 0
BF54: 53 | BG54: 3 | BH54: 5 | BI54: ='HourGH-APR'!G13 -> 0 | BJ54: 53 | BK54: 3 | BL54: 5 | BM54: ='HourGH-MAY'!G13 -> 0 | BN54: 53 | BO54: 3 | BP54: 5 | BQ54: ='HourGH-JUN'!G13 -> 0 | BR54: 53 | BS54: 3 | BT54: 5 | BU54: ='HourGH-JUL'!G13 -> 0 | BV54: 53 | BW54: 3 | BX54: 5 | BY54: ='HourGH-AUG'!G13 -> 0 | BZ54: 53 | CA54: 3 | CB54: 5 | CC54: ='HourGH-SEP'!G13 -> 0 | CD54: 53 | CE54: 3 | CF54: 5 | CG54: ='HourGH-OCT'!G13 -> 0 | CH54: 53 | CI54: 3 | CJ54: 5 | CK54: ='HourGH-NOV'!G13 -> 0 | CL54: 53 | CM54: 3 | CN54: 5 | CO54: ='HourGH-DEC'!G13 -> 0 | CP54: 53 | CQ54: 3 | CR54: 5 | CS54: ='HourGH-JAN'!G13 -> 0 | CT54: 53 | CU54: 3 | CV54: 5 | CW54: ='HourGH-FEB'!G13 -> 0 | CX54: 53 | CY54: 3 | CZ54: 5 | DA54: ='HourGH-MAR'!G13 -> 0
BF55: 54 | BG55: 3 | BH55: 6 | BI55: ='HourGH-APR'!H13 -> 0.36 | BJ55: 54 | BK55: 3 | BL55: 6 | BM55: ='HourGH-MAY'!H13 -> 0.54 | BN55: 54 | BO55: 3 | BP55: 6 | BQ55: ='HourGH-JUN'!H13 -> 0.37 | BR55: 54 | BS55: 3 | BT55: 6 | BU55: ='HourGH-JUL'!H13 -> 0.39 | BV55: 54 | BW55: 3 | BX55: 6 | BY55: ='HourGH-AUG'!H13 -> 0.8 | BZ55: 54 | CA55: 3 | CB55: 6 | CC55: ='HourGH-SEP'!H13 -> 0 | CD55: 54 | CE55: 3 | CF55: 6 | CG55: ='HourGH-OCT'!H13 -> 0 | CH55: 54 | CI55: 3 | CJ55: 6 | CK55: ='HourGH-NOV'!H13 -> 0 | CL55: 54 | CM55: 3 | CN55: 6 | CO55: ='HourGH-DEC'!H13 -> 0 | CP55: 54 | CQ55: 3 | CR55: 6 | CS55: ='HourGH-JAN'!H13 -> 0 | CT55: 54 | CU55: 3 | CV55: 6 | CW55: ='HourGH-FEB'!H13 -> 0 | CX55: 54 | CY55: 3 | CZ55: 6 | DA55: ='HourGH-MAR'!H13 -> 0
BF56: 55 | BG56: 3 | BH56: 7 | BI56: ='HourGH-APR'!I13 -> 0 | BJ56: 55 | BK56: 3 | BL56: 7 | BM56: ='HourGH-MAY'!I13 -> 0 | BN56: 55 | BO56: 3 | BP56: 7 | BQ56: ='HourGH-JUN'!I13 -> 0 | BR56: 55 | BS56: 3 | BT56: 7 | BU56: ='HourGH-JUL'!I13 -> 0 | BV56: 55 | BW56: 3 | BX56: 7 | BY56: ='HourGH-AUG'!I13 -> 0 | BZ56: 55 | CA56: 3 | CB56: 7 | CC56: ='HourGH-SEP'!I13 -> 0 | CD56: 55 | CE56: 3 | CF56: 7 | CG56: ='HourGH-OCT'!I13 -> 0 | CH56: 55 | CI56: 3 | CJ56: 7 | CK56: ='HourGH-NOV'!I13 -> 0 | CL56: 55 | CM56: 3 | CN56: 7 | CO56: ='HourGH-DEC'!I13 -> 0 | CP56: 55 | CQ56: 3 | CR56: 7 | CS56: ='HourGH-JAN'!I13 -> 0 | CT56: 55 | CU56: 3 | CV56: 7 | CW56: ='HourGH-FEB'!I13 -> 0 | CX56: 55 | CY56: 3 | CZ56: 7 | DA56: ='HourGH-MAR'!I13 -> 0
BF57: 56 | BG57: 3 | BH57: 8 | BI57: ='HourGH-APR'!J13 -> 0 | BJ57: 56 | BK57: 3 | BL57: 8 | BM57: ='HourGH-MAY'!J13 -> 0 | BN57: 56 | BO57: 3 | BP57: 8 | BQ57: ='HourGH-JUN'!J13 -> 0 | BR57: 56 | BS57: 3 | BT57: 8 | BU57: ='HourGH-JUL'!J13 -> 0 | BV57: 56 | BW57: 3 | BX57: 8 | BY57: ='HourGH-AUG'!J13 -> 0 | BZ57: 56 | CA57: 3 | CB57: 8 | CC57: ='HourGH-SEP'!J13 -> 0 | CD57: 56 | CE57: 3 | CF57: 8 | CG57: ='HourGH-OCT'!J13 -> 0 | CH57: 56 | CI57: 3 | CJ57: 8 | CK57: ='HourGH-NOV'!J13 -> 0 | CL57: 56 | CM57: 3 | CN57: 8 | CO57: ='HourGH-DEC'!J13 -> 0 | CP57: 56 | CQ57: 3 | CR57: 8 | CS57: ='HourGH-JAN'!J13 -> 0 | CT57: 56 | CU57: 3 | CV57: 8 | CW57: ='HourGH-FEB'!J13 -> 0 | CX57: 56 | CY57: 3 | CZ57: 8 | DA57: ='HourGH-MAR'!J13 -> 0
BF58: 57 | BG58: 3 | BH58: 9 | BI58: ='HourGH-APR'!K13 -> 0.36 | BJ58: 57 | BK58: 3 | BL58: 9 | BM58: ='HourGH-MAY'!K13 -> 0.5 | BN58: 57 | BO58: 3 | BP58: 9 | BQ58: ='HourGH-JUN'!K13 -> 0.37 | BR58: 57 | BS58: 3 | BT58: 9 | BU58: ='HourGH-JUL'!K13 -> 0.39 | BV58: 57 | BW58: 3 | BX58: 9 | BY58: ='HourGH-AUG'!K13 -> 0.84 | BZ58: 57 | CA58: 3 | CB58: 9 | CC58: ='HourGH-SEP'!K13 -> 0 | CD58: 57 | CE58: 3 | CF58: 9 | CG58: ='HourGH-OCT'!K13 -> 0 | CH58: 57 | CI58: 3 | CJ58: 9 | CK58: ='HourGH-NOV'!K13 -> 0 | CL58: 57 | CM58: 3 | CN58: 9 | CO58: ='HourGH-DEC'!K13 -> 0 | CP58: 57 | CQ58: 3 | CR58: 9 | CS58: ='HourGH-JAN'!K13 -> 0 | CT58: 57 | CU58: 3 | CV58: 9 | CW58: ='HourGH-FEB'!K13 -> 0 | CX58: 57 | CY58: 3 | CZ58: 9 | DA58: ='HourGH-MAR'!K13 -> 0
BF59: 58 | BG59: 3 | BH59: 10 | BI59: ='HourGH-APR'!L13 -> 0 | BJ59: 58 | BK59: 3 | BL59: 10 | BM59: ='HourGH-MAY'!L13 -> 0 | BN59: 58 | BO59: 3 | BP59: 10 | BQ59: ='HourGH-JUN'!L13 -> 0 | BR59: 58 | BS59: 3 | BT59: 10 | BU59: ='HourGH-JUL'!L13 -> 0 | BV59: 58 | BW59: 3 | BX59: 10 | BY59: ='HourGH-AUG'!L13 -> 0 | BZ59: 58 | CA59: 3 | CB59: 10 | CC59: ='HourGH-SEP'!L13 -> 0 | CD59: 58 | CE59: 3 | CF59: 10 | CG59: ='HourGH-OCT'!L13 -> 0 | CH59: 58 | CI59: 3 | CJ59: 10 | CK59: ='HourGH-NOV'!L13 -> 0 | CL59: 58 | CM59: 3 | CN59: 10 | CO59: ='HourGH-DEC'!L13 -> 0 | CP59: 58 | CQ59: 3 | CR59: 10 | CS59: ='HourGH-JAN'!L13 -> 0 | CT59: 58 | CU59: 3 | CV59: 10 | CW59: ='HourGH-FEB'!L13 -> 0 | CX59: 58 | CY59: 3 | CZ59: 10 | DA59: ='HourGH-MAR'!L13 -> 0
BF60: 59 | BG60: 3 | BH60: 11 | BI60: ='HourGH-APR'!M13 -> 0 | BJ60: 59 | BK60: 3 | BL60: 11 | BM60: ='HourGH-MAY'!M13 -> 0 | BN60: 59 | BO60: 3 | BP60: 11 | BQ60: ='HourGH-JUN'!M13 -> 0 | BR60: 59 | BS60: 3 | BT60: 11 | BU60: ='HourGH-JUL'!M13 -> 0 | BV60: 59 | BW60: 3 | BX60: 11 | BY60: ='HourGH-AUG'!M13 -> 0 | BZ60: 59 | CA60: 3 | CB60: 11 | CC60: ='HourGH-SEP'!M13 -> 0 | CD60: 59 | CE60: 3 | CF60: 11 | CG60: ='HourGH-OCT'!M13 -> 0 | CH60: 59 | CI60: 3 | CJ60: 11 | CK60: ='HourGH-NOV'!M13 -> 0 | CL60: 59 | CM60: 3 | CN60: 11 | CO60: ='HourGH-DEC'!M13 -> 0 | CP60: 59 | CQ60: 3 | CR60: 11 | CS60: ='HourGH-JAN'!M13 -> 0 | CT60: 59 | CU60: 3 | CV60: 11 | CW60: ='HourGH-FEB'!M13 -> 0 | CX60: 59 | CY60: 3 | CZ60: 11 | DA60: ='HourGH-MAR'!M13 -> 0
BF61: 60 | BG61: 3 | BH61: 12 | BI61: ='HourGH-APR'!N13 -> 0.36 | BJ61: 60 | BK61: 3 | BL61: 12 | BM61: ='HourGH-MAY'!N13 -> 0.5 | BN61: 60 | BO61: 3 | BP61: 12 | BQ61: ='HourGH-JUN'!N13 -> 0.37 | BR61: 60 | BS61: 3 | BT61: 12 | BU61: ='HourGH-JUL'!N13 -> 0.39 | BV61: 60 | BW61: 3 | BX61: 12 | BY61: ='HourGH-AUG'!N13 -> 0.87 | BZ61: 60 | CA61: 3 | CB61: 12 | CC61: ='HourGH-SEP'!N13 -> 0 | CD61: 60 | CE61: 3 | CF61: 12 | CG61: ='HourGH-OCT'!N13 -> 0 | CH61: 60 | CI61: 3 | CJ61: 12 | CK61: ='HourGH-NOV'!N13 -> 0 | CL61: 60 | CM61: 3 | CN61: 12 | CO61: ='HourGH-DEC'!N13 -> 0 | CP61: 60 | CQ61: 3 | CR61: 12 | CS61: ='HourGH-JAN'!N13 -> 0 | CT61: 60 | CU61: 3 | CV61: 12 | CW61: ='HourGH-FEB'!N13 -> 0 | CX61: 60 | CY61: 3 | CZ61: 12 | DA61: ='HourGH-MAR'!N13 -> 0
BF62: 61 | BG62: 3 | BH62: 13 | BI62: ='HourGH-APR'!O13 -> 0 | BJ62: 61 | BK62: 3 | BL62: 13 | BM62: ='HourGH-MAY'!O13 -> 0 | BN62: 61 | BO62: 3 | BP62: 13 | BQ62: ='HourGH-JUN'!O13 -> 0 | BR62: 61 | BS62: 3 | BT62: 13 | BU62: ='HourGH-JUL'!O13 -> 0 | BV62: 61 | BW62: 3 | BX62: 13 | BY62: ='HourGH-AUG'!O13 -> 0 | BZ62: 61 | CA62: 3 | CB62: 13 | CC62: ='HourGH-SEP'!O13 -> 0 | CD62: 61 | CE62: 3 | CF62: 13 | CG62: ='HourGH-OCT'!O13 -> 0 | CH62: 61 | CI62: 3 | CJ62: 13 | CK62: ='HourGH-NOV'!O13 -> 0 | CL62: 61 | CM62: 3 | CN62: 13 | CO62: ='HourGH-DEC'!O13 -> 0 | CP62: 61 | CQ62: 3 | CR62: 13 | CS62: ='HourGH-JAN'!O13 -> 0 | CT62: 61 | CU62: 3 | CV62: 13 | CW62: ='HourGH-FEB'!O13 -> 0 | CX62: 61 | CY62: 3 | CZ62: 13 | DA62: ='HourGH-MAR'!O13 -> 0
BF63: 62 | BG63: 3 | BH63: 14 | BI63: ='HourGH-APR'!P13 -> 0 | BJ63: 62 | BK63: 3 | BL63: 14 | BM63: ='HourGH-MAY'!P13 -> 0 | BN63: 62 | BO63: 3 | BP63: 14 | BQ63: ='HourGH-JUN'!P13 -> 0 | BR63: 62 | BS63: 3 | BT63: 14 | BU63: ='HourGH-JUL'!P13 -> 0 | BV63: 62 | BW63: 3 | BX63: 14 | BY63: ='HourGH-AUG'!P13 -> 0 | BZ63: 62 | CA63: 3 | CB63: 14 | CC63: ='HourGH-SEP'!P13 -> 0 | CD63: 62 | CE63: 3 | CF63: 14 | CG63: ='HourGH-OCT'!P13 -> 0 | CH63: 62 | CI63: 3 | CJ63: 14 | CK63: ='HourGH-NOV'!P13 -> 0 | CL63: 62 | CM63: 3 | CN63: 14 | CO63: ='HourGH-DEC'!P13 -> 0 | CP63: 62 | CQ63: 3 | CR63: 14 | CS63: ='HourGH-JAN'!P13 -> 0 | CT63: 62 | CU63: 3 | CV63: 14 | CW63: ='HourGH-FEB'!P13 -> 0 | CX63: 62 | CY63: 3 | CZ63: 14 | DA63: ='HourGH-MAR'!P13 -> 0
BF64: 63 | BG64: 3 | BH64: 15 | BI64: ='HourGH-APR'!Q13 -> 0.36 | BJ64: 63 | BK64: 3 | BL64: 15 | BM64: ='HourGH-MAY'!Q13 -> 0.5 | BN64: 63 | BO64: 3 | BP64: 15 | BQ64: ='HourGH-JUN'!Q13 -> 0.37 | BR64: 63 | BS64: 3 | BT64: 15 | BU64: ='HourGH-JUL'!Q13 -> 0.39 | BV64: 63 | BW64: 3 | BX64: 15 | BY64: ='HourGH-AUG'!Q13 -> 0.91 | BZ64: 63 | CA64: 3 | CB64: 15 | CC64: ='HourGH-SEP'!Q13 -> 0 | CD64: 63 | CE64: 3 | CF64: 15 | CG64: ='HourGH-OCT'!Q13 -> 0 | CH64: 63 | CI64: 3 | CJ64: 15 | CK64: ='HourGH-NOV'!Q13 -> 0 | CL64: 63 | CM64: 3 | CN64: 15 | CO64: ='HourGH-DEC'!Q13 -> 0 | CP64: 63 | CQ64: 3 | CR64: 15 | CS64: ='HourGH-JAN'!Q13 -> 0 | CT64: 63 | CU64: 3 | CV64: 15 | CW64: ='HourGH-FEB'!Q13 -> 0 | CX64: 63 | CY64: 3 | CZ64: 15 | DA64: ='HourGH-MAR'!Q13 -> 0
BF65: 64 | BG65: 3 | BH65: 16 | BI65: ='HourGH-APR'!R13 -> 0 | BJ65: 64 | BK65: 3 | BL65: 16 | BM65: ='HourGH-MAY'!R13 -> 0 | BN65: 64 | BO65: 3 | BP65: 16 | BQ65: ='HourGH-JUN'!R13 -> 0 | BR65: 64 | BS65: 3 | BT65: 16 | BU65: ='HourGH-JUL'!R13 -> 0 | BV65: 64 | BW65: 3 | BX65: 16 | BY65: ='HourGH-AUG'!R13 -> 0 | BZ65: 64 | CA65: 3 | CB65: 16 | CC65: ='HourGH-SEP'!R13 -> 0 | CD65: 64 | CE65: 3 | CF65: 16 | CG65: ='HourGH-OCT'!R13 -> 0 | CH65: 64 | CI65: 3 | CJ65: 16 | CK65: ='HourGH-NOV'!R13 -> 0 | CL65: 64 | CM65: 3 | CN65: 16 | CO65: ='HourGH-DEC'!R13 -> 0 | CP65: 64 | CQ65: 3 | CR65: 16 | CS65: ='HourGH-JAN'!R13 -> 0 | CT65: 64 | CU65: 3 | CV65: 16 | CW65: ='HourGH-FEB'!R13 -> 0 | CX65: 64 | CY65: 3 | CZ65: 16 | DA65: ='HourGH-MAR'!R13 -> 0
BF66: 65 | BG66: 3 | BH66: 17 | BI66: ='HourGH-APR'!S13 -> 0 | BJ66: 65 | BK66: 3 | BL66: 17 | BM66: ='HourGH-MAY'!S13 -> 0 | BN66: 65 | BO66: 3 | BP66: 17 | BQ66: ='HourGH-JUN'!S13 -> 0 | BR66: 65 | BS66: 3 | BT66: 17 | BU66: ='HourGH-JUL'!S13 -> 0 | BV66: 65 | BW66: 3 | BX66: 17 | BY66: ='HourGH-AUG'!S13 -> 0 | BZ66: 65 | CA66: 3 | CB66: 17 | CC66: ='HourGH-SEP'!S13 -> 0 | CD66: 65 | CE66: 3 | CF66: 17 | CG66: ='HourGH-OCT'!S13 -> 0 | CH66: 65 | CI66: 3 | CJ66: 17 | CK66: ='HourGH-NOV'!S13 -> 0 | CL66: 65 | CM66: 3 | CN66: 17 | CO66: ='HourGH-DEC'!S13 -> 0 | CP66: 65 | CQ66: 3 | CR66: 17 | CS66: ='HourGH-JAN'!S13 -> 0 | CT66: 65 | CU66: 3 | CV66: 17 | CW66: ='HourGH-FEB'!S13 -> 0 | CX66: 65 | CY66: 3 | CZ66: 17 | DA66: ='HourGH-MAR'!S13 -> 0
BF67: 66 | BG67: 3 | BH67: 18 | BI67: ='HourGH-APR'!T13 -> 0.36 | BJ67: 66 | BK67: 3 | BL67: 18 | BM67: ='HourGH-MAY'!T13 -> 0.46 | BN67: 66 | BO67: 3 | BP67: 18 | BQ67: ='HourGH-JUN'!T13 -> 0.37 | BR67: 66 | BS67: 3 | BT67: 18 | BU67: ='HourGH-JUL'!T13 -> 0.39 | BV67: 66 | BW67: 3 | BX67: 18 | BY67: ='HourGH-AUG'!T13 -> 0.96 | BZ67: 66 | CA67: 3 | CB67: 18 | CC67: ='HourGH-SEP'!T13 -> 0 | CD67: 66 | CE67: 3 | CF67: 18 | CG67: ='HourGH-OCT'!T13 -> 0 | CH67: 66 | CI67: 3 | CJ67: 18 | CK67: ='HourGH-NOV'!T13 -> 0 | CL67: 66 | CM67: 3 | CN67: 18 | CO67: ='HourGH-DEC'!T13 -> 0 | CP67: 66 | CQ67: 3 | CR67: 18 | CS67: ='HourGH-JAN'!T13 -> 0 | CT67: 66 | CU67: 3 | CV67: 18 | CW67: ='HourGH-FEB'!T13 -> 0 | CX67: 66 | CY67: 3 | CZ67: 18 | DA67: ='HourGH-MAR'!T13 -> 0
BF68: 67 | BG68: 3 | BH68: 19 | BI68: ='HourGH-APR'!U13 -> 0 | BJ68: 67 | BK68: 3 | BL68: 19 | BM68: ='HourGH-MAY'!U13 -> 0 | BN68: 67 | BO68: 3 | BP68: 19 | BQ68: ='HourGH-JUN'!U13 -> 0 | BR68: 67 | BS68: 3 | BT68: 19 | BU68: ='HourGH-JUL'!U13 -> 0 | BV68: 67 | BW68: 3 | BX68: 19 | BY68: ='HourGH-AUG'!U13 -> 0 | BZ68: 67 | CA68: 3 | CB68: 19 | CC68: ='HourGH-SEP'!U13 -> 0 | CD68: 67 | CE68: 3 | CF68: 19 | CG68: ='HourGH-OCT'!U13 -> 0 | CH68: 67 | CI68: 3 | CJ68: 19 | CK68: ='HourGH-NOV'!U13 -> 0 | CL68: 67 | CM68: 3 | CN68: 19 | CO68: ='HourGH-DEC'!U13 -> 0 | CP68: 67 | CQ68: 3 | CR68: 19 | CS68: ='HourGH-JAN'!U13 -> 0 | CT68: 67 | CU68: 3 | CV68: 19 | CW68: ='HourGH-FEB'!U13 -> 0 | CX68: 67 | CY68: 3 | CZ68: 19 | DA68: ='HourGH-MAR'!U13 -> 0
BF69: 68 | BG69: 3 | BH69: 20 | BI69: ='HourGH-APR'!V13 -> 0 | BJ69: 68 | BK69: 3 | BL69: 20 | BM69: ='HourGH-MAY'!V13 -> 0 | BN69: 68 | BO69: 3 | BP69: 20 | BQ69: ='HourGH-JUN'!V13 -> 0 | BR69: 68 | BS69: 3 | BT69: 20 | BU69: ='HourGH-JUL'!V13 -> 0 | BV69: 68 | BW69: 3 | BX69: 20 | BY69: ='HourGH-AUG'!V13 -> 0 | BZ69: 68 | CA69: 3 | CB69: 20 | CC69: ='HourGH-SEP'!V13 -> 0 | CD69: 68 | CE69: 3 | CF69: 20 | CG69: ='HourGH-OCT'!V13 -> 0 | CH69: 68 | CI69: 3 | CJ69: 20 | CK69: ='HourGH-NOV'!V13 -> 0 | CL69: 68 | CM69: 3 | CN69: 20 | CO69: ='HourGH-DEC'!V13 -> 0 | CP69: 68 | CQ69: 3 | CR69: 20 | CS69: ='HourGH-JAN'!V13 -> 0 | CT69: 68 | CU69: 3 | CV69: 20 | CW69: ='HourGH-FEB'!V13 -> 0 | CX69: 68 | CY69: 3 | CZ69: 20 | DA69: ='HourGH-MAR'!V13 -> 0
BF70: 69 | BG70: 3 | BH70: 21 | BI70: ='HourGH-APR'!W13 -> 0 | BJ70: 69 | BK70: 3 | BL70: 21 | BM70: ='HourGH-MAY'!W13 -> 0 | BN70: 69 | BO70: 3 | BP70: 21 | BQ70: ='HourGH-JUN'!W13 -> 0 | BR70: 69 | BS70: 3 | BT70: 21 | BU70: ='HourGH-JUL'!W13 -> 0 | BV70: 69 | BW70: 3 | BX70: 21 | BY70: ='HourGH-AUG'!W13 -> 0 | BZ70: 69 | CA70: 3 | CB70: 21 | CC70: ='HourGH-SEP'!W13 -> 0 | CD70: 69 | CE70: 3 | CF70: 21 | CG70: ='HourGH-OCT'!W13 -> 0 | CH70: 69 | CI70: 3 | CJ70: 21 | CK70: ='HourGH-NOV'!W13 -> 0 | CL70: 69 | CM70: 3 | CN70: 21 | CO70: ='HourGH-DEC'!W13 -> 0 | CP70: 69 | CQ70: 3 | CR70: 21 | CS70: ='HourGH-JAN'!W13 -> 0 | CT70: 69 | CU70: 3 | CV70: 21 | CW70: ='HourGH-FEB'!W13 -> 0 | CX70: 69 | CY70: 3 | CZ70: 21 | DA70: ='HourGH-MAR'!W13 -> 0
BF71: 70 | BG71: 3 | BH71: 22 | BI71: ='HourGH-APR'!X13 -> 0 | BJ71: 70 | BK71: 3 | BL71: 22 | BM71: ='HourGH-MAY'!X13 -> 0 | BN71: 70 | BO71: 3 | BP71: 22 | BQ71: ='HourGH-JUN'!X13 -> 0 | BR71: 70 | BS71: 3 | BT71: 22 | BU71: ='HourGH-JUL'!X13 -> 0 | BV71: 70 | BW71: 3 | BX71: 22 | BY71: ='HourGH-AUG'!X13 -> 0 | BZ71: 70 | CA71: 3 | CB71: 22 | CC71: ='HourGH-SEP'!X13 -> 0 | CD71: 70 | CE71: 3 | CF71: 22 | CG71: ='HourGH-OCT'!X13 -> 0 | CH71: 70 | CI71: 3 | CJ71: 22 | CK71: ='HourGH-NOV'!X13 -> 0 | CL71: 70 | CM71: 3 | CN71: 22 | CO71: ='HourGH-DEC'!X13 -> 0 | CP71: 70 | CQ71: 3 | CR71: 22 | CS71: ='HourGH-JAN'!X13 -> 0 | CT71: 70 | CU71: 3 | CV71: 22 | CW71: ='HourGH-FEB'!X13 -> 0 | CX71: 70 | CY71: 3 | CZ71: 22 | DA71: ='HourGH-MAR'!X13 -> 0
BF72: 71 | BG72: 3 | BH72: 23 | BI72: ='HourGH-APR'!Y13 -> 0 | BJ72: 71 | BK72: 3 | BL72: 23 | BM72: ='HourGH-MAY'!Y13 -> 0 | BN72: 71 | BO72: 3 | BP72: 23 | BQ72: ='HourGH-JUN'!Y13 -> 0 | BR72: 71 | BS72: 3 | BT72: 23 | BU72: ='HourGH-JUL'!Y13 -> 0 | BV72: 71 | BW72: 3 | BX72: 23 | BY72: ='HourGH-AUG'!Y13 -> 0 | BZ72: 71 | CA72: 3 | CB72: 23 | CC72: ='HourGH-SEP'!Y13 -> 0 | CD72: 71 | CE72: 3 | CF72: 23 | CG72: ='HourGH-OCT'!Y13 -> 0 | CH72: 71 | CI72: 3 | CJ72: 23 | CK72: ='HourGH-NOV'!Y13 -> 0 | CL72: 71 | CM72: 3 | CN72: 23 | CO72: ='HourGH-DEC'!Y13 -> 0 | CP72: 71 | CQ72: 3 | CR72: 23 | CS72: ='HourGH-JAN'!Y13 -> 0 | CT72: 71 | CU72: 3 | CV72: 23 | CW72: ='HourGH-FEB'!Y13 -> 0 | CX72: 71 | CY72: 3 | CZ72: 23 | DA72: ='HourGH-MAR'!Y13 -> 0
BF73: 72 | BG73: 3 | BH73: 24 | BI73: ='HourGH-APR'!Z13 -> 0 | BJ73: 72 | BK73: 3 | BL73: 24 | BM73: ='HourGH-MAY'!Z13 -> 0 | BN73: 72 | BO73: 3 | BP73: 24 | BQ73: ='HourGH-JUN'!Z13 -> 0 | BR73: 72 | BS73: 3 | BT73: 24 | BU73: ='HourGH-JUL'!Z13 -> 0 | BV73: 72 | BW73: 3 | BX73: 24 | BY73: ='HourGH-AUG'!Z13 -> 0 | BZ73: 72 | CA73: 3 | CB73: 24 | CC73: ='HourGH-SEP'!Z13 -> 0 | CD73: 72 | CE73: 3 | CF73: 24 | CG73: ='HourGH-OCT'!Z13 -> 0 | CH73: 72 | CI73: 3 | CJ73: 24 | CK73: ='HourGH-NOV'!Z13 -> 0 | CL73: 72 | CM73: 3 | CN73: 24 | CO73: ='HourGH-DEC'!Z13 -> 0 | CP73: 72 | CQ73: 3 | CR73: 24 | CS73: ='HourGH-JAN'!Z13 -> 0 | CT73: 72 | CU73: 3 | CV73: 24 | CW73: ='HourGH-FEB'!Z13 -> 0 | CX73: 72 | CY73: 3 | CZ73: 24 | DA73: ='HourGH-MAR'!Z13 -> 0
BF74: 73 | BG74: 4 | BH74: 1 | BI74: ='HourGH-APR'!C14 -> 0 | BJ74: 73 | BK74: 4 | BL74: 1 | BM74: ='HourGH-MAY'!C14 -> 0 | BN74: 73 | BO74: 4 | BP74: 1 | BQ74: ='HourGH-JUN'!C14 -> 0 | BR74: 73 | BS74: 4 | BT74: 1 | BU74: ='HourGH-JUL'!C14 -> 0 | BV74: 73 | BW74: 4 | BX74: 1 | BY74: ='HourGH-AUG'!C14 -> 0 | BZ74: 73 | CA74: 4 | CB74: 1 | CC74: ='HourGH-SEP'!C14 -> 0 | CD74: 73 | CE74: 4 | CF74: 1 | CG74: ='HourGH-OCT'!C14 -> 0 | CH74: 73 | CI74: 4 | CJ74: 1 | CK74: ='HourGH-NOV'!C14 -> 0 | CL74: 73 | CM74: 4 | CN74: 1 | CO74: ='HourGH-DEC'!C14 -> 0 | CP74: 73 | CQ74: 4 | CR74: 1 | CS74: ='HourGH-JAN'!C14 -> 0 | CT74: 73 | CU74: 4 | CV74: 1 | CW74: ='HourGH-FEB'!C14 -> 0 | CX74: 73 | CY74: 4 | CZ74: 1 | DA74: ='HourGH-MAR'!C14 -> 0
BF75: 74 | BG75: 4 | BH75: 2 | BI75: ='HourGH-APR'!D14 -> 0 | BJ75: 74 | BK75: 4 | BL75: 2 | BM75: ='HourGH-MAY'!D14 -> 0 | BN75: 74 | BO75: 4 | BP75: 2 | BQ75: ='HourGH-JUN'!D14 -> 0 | BR75: 74 | BS75: 4 | BT75: 2 | BU75: ='HourGH-JUL'!D14 -> 0 | BV75: 74 | BW75: 4 | BX75: 2 | BY75: ='HourGH-AUG'!D14 -> 0 | BZ75: 74 | CA75: 4 | CB75: 2 | CC75: ='HourGH-SEP'!D14 -> 0 | CD75: 74 | CE75: 4 | CF75: 2 | CG75: ='HourGH-OCT'!D14 -> 0 | CH75: 74 | CI75: 4 | CJ75: 2 | CK75: ='HourGH-NOV'!D14 -> 0 | CL75: 74 | CM75: 4 | CN75: 2 | CO75: ='HourGH-DEC'!D14 -> 0 | CP75: 74 | CQ75: 4 | CR75: 2 | CS75: ='HourGH-JAN'!D14 -> 0 | CT75: 74 | CU75: 4 | CV75: 2 | CW75: ='HourGH-FEB'!D14 -> 0 | CX75: 74 | CY75: 4 | CZ75: 2 | DA75: ='HourGH-MAR'!D14 -> 0
BF76: 75 | BG76: 4 | BH76: 3 | BI76: ='HourGH-APR'!E14 -> 0 | BJ76: 75 | BK76: 4 | BL76: 3 | BM76: ='HourGH-MAY'!E14 -> 0 | BN76: 75 | BO76: 4 | BP76: 3 | BQ76: ='HourGH-JUN'!E14 -> 0 | BR76: 75 | BS76: 4 | BT76: 3 | BU76: ='HourGH-JUL'!E14 -> 0 | BV76: 75 | BW76: 4 | BX76: 3 | BY76: ='HourGH-AUG'!E14 -> 0 | BZ76: 75 | CA76: 4 | CB76: 3 | CC76: ='HourGH-SEP'!E14 -> 0 | CD76: 75 | CE76: 4 | CF76: 3 | CG76: ='HourGH-OCT'!E14 -> 0 | CH76: 75 | CI76: 4 | CJ76: 3 | CK76: ='HourGH-NOV'!E14 -> 0 | CL76: 75 | CM76: 4 | CN76: 3 | CO76: ='HourGH-DEC'!E14 -> 0 | CP76: 75 | CQ76: 4 | CR76: 3 | CS76: ='HourGH-JAN'!E14 -> 0 | CT76: 75 | CU76: 4 | CV76: 3 | CW76: ='HourGH-FEB'!E14 -> 0 | CX76: 75 | CY76: 4 | CZ76: 3 | DA76: ='HourGH-MAR'!E14 -> 0
BF77: 76 | BG77: 4 | BH77: 4 | BI77: ='HourGH-APR'!F14 -> 0 | BJ77: 76 | BK77: 4 | BL77: 4 | BM77: ='HourGH-MAY'!F14 -> 0 | BN77: 76 | BO77: 4 | BP77: 4 | BQ77: ='HourGH-JUN'!F14 -> 0 | BR77: 76 | BS77: 4 | BT77: 4 | BU77: ='HourGH-JUL'!F14 -> 0 | BV77: 76 | BW77: 4 | BX77: 4 | BY77: ='HourGH-AUG'!F14 -> 0 | BZ77: 76 | CA77: 4 | CB77: 4 | CC77: ='HourGH-SEP'!F14 -> 0 | CD77: 76 | CE77: 4 | CF77: 4 | CG77: ='HourGH-OCT'!F14 -> 0 | CH77: 76 | CI77: 4 | CJ77: 4 | CK77: ='HourGH-NOV'!F14 -> 0 | CL77: 76 | CM77: 4 | CN77: 4 | CO77: ='HourGH-DEC'!F14 -> 0 | CP77: 76 | CQ77: 4 | CR77: 4 | CS77: ='HourGH-JAN'!F14 -> 0 | CT77: 76 | CU77: 4 | CV77: 4 | CW77: ='HourGH-FEB'!F14 -> 0 | CX77: 76 | CY77: 4 | CZ77: 4 | DA77: ='HourGH-MAR'!F14 -> 0
BF78: 77 | BG78: 4 | BH78: 5 | BI78: ='HourGH-APR'!G14 -> 0 | BJ78: 77 | BK78: 4 | BL78: 5 | BM78: ='HourGH-MAY'!G14 -> 0 | BN78: 77 | BO78: 4 | BP78: 5 | BQ78: ='HourGH-JUN'!G14 -> 0 | BR78: 77 | BS78: 4 | BT78: 5 | BU78: ='HourGH-JUL'!G14 -> 0 | BV78: 77 | BW78: 4 | BX78: 5 | BY78: ='HourGH-AUG'!G14 -> 0 | BZ78: 77 | CA78: 4 | CB78: 5 | CC78: ='HourGH-SEP'!G14 -> 0 | CD78: 77 | CE78: 4 | CF78: 5 | CG78: ='HourGH-OCT'!G14 -> 0 | CH78: 77 | CI78: 4 | CJ78: 5 | CK78: ='HourGH-NOV'!G14 -> 0 | CL78: 77 | CM78: 4 | CN78: 5 | CO78: ='HourGH-DEC'!G14 -> 0 | CP78: 77 | CQ78: 4 | CR78: 5 | CS78: ='HourGH-JAN'!G14 -> 0 | CT78: 77 | CU78: 4 | CV78: 5 | CW78: ='HourGH-FEB'!G14 -> 0 | CX78: 77 | CY78: 4 | CZ78: 5 | DA78: ='HourGH-MAR'!G14 -> 0
BF79: 78 | BG79: 4 | BH79: 6 | BI79: ='HourGH-APR'!H14 -> 0.36 | BJ79: 78 | BK79: 4 | BL79: 6 | BM79: ='HourGH-MAY'!H14 -> 0.42 | BN79: 78 | BO79: 4 | BP79: 6 | BQ79: ='HourGH-JUN'!H14 -> 0.36 | BR79: 78 | BS79: 4 | BT79: 6 | BU79: ='HourGH-JUL'!H14 -> 0.39 | BV79: 78 | BW79: 4 | BX79: 6 | BY79: ='HourGH-AUG'!H14 -> 1.11 | BZ79: 78 | CA79: 4 | CB79: 6 | CC79: ='HourGH-SEP'!H14 -> 0 | CD79: 78 | CE79: 4 | CF79: 6 | CG79: ='HourGH-OCT'!H14 -> 0 | CH79: 78 | CI79: 4 | CJ79: 6 | CK79: ='HourGH-NOV'!H14 -> 0 | CL79: 78 | CM79: 4 | CN79: 6 | CO79: ='HourGH-DEC'!H14 -> 0 | CP79: 78 | CQ79: 4 | CR79: 6 | CS79: ='HourGH-JAN'!H14 -> 0 | CT79: 78 | CU79: 4 | CV79: 6 | CW79: ='HourGH-FEB'!H14 -> 0 | CX79: 78 | CY79: 4 | CZ79: 6 | DA79: ='HourGH-MAR'!H14 -> 0
BF80: 79 | BG80: 4 | BH80: 7 | BI80: ='HourGH-APR'!I14 -> 0 | BJ80: 79 | BK80: 4 | BL80: 7 | BM80: ='HourGH-MAY'!I14 -> 0 | BN80: 79 | BO80: 4 | BP80: 7 | BQ80: ='HourGH-JUN'!I14 -> 0 | BR80: 79 | BS80: 4 | BT80: 7 | BU80: ='HourGH-JUL'!I14 -> 0 | BV80: 79 | BW80: 4 | BX80: 7 | BY80: ='HourGH-AUG'!I14 -> 0 | BZ80: 79 | CA80: 4 | CB80: 7 | CC80: ='HourGH-SEP'!I14 -> 0 | CD80: 79 | CE80: 4 | CF80: 7 | CG80: ='HourGH-OCT'!I14 -> 0 | CH80: 79 | CI80: 4 | CJ80: 7 | CK80: ='HourGH-NOV'!I14 -> 0 | CL80: 79 | CM80: 4 | CN80: 7 | CO80: ='HourGH-DEC'!I14 -> 0 | CP80: 79 | CQ80: 4 | CR80: 7 | CS80: ='HourGH-JAN'!I14 -> 0 | CT80: 79 | CU80: 4 | CV80: 7 | CW80: ='HourGH-FEB'!I14 -> 0 | CX80: 79 | CY80: 4 | CZ80: 7 | DA80: ='HourGH-MAR'!I14 -> 0
BF81: 80 | BG81: 4 | BH81: 8 | BI81: ='HourGH-APR'!J14 -> 0 | BJ81: 80 | BK81: 4 | BL81: 8 | BM81: ='HourGH-MAY'!J14 -> 0 | BN81: 80 | BO81: 4 | BP81: 8 | BQ81: ='HourGH-JUN'!J14 -> 0 | BR81: 80 | BS81: 4 | BT81: 8 | BU81: ='HourGH-JUL'!J14 -> 0 | BV81: 80 | BW81: 4 | BX81: 8 | BY81: ='HourGH-AUG'!J14 -> 0 | BZ81: 80 | CA81: 4 | CB81: 8 | CC81: ='HourGH-SEP'!J14 -> 0 | CD81: 80 | CE81: 4 | CF81: 8 | CG81: ='HourGH-OCT'!J14 -> 0 | CH81: 80 | CI81: 4 | CJ81: 8 | CK81: ='HourGH-NOV'!J14 -> 0 | CL81: 80 | CM81: 4 | CN81: 8 | CO81: ='HourGH-DEC'!J14 -> 0 | CP81: 80 | CQ81: 4 | CR81: 8 | CS81: ='HourGH-JAN'!J14 -> 0 | CT81: 80 | CU81: 4 | CV81: 8 | CW81: ='HourGH-FEB'!J14 -> 0 | CX81: 80 | CY81: 4 | CZ81: 8 | DA81: ='HourGH-MAR'!J14 -> 0
BF82: 81 | BG82: 4 | BH82: 9 | BI82: ='HourGH-APR'!K14 -> 0.36 | BJ82: 81 | BK82: 4 | BL82: 9 | BM82: ='HourGH-MAY'!K14 -> 0.419 | BN82: 81 | BO82: 4 | BP82: 9 | BQ82: ='HourGH-JUN'!K14 -> 0.36 | BR82: 81 | BS82: 4 | BT82: 9 | BU82: ='HourGH-JUL'!K14 -> 0.39 | BV82: 81 | BW82: 4 | BX82: 9 | BY82: ='HourGH-AUG'!K14 -> 1.05 | BZ82: 81 | CA82: 4 | CB82: 9 | CC82: ='HourGH-SEP'!K14 -> 0 | CD82: 81 | CE82: 4 | CF82: 9 | CG82: ='HourGH-OCT'!K14 -> 0 | CH82: 81 | CI82: 4 | CJ82: 9 | CK82: ='HourGH-NOV'!K14 -> 0 | CL82: 81 | CM82: 4 | CN82: 9 | CO82: ='HourGH-DEC'!K14 -> 0 | CP82: 81 | CQ82: 4 | CR82: 9 | CS82: ='HourGH-JAN'!K14 -> 0 | CT82: 81 | CU82: 4 | CV82: 9 | CW82: ='HourGH-FEB'!K14 -> 0 | CX82: 81 | CY82: 4 | CZ82: 9 | DA82: ='HourGH-MAR'!K14 -> 0
BF83: 82 | BG83: 4 | BH83: 10 | BI83: ='HourGH-APR'!L14 -> 0 | BJ83: 82 | BK83: 4 | BL83: 10 | BM83: ='HourGH-MAY'!L14 -> 0 | BN83: 82 | BO83: 4 | BP83: 10 | BQ83: ='HourGH-JUN'!L14 -> 0 | BR83: 82 | BS83: 4 | BT83: 10 | BU83: ='HourGH-JUL'!L14 -> 0 | BV83: 82 | BW83: 4 | BX83: 10 | BY83: ='HourGH-AUG'!L14 -> 0 | BZ83: 82 | CA83: 4 | CB83: 10 | CC83: ='HourGH-SEP'!L14 -> 0 | CD83: 82 | CE83: 4 | CF83: 10 | CG83: ='HourGH-OCT'!L14 -> 0 | CH83: 82 | CI83: 4 | CJ83: 10 | CK83: ='HourGH-NOV'!L14 -> 0 | CL83: 82 | CM83: 4 | CN83: 10 | CO83: ='HourGH-DEC'!L14 -> 0 | CP83: 82 | CQ83: 4 | CR83: 10 | CS83: ='HourGH-JAN'!L14 -> 0 | CT83: 82 | CU83: 4 | CV83: 10 | CW83: ='HourGH-FEB'!L14 -> 0 | CX83: 82 | CY83: 4 | CZ83: 10 | DA83: ='HourGH-MAR'!L14 -> 0
BF84: 83 | BG84: 4 | BH84: 11 | BI84: ='HourGH-APR'!M14 -> 0 | BJ84: 83 | BK84: 4 | BL84: 11 | BM84: ='HourGH-MAY'!M14 -> 0 | BN84: 83 | BO84: 4 | BP84: 11 | BQ84: ='HourGH-JUN'!M14 -> 0 | BR84: 83 | BS84: 4 | BT84: 11 | BU84: ='HourGH-JUL'!M14 -> 0 | BV84: 83 | BW84: 4 | BX84: 11 | BY84: ='HourGH-AUG'!M14 -> 0 | BZ84: 83 | CA84: 4 | CB84: 11 | CC84: ='HourGH-SEP'!M14 -> 0 | CD84: 83 | CE84: 4 | CF84: 11 | CG84: ='HourGH-OCT'!M14 -> 0 | CH84: 83 | CI84: 4 | CJ84: 11 | CK84: ='HourGH-NOV'!M14 -> 0 | CL84: 83 | CM84: 4 | CN84: 11 | CO84: ='HourGH-DEC'!M14 -> 0 | CP84: 83 | CQ84: 4 | CR84: 11 | CS84: ='HourGH-JAN'!M14 -> 0 | CT84: 83 | CU84: 4 | CV84: 11 | CW84: ='HourGH-FEB'!M14 -> 0 | CX84: 83 | CY84: 4 | CZ84: 11 | DA84: ='HourGH-MAR'!M14 -> 0
BF85: 84 | BG85: 4 | BH85: 12 | BI85: ='HourGH-APR'!N14 -> 0.36 | BJ85: 84 | BK85: 4 | BL85: 12 | BM85: ='HourGH-MAY'!N14 -> 0.45 | BN85: 84 | BO85: 4 | BP85: 12 | BQ85: ='HourGH-JUN'!N14 -> 0.36 | BR85: 84 | BS85: 4 | BT85: 12 | BU85: ='HourGH-JUL'!N14 -> 0.39 | BV85: 84 | BW85: 4 | BX85: 12 | BY85: ='HourGH-AUG'!N14 -> 0.96 | BZ85: 84 | CA85: 4 | CB85: 12 | CC85: ='HourGH-SEP'!N14 -> 0 | CD85: 84 | CE85: 4 | CF85: 12 | CG85: ='HourGH-OCT'!N14 -> 0 | CH85: 84 | CI85: 4 | CJ85: 12 | CK85: ='HourGH-NOV'!N14 -> 0 | CL85: 84 | CM85: 4 | CN85: 12 | CO85: ='HourGH-DEC'!N14 -> 0 | CP85: 84 | CQ85: 4 | CR85: 12 | CS85: ='HourGH-JAN'!N14 -> 0 | CT85: 84 | CU85: 4 | CV85: 12 | CW85: ='HourGH-FEB'!N14 -> 0 | CX85: 84 | CY85: 4 | CZ85: 12 | DA85: ='HourGH-MAR'!N14 -> 0
BF86: 85 | BG86: 4 | BH86: 13 | BI86: ='HourGH-APR'!O14 -> 0 | BJ86: 85 | BK86: 4 | BL86: 13 | BM86: ='HourGH-MAY'!O14 -> 0 | BN86: 85 | BO86: 4 | BP86: 13 | BQ86: ='HourGH-JUN'!O14 -> 0 | BR86: 85 | BS86: 4 | BT86: 13 | BU86: ='HourGH-JUL'!O14 -> 0 | BV86: 85 | BW86: 4 | BX86: 13 | BY86: ='HourGH-AUG'!O14 -> 0 | BZ86: 85 | CA86: 4 | CB86: 13 | CC86: ='HourGH-SEP'!O14 -> 0 | CD86: 85 | CE86: 4 | CF86: 13 | CG86: ='HourGH-OCT'!O14 -> 0 | CH86: 85 | CI86: 4 | CJ86: 13 | CK86: ='HourGH-NOV'!O14 -> 0 | CL86: 85 | CM86: 4 | CN86: 13 | CO86: ='HourGH-DEC'!O14 -> 0 | CP86: 85 | CQ86: 4 | CR86: 13 | CS86: ='HourGH-JAN'!O14 -> 0 | CT86: 85 | CU86: 4 | CV86: 13 | CW86: ='HourGH-FEB'!O14 -> 0 | CX86: 85 | CY86: 4 | CZ86: 13 | DA86: ='HourGH-MAR'!O14 -> 0
BF87: 86 | BG87: 4 | BH87: 14 | BI87: ='HourGH-APR'!P14 -> 0 | BJ87: 86 | BK87: 4 | BL87: 14 | BM87: ='HourGH-MAY'!P14 -> 0 | BN87: 86 | BO87: 4 | BP87: 14 | BQ87: ='HourGH-JUN'!P14 -> 0 | BR87: 86 | BS87: 4 | BT87: 14 | BU87: ='HourGH-JUL'!P14 -> 0 | BV87: 86 | BW87: 4 | BX87: 14 | BY87: ='HourGH-AUG'!P14 -> 0 | BZ87: 86 | CA87: 4 | CB87: 14 | CC87: ='HourGH-SEP'!P14 -> 0 | CD87: 86 | CE87: 4 | CF87: 14 | CG87: ='HourGH-OCT'!P14 -> 0 | CH87: 86 | CI87: 4 | CJ87: 14 | CK87: ='HourGH-NOV'!P14 -> 0 | CL87: 86 | CM87: 4 | CN87: 14 | CO87: ='HourGH-DEC'!P14 -> 0 | CP87: 86 | CQ87: 4 | CR87: 14 | CS87: ='HourGH-JAN'!P14 -> 0 | CT87: 86 | CU87: 4 | CV87: 14 | CW87: ='HourGH-FEB'!P14 -> 0 | CX87: 86 | CY87: 4 | CZ87: 14 | DA87: ='HourGH-MAR'!P14 -> 0
BF88: 87 | BG88: 4 | BH88: 15 | BI88: ='HourGH-APR'!Q14 -> 0.36 | BJ88: 87 | BK88: 4 | BL88: 15 | BM88: ='HourGH-MAY'!Q14 -> 0.45 | BN88: 87 | BO88: 4 | BP88: 15 | BQ88: ='HourGH-JUN'!Q14 -> 0.36 | BR88: 87 | BS88: 4 | BT88: 15 | BU88: ='HourGH-JUL'!Q14 -> 0.39 | BV88: 87 | BW88: 4 | BX88: 15 | BY88: ='HourGH-AUG'!Q14 -> 0.9 | BZ88: 87 | CA88: 4 | CB88: 15 | CC88: ='HourGH-SEP'!Q14 -> 0 | CD88: 87 | CE88: 4 | CF88: 15 | CG88: ='HourGH-OCT'!Q14 -> 0 | CH88: 87 | CI88: 4 | CJ88: 15 | CK88: ='HourGH-NOV'!Q14 -> 0 | CL88: 87 | CM88: 4 | CN88: 15 | CO88: ='HourGH-DEC'!Q14 -> 0 | CP88: 87 | CQ88: 4 | CR88: 15 | CS88: ='HourGH-JAN'!Q14 -> 0 | CT88: 87 | CU88: 4 | CV88: 15 | CW88: ='HourGH-FEB'!Q14 -> 0 | CX88: 87 | CY88: 4 | CZ88: 15 | DA88: ='HourGH-MAR'!Q14 -> 0
BF89: 88 | BG89: 4 | BH89: 16 | BI89: ='HourGH-APR'!R14 -> 0 | BJ89: 88 | BK89: 4 | BL89: 16 | BM89: ='HourGH-MAY'!R14 -> 0 | BN89: 88 | BO89: 4 | BP89: 16 | BQ89: ='HourGH-JUN'!R14 -> 0 | BR89: 88 | BS89: 4 | BT89: 16 | BU89: ='HourGH-JUL'!R14 -> 0 | BV89: 88 | BW89: 4 | BX89: 16 | BY89: ='HourGH-AUG'!R14 -> 0 | BZ89: 88 | CA89: 4 | CB89: 16 | CC89: ='HourGH-SEP'!R14 -> 0 | CD89: 88 | CE89: 4 | CF89: 16 | CG89: ='HourGH-OCT'!R14 -> 0 | CH89: 88 | CI89: 4 | CJ89: 16 | CK89: ='HourGH-NOV'!R14 -> 0 | CL89: 88 | CM89: 4 | CN89: 16 | CO89: ='HourGH-DEC'!R14 -> 0 | CP89: 88 | CQ89: 4 | CR89: 16 | CS89: ='HourGH-JAN'!R14 -> 0 | CT89: 88 | CU89: 4 | CV89: 16 | CW89: ='HourGH-FEB'!R14 -> 0 | CX89: 88 | CY89: 4 | CZ89: 16 | DA89: ='HourGH-MAR'!R14 -> 0
BF90: 89 | BG90: 4 | BH90: 17 | BI90: ='HourGH-APR'!S14 -> 0 | BJ90: 89 | BK90: 4 | BL90: 17 | BM90: ='HourGH-MAY'!S14 -> 0 | BN90: 89 | BO90: 4 | BP90: 17 | BQ90: ='HourGH-JUN'!S14 -> 0 | BR90: 89 | BS90: 4 | BT90: 17 | BU90: ='HourGH-JUL'!S14 -> 0 | BV90: 89 | BW90: 4 | BX90: 17 | BY90: ='HourGH-AUG'!S14 -> 0 | BZ90: 89 | CA90: 4 | CB90: 17 | CC90: ='HourGH-SEP'!S14 -> 0 | CD90: 89 | CE90: 4 | CF90: 17 | CG90: ='HourGH-OCT'!S14 -> 0 | CH90: 89 | CI90: 4 | CJ90: 17 | CK90: ='HourGH-NOV'!S14 -> 0 | CL90: 89 | CM90: 4 | CN90: 17 | CO90: ='HourGH-DEC'!S14 -> 0 | CP90: 89 | CQ90: 4 | CR90: 17 | CS90: ='HourGH-JAN'!S14 -> 0 | CT90: 89 | CU90: 4 | CV90: 17 | CW90: ='HourGH-FEB'!S14 -> 0 | CX90: 89 | CY90: 4 | CZ90: 17 | DA90: ='HourGH-MAR'!S14 -> 0
BF91: 90 | BG91: 4 | BH91: 18 | BI91: ='HourGH-APR'!T14 -> 0.36 | BJ91: 90 | BK91: 4 | BL91: 18 | BM91: ='HourGH-MAY'!T14 -> 0.43 | BN91: 90 | BO91: 4 | BP91: 18 | BQ91: ='HourGH-JUN'!T14 -> 0.36 | BR91: 90 | BS91: 4 | BT91: 18 | BU91: ='HourGH-JUL'!T14 -> 0.39 | BV91: 90 | BW91: 4 | BX91: 18 | BY91: ='HourGH-AUG'!T14 -> 0.83 | BZ91: 90 | CA91: 4 | CB91: 18 | CC91: ='HourGH-SEP'!T14 -> 0 | CD91: 90 | CE91: 4 | CF91: 18 | CG91: ='HourGH-OCT'!T14 -> 0 | CH91: 90 | CI91: 4 | CJ91: 18 | CK91: ='HourGH-NOV'!T14 -> 0 | CL91: 90 | CM91: 4 | CN91: 18 | CO91: ='HourGH-DEC'!T14 -> 0 | CP91: 90 | CQ91: 4 | CR91: 18 | CS91: ='HourGH-JAN'!T14 -> 0 | CT91: 90 | CU91: 4 | CV91: 18 | CW91: ='HourGH-FEB'!T14 -> 0 | CX91: 90 | CY91: 4 | CZ91: 18 | DA91: ='HourGH-MAR'!T14 -> 0
BF92: 91 | BG92: 4 | BH92: 19 | BI92: ='HourGH-APR'!U14 -> 0 | BJ92: 91 | BK92: 4 | BL92: 19 | BM92: ='HourGH-MAY'!U14 -> 0 | BN92: 91 | BO92: 4 | BP92: 19 | BQ92: ='HourGH-JUN'!U14 -> 0 | BR92: 91 | BS92: 4 | BT92: 19 | BU92: ='HourGH-JUL'!U14 -> 0 | BV92: 91 | BW92: 4 | BX92: 19 | BY92: ='HourGH-AUG'!U14 -> 0 | BZ92: 91 | CA92: 4 | CB92: 19 | CC92: ='HourGH-SEP'!U14 -> 0 | CD92: 91 | CE92: 4 | CF92: 19 | CG92: ='HourGH-OCT'!U14 -> 0 | CH92: 91 | CI92: 4 | CJ92: 19 | CK92: ='HourGH-NOV'!U14 -> 0 | CL92: 91 | CM92: 4 | CN92: 19 | CO92: ='HourGH-DEC'!U14 -> 0 | CP92: 91 | CQ92: 4 | CR92: 19 | CS92: ='HourGH-JAN'!U14 -> 0 | CT92: 91 | CU92: 4 | CV92: 19 | CW92: ='HourGH-FEB'!U14 -> 0 | CX92: 91 | CY92: 4 | CZ92: 19 | DA92: ='HourGH-MAR'!U14 -> 0
BF93: 92 | BG93: 4 | BH93: 20 | BI93: ='HourGH-APR'!V14 -> 0 | BJ93: 92 | BK93: 4 | BL93: 20 | BM93: ='HourGH-MAY'!V14 -> 0 | BN93: 92 | BO93: 4 | BP93: 20 | BQ93: ='HourGH-JUN'!V14 -> 0 | BR93: 92 | BS93: 4 | BT93: 20 | BU93: ='HourGH-JUL'!V14 -> 0 | BV93: 92 | BW93: 4 | BX93: 20 | BY93: ='HourGH-AUG'!V14 -> 0 | BZ93: 92 | CA93: 4 | CB93: 20 | CC93: ='HourGH-SEP'!V14 -> 0 | CD93: 92 | CE93: 4 | CF93: 20 | CG93: ='HourGH-OCT'!V14 -> 0 | CH93: 92 | CI93: 4 | CJ93: 20 | CK93: ='HourGH-NOV'!V14 -> 0 | CL93: 92 | CM93: 4 | CN93: 20 | CO93: ='HourGH-DEC'!V14 -> 0 | CP93: 92 | CQ93: 4 | CR93: 20 | CS93: ='HourGH-JAN'!V14 -> 0 | CT93: 92 | CU93: 4 | CV93: 20 | CW93: ='HourGH-FEB'!V14 -> 0 | CX93: 92 | CY93: 4 | CZ93: 20 | DA93: ='HourGH-MAR'!V14 -> 0
BF94: 93 | BG94: 4 | BH94: 21 | BI94: ='HourGH-APR'!W14 -> 0 | BJ94: 93 | BK94: 4 | BL94: 21 | BM94: ='HourGH-MAY'!W14 -> 0 | BN94: 93 | BO94: 4 | BP94: 21 | BQ94: ='HourGH-JUN'!W14 -> 0 | BR94: 93 | BS94: 4 | BT94: 21 | BU94: ='HourGH-JUL'!W14 -> 0 | BV94: 93 | BW94: 4 | BX94: 21 | BY94: ='HourGH-AUG'!W14 -> 0 | BZ94: 93 | CA94: 4 | CB94: 21 | CC94: ='HourGH-SEP'!W14 -> 0 | CD94: 93 | CE94: 4 | CF94: 21 | CG94: ='HourGH-OCT'!W14 -> 0 | CH94: 93 | CI94: 4 | CJ94: 21 | CK94: ='HourGH-NOV'!W14 -> 0 | CL94: 93 | CM94: 4 | CN94: 21 | CO94: ='HourGH-DEC'!W14 -> 0 | CP94: 93 | CQ94: 4 | CR94: 21 | CS94: ='HourGH-JAN'!W14 -> 0 | CT94: 93 | CU94: 4 | CV94: 21 | CW94: ='HourGH-FEB'!W14 -> 0 | CX94: 93 | CY94: 4 | CZ94: 21 | DA94: ='HourGH-MAR'!W14 -> 0
BF95: 94 | BG95: 4 | BH95: 22 | BI95: ='HourGH-APR'!X14 -> 0 | BJ95: 94 | BK95: 4 | BL95: 22 | BM95: ='HourGH-MAY'!X14 -> 0 | BN95: 94 | BO95: 4 | BP95: 22 | BQ95: ='HourGH-JUN'!X14 -> 0 | BR95: 94 | BS95: 4 | BT95: 22 | BU95: ='HourGH-JUL'!X14 -> 0 | BV95: 94 | BW95: 4 | BX95: 22 | BY95: ='HourGH-AUG'!X14 -> 0 | BZ95: 94 | CA95: 4 | CB95: 22 | CC95: ='HourGH-SEP'!X14 -> 0 | CD95: 94 | CE95: 4 | CF95: 22 | CG95: ='HourGH-OCT'!X14 -> 0 | CH95: 94 | CI95: 4 | CJ95: 22 | CK95: ='HourGH-NOV'!X14 -> 0 | CL95: 94 | CM95: 4 | CN95: 22 | CO95: ='HourGH-DEC'!X14 -> 0 | CP95: 94 | CQ95: 4 | CR95: 22 | CS95: ='HourGH-JAN'!X14 -> 0 | CT95: 94 | CU95: 4 | CV95: 22 | CW95: ='HourGH-FEB'!X14 -> 0 | CX95: 94 | CY95: 4 | CZ95: 22 | DA95: ='HourGH-MAR'!X14 -> 0
BF96: 95 | BG96: 4 | BH96: 23 | BI96: ='HourGH-APR'!Y14 -> 0 | BJ96: 95 | BK96: 4 | BL96: 23 | BM96: ='HourGH-MAY'!Y14 -> 0 | BN96: 95 | BO96: 4 | BP96: 23 | BQ96: ='HourGH-JUN'!Y14 -> 0 | BR96: 95 | BS96: 4 | BT96: 23 | BU96: ='HourGH-JUL'!Y14 -> 0 | BV96: 95 | BW96: 4 | BX96: 23 | BY96: ='HourGH-AUG'!Y14 -> 0 | BZ96: 95 | CA96: 4 | CB96: 23 | CC96: ='HourGH-SEP'!Y14 -> 0 | CD96: 95 | CE96: 4 | CF96: 23 | CG96: ='HourGH-OCT'!Y14 -> 0 | CH96: 95 | CI96: 4 | CJ96: 23 | CK96: ='HourGH-NOV'!Y14 -> 0 | CL96: 95 | CM96: 4 | CN96: 23 | CO96: ='HourGH-DEC'!Y14 -> 0 | CP96: 95 | CQ96: 4 | CR96: 23 | CS96: ='HourGH-JAN'!Y14 -> 0 | CT96: 95 | CU96: 4 | CV96: 23 | CW96: ='HourGH-FEB'!Y14 -> 0 | CX96: 95 | CY96: 4 | CZ96: 23 | DA96: ='HourGH-MAR'!Y14 -> 0
BF97: 96 | BG97: 4 | BH97: 24 | BI97: ='HourGH-APR'!Z14 -> 0 | BJ97: 96 | BK97: 4 | BL97: 24 | BM97: ='HourGH-MAY'!Z14 -> 0 | BN97: 96 | BO97: 4 | BP97: 24 | BQ97: ='HourGH-JUN'!Z14 -> 0 | BR97: 96 | BS97: 4 | BT97: 24 | BU97: ='HourGH-JUL'!Z14 -> 0 | BV97: 96 | BW97: 4 | BX97: 24 | BY97: ='HourGH-AUG'!Z14 -> 0 | BZ97: 96 | CA97: 4 | CB97: 24 | CC97: ='HourGH-SEP'!Z14 -> 0 | CD97: 96 | CE97: 4 | CF97: 24 | CG97: ='HourGH-OCT'!Z14 -> 0 | CH97: 96 | CI97: 4 | CJ97: 24 | CK97: ='HourGH-NOV'!Z14 -> 0 | CL97: 96 | CM97: 4 | CN97: 24 | CO97: ='HourGH-DEC'!Z14 -> 0 | CP97: 96 | CQ97: 4 | CR97: 24 | CS97: ='HourGH-JAN'!Z14 -> 0 | CT97: 96 | CU97: 4 | CV97: 24 | CW97: ='HourGH-FEB'!Z14 -> 0 | CX97: 96 | CY97: 4 | CZ97: 24 | DA97: ='HourGH-MAR'!Z14 -> 0
BF98: 97 | BG98: 5 | BH98: 1 | BI98: ='HourGH-APR'!C15 -> 0 | BJ98: 97 | BK98: 5 | BL98: 1 | BM98: ='HourGH-MAY'!C15 -> 0 | BN98: 97 | BO98: 5 | BP98: 1 | BQ98: ='HourGH-JUN'!C15 -> 0 | BR98: 97 | BS98: 5 | BT98: 1 | BU98: ='HourGH-JUL'!C15 -> 0 | BV98: 97 | BW98: 5 | BX98: 1 | BY98: ='HourGH-AUG'!C15 -> 0 | BZ98: 97 | CA98: 5 | CB98: 1 | CC98: ='HourGH-SEP'!C15 -> 0 | CD98: 97 | CE98: 5 | CF98: 1 | CG98: ='HourGH-OCT'!C15 -> 0 | CH98: 97 | CI98: 5 | CJ98: 1 | CK98: ='HourGH-NOV'!C15 -> 0 | CL98: 97 | CM98: 5 | CN98: 1 | CO98: ='HourGH-DEC'!C15 -> 0 | CP98: 97 | CQ98: 5 | CR98: 1 | CS98: ='HourGH-JAN'!C15 -> 0 | CT98: 97 | CU98: 5 | CV98: 1 | CW98: ='HourGH-FEB'!C15 -> 0 | CX98: 97 | CY98: 5 | CZ98: 1 | DA98: ='HourGH-MAR'!C15 -> 0
BF99: 98 | BG99: 5 | BH99: 2 | BI99: ='HourGH-APR'!D15 -> 0 | BJ99: 98 | BK99: 5 | BL99: 2 | BM99: ='HourGH-MAY'!D15 -> 0 | BN99: 98 | BO99: 5 | BP99: 2 | BQ99: ='HourGH-JUN'!D15 -> 0 | BR99: 98 | BS99: 5 | BT99: 2 | BU99: ='HourGH-JUL'!D15 -> 0 | BV99: 98 | BW99: 5 | BX99: 2 | BY99: ='HourGH-AUG'!D15 -> 0 | BZ99: 98 | CA99: 5 | CB99: 2 | CC99: ='HourGH-SEP'!D15 -> 0 | CD99: 98 | CE99: 5 | CF99: 2 | CG99: ='HourGH-OCT'!D15 -> 0 | CH99: 98 | CI99: 5 | CJ99: 2 | CK99: ='HourGH-NOV'!D15 -> 0 | CL99: 98 | CM99: 5 | CN99: 2 | CO99: ='HourGH-DEC'!D15 -> 0 | CP99: 98 | CQ99: 5 | CR99: 2 | CS99: ='HourGH-JAN'!D15 -> 0 | CT99: 98 | CU99: 5 | CV99: 2 | CW99: ='HourGH-FEB'!D15 -> 0 | CX99: 98 | CY99: 5 | CZ99: 2 | DA99: ='HourGH-MAR'!D15 -> 0
BF100: 99 | BG100: 5 | BH100: 3 | BI100: ='HourGH-APR'!E15 -> 0 | BJ100: 99 | BK100: 5 | BL100: 3 | BM100: ='HourGH-MAY'!E15 -> 0 | BN100: 99 | BO100: 5 | BP100: 3 | BQ100: ='HourGH-JUN'!E15 -> 0 | BR100: 99 | BS100: 5 | BT100: 3 | BU100: ='HourGH-JUL'!E15 -> 0 | BV100: 99 | BW100: 5 | BX100: 3 | BY100: ='HourGH-AUG'!E15 -> 0 | BZ100: 99 | CA100: 5 | CB100: 3 | CC100: ='HourGH-SEP'!E15 -> 0 | CD100: 99 | CE100: 5 | CF100: 3 | CG100: ='HourGH-OCT'!E15 -> 0 | CH100: 99 | CI100: 5 | CJ100: 3 | CK100: ='HourGH-NOV'!E15 -> 0 | CL100: 99 | CM100: 5 | CN100: 3 | CO100: ='HourGH-DEC'!E15 -> 0 | CP100: 99 | CQ100: 5 | CR100: 3 | CS100: ='HourGH-JAN'!E15 -> 0 | CT100: 99 | CU100: 5 | CV100: 3 | CW100: ='HourGH-FEB'!E15 -> 0 | CX100: 99 | CY100: 5 | CZ100: 3 | DA100: ='HourGH-MAR'!E15 -> 0
BF101: 100 | BG101: 5 | BH101: 4 | BI101: ='HourGH-APR'!F15 -> 0 | BJ101: 100 | BK101: 5 | BL101: 4 | BM101: ='HourGH-MAY'!F15 -> 0 | BN101: 100 | BO101: 5 | BP101: 4 | BQ101: ='HourGH-JUN'!F15 -> 0 | BR101: 100 | BS101: 5 | BT101: 4 | BU101: ='HourGH-JUL'!F15 -> 0 | BV101: 100 | BW101: 5 | BX101: 4 | BY101: ='HourGH-AUG'!F15 -> 0 | BZ101: 100 | CA101: 5 | CB101: 4 | CC101: ='HourGH-SEP'!F15 -> 0 | CD101: 100 | CE101: 5 | CF101: 4 | CG101: ='HourGH-OCT'!F15 -> 0 | CH101: 100 | CI101: 5 | CJ101: 4 | CK101: ='HourGH-NOV'!F15 -> 0 | CL101: 100 | CM101: 5 | CN101: 4 | CO101: ='HourGH-DEC'!F15 -> 0 | CP101: 100 | CQ101: 5 | CR101: 4 | CS101: ='HourGH-JAN'!F15 -> 0 | CT101: 100 | CU101: 5 | CV101: 4 | CW101: ='HourGH-FEB'!F15 -> 0 | CX101: 100 | CY101: 5 | CZ101: 4 | DA101: ='HourGH-MAR'!F15 -> 0
BF102: 101 | BG102: 5 | BH102: 5 | BI102: ='HourGH-APR'!G15 -> 0 | BJ102: 101 | BK102: 5 | BL102: 5 | BM102: ='HourGH-MAY'!G15 -> 0 | BN102: 101 | BO102: 5 | BP102: 5 | BQ102: ='HourGH-JUN'!G15 -> 0 | BR102: 101 | BS102: 5 | BT102: 5 | BU102: ='HourGH-JUL'!G15 -> 0 | BV102: 101 | BW102: 5 | BX102: 5 | BY102: ='HourGH-AUG'!G15 -> 0 | BZ102: 101 | CA102: 5 | CB102: 5 | CC102: ='HourGH-SEP'!G15 -> 0 | CD102: 101 | CE102: 5 | CF102: 5 | CG102: ='HourGH-OCT'!G15 -> 0 | CH102: 101 | CI102: 5 | CJ102: 5 | CK102: ='HourGH-NOV'!G15 -> 0 | CL102: 101 | CM102: 5 | CN102: 5 | CO102: ='HourGH-DEC'!G15 -> 0 | CP102: 101 | CQ102: 5 | CR102: 5 | CS102: ='HourGH-JAN'!G15 -> 0 | CT102: 101 | CU102: 5 | CV102: 5 | CW102: ='HourGH-FEB'!G15 -> 0 | CX102: 101 | CY102: 5 | CZ102: 5 | DA102: ='HourGH-MAR'!G15 -> 0
BF103: 102 | BG103: 5 | BH103: 6 | BI103: ='HourGH-APR'!H15 -> 0.36 | BJ103: 102 | BK103: 5 | BL103: 6 | BM103: ='HourGH-MAY'!H15 -> 0.43 | BN103: 102 | BO103: 5 | BP103: 6 | BQ103: ='HourGH-JUN'!H15 -> 0.35 | BR103: 102 | BS103: 5 | BT103: 6 | BU103: ='HourGH-JUL'!H15 -> 0.38 | BV103: 102 | BW103: 5 | BX103: 6 | BY103: ='HourGH-AUG'!H15 -> 0.83 | BZ103: 102 | CA103: 5 | CB103: 6 | CC103: ='HourGH-SEP'!H15 -> 0 | CD103: 102 | CE103: 5 | CF103: 6 | CG103: ='HourGH-OCT'!H15 -> 0 | CH103: 102 | CI103: 5 | CJ103: 6 | CK103: ='HourGH-NOV'!H15 -> 0 | CL103: 102 | CM103: 5 | CN103: 6 | CO103: ='HourGH-DEC'!H15 -> 0 | CP103: 102 | CQ103: 5 | CR103: 6 | CS103: ='HourGH-JAN'!H15 -> 0 | CT103: 102 | CU103: 5 | CV103: 6 | CW103: ='HourGH-FEB'!H15 -> 0 | CX103: 102 | CY103: 5 | CZ103: 6 | DA103: ='HourGH-MAR'!H15 -> 0
BF104: 103 | BG104: 5 | BH104: 7 | BI104: ='HourGH-APR'!I15 -> 0 | BJ104: 103 | BK104: 5 | BL104: 7 | BM104: ='HourGH-MAY'!I15 -> 0 | BN104: 103 | BO104: 5 | BP104: 7 | BQ104: ='HourGH-JUN'!I15 -> 0 | BR104: 103 | BS104: 5 | BT104: 7 | BU104: ='HourGH-JUL'!I15 -> 0 | BV104: 103 | BW104: 5 | BX104: 7 | BY104: ='HourGH-AUG'!I15 -> 0 | BZ104: 103 | CA104: 5 | CB104: 7 | CC104: ='HourGH-SEP'!I15 -> 0 | CD104: 103 | CE104: 5 | CF104: 7 | CG104: ='HourGH-OCT'!I15 -> 0 | CH104: 103 | CI104: 5 | CJ104: 7 | CK104: ='HourGH-NOV'!I15 -> 0 | CL104: 103 | CM104: 5 | CN104: 7 | CO104: ='HourGH-DEC'!I15 -> 0 | CP104: 103 | CQ104: 5 | CR104: 7 | CS104: ='HourGH-JAN'!I15 -> 0 | CT104: 103 | CU104: 5 | CV104: 7 | CW104: ='HourGH-FEB'!I15 -> 0 | CX104: 103 | CY104: 5 | CZ104: 7 | DA104: ='HourGH-MAR'!I15 -> 0
BF105: 104 | BG105: 5 | BH105: 8 | BI105: ='HourGH-APR'!J15 -> 0 | BJ105: 104 | BK105: 5 | BL105: 8 | BM105: ='HourGH-MAY'!J15 -> 0 | BN105: 104 | BO105: 5 | BP105: 8 | BQ105: ='HourGH-JUN'!J15 -> 0 | BR105: 104 | BS105: 5 | BT105: 8 | BU105: ='HourGH-JUL'!J15 -> 0 | BV105: 104 | BW105: 5 | BX105: 8 | BY105: ='HourGH-AUG'!J15 -> 0 | BZ105: 104 | CA105: 5 | CB105: 8 | CC105: ='HourGH-SEP'!J15 -> 0 | CD105: 104 | CE105: 5 | CF105: 8 | CG105: ='HourGH-OCT'!J15 -> 0 | CH105: 104 | CI105: 5 | CJ105: 8 | CK105: ='HourGH-NOV'!J15 -> 0 | CL105: 104 | CM105: 5 | CN105: 8 | CO105: ='HourGH-DEC'!J15 -> 0 | CP105: 104 | CQ105: 5 | CR105: 8 | CS105: ='HourGH-JAN'!J15 -> 0 | CT105: 104 | CU105: 5 | CV105: 8 | CW105: ='HourGH-FEB'!J15 -> 0 | CX105: 104 | CY105: 5 | CZ105: 8 | DA105: ='HourGH-MAR'!J15 -> 0
BF106: 105 | BG106: 5 | BH106: 9 | BI106: ='HourGH-APR'!K15 -> 0.36 | BJ106: 105 | BK106: 5 | BL106: 9 | BM106: ='HourGH-MAY'!K15 -> 0.43 | BN106: 105 | BO106: 5 | BP106: 9 | BQ106: ='HourGH-JUN'!K15 -> 0.35 | BR106: 105 | BS106: 5 | BT106: 9 | BU106: ='HourGH-JUL'!K15 -> 0.38 | BV106: 105 | BW106: 5 | BX106: 9 | BY106: ='HourGH-AUG'!K15 -> 0.83 | BZ106: 105 | CA106: 5 | CB106: 9 | CC106: ='HourGH-SEP'!K15 -> 0 | CD106: 105 | CE106: 5 | CF106: 9 | CG106: ='HourGH-OCT'!K15 -> 0 | CH106: 105 | CI106: 5 | CJ106: 9 | CK106: ='HourGH-NOV'!K15 -> 0 | CL106: 105 | CM106: 5 | CN106: 9 | CO106: ='HourGH-DEC'!K15 -> 0 | CP106: 105 | CQ106: 5 | CR106: 9 | CS106: ='HourGH-JAN'!K15 -> 0 | CT106: 105 | CU106: 5 | CV106: 9 | CW106: ='HourGH-FEB'!K15 -> 0 | CX106: 105 | CY106: 5 | CZ106: 9 | DA106: ='HourGH-MAR'!K15 -> 0
BF107: 106 | BG107: 5 | BH107: 10 | BI107: ='HourGH-APR'!L15 -> 0 | BJ107: 106 | BK107: 5 | BL107: 10 | BM107: ='HourGH-MAY'!L15 -> 0 | BN107: 106 | BO107: 5 | BP107: 10 | BQ107: ='HourGH-JUN'!L15 -> 0 | BR107: 106 | BS107: 5 | BT107: 10 | BU107: ='HourGH-JUL'!L15 -> 0 | BV107: 106 | BW107: 5 | BX107: 10 | BY107: ='HourGH-AUG'!L15 -> 0 | BZ107: 106 | CA107: 5 | CB107: 10 | CC107: ='HourGH-SEP'!L15 -> 0 | CD107: 106 | CE107: 5 | CF107: 10 | CG107: ='HourGH-OCT'!L15 -> 0 | CH107: 106 | CI107: 5 | CJ107: 10 | CK107: ='HourGH-NOV'!L15 -> 0 | CL107: 106 | CM107: 5 | CN107: 10 | CO107: ='HourGH-DEC'!L15 -> 0 | CP107: 106 | CQ107: 5 | CR107: 10 | CS107: ='HourGH-JAN'!L15 -> 0 | CT107: 106 | CU107: 5 | CV107: 10 | CW107: ='HourGH-FEB'!L15 -> 0 | CX107: 106 | CY107: 5 | CZ107: 10 | DA107: ='HourGH-MAR'!L15 -> 0
BF108: 107 | BG108: 5 | BH108: 11 | BI108: ='HourGH-APR'!M15 -> 0 | BJ108: 107 | BK108: 5 | BL108: 11 | BM108: ='HourGH-MAY'!M15 -> 0 | BN108: 107 | BO108: 5 | BP108: 11 | BQ108: ='HourGH-JUN'!M15 -> 0 | BR108: 107 | BS108: 5 | BT108: 11 | BU108: ='HourGH-JUL'!M15 -> 0 | BV108: 107 | BW108: 5 | BX108: 11 | BY108: ='HourGH-AUG'!M15 -> 0 | BZ108: 107 | CA108: 5 | CB108: 11 | CC108: ='HourGH-SEP'!M15 -> 0 | CD108: 107 | CE108: 5 | CF108: 11 | CG108: ='HourGH-OCT'!M15 -> 0 | CH108: 107 | CI108: 5 | CJ108: 11 | CK108: ='HourGH-NOV'!M15 -> 0 | CL108: 107 | CM108: 5 | CN108: 11 | CO108: ='HourGH-DEC'!M15 -> 0 | CP108: 107 | CQ108: 5 | CR108: 11 | CS108: ='HourGH-JAN'!M15 -> 0 | CT108: 107 | CU108: 5 | CV108: 11 | CW108: ='HourGH-FEB'!M15 -> 0 | CX108: 107 | CY108: 5 | CZ108: 11 | DA108: ='HourGH-MAR'!M15 -> 0
BF109: 108 | BG109: 5 | BH109: 12 | BI109: ='HourGH-APR'!N15 -> 0.36 | BJ109: 108 | BK109: 5 | BL109: 12 | BM109: ='HourGH-MAY'!N15 -> 0.43 | BN109: 108 | BO109: 5 | BP109: 12 | BQ109: ='HourGH-JUN'!N15 -> 0.35 | BR109: 108 | BS109: 5 | BT109: 12 | BU109: ='HourGH-JUL'!N15 -> 0.38 | BV109: 108 | BW109: 5 | BX109: 12 | BY109: ='HourGH-AUG'!N15 -> 0.8 | BZ109: 108 | CA109: 5 | CB109: 12 | CC109: ='HourGH-SEP'!N15 -> 0 | CD109: 108 | CE109: 5 | CF109: 12 | CG109: ='HourGH-OCT'!N15 -> 0 | CH109: 108 | CI109: 5 | CJ109: 12 | CK109: ='HourGH-NOV'!N15 -> 0 | CL109: 108 | CM109: 5 | CN109: 12 | CO109: ='HourGH-DEC'!N15 -> 0 | CP109: 108 | CQ109: 5 | CR109: 12 | CS109: ='HourGH-JAN'!N15 -> 0 | CT109: 108 | CU109: 5 | CV109: 12 | CW109: ='HourGH-FEB'!N15 -> 0 | CX109: 108 | CY109: 5 | CZ109: 12 | DA109: ='HourGH-MAR'!N15 -> 0
BF110: 109 | BG110: 5 | BH110: 13 | BI110: ='HourGH-APR'!O15 -> 0 | BJ110: 109 | BK110: 5 | BL110: 13 | BM110: ='HourGH-MAY'!O15 -> 0 | BN110: 109 | BO110: 5 | BP110: 13 | BQ110: ='HourGH-JUN'!O15 -> 0 | BR110: 109 | BS110: 5 | BT110: 13 | BU110: ='HourGH-JUL'!O15 -> 0 | BV110: 109 | BW110: 5 | BX110: 13 | BY110: ='HourGH-AUG'!O15 -> 0 | BZ110: 109 | CA110: 5 | CB110: 13 | CC110: ='HourGH-SEP'!O15 -> 0 | CD110: 109 | CE110: 5 | CF110: 13 | CG110: ='HourGH-OCT'!O15 -> 0 | CH110: 109 | CI110: 5 | CJ110: 13 | CK110: ='HourGH-NOV'!O15 -> 0 | CL110: 109 | CM110: 5 | CN110: 13 | CO110: ='HourGH-DEC'!O15 -> 0 | CP110: 109 | CQ110: 5 | CR110: 13 | CS110: ='HourGH-JAN'!O15 -> 0 | CT110: 109 | CU110: 5 | CV110: 13 | CW110: ='HourGH-FEB'!O15 -> 0 | CX110: 109 | CY110: 5 | CZ110: 13 | DA110: ='HourGH-MAR'!O15 -> 0
BF111: 110 | BG111: 5 | BH111: 14 | BI111: ='HourGH-APR'!P15 -> 0 | BJ111: 110 | BK111: 5 | BL111: 14 | BM111: ='HourGH-MAY'!P15 -> 0 | BN111: 110 | BO111: 5 | BP111: 14 | BQ111: ='HourGH-JUN'!P15 -> 0 | BR111: 110 | BS111: 5 | BT111: 14 | BU111: ='HourGH-JUL'!P15 -> 0 | BV111: 110 | BW111: 5 | BX111: 14 | BY111: ='HourGH-AUG'!P15 -> 0 | BZ111: 110 | CA111: 5 | CB111: 14 | CC111: ='HourGH-SEP'!P15 -> 0 | CD111: 110 | CE111: 5 | CF111: 14 | CG111: ='HourGH-OCT'!P15 -> 0 | CH111: 110 | CI111: 5 | CJ111: 14 | CK111: ='HourGH-NOV'!P15 -> 0 | CL111: 110 | CM111: 5 | CN111: 14 | CO111: ='HourGH-DEC'!P15 -> 0 | CP111: 110 | CQ111: 5 | CR111: 14 | CS111: ='HourGH-JAN'!P15 -> 0 | CT111: 110 | CU111: 5 | CV111: 14 | CW111: ='HourGH-FEB'!P15 -> 0 | CX111: 110 | CY111: 5 | CZ111: 14 | DA111: ='HourGH-MAR'!P15 -> 0
BF112: 111 | BG112: 5 | BH112: 15 | BI112: ='HourGH-APR'!Q15 -> 0.36 | BJ112: 111 | BK112: 5 | BL112: 15 | BM112: ='HourGH-MAY'!Q15 -> 0.45 | BN112: 111 | BO112: 5 | BP112: 15 | BQ112: ='HourGH-JUN'!Q15 -> 0.35 | BR112: 111 | BS112: 5 | BT112: 15 | BU112: ='HourGH-JUL'!Q15 -> 0.38 | BV112: 111 | BW112: 5 | BX112: 15 | BY112: ='HourGH-AUG'!Q15 -> 0.76 | BZ112: 111 | CA112: 5 | CB112: 15 | CC112: ='HourGH-SEP'!Q15 -> 0 | CD112: 111 | CE112: 5 | CF112: 15 | CG112: ='HourGH-OCT'!Q15 -> 0 | CH112: 111 | CI112: 5 | CJ112: 15 | CK112: ='HourGH-NOV'!Q15 -> 0 | CL112: 111 | CM112: 5 | CN112: 15 | CO112: ='HourGH-DEC'!Q15 -> 0 | CP112: 111 | CQ112: 5 | CR112: 15 | CS112: ='HourGH-JAN'!Q15 -> 0 | CT112: 111 | CU112: 5 | CV112: 15 | CW112: ='HourGH-FEB'!Q15 -> 0 | CX112: 111 | CY112: 5 | CZ112: 15 | DA112: ='HourGH-MAR'!Q15 -> 0
BF113: 112 | BG113: 5 | BH113: 16 | BI113: ='HourGH-APR'!R15 -> 0 | BJ113: 112 | BK113: 5 | BL113: 16 | BM113: ='HourGH-MAY'!R15 -> 0 | BN113: 112 | BO113: 5 | BP113: 16 | BQ113: ='HourGH-JUN'!R15 -> 0 | BR113: 112 | BS113: 5 | BT113: 16 | BU113: ='HourGH-JUL'!R15 -> 0 | BV113: 112 | BW113: 5 | BX113: 16 | BY113: ='HourGH-AUG'!R15 -> 0 | BZ113: 112 | CA113: 5 | CB113: 16 | CC113: ='HourGH-SEP'!R15 -> 0 | CD113: 112 | CE113: 5 | CF113: 16 | CG113: ='HourGH-OCT'!R15 -> 0 | CH113: 112 | CI113: 5 | CJ113: 16 | CK113: ='HourGH-NOV'!R15 -> 0 | CL113: 112 | CM113: 5 | CN113: 16 | CO113: ='HourGH-DEC'!R15 -> 0 | CP113: 112 | CQ113: 5 | CR113: 16 | CS113: ='HourGH-JAN'!R15 -> 0 | CT113: 112 | CU113: 5 | CV113: 16 | CW113: ='HourGH-FEB'!R15 -> 0 | CX113: 112 | CY113: 5 | CZ113: 16 | DA113: ='HourGH-MAR'!R15 -> 0
BF114: 113 | BG114: 5 | BH114: 17 | BI114: ='HourGH-APR'!S15 -> 0 | BJ114: 113 | BK114: 5 | BL114: 17 | BM114: ='HourGH-MAY'!S15 -> 0 | BN114: 113 | BO114: 5 | BP114: 17 | BQ114: ='HourGH-JUN'!S15 -> 0 | BR114: 113 | BS114: 5 | BT114: 17 | BU114: ='HourGH-JUL'!S15 -> 0 | BV114: 113 | BW114: 5 | BX114: 17 | BY114: ='HourGH-AUG'!S15 -> 0 | BZ114: 113 | CA114: 5 | CB114: 17 | CC114: ='HourGH-SEP'!S15 -> 0 | CD114: 113 | CE114: 5 | CF114: 17 | CG114: ='HourGH-OCT'!S15 -> 0 | CH114: 113 | CI114: 5 | CJ114: 17 | CK114: ='HourGH-NOV'!S15 -> 0 | CL114: 113 | CM114: 5 | CN114: 17 | CO114: ='HourGH-DEC'!S15 -> 0 | CP114: 113 | CQ114: 5 | CR114: 17 | CS114: ='HourGH-JAN'!S15 -> 0 | CT114: 113 | CU114: 5 | CV114: 17 | CW114: ='HourGH-FEB'!S15 -> 0 | CX114: 113 | CY114: 5 | CZ114: 17 | DA114: ='HourGH-MAR'!S15 -> 0
BF115: 114 | BG115: 5 | BH115: 18 | BI115: ='HourGH-APR'!T15 -> 0.36 | BJ115: 114 | BK115: 5 | BL115: 18 | BM115: ='HourGH-MAY'!T15 -> 0.54 | BN115: 114 | BO115: 5 | BP115: 18 | BQ115: ='HourGH-JUN'!T15 -> 0.35 | BR115: 114 | BS115: 5 | BT115: 18 | BU115: ='HourGH-JUL'!T15 -> 0.38 | BV115: 114 | BW115: 5 | BX115: 18 | BY115: ='HourGH-AUG'!T15 -> 0.73 | BZ115: 114 | CA115: 5 | CB115: 18 | CC115: ='HourGH-SEP'!T15 -> 0 | CD115: 114 | CE115: 5 | CF115: 18 | CG115: ='HourGH-OCT'!T15 -> 0 | CH115: 114 | CI115: 5 | CJ115: 18 | CK115: ='HourGH-NOV'!T15 -> 0 | CL115: 114 | CM115: 5 | CN115: 18 | CO115: ='HourGH-DEC'!T15 -> 0 | CP115: 114 | CQ115: 5 | CR115: 18 | CS115: ='HourGH-JAN'!T15 -> 0 | CT115: 114 | CU115: 5 | CV115: 18 | CW115: ='HourGH-FEB'!T15 -> 0 | CX115: 114 | CY115: 5 | CZ115: 18 | DA115: ='HourGH-MAR'!T15 -> 0
BF116: 115 | BG116: 5 | BH116: 19 | BI116: ='HourGH-APR'!U15 -> 0 | BJ116: 115 | BK116: 5 | BL116: 19 | BM116: ='HourGH-MAY'!U15 -> 0 | BN116: 115 | BO116: 5 | BP116: 19 | BQ116: ='HourGH-JUN'!U15 -> 0 | BR116: 115 | BS116: 5 | BT116: 19 | BU116: ='HourGH-JUL'!U15 -> 0 | BV116: 115 | BW116: 5 | BX116: 19 | BY116: ='HourGH-AUG'!U15 -> 0 | BZ116: 115 | CA116: 5 | CB116: 19 | CC116: ='HourGH-SEP'!U15 -> 0 | CD116: 115 | CE116: 5 | CF116: 19 | CG116: ='HourGH-OCT'!U15 -> 0 | CH116: 115 | CI116: 5 | CJ116: 19 | CK116: ='HourGH-NOV'!U15 -> 0 | CL116: 115 | CM116: 5 | CN116: 19 | CO116: ='HourGH-DEC'!U15 -> 0 | CP116: 115 | CQ116: 5 | CR116: 19 | CS116: ='HourGH-JAN'!U15 -> 0 | CT116: 115 | CU116: 5 | CV116: 19 | CW116: ='HourGH-FEB'!U15 -> 0 | CX116: 115 | CY116: 5 | CZ116: 19 | DA116: ='HourGH-MAR'!U15 -> 0
BF117: 116 | BG117: 5 | BH117: 20 | BI117: ='HourGH-APR'!V15 -> 0 | BJ117: 116 | BK117: 5 | BL117: 20 | BM117: ='HourGH-MAY'!V15 -> 0 | BN117: 116 | BO117: 5 | BP117: 20 | BQ117: ='HourGH-JUN'!V15 -> 0 | BR117: 116 | BS117: 5 | BT117: 20 | BU117: ='HourGH-JUL'!V15 -> 0 | BV117: 116 | BW117: 5 | BX117: 20 | BY117: ='HourGH-AUG'!V15 -> 0 | BZ117: 116 | CA117: 5 | CB117: 20 | CC117: ='HourGH-SEP'!V15 -> 0 | CD117: 116 | CE117: 5 | CF117: 20 | CG117: ='HourGH-OCT'!V15 -> 0 | CH117: 116 | CI117: 5 | CJ117: 20 | CK117: ='HourGH-NOV'!V15 -> 0 | CL117: 116 | CM117: 5 | CN117: 20 | CO117: ='HourGH-DEC'!V15 -> 0 | CP117: 116 | CQ117: 5 | CR117: 20 | CS117: ='HourGH-JAN'!V15 -> 0 | CT117: 116 | CU117: 5 | CV117: 20 | CW117: ='HourGH-FEB'!V15 -> 0 | CX117: 116 | CY117: 5 | CZ117: 20 | DA117: ='HourGH-MAR'!V15 -> 0
BF118: 117 | BG118: 5 | BH118: 21 | BI118: ='HourGH-APR'!W15 -> 0 | BJ118: 117 | BK118: 5 | BL118: 21 | BM118: ='HourGH-MAY'!W15 -> 0 | BN118: 117 | BO118: 5 | BP118: 21 | BQ118: ='HourGH-JUN'!W15 -> 0 | BR118: 117 | BS118: 5 | BT118: 21 | BU118: ='HourGH-JUL'!W15 -> 0 | BV118: 117 | BW118: 5 | BX118: 21 | BY118: ='HourGH-AUG'!W15 -> 0 | BZ118: 117 | CA118: 5 | CB118: 21 | CC118: ='HourGH-SEP'!W15 -> 0 | CD118: 117 | CE118: 5 | CF118: 21 | CG118: ='HourGH-OCT'!W15 -> 0 | CH118: 117 | CI118: 5 | CJ118: 21 | CK118: ='HourGH-NOV'!W15 -> 0 | CL118: 117 | CM118: 5 | CN118: 21 | CO118: ='HourGH-DEC'!W15 -> 0 | CP118: 117 | CQ118: 5 | CR118: 21 | CS118: ='HourGH-JAN'!W15 -> 0 | CT118: 117 | CU118: 5 | CV118: 21 | CW118: ='HourGH-FEB'!W15 -> 0 | CX118: 117 | CY118: 5 | CZ118: 21 | DA118: ='HourGH-MAR'!W15 -> 0
BF119: 118 | BG119: 5 | BH119: 22 | BI119: ='HourGH-APR'!X15 -> 0 | BJ119: 118 | BK119: 5 | BL119: 22 | BM119: ='HourGH-MAY'!X15 -> 0 | BN119: 118 | BO119: 5 | BP119: 22 | BQ119: ='HourGH-JUN'!X15 -> 0 | BR119: 118 | BS119: 5 | BT119: 22 | BU119: ='HourGH-JUL'!X15 -> 0 | BV119: 118 | BW119: 5 | BX119: 22 | BY119: ='HourGH-AUG'!X15 -> 0 | BZ119: 118 | CA119: 5 | CB119: 22 | CC119: ='HourGH-SEP'!X15 -> 0 | CD119: 118 | CE119: 5 | CF119: 22 | CG119: ='HourGH-OCT'!X15 -> 0 | CH119: 118 | CI119: 5 | CJ119: 22 | CK119: ='HourGH-NOV'!X15 -> 0 | CL119: 118 | CM119: 5 | CN119: 22 | CO119: ='HourGH-DEC'!X15 -> 0 | CP119: 118 | CQ119: 5 | CR119: 22 | CS119: ='HourGH-JAN'!X15 -> 0 | CT119: 118 | CU119: 5 | CV119: 22 | CW119: ='HourGH-FEB'!X15 -> 0 | CX119: 118 | CY119: 5 | CZ119: 22 | DA119: ='HourGH-MAR'!X15 -> 0
BF120: 119 | BG120: 5 | BH120: 23 | BI120: ='HourGH-APR'!Y15 -> 0 | BJ120: 119 | BK120: 5 | BL120: 23 | BM120: ='HourGH-MAY'!Y15 -> 0 | BN120: 119 | BO120: 5 | BP120: 23 | BQ120: ='HourGH-JUN'!Y15 -> 0 | BR120: 119 | BS120: 5 | BT120: 23 | BU120: ='HourGH-JUL'!Y15 -> 0 | BV120: 119 | BW120: 5 | BX120: 23 | BY120: ='HourGH-AUG'!Y15 -> 0 | BZ120: 119 | CA120: 5 | CB120: 23 | CC120: ='HourGH-SEP'!Y15 -> 0 | CD120: 119 | CE120: 5 | CF120: 23 | CG120: ='HourGH-OCT'!Y15 -> 0 | CH120: 119 | CI120: 5 | CJ120: 23 | CK120: ='HourGH-NOV'!Y15 -> 0 | CL120: 119 | CM120: 5 | CN120: 23 | CO120: ='HourGH-DEC'!Y15 -> 0 | CP120: 119 | CQ120: 5 | CR120: 23 | CS120: ='HourGH-JAN'!Y15 -> 0 | CT120: 119 | CU120: 5 | CV120: 23 | CW120: ='HourGH-FEB'!Y15 -> 0 | CX120: 119 | CY120: 5 | CZ120: 23 | DA120: ='HourGH-MAR'!Y15 -> 0
BF121: 120 | BG121: 5 | BH121: 24 | BI121: ='HourGH-APR'!Z15 -> 0 | BJ121: 120 | BK121: 5 | BL121: 24 | BM121: ='HourGH-MAY'!Z15 -> 0 | BN121: 120 | BO121: 5 | BP121: 24 | BQ121: ='HourGH-JUN'!Z15 -> 0 | BR121: 120 | BS121: 5 | BT121: 24 | BU121: ='HourGH-JUL'!Z15 -> 0 | BV121: 120 | BW121: 5 | BX121: 24 | BY121: ='HourGH-AUG'!Z15 -> 0 | BZ121: 120 | CA121: 5 | CB121: 24 | CC121: ='HourGH-SEP'!Z15 -> 0 | CD121: 120 | CE121: 5 | CF121: 24 | CG121: ='HourGH-OCT'!Z15 -> 0 | CH121: 120 | CI121: 5 | CJ121: 24 | CK121: ='HourGH-NOV'!Z15 -> 0 | CL121: 120 | CM121: 5 | CN121: 24 | CO121: ='HourGH-DEC'!Z15 -> 0 | CP121: 120 | CQ121: 5 | CR121: 24 | CS121: ='HourGH-JAN'!Z15 -> 0 | CT121: 120 | CU121: 5 | CV121: 24 | CW121: ='HourGH-FEB'!Z15 -> 0 | CX121: 120 | CY121: 5 | CZ121: 24 | DA121: ='HourGH-MAR'!Z15 -> 0
BF122: 121 | BG122: 6 | BH122: 1 | BI122: ='HourGH-APR'!C16 -> 0 | BJ122: 121 | BK122: 6 | BL122: 1 | BM122: ='HourGH-MAY'!C16 -> 0 | BN122: 121 | BO122: 6 | BP122: 1 | BQ122: ='HourGH-JUN'!C16 -> 0 | BR122: 121 | BS122: 6 | BT122: 1 | BU122: ='HourGH-JUL'!C16 -> 0 | BV122: 121 | BW122: 6 | BX122: 1 | BY122: ='HourGH-AUG'!C16 -> 0 | BZ122: 121 | CA122: 6 | CB122: 1 | CC122: ='HourGH-SEP'!C16 -> 0 | CD122: 121 | CE122: 6 | CF122: 1 | CG122: ='HourGH-OCT'!C16 -> 0 | CH122: 121 | CI122: 6 | CJ122: 1 | CK122: ='HourGH-NOV'!C16 -> 0 | CL122: 121 | CM122: 6 | CN122: 1 | CO122: ='HourGH-DEC'!C16 -> 0 | CP122: 121 | CQ122: 6 | CR122: 1 | CS122: ='HourGH-JAN'!C16 -> 0 | CT122: 121 | CU122: 6 | CV122: 1 | CW122: ='HourGH-FEB'!C16 -> 0 | CX122: 121 | CY122: 6 | CZ122: 1 | DA122: ='HourGH-MAR'!C16 -> 0
BF123: 122 | BG123: 6 | BH123: 2 | BI123: ='HourGH-APR'!D16 -> 0 | BJ123: 122 | BK123: 6 | BL123: 2 | BM123: ='HourGH-MAY'!D16 -> 0 | BN123: 122 | BO123: 6 | BP123: 2 | BQ123: ='HourGH-JUN'!D16 -> 0 | BR123: 122 | BS123: 6 | BT123: 2 | BU123: ='HourGH-JUL'!D16 -> 0 | BV123: 122 | BW123: 6 | BX123: 2 | BY123: ='HourGH-AUG'!D16 -> 0 | BZ123: 122 | CA123: 6 | CB123: 2 | CC123: ='HourGH-SEP'!D16 -> 0 | CD123: 122 | CE123: 6 | CF123: 2 | CG123: ='HourGH-OCT'!D16 -> 0 | CH123: 122 | CI123: 6 | CJ123: 2 | CK123: ='HourGH-NOV'!D16 -> 0 | CL123: 122 | CM123: 6 | CN123: 2 | CO123: ='HourGH-DEC'!D16 -> 0 | CP123: 122 | CQ123: 6 | CR123: 2 | CS123: ='HourGH-JAN'!D16 -> 0 | CT123: 122 | CU123: 6 | CV123: 2 | CW123: ='HourGH-FEB'!D16 -> 0 | CX123: 122 | CY123: 6 | CZ123: 2 | DA123: ='HourGH-MAR'!D16 -> 0
BF124: 123 | BG124: 6 | BH124: 3 | BI124: ='HourGH-APR'!E16 -> 0 | BJ124: 123 | BK124: 6 | BL124: 3 | BM124: ='HourGH-MAY'!E16 -> 0 | BN124: 123 | BO124: 6 | BP124: 3 | BQ124: ='HourGH-JUN'!E16 -> 0 | BR124: 123 | BS124: 6 | BT124: 3 | BU124: ='HourGH-JUL'!E16 -> 0 | BV124: 123 | BW124: 6 | BX124: 3 | BY124: ='HourGH-AUG'!E16 -> 0 | BZ124: 123 | CA124: 6 | CB124: 3 | CC124: ='HourGH-SEP'!E16 -> 0 | CD124: 123 | CE124: 6 | CF124: 3 | CG124: ='HourGH-OCT'!E16 -> 0 | CH124: 123 | CI124: 6 | CJ124: 3 | CK124: ='HourGH-NOV'!E16 -> 0 | CL124: 123 | CM124: 6 | CN124: 3 | CO124: ='HourGH-DEC'!E16 -> 0 | CP124: 123 | CQ124: 6 | CR124: 3 | CS124: ='HourGH-JAN'!E16 -> 0 | CT124: 123 | CU124: 6 | CV124: 3 | CW124: ='HourGH-FEB'!E16 -> 0 | CX124: 123 | CY124: 6 | CZ124: 3 | DA124: ='HourGH-MAR'!E16 -> 0
BF125: 124 | BG125: 6 | BH125: 4 | BI125: ='HourGH-APR'!F16 -> 0 | BJ125: 124 | BK125: 6 | BL125: 4 | BM125: ='HourGH-MAY'!F16 -> 0 | BN125: 124 | BO125: 6 | BP125: 4 | BQ125: ='HourGH-JUN'!F16 -> 0 | BR125: 124 | BS125: 6 | BT125: 4 | BU125: ='HourGH-JUL'!F16 -> 0 | BV125: 124 | BW125: 6 | BX125: 4 | BY125: ='HourGH-AUG'!F16 -> 0 | BZ125: 124 | CA125: 6 | CB125: 4 | CC125: ='HourGH-SEP'!F16 -> 0 | CD125: 124 | CE125: 6 | CF125: 4 | CG125: ='HourGH-OCT'!F16 -> 0 | CH125: 124 | CI125: 6 | CJ125: 4 | CK125: ='HourGH-NOV'!F16 -> 0 | CL125: 124 | CM125: 6 | CN125: 4 | CO125: ='HourGH-DEC'!F16 -> 0 | CP125: 124 | CQ125: 6 | CR125: 4 | CS125: ='HourGH-JAN'!F16 -> 0 | CT125: 124 | CU125: 6 | CV125: 4 | CW125: ='HourGH-FEB'!F16 -> 0 | CX125: 124 | CY125: 6 | CZ125: 4 | DA125: ='HourGH-MAR'!F16 -> 0
BF126: 125 | BG126: 6 | BH126: 5 | BI126: ='HourGH-APR'!G16 -> 0 | BJ126: 125 | BK126: 6 | BL126: 5 | BM126: ='HourGH-MAY'!G16 -> 0 | BN126: 125 | BO126: 6 | BP126: 5 | BQ126: ='HourGH-JUN'!G16 -> 0 | BR126: 125 | BS126: 6 | BT126: 5 | BU126: ='HourGH-JUL'!G16 -> 0 | BV126: 125 | BW126: 6 | BX126: 5 | BY126: ='HourGH-AUG'!G16 -> 0 | BZ126: 125 | CA126: 6 | CB126: 5 | CC126: ='HourGH-SEP'!G16 -> 0 | CD126: 125 | CE126: 6 | CF126: 5 | CG126: ='HourGH-OCT'!G16 -> 0 | CH126: 125 | CI126: 6 | CJ126: 5 | CK126: ='HourGH-NOV'!G16 -> 0 | CL126: 125 | CM126: 6 | CN126: 5 | CO126: ='HourGH-DEC'!G16 -> 0 | CP126: 125 | CQ126: 6 | CR126: 5 | CS126: ='HourGH-JAN'!G16 -> 0 | CT126: 125 | CU126: 6 | CV126: 5 | CW126: ='HourGH-FEB'!G16 -> 0 | CX126: 125 | CY126: 6 | CZ126: 5 | DA126: ='HourGH-MAR'!G16 -> 0
BF127: 126 | BG127: 6 | BH127: 6 | BI127: ='HourGH-APR'!H16 -> 0.35 | BJ127: 126 | BK127: 6 | BL127: 6 | BM127: ='HourGH-MAY'!H16 -> 0.39 | BN127: 126 | BO127: 6 | BP127: 6 | BQ127: ='HourGH-JUN'!H16 -> 0.37 | BR127: 126 | BS127: 6 | BT127: 6 | BU127: ='HourGH-JUL'!H16 -> 0.38 | BV127: 126 | BW127: 6 | BX127: 6 | BY127: ='HourGH-AUG'!H16 -> 1.17 | BZ127: 126 | CA127: 6 | CB127: 6 | CC127: ='HourGH-SEP'!H16 -> 0 | CD127: 126 | CE127: 6 | CF127: 6 | CG127: ='HourGH-OCT'!H16 -> 0 | CH127: 126 | CI127: 6 | CJ127: 6 | CK127: ='HourGH-NOV'!H16 -> 0 | CL127: 126 | CM127: 6 | CN127: 6 | CO127: ='HourGH-DEC'!H16 -> 0 | CP127: 126 | CQ127: 6 | CR127: 6 | CS127: ='HourGH-JAN'!H16 -> 0 | CT127: 126 | CU127: 6 | CV127: 6 | CW127: ='HourGH-FEB'!H16 -> 0 | CX127: 126 | CY127: 6 | CZ127: 6 | DA127: ='HourGH-MAR'!H16 -> 0
BF128: 127 | BG128: 6 | BH128: 7 | BI128: ='HourGH-APR'!I16 -> 0 | BJ128: 127 | BK128: 6 | BL128: 7 | BM128: ='HourGH-MAY'!I16 -> 0 | BN128: 127 | BO128: 6 | BP128: 7 | BQ128: ='HourGH-JUN'!I16 -> 0 | BR128: 127 | BS128: 6 | BT128: 7 | BU128: ='HourGH-JUL'!I16 -> 0 | BV128: 127 | BW128: 6 | BX128: 7 | BY128: ='HourGH-AUG'!I16 -> 0 | BZ128: 127 | CA128: 6 | CB128: 7 | CC128: ='HourGH-SEP'!I16 -> 0 | CD128: 127 | CE128: 6 | CF128: 7 | CG128: ='HourGH-OCT'!I16 -> 0 | CH128: 127 | CI128: 6 | CJ128: 7 | CK128: ='HourGH-NOV'!I16 -> 0 | CL128: 127 | CM128: 6 | CN128: 7 | CO128: ='HourGH-DEC'!I16 -> 0 | CP128: 127 | CQ128: 6 | CR128: 7 | CS128: ='HourGH-JAN'!I16 -> 0 | CT128: 127 | CU128: 6 | CV128: 7 | CW128: ='HourGH-FEB'!I16 -> 0 | CX128: 127 | CY128: 6 | CZ128: 7 | DA128: ='HourGH-MAR'!I16 -> 0
BF129: 128 | BG129: 6 | BH129: 8 | BI129: ='HourGH-APR'!J16 -> 0 | BJ129: 128 | BK129: 6 | BL129: 8 | BM129: ='HourGH-MAY'!J16 -> 0 | BN129: 128 | BO129: 6 | BP129: 8 | BQ129: ='HourGH-JUN'!J16 -> 0 | BR129: 128 | BS129: 6 | BT129: 8 | BU129: ='HourGH-JUL'!J16 -> 0 | BV129: 128 | BW129: 6 | BX129: 8 | BY129: ='HourGH-AUG'!J16 -> 0 | BZ129: 128 | CA129: 6 | CB129: 8 | CC129: ='HourGH-SEP'!J16 -> 0 | CD129: 128 | CE129: 6 | CF129: 8 | CG129: ='HourGH-OCT'!J16 -> 0 | CH129: 128 | CI129: 6 | CJ129: 8 | CK129: ='HourGH-NOV'!J16 -> 0 | CL129: 128 | CM129: 6 | CN129: 8 | CO129: ='HourGH-DEC'!J16 -> 0 | CP129: 128 | CQ129: 6 | CR129: 8 | CS129: ='HourGH-JAN'!J16 -> 0 | CT129: 128 | CU129: 6 | CV129: 8 | CW129: ='HourGH-FEB'!J16 -> 0 | CX129: 128 | CY129: 6 | CZ129: 8 | DA129: ='HourGH-MAR'!J16 -> 0
BF130: 129 | BG130: 6 | BH130: 9 | BI130: ='HourGH-APR'!K16 -> 0.35 | BJ130: 129 | BK130: 6 | BL130: 9 | BM130: ='HourGH-MAY'!K16 -> 0.39 | BN130: 129 | BO130: 6 | BP130: 9 | BQ130: ='HourGH-JUN'!K16 -> 0.37 | BR130: 129 | BS130: 6 | BT130: 9 | BU130: ='HourGH-JUL'!K16 -> 0.38 | BV130: 129 | BW130: 6 | BX130: 9 | BY130: ='HourGH-AUG'!K16 -> 1.17 | BZ130: 129 | CA130: 6 | CB130: 9 | CC130: ='HourGH-SEP'!K16 -> 0 | CD130: 129 | CE130: 6 | CF130: 9 | CG130: ='HourGH-OCT'!K16 -> 0 | CH130: 129 | CI130: 6 | CJ130: 9 | CK130: ='HourGH-NOV'!K16 -> 0 | CL130: 129 | CM130: 6 | CN130: 9 | CO130: ='HourGH-DEC'!K16 -> 0 | CP130: 129 | CQ130: 6 | CR130: 9 | CS130: ='HourGH-JAN'!K16 -> 0 | CT130: 129 | CU130: 6 | CV130: 9 | CW130: ='HourGH-FEB'!K16 -> 0 | CX130: 129 | CY130: 6 | CZ130: 9 | DA130: ='HourGH-MAR'!K16 -> 0
BF131: 130 | BG131: 6 | BH131: 10 | BI131: ='HourGH-APR'!L16 -> 0 | BJ131: 130 | BK131: 6 | BL131: 10 | BM131: ='HourGH-MAY'!L16 -> 0 | BN131: 130 | BO131: 6 | BP131: 10 | BQ131: ='HourGH-JUN'!L16 -> 0 | BR131: 130 | BS131: 6 | BT131: 10 | BU131: ='HourGH-JUL'!L16 -> 0 | BV131: 130 | BW131: 6 | BX131: 10 | BY131: ='HourGH-AUG'!L16 -> 0 | BZ131: 130 | CA131: 6 | CB131: 10 | CC131: ='HourGH-SEP'!L16 -> 0 | CD131: 130 | CE131: 6 | CF131: 10 | CG131: ='HourGH-OCT'!L16 -> 0 | CH131: 130 | CI131: 6 | CJ131: 10 | CK131: ='HourGH-NOV'!L16 -> 0 | CL131: 130 | CM131: 6 | CN131: 10 | CO131: ='HourGH-DEC'!L16 -> 0 | CP131: 130 | CQ131: 6 | CR131: 10 | CS131: ='HourGH-JAN'!L16 -> 0 | CT131: 130 | CU131: 6 | CV131: 10 | CW131: ='HourGH-FEB'!L16 -> 0 | CX131: 130 | CY131: 6 | CZ131: 10 | DA131: ='HourGH-MAR'!L16 -> 0
BF132: 131 | BG132: 6 | BH132: 11 | BI132: ='HourGH-APR'!M16 -> 0 | BJ132: 131 | BK132: 6 | BL132: 11 | BM132: ='HourGH-MAY'!M16 -> 0 | BN132: 131 | BO132: 6 | BP132: 11 | BQ132: ='HourGH-JUN'!M16 -> 0 | BR132: 131 | BS132: 6 | BT132: 11 | BU132: ='HourGH-JUL'!M16 -> 0 | BV132: 131 | BW132: 6 | BX132: 11 | BY132: ='HourGH-AUG'!M16 -> 0 | BZ132: 131 | CA132: 6 | CB132: 11 | CC132: ='HourGH-SEP'!M16 -> 0 | CD132: 131 | CE132: 6 | CF132: 11 | CG132: ='HourGH-OCT'!M16 -> 0 | CH132: 131 | CI132: 6 | CJ132: 11 | CK132: ='HourGH-NOV'!M16 -> 0 | CL132: 131 | CM132: 6 | CN132: 11 | CO132: ='HourGH-DEC'!M16 -> 0 | CP132: 131 | CQ132: 6 | CR132: 11 | CS132: ='HourGH-JAN'!M16 -> 0 | CT132: 131 | CU132: 6 | CV132: 11 | CW132: ='HourGH-FEB'!M16 -> 0 | CX132: 131 | CY132: 6 | CZ132: 11 | DA132: ='HourGH-MAR'!M16 -> 0
BF133: 132 | BG133: 6 | BH133: 12 | BI133: ='HourGH-APR'!N16 -> 0.35 | BJ133: 132 | BK133: 6 | BL133: 12 | BM133: ='HourGH-MAY'!N16 -> 0.39 | BN133: 132 | BO133: 6 | BP133: 12 | BQ133: ='HourGH-JUN'!N16 -> 0.37 | BR133: 132 | BS133: 6 | BT133: 12 | BU133: ='HourGH-JUL'!N16 -> 0.38 | BV133: 132 | BW133: 6 | BX133: 12 | BY133: ='HourGH-AUG'!N16 -> 1.2 | BZ133: 132 | CA133: 6 | CB133: 12 | CC133: ='HourGH-SEP'!N16 -> 0 | CD133: 132 | CE133: 6 | CF133: 12 | CG133: ='HourGH-OCT'!N16 -> 0 | CH133: 132 | CI133: 6 | CJ133: 12 | CK133: ='HourGH-NOV'!N16 -> 0 | CL133: 132 | CM133: 6 | CN133: 12 | CO133: ='HourGH-DEC'!N16 -> 0 | CP133: 132 | CQ133: 6 | CR133: 12 | CS133: ='HourGH-JAN'!N16 -> 0 | CT133: 132 | CU133: 6 | CV133: 12 | CW133: ='HourGH-FEB'!N16 -> 0 | CX133: 132 | CY133: 6 | CZ133: 12 | DA133: ='HourGH-MAR'!N16 -> 0
BF134: 133 | BG134: 6 | BH134: 13 | BI134: ='HourGH-APR'!O16 -> 0 | BJ134: 133 | BK134: 6 | BL134: 13 | BM134: ='HourGH-MAY'!O16 -> 0 | BN134: 133 | BO134: 6 | BP134: 13 | BQ134: ='HourGH-JUN'!O16 -> 0 | BR134: 133 | BS134: 6 | BT134: 13 | BU134: ='HourGH-JUL'!O16 -> 0 | BV134: 133 | BW134: 6 | BX134: 13 | BY134: ='HourGH-AUG'!O16 -> 0 | BZ134: 133 | CA134: 6 | CB134: 13 | CC134: ='HourGH-SEP'!O16 -> 0 | CD134: 133 | CE134: 6 | CF134: 13 | CG134: ='HourGH-OCT'!O16 -> 0 | CH134: 133 | CI134: 6 | CJ134: 13 | CK134: ='HourGH-NOV'!O16 -> 0 | CL134: 133 | CM134: 6 | CN134: 13 | CO134: ='HourGH-DEC'!O16 -> 0 | CP134: 133 | CQ134: 6 | CR134: 13 | CS134: ='HourGH-JAN'!O16 -> 0 | CT134: 133 | CU134: 6 | CV134: 13 | CW134: ='HourGH-FEB'!O16 -> 0 | CX134: 133 | CY134: 6 | CZ134: 13 | DA134: ='HourGH-MAR'!O16 -> 0
BF135: 134 | BG135: 6 | BH135: 14 | BI135: ='HourGH-APR'!P16 -> 0 | BJ135: 134 | BK135: 6 | BL135: 14 | BM135: ='HourGH-MAY'!P16 -> 0 | BN135: 134 | BO135: 6 | BP135: 14 | BQ135: ='HourGH-JUN'!P16 -> 0 | BR135: 134 | BS135: 6 | BT135: 14 | BU135: ='HourGH-JUL'!P16 -> 0 | BV135: 134 | BW135: 6 | BX135: 14 | BY135: ='HourGH-AUG'!P16 -> 0 | BZ135: 134 | CA135: 6 | CB135: 14 | CC135: ='HourGH-SEP'!P16 -> 0 | CD135: 134 | CE135: 6 | CF135: 14 | CG135: ='HourGH-OCT'!P16 -> 0 | CH135: 134 | CI135: 6 | CJ135: 14 | CK135: ='HourGH-NOV'!P16 -> 0 | CL135: 134 | CM135: 6 | CN135: 14 | CO135: ='HourGH-DEC'!P16 -> 0 | CP135: 134 | CQ135: 6 | CR135: 14 | CS135: ='HourGH-JAN'!P16 -> 0 | CT135: 134 | CU135: 6 | CV135: 14 | CW135: ='HourGH-FEB'!P16 -> 0 | CX135: 134 | CY135: 6 | CZ135: 14 | DA135: ='HourGH-MAR'!P16 -> 0
BF136: 135 | BG136: 6 | BH136: 15 | BI136: ='HourGH-APR'!Q16 -> 0.35 | BJ136: 135 | BK136: 6 | BL136: 15 | BM136: ='HourGH-MAY'!Q16 -> 0.39 | BN136: 135 | BO136: 6 | BP136: 15 | BQ136: ='HourGH-JUN'!Q16 -> 0.37 | BR136: 135 | BS136: 6 | BT136: 15 | BU136: ='HourGH-JUL'!Q16 -> 0.38 | BV136: 135 | BW136: 6 | BX136: 15 | BY136: ='HourGH-AUG'!Q16 -> 1.25 | BZ136: 135 | CA136: 6 | CB136: 15 | CC136: ='HourGH-SEP'!Q16 -> 0 | CD136: 135 | CE136: 6 | CF136: 15 | CG136: ='HourGH-OCT'!Q16 -> 0 | CH136: 135 | CI136: 6 | CJ136: 15 | CK136: ='HourGH-NOV'!Q16 -> 0 | CL136: 135 | CM136: 6 | CN136: 15 | CO136: ='HourGH-DEC'!Q16 -> 0 | CP136: 135 | CQ136: 6 | CR136: 15 | CS136: ='HourGH-JAN'!Q16 -> 0 | CT136: 135 | CU136: 6 | CV136: 15 | CW136: ='HourGH-FEB'!Q16 -> 0 | CX136: 135 | CY136: 6 | CZ136: 15 | DA136: ='HourGH-MAR'!Q16 -> 0
BF137: 136 | BG137: 6 | BH137: 16 | BI137: ='HourGH-APR'!R16 -> 0 | BJ137: 136 | BK137: 6 | BL137: 16 | BM137: ='HourGH-MAY'!R16 -> 0 | BN137: 136 | BO137: 6 | BP137: 16 | BQ137: ='HourGH-JUN'!R16 -> 0 | BR137: 136 | BS137: 6 | BT137: 16 | BU137: ='HourGH-JUL'!R16 -> 0 | BV137: 136 | BW137: 6 | BX137: 16 | BY137: ='HourGH-AUG'!R16 -> 0 | BZ137: 136 | CA137: 6 | CB137: 16 | CC137: ='HourGH-SEP'!R16 -> 0 | CD137: 136 | CE137: 6 | CF137: 16 | CG137: ='HourGH-OCT'!R16 -> 0 | CH137: 136 | CI137: 6 | CJ137: 16 | CK137: ='HourGH-NOV'!R16 -> 0 | CL137: 136 | CM137: 6 | CN137: 16 | CO137: ='HourGH-DEC'!R16 -> 0 | CP137: 136 | CQ137: 6 | CR137: 16 | CS137: ='HourGH-JAN'!R16 -> 0 | CT137: 136 | CU137: 6 | CV137: 16 | CW137: ='HourGH-FEB'!R16 -> 0 | CX137: 136 | CY137: 6 | CZ137: 16 | DA137: ='HourGH-MAR'!R16 -> 0
BF138: 137 | BG138: 6 | BH138: 17 | BI138: ='HourGH-APR'!S16 -> 0 | BJ138: 137 | BK138: 6 | BL138: 17 | BM138: ='HourGH-MAY'!S16 -> 0 | BN138: 137 | BO138: 6 | BP138: 17 | BQ138: ='HourGH-JUN'!S16 -> 0 | BR138: 137 | BS138: 6 | BT138: 17 | BU138: ='HourGH-JUL'!S16 -> 0 | BV138: 137 | BW138: 6 | BX138: 17 | BY138: ='HourGH-AUG'!S16 -> 0 | BZ138: 137 | CA138: 6 | CB138: 17 | CC138: ='HourGH-SEP'!S16 -> 0 | CD138: 137 | CE138: 6 | CF138: 17 | CG138: ='HourGH-OCT'!S16 -> 0 | CH138: 137 | CI138: 6 | CJ138: 17 | CK138: ='HourGH-NOV'!S16 -> 0 | CL138: 137 | CM138: 6 | CN138: 17 | CO138: ='HourGH-DEC'!S16 -> 0 | CP138: 137 | CQ138: 6 | CR138: 17 | CS138: ='HourGH-JAN'!S16 -> 0 | CT138: 137 | CU138: 6 | CV138: 17 | CW138: ='HourGH-FEB'!S16 -> 0 | CX138: 137 | CY138: 6 | CZ138: 17 | DA138: ='HourGH-MAR'!S16 -> 0
BF139: 138 | BG139: 6 | BH139: 18 | BI139: ='HourGH-APR'!T16 -> 0.35 | BJ139: 138 | BK139: 6 | BL139: 18 | BM139: ='HourGH-MAY'!T16 -> 0.39 | BN139: 138 | BO139: 6 | BP139: 18 | BQ139: ='HourGH-JUN'!T16 -> 0.37 | BR139: 138 | BS139: 6 | BT139: 18 | BU139: ='HourGH-JUL'!T16 -> 0.38 | BV139: 138 | BW139: 6 | BX139: 18 | BY139: ='HourGH-AUG'!T16 -> 1.25 | BZ139: 138 | CA139: 6 | CB139: 18 | CC139: ='HourGH-SEP'!T16 -> 0 | CD139: 138 | CE139: 6 | CF139: 18 | CG139: ='HourGH-OCT'!T16 -> 0 | CH139: 138 | CI139: 6 | CJ139: 18 | CK139: ='HourGH-NOV'!T16 -> 0 | CL139: 138 | CM139: 6 | CN139: 18 | CO139: ='HourGH-DEC'!T16 -> 0 | CP139: 138 | CQ139: 6 | CR139: 18 | CS139: ='HourGH-JAN'!T16 -> 0 | CT139: 138 | CU139: 6 | CV139: 18 | CW139: ='HourGH-FEB'!T16 -> 0 | CX139: 138 | CY139: 6 | CZ139: 18 | DA139: ='HourGH-MAR'!T16 -> 0
BF140: 139 | BG140: 6 | BH140: 19 | BI140: ='HourGH-APR'!U16 -> 0 | BJ140: 139 | BK140: 6 | BL140: 19 | BM140: ='HourGH-MAY'!U16 -> 0 | BN140: 139 | BO140: 6 | BP140: 19 | BQ140: ='HourGH-JUN'!U16 -> 0 | BR140: 139 | BS140: 6 | BT140: 19 | BU140: ='HourGH-JUL'!U16 -> 0 | BV140: 139 | BW140: 6 | BX140: 19 | BY140: ='HourGH-AUG'!U16 -> 0 | BZ140: 139 | CA140: 6 | CB140: 19 | CC140: ='HourGH-SEP'!U16 -> 0 | CD140: 139 | CE140: 6 | CF140: 19 | CG140: ='HourGH-OCT'!U16 -> 0 | CH140: 139 | CI140: 6 | CJ140: 19 | CK140: ='HourGH-NOV'!U16 -> 0 | CL140: 139 | CM140: 6 | CN140: 19 | CO140: ='HourGH-DEC'!U16 -> 0 | CP140: 139 | CQ140: 6 | CR140: 19 | CS140: ='HourGH-JAN'!U16 -> 0 | CT140: 139 | CU140: 6 | CV140: 19 | CW140: ='HourGH-FEB'!U16 -> 0 | CX140: 139 | CY140: 6 | CZ140: 19 | DA140: ='HourGH-MAR'!U16 -> 0
BF141: 140 | BG141: 6 | BH141: 20 | BI141: ='HourGH-APR'!V16 -> 0 | BJ141: 140 | BK141: 6 | BL141: 20 | BM141: ='HourGH-MAY'!V16 -> 0 | BN141: 140 | BO141: 6 | BP141: 20 | BQ141: ='HourGH-JUN'!V16 -> 0 | BR141: 140 | BS141: 6 | BT141: 20 | BU141: ='HourGH-JUL'!V16 -> 0 | BV141: 140 | BW141: 6 | BX141: 20 | BY141: ='HourGH-AUG'!V16 -> 0 | BZ141: 140 | CA141: 6 | CB141: 20 | CC141: ='HourGH-SEP'!V16 -> 0 | CD141: 140 | CE141: 6 | CF141: 20 | CG141: ='HourGH-OCT'!V16 -> 0 | CH141: 140 | CI141: 6 | CJ141: 20 | CK141: ='HourGH-NOV'!V16 -> 0 | CL141: 140 | CM141: 6 | CN141: 20 | CO141: ='HourGH-DEC'!V16 -> 0 | CP141: 140 | CQ141: 6 | CR141: 20 | CS141: ='HourGH-JAN'!V16 -> 0 | CT141: 140 | CU141: 6 | CV141: 20 | CW141: ='HourGH-FEB'!V16 -> 0 | CX141: 140 | CY141: 6 | CZ141: 20 | DA141: ='HourGH-MAR'!V16 -> 0
BF142: 141 | BG142: 6 | BH142: 21 | BI142: ='HourGH-APR'!W16 -> 0 | BJ142: 141 | BK142: 6 | BL142: 21 | BM142: ='HourGH-MAY'!W16 -> 0 | BN142: 141 | BO142: 6 | BP142: 21 | BQ142: ='HourGH-JUN'!W16 -> 0 | BR142: 141 | BS142: 6 | BT142: 21 | BU142: ='HourGH-JUL'!W16 -> 0 | BV142: 141 | BW142: 6 | BX142: 21 | BY142: ='HourGH-AUG'!W16 -> 0 | BZ142: 141 | CA142: 6 | CB142: 21 | CC142: ='HourGH-SEP'!W16 -> 0 | CD142: 141 | CE142: 6 | CF142: 21 | CG142: ='HourGH-OCT'!W16 -> 0 | CH142: 141 | CI142: 6 | CJ142: 21 | CK142: ='HourGH-NOV'!W16 -> 0 | CL142: 141 | CM142: 6 | CN142: 21 | CO142: ='HourGH-DEC'!W16 -> 0 | CP142: 141 | CQ142: 6 | CR142: 21 | CS142: ='HourGH-JAN'!W16 -> 0 | CT142: 141 | CU142: 6 | CV142: 21 | CW142: ='HourGH-FEB'!W16 -> 0 | CX142: 141 | CY142: 6 | CZ142: 21 | DA142: ='HourGH-MAR'!W16 -> 0
BF143: 142 | BG143: 6 | BH143: 22 | BI143: ='HourGH-APR'!X16 -> 0 | BJ143: 142 | BK143: 6 | BL143: 22 | BM143: ='HourGH-MAY'!X16 -> 0 | BN143: 142 | BO143: 6 | BP143: 22 | BQ143: ='HourGH-JUN'!X16 -> 0 | BR143: 142 | BS143: 6 | BT143: 22 | BU143: ='HourGH-JUL'!X16 -> 0 | BV143: 142 | BW143: 6 | BX143: 22 | BY143: ='HourGH-AUG'!X16 -> 0 | BZ143: 142 | CA143: 6 | CB143: 22 | CC143: ='HourGH-SEP'!X16 -> 0 | CD143: 142 | CE143: 6 | CF143: 22 | CG143: ='HourGH-OCT'!X16 -> 0 | CH143: 142 | CI143: 6 | CJ143: 22 | CK143: ='HourGH-NOV'!X16 -> 0 | CL143: 142 | CM143: 6 | CN143: 22 | CO143: ='HourGH-DEC'!X16 -> 0 | CP143: 142 | CQ143: 6 | CR143: 22 | CS143: ='HourGH-JAN'!X16 -> 0 | CT143: 142 | CU143: 6 | CV143: 22 | CW143: ='HourGH-FEB'!X16 -> 0 | CX143: 142 | CY143: 6 | CZ143: 22 | DA143: ='HourGH-MAR'!X16 -> 0
BF144: 143 | BG144: 6 | BH144: 23 | BI144: ='HourGH-APR'!Y16 -> 0 | BJ144: 143 | BK144: 6 | BL144: 23 | BM144: ='HourGH-MAY'!Y16 -> 0 | BN144: 143 | BO144: 6 | BP144: 23 | BQ144: ='HourGH-JUN'!Y16 -> 0 | BR144: 143 | BS144: 6 | BT144: 23 | BU144: ='HourGH-JUL'!Y16 -> 0 | BV144: 143 | BW144: 6 | BX144: 23 | BY144: ='HourGH-AUG'!Y16 -> 0 | BZ144: 143 | CA144: 6 | CB144: 23 | CC144: ='HourGH-SEP'!Y16 -> 0 | CD144: 143 | CE144: 6 | CF144: 23 | CG144: ='HourGH-OCT'!Y16 -> 0 | CH144: 143 | CI144: 6 | CJ144: 23 | CK144: ='HourGH-NOV'!Y16 -> 0 | CL144: 143 | CM144: 6 | CN144: 23 | CO144: ='HourGH-DEC'!Y16 -> 0 | CP144: 143 | CQ144: 6 | CR144: 23 | CS144: ='HourGH-JAN'!Y16 -> 0 | CT144: 143 | CU144: 6 | CV144: 23 | CW144: ='HourGH-FEB'!Y16 -> 0 | CX144: 143 | CY144: 6 | CZ144: 23 | DA144: ='HourGH-MAR'!Y16 -> 0
BF145: 144 | BG145: 6 | BH145: 24 | BI145: ='HourGH-APR'!Z16 -> 0 | BJ145: 144 | BK145: 6 | BL145: 24 | BM145: ='HourGH-MAY'!Z16 -> 0 | BN145: 144 | BO145: 6 | BP145: 24 | BQ145: ='HourGH-JUN'!Z16 -> 0 | BR145: 144 | BS145: 6 | BT145: 24 | BU145: ='HourGH-JUL'!Z16 -> 0 | BV145: 144 | BW145: 6 | BX145: 24 | BY145: ='HourGH-AUG'!Z16 -> 0 | BZ145: 144 | CA145: 6 | CB145: 24 | CC145: ='HourGH-SEP'!Z16 -> 0 | CD145: 144 | CE145: 6 | CF145: 24 | CG145: ='HourGH-OCT'!Z16 -> 0 | CH145: 144 | CI145: 6 | CJ145: 24 | CK145: ='HourGH-NOV'!Z16 -> 0 | CL145: 144 | CM145: 6 | CN145: 24 | CO145: ='HourGH-DEC'!Z16 -> 0 | CP145: 144 | CQ145: 6 | CR145: 24 | CS145: ='HourGH-JAN'!Z16 -> 0 | CT145: 144 | CU145: 6 | CV145: 24 | CW145: ='HourGH-FEB'!Z16 -> 0 | CX145: 144 | CY145: 6 | CZ145: 24 | DA145: ='HourGH-MAR'!Z16 -> 0
BF146: 145 | BG146: 7 | BH146: 1 | BI146: ='HourGH-APR'!C17 -> 0 | BJ146: 145 | BK146: 7 | BL146: 1 | BM146: ='HourGH-MAY'!C17 -> 0 | BN146: 145 | BO146: 7 | BP146: 1 | BQ146: ='HourGH-JUN'!C17 -> 0 | BR146: 145 | BS146: 7 | BT146: 1 | BU146: ='HourGH-JUL'!C17 -> 0 | BV146: 145 | BW146: 7 | BX146: 1 | BY146: ='HourGH-AUG'!C17 -> 0 | BZ146: 145 | CA146: 7 | CB146: 1 | CC146: ='HourGH-SEP'!C17 -> 0 | CD146: 145 | CE146: 7 | CF146: 1 | CG146: ='HourGH-OCT'!C17 -> 0 | CH146: 145 | CI146: 7 | CJ146: 1 | CK146: ='HourGH-NOV'!C17 -> 0 | CL146: 145 | CM146: 7 | CN146: 1 | CO146: ='HourGH-DEC'!C17 -> 0 | CP146: 145 | CQ146: 7 | CR146: 1 | CS146: ='HourGH-JAN'!C17 -> 0 | CT146: 145 | CU146: 7 | CV146: 1 | CW146: ='HourGH-FEB'!C17 -> 0 | CX146: 145 | CY146: 7 | CZ146: 1 | DA146: ='HourGH-MAR'!C17 -> 0
BF147: 146 | BG147: 7 | BH147: 2 | BI147: ='HourGH-APR'!D17 -> 0 | BJ147: 146 | BK147: 7 | BL147: 2 | BM147: ='HourGH-MAY'!D17 -> 0 | BN147: 146 | BO147: 7 | BP147: 2 | BQ147: ='HourGH-JUN'!D17 -> 0 | BR147: 146 | BS147: 7 | BT147: 2 | BU147: ='HourGH-JUL'!D17 -> 0 | BV147: 146 | BW147: 7 | BX147: 2 | BY147: ='HourGH-AUG'!D17 -> 0 | BZ147: 146 | CA147: 7 | CB147: 2 | CC147: ='HourGH-SEP'!D17 -> 0 | CD147: 146 | CE147: 7 | CF147: 2 | CG147: ='HourGH-OCT'!D17 -> 0 | CH147: 146 | CI147: 7 | CJ147: 2 | CK147: ='HourGH-NOV'!D17 -> 0 | CL147: 146 | CM147: 7 | CN147: 2 | CO147: ='HourGH-DEC'!D17 -> 0 | CP147: 146 | CQ147: 7 | CR147: 2 | CS147: ='HourGH-JAN'!D17 -> 0 | CT147: 146 | CU147: 7 | CV147: 2 | CW147: ='HourGH-FEB'!D17 -> 0 | CX147: 146 | CY147: 7 | CZ147: 2 | DA147: ='HourGH-MAR'!D17 -> 0
BF148: 147 | BG148: 7 | BH148: 3 | BI148: ='HourGH-APR'!E17 -> 0 | BJ148: 147 | BK148: 7 | BL148: 3 | BM148: ='HourGH-MAY'!E17 -> 0 | BN148: 147 | BO148: 7 | BP148: 3 | BQ148: ='HourGH-JUN'!E17 -> 0 | BR148: 147 | BS148: 7 | BT148: 3 | BU148: ='HourGH-JUL'!E17 -> 0 | BV148: 147 | BW148: 7 | BX148: 3 | BY148: ='HourGH-AUG'!E17 -> 0 | BZ148: 147 | CA148: 7 | CB148: 3 | CC148: ='HourGH-SEP'!E17 -> 0 | CD148: 147 | CE148: 7 | CF148: 3 | CG148: ='HourGH-OCT'!E17 -> 0 | CH148: 147 | CI148: 7 | CJ148: 3 | CK148: ='HourGH-NOV'!E17 -> 0 | CL148: 147 | CM148: 7 | CN148: 3 | CO148: ='HourGH-DEC'!E17 -> 0 | CP148: 147 | CQ148: 7 | CR148: 3 | CS148: ='HourGH-JAN'!E17 -> 0 | CT148: 147 | CU148: 7 | CV148: 3 | CW148: ='HourGH-FEB'!E17 -> 0 | CX148: 147 | CY148: 7 | CZ148: 3 | DA148: ='HourGH-MAR'!E17 -> 0
BF149: 148 | BG149: 7 | BH149: 4 | BI149: ='HourGH-APR'!F17 -> 0 | BJ149: 148 | BK149: 7 | BL149: 4 | BM149: ='HourGH-MAY'!F17 -> 0 | BN149: 148 | BO149: 7 | BP149: 4 | BQ149: ='HourGH-JUN'!F17 -> 0 | BR149: 148 | BS149: 7 | BT149: 4 | BU149: ='HourGH-JUL'!F17 -> 0 | BV149: 148 | BW149: 7 | BX149: 4 | BY149: ='HourGH-AUG'!F17 -> 0 | BZ149: 148 | CA149: 7 | CB149: 4 | CC149: ='HourGH-SEP'!F17 -> 0 | CD149: 148 | CE149: 7 | CF149: 4 | CG149: ='HourGH-OCT'!F17 -> 0 | CH149: 148 | CI149: 7 | CJ149: 4 | CK149: ='HourGH-NOV'!F17 -> 0 | CL149: 148 | CM149: 7 | CN149: 4 | CO149: ='HourGH-DEC'!F17 -> 0 | CP149: 148 | CQ149: 7 | CR149: 4 | CS149: ='HourGH-JAN'!F17 -> 0 | CT149: 148 | CU149: 7 | CV149: 4 | CW149: ='HourGH-FEB'!F17 -> 0 | CX149: 148 | CY149: 7 | CZ149: 4 | DA149: ='HourGH-MAR'!F17 -> 0
BF150: 149 | BG150: 7 | BH150: 5 | BI150: ='HourGH-APR'!G17 -> 0 | BJ150: 149 | BK150: 7 | BL150: 5 | BM150: ='HourGH-MAY'!G17 -> 0 | BN150: 149 | BO150: 7 | BP150: 5 | BQ150: ='HourGH-JUN'!G17 -> 0 | BR150: 149 | BS150: 7 | BT150: 5 | BU150: ='HourGH-JUL'!G17 -> 0 | BV150: 149 | BW150: 7 | BX150: 5 | BY150: ='HourGH-AUG'!G17 -> 0 | BZ150: 149 | CA150: 7 | CB150: 5 | CC150: ='HourGH-SEP'!G17 -> 0 | CD150: 149 | CE150: 7 | CF150: 5 | CG150: ='HourGH-OCT'!G17 -> 0 | CH150: 149 | CI150: 7 | CJ150: 5 | CK150: ='HourGH-NOV'!G17 -> 0 | CL150: 149 | CM150: 7 | CN150: 5 | CO150: ='HourGH-DEC'!G17 -> 0 | CP150: 149 | CQ150: 7 | CR150: 5 | CS150: ='HourGH-JAN'!G17 -> 0 | CT150: 149 | CU150: 7 | CV150: 5 | CW150: ='HourGH-FEB'!G17 -> 0 | CX150: 149 | CY150: 7 | CZ150: 5 | DA150: ='HourGH-MAR'!G17 -> 0
BF151: 150 | BG151: 7 | BH151: 6 | BI151: ='HourGH-APR'!H17 -> 0.35 | BJ151: 150 | BK151: 7 | BL151: 6 | BM151: ='HourGH-MAY'!H17 -> 0.36 | BN151: 150 | BO151: 7 | BP151: 6 | BQ151: ='HourGH-JUN'!H17 -> 0.48 | BR151: 150 | BS151: 7 | BT151: 6 | BU151: ='HourGH-JUL'!H17 -> 0.36 | BV151: 150 | BW151: 7 | BX151: 6 | BY151: ='HourGH-AUG'!H17 -> 1.16 | BZ151: 150 | CA151: 7 | CB151: 6 | CC151: ='HourGH-SEP'!H17 -> 0 | CD151: 150 | CE151: 7 | CF151: 6 | CG151: ='HourGH-OCT'!H17 -> 0 | CH151: 150 | CI151: 7 | CJ151: 6 | CK151: ='HourGH-NOV'!H17 -> 0 | CL151: 150 | CM151: 7 | CN151: 6 | CO151: ='HourGH-DEC'!H17 -> 0 | CP151: 150 | CQ151: 7 | CR151: 6 | CS151: ='HourGH-JAN'!H17 -> 0 | CT151: 150 | CU151: 7 | CV151: 6 | CW151: ='HourGH-FEB'!H17 -> 0 | CX151: 150 | CY151: 7 | CZ151: 6 | DA151: ='HourGH-MAR'!H17 -> 0
BF152: 151 | BG152: 7 | BH152: 7 | BI152: ='HourGH-APR'!I17 -> 0 | BJ152: 151 | BK152: 7 | BL152: 7 | BM152: ='HourGH-MAY'!I17 -> 0 | BN152: 151 | BO152: 7 | BP152: 7 | BQ152: ='HourGH-JUN'!I17 -> 0 | BR152: 151 | BS152: 7 | BT152: 7 | BU152: ='HourGH-JUL'!I17 -> 0 | BV152: 151 | BW152: 7 | BX152: 7 | BY152: ='HourGH-AUG'!I17 -> 0 | BZ152: 151 | CA152: 7 | CB152: 7 | CC152: ='HourGH-SEP'!I17 -> 0 | CD152: 151 | CE152: 7 | CF152: 7 | CG152: ='HourGH-OCT'!I17 -> 0 | CH152: 151 | CI152: 7 | CJ152: 7 | CK152: ='HourGH-NOV'!I17 -> 0 | CL152: 151 | CM152: 7 | CN152: 7 | CO152: ='HourGH-DEC'!I17 -> 0 | CP152: 151 | CQ152: 7 | CR152: 7 | CS152: ='HourGH-JAN'!I17 -> 0 | CT152: 151 | CU152: 7 | CV152: 7 | CW152: ='HourGH-FEB'!I17 -> 0 | CX152: 151 | CY152: 7 | CZ152: 7 | DA152: ='HourGH-MAR'!I17 -> 0
BF153: 152 | BG153: 7 | BH153: 8 | BI153: ='HourGH-APR'!J17 -> 0 | BJ153: 152 | BK153: 7 | BL153: 8 | BM153: ='HourGH-MAY'!J17 -> 0 | BN153: 152 | BO153: 7 | BP153: 8 | BQ153: ='HourGH-JUN'!J17 -> 0 | BR153: 152 | BS153: 7 | BT153: 8 | BU153: ='HourGH-JUL'!J17 -> 0 | BV153: 152 | BW153: 7 | BX153: 8 | BY153: ='HourGH-AUG'!J17 -> 0 | BZ153: 152 | CA153: 7 | CB153: 8 | CC153: ='HourGH-SEP'!J17 -> 0 | CD153: 152 | CE153: 7 | CF153: 8 | CG153: ='HourGH-OCT'!J17 -> 0 | CH153: 152 | CI153: 7 | CJ153: 8 | CK153: ='HourGH-NOV'!J17 -> 0 | CL153: 152 | CM153: 7 | CN153: 8 | CO153: ='HourGH-DEC'!J17 -> 0 | CP153: 152 | CQ153: 7 | CR153: 8 | CS153: ='HourGH-JAN'!J17 -> 0 | CT153: 152 | CU153: 7 | CV153: 8 | CW153: ='HourGH-FEB'!J17 -> 0 | CX153: 152 | CY153: 7 | CZ153: 8 | DA153: ='HourGH-MAR'!J17 -> 0
BF154: 153 | BG154: 7 | BH154: 9 | BI154: ='HourGH-APR'!K17 -> 0.35 | BJ154: 153 | BK154: 7 | BL154: 9 | BM154: ='HourGH-MAY'!K17 -> 0.36 | BN154: 153 | BO154: 7 | BP154: 9 | BQ154: ='HourGH-JUN'!K17 -> 0.48 | BR154: 153 | BS154: 7 | BT154: 9 | BU154: ='HourGH-JUL'!K17 -> 0.36 | BV154: 153 | BW154: 7 | BX154: 9 | BY154: ='HourGH-AUG'!K17 -> 1.31 | BZ154: 153 | CA154: 7 | CB154: 9 | CC154: ='HourGH-SEP'!K17 -> 0 | CD154: 153 | CE154: 7 | CF154: 9 | CG154: ='HourGH-OCT'!K17 -> 0 | CH154: 153 | CI154: 7 | CJ154: 9 | CK154: ='HourGH-NOV'!K17 -> 0 | CL154: 153 | CM154: 7 | CN154: 9 | CO154: ='HourGH-DEC'!K17 -> 0 | CP154: 153 | CQ154: 7 | CR154: 9 | CS154: ='HourGH-JAN'!K17 -> 0 | CT154: 153 | CU154: 7 | CV154: 9 | CW154: ='HourGH-FEB'!K17 -> 0 | CX154: 153 | CY154: 7 | CZ154: 9 | DA154: ='HourGH-MAR'!K17 -> 0
BF155: 154 | BG155: 7 | BH155: 10 | BI155: ='HourGH-APR'!L17 -> 0 | BJ155: 154 | BK155: 7 | BL155: 10 | BM155: ='HourGH-MAY'!L17 -> 0 | BN155: 154 | BO155: 7 | BP155: 10 | BQ155: ='HourGH-JUN'!L17 -> 0 | BR155: 154 | BS155: 7 | BT155: 10 | BU155: ='HourGH-JUL'!L17 -> 0 | BV155: 154 | BW155: 7 | BX155: 10 | BY155: ='HourGH-AUG'!L17 -> 0 | BZ155: 154 | CA155: 7 | CB155: 10 | CC155: ='HourGH-SEP'!L17 -> 0 | CD155: 154 | CE155: 7 | CF155: 10 | CG155: ='HourGH-OCT'!L17 -> 0 | CH155: 154 | CI155: 7 | CJ155: 10 | CK155: ='HourGH-NOV'!L17 -> 0 | CL155: 154 | CM155: 7 | CN155: 10 | CO155: ='HourGH-DEC'!L17 -> 0 | CP155: 154 | CQ155: 7 | CR155: 10 | CS155: ='HourGH-JAN'!L17 -> 0 | CT155: 154 | CU155: 7 | CV155: 10 | CW155: ='HourGH-FEB'!L17 -> 0 | CX155: 154 | CY155: 7 | CZ155: 10 | DA155: ='HourGH-MAR'!L17 -> 0
BF156: 155 | BG156: 7 | BH156: 11 | BI156: ='HourGH-APR'!M17 -> 0 | BJ156: 155 | BK156: 7 | BL156: 11 | BM156: ='HourGH-MAY'!M17 -> 0 | BN156: 155 | BO156: 7 | BP156: 11 | BQ156: ='HourGH-JUN'!M17 -> 0 | BR156: 155 | BS156: 7 | BT156: 11 | BU156: ='HourGH-JUL'!M17 -> 0 | BV156: 155 | BW156: 7 | BX156: 11 | BY156: ='HourGH-AUG'!M17 -> 0 | BZ156: 155 | CA156: 7 | CB156: 11 | CC156: ='HourGH-SEP'!M17 -> 0 | CD156: 155 | CE156: 7 | CF156: 11 | CG156: ='HourGH-OCT'!M17 -> 0 | CH156: 155 | CI156: 7 | CJ156: 11 | CK156: ='HourGH-NOV'!M17 -> 0 | CL156: 155 | CM156: 7 | CN156: 11 | CO156: ='HourGH-DEC'!M17 -> 0 | CP156: 155 | CQ156: 7 | CR156: 11 | CS156: ='HourGH-JAN'!M17 -> 0 | CT156: 155 | CU156: 7 | CV156: 11 | CW156: ='HourGH-FEB'!M17 -> 0 | CX156: 155 | CY156: 7 | CZ156: 11 | DA156: ='HourGH-MAR'!M17 -> 0
BF157: 156 | BG157: 7 | BH157: 12 | BI157: ='HourGH-APR'!N17 -> 0.35 | BJ157: 156 | BK157: 7 | BL157: 12 | BM157: ='HourGH-MAY'!N17 -> 0.36 | BN157: 156 | BO157: 7 | BP157: 12 | BQ157: ='HourGH-JUN'!N17 -> 0.48 | BR157: 156 | BS157: 7 | BT157: 12 | BU157: ='HourGH-JUL'!N17 -> 0.36 | BV157: 156 | BW157: 7 | BX157: 12 | BY157: ='HourGH-AUG'!N17 -> 1.5 | BZ157: 156 | CA157: 7 | CB157: 12 | CC157: ='HourGH-SEP'!N17 -> 0 | CD157: 156 | CE157: 7 | CF157: 12 | CG157: ='HourGH-OCT'!N17 -> 0 | CH157: 156 | CI157: 7 | CJ157: 12 | CK157: ='HourGH-NOV'!N17 -> 0 | CL157: 156 | CM157: 7 | CN157: 12 | CO157: ='HourGH-DEC'!N17 -> 0 | CP157: 156 | CQ157: 7 | CR157: 12 | CS157: ='HourGH-JAN'!N17 -> 0 | CT157: 156 | CU157: 7 | CV157: 12 | CW157: ='HourGH-FEB'!N17 -> 0 | CX157: 156 | CY157: 7 | CZ157: 12 | DA157: ='HourGH-MAR'!N17 -> 0
BF158: 157 | BG158: 7 | BH158: 13 | BI158: ='HourGH-APR'!O17 -> 0 | BJ158: 157 | BK158: 7 | BL158: 13 | BM158: ='HourGH-MAY'!O17 -> 0 | BN158: 157 | BO158: 7 | BP158: 13 | BQ158: ='HourGH-JUN'!O17 -> 0 | BR158: 157 | BS158: 7 | BT158: 13 | BU158: ='HourGH-JUL'!O17 -> 0 | BV158: 157 | BW158: 7 | BX158: 13 | BY158: ='HourGH-AUG'!O17 -> 0 | BZ158: 157 | CA158: 7 | CB158: 13 | CC158: ='HourGH-SEP'!O17 -> 0 | CD158: 157 | CE158: 7 | CF158: 13 | CG158: ='HourGH-OCT'!O17 -> 0 | CH158: 157 | CI158: 7 | CJ158: 13 | CK158: ='HourGH-NOV'!O17 -> 0 | CL158: 157 | CM158: 7 | CN158: 13 | CO158: ='HourGH-DEC'!O17 -> 0 | CP158: 157 | CQ158: 7 | CR158: 13 | CS158: ='HourGH-JAN'!O17 -> 0 | CT158: 157 | CU158: 7 | CV158: 13 | CW158: ='HourGH-FEB'!O17 -> 0 | CX158: 157 | CY158: 7 | CZ158: 13 | DA158: ='HourGH-MAR'!O17 -> 0
BF159: 158 | BG159: 7 | BH159: 14 | BI159: ='HourGH-APR'!P17 -> 0 | BJ159: 158 | BK159: 7 | BL159: 14 | BM159: ='HourGH-MAY'!P17 -> 0 | BN159: 158 | BO159: 7 | BP159: 14 | BQ159: ='HourGH-JUN'!P17 -> 0 | BR159: 158 | BS159: 7 | BT159: 14 | BU159: ='HourGH-JUL'!P17 -> 0 | BV159: 158 | BW159: 7 | BX159: 14 | BY159: ='HourGH-AUG'!P17 -> 0 | BZ159: 158 | CA159: 7 | CB159: 14 | CC159: ='HourGH-SEP'!P17 -> 0 | CD159: 158 | CE159: 7 | CF159: 14 | CG159: ='HourGH-OCT'!P17 -> 0 | CH159: 158 | CI159: 7 | CJ159: 14 | CK159: ='HourGH-NOV'!P17 -> 0 | CL159: 158 | CM159: 7 | CN159: 14 | CO159: ='HourGH-DEC'!P17 -> 0 | CP159: 158 | CQ159: 7 | CR159: 14 | CS159: ='HourGH-JAN'!P17 -> 0 | CT159: 158 | CU159: 7 | CV159: 14 | CW159: ='HourGH-FEB'!P17 -> 0 | CX159: 158 | CY159: 7 | CZ159: 14 | DA159: ='HourGH-MAR'!P17 -> 0
BF160: 159 | BG160: 7 | BH160: 15 | BI160: ='HourGH-APR'!Q17 -> 0.35 | BJ160: 159 | BK160: 7 | BL160: 15 | BM160: ='HourGH-MAY'!Q17 -> 0.36 | BN160: 159 | BO160: 7 | BP160: 15 | BQ160: ='HourGH-JUN'!Q17 -> 0.48 | BR160: 159 | BS160: 7 | BT160: 15 | BU160: ='HourGH-JUL'!Q17 -> 0.36 | BV160: 159 | BW160: 7 | BX160: 15 | BY160: ='HourGH-AUG'!Q17 -> 1.39 | BZ160: 159 | CA160: 7 | CB160: 15 | CC160: ='HourGH-SEP'!Q17 -> 0 | CD160: 159 | CE160: 7 | CF160: 15 | CG160: ='HourGH-OCT'!Q17 -> 0 | CH160: 159 | CI160: 7 | CJ160: 15 | CK160: ='HourGH-NOV'!Q17 -> 0 | CL160: 159 | CM160: 7 | CN160: 15 | CO160: ='HourGH-DEC'!Q17 -> 0 | CP160: 159 | CQ160: 7 | CR160: 15 | CS160: ='HourGH-JAN'!Q17 -> 0 | CT160: 159 | CU160: 7 | CV160: 15 | CW160: ='HourGH-FEB'!Q17 -> 0 | CX160: 159 | CY160: 7 | CZ160: 15 | DA160: ='HourGH-MAR'!Q17 -> 0
BF161: 160 | BG161: 7 | BH161: 16 | BI161: ='HourGH-APR'!R17 -> 0 | BJ161: 160 | BK161: 7 | BL161: 16 | BM161: ='HourGH-MAY'!R17 -> 0 | BN161: 160 | BO161: 7 | BP161: 16 | BQ161: ='HourGH-JUN'!R17 -> 0 | BR161: 160 | BS161: 7 | BT161: 16 | BU161: ='HourGH-JUL'!R17 -> 0 | BV161: 160 | BW161: 7 | BX161: 16 | BY161: ='HourGH-AUG'!R17 -> 0 | BZ161: 160 | CA161: 7 | CB161: 16 | CC161: ='HourGH-SEP'!R17 -> 0 | CD161: 160 | CE161: 7 | CF161: 16 | CG161: ='HourGH-OCT'!R17 -> 0 | CH161: 160 | CI161: 7 | CJ161: 16 | CK161: ='HourGH-NOV'!R17 -> 0 | CL161: 160 | CM161: 7 | CN161: 16 | CO161: ='HourGH-DEC'!R17 -> 0 | CP161: 160 | CQ161: 7 | CR161: 16 | CS161: ='HourGH-JAN'!R17 -> 0 | CT161: 160 | CU161: 7 | CV161: 16 | CW161: ='HourGH-FEB'!R17 -> 0 | CX161: 160 | CY161: 7 | CZ161: 16 | DA161: ='HourGH-MAR'!R17 -> 0
BF162: 161 | BG162: 7 | BH162: 17 | BI162: ='HourGH-APR'!S17 -> 0 | BJ162: 161 | BK162: 7 | BL162: 17 | BM162: ='HourGH-MAY'!S17 -> 0 | BN162: 161 | BO162: 7 | BP162: 17 | BQ162: ='HourGH-JUN'!S17 -> 0 | BR162: 161 | BS162: 7 | BT162: 17 | BU162: ='HourGH-JUL'!S17 -> 0 | BV162: 161 | BW162: 7 | BX162: 17 | BY162: ='HourGH-AUG'!S17 -> 0 | BZ162: 161 | CA162: 7 | CB162: 17 | CC162: ='HourGH-SEP'!S17 -> 0 | CD162: 161 | CE162: 7 | CF162: 17 | CG162: ='HourGH-OCT'!S17 -> 0 | CH162: 161 | CI162: 7 | CJ162: 17 | CK162: ='HourGH-NOV'!S17 -> 0 | CL162: 161 | CM162: 7 | CN162: 17 | CO162: ='HourGH-DEC'!S17 -> 0 | CP162: 161 | CQ162: 7 | CR162: 17 | CS162: ='HourGH-JAN'!S17 -> 0 | CT162: 161 | CU162: 7 | CV162: 17 | CW162: ='HourGH-FEB'!S17 -> 0 | CX162: 161 | CY162: 7 | CZ162: 17 | DA162: ='HourGH-MAR'!S17 -> 0
BF163: 162 | BG163: 7 | BH163: 18 | BI163: ='HourGH-APR'!T17 -> 0.35 | BJ163: 162 | BK163: 7 | BL163: 18 | BM163: ='HourGH-MAY'!T17 -> 0.36 | BN163: 162 | BO163: 7 | BP163: 18 | BQ163: ='HourGH-JUN'!T17 -> 0.48 | BR163: 162 | BS163: 7 | BT163: 18 | BU163: ='HourGH-JUL'!T17 -> 0.36 | BV163: 162 | BW163: 7 | BX163: 18 | BY163: ='HourGH-AUG'!T17 -> 1.32 | BZ163: 162 | CA163: 7 | CB163: 18 | CC163: ='HourGH-SEP'!T17 -> 0 | CD163: 162 | CE163: 7 | CF163: 18 | CG163: ='HourGH-OCT'!T17 -> 0 | CH163: 162 | CI163: 7 | CJ163: 18 | CK163: ='HourGH-NOV'!T17 -> 0 | CL163: 162 | CM163: 7 | CN163: 18 | CO163: ='HourGH-DEC'!T17 -> 0 | CP163: 162 | CQ163: 7 | CR163: 18 | CS163: ='HourGH-JAN'!T17 -> 0 | CT163: 162 | CU163: 7 | CV163: 18 | CW163: ='HourGH-FEB'!T17 -> 0 | CX163: 162 | CY163: 7 | CZ163: 18 | DA163: ='HourGH-MAR'!T17 -> 0
BF164: 163 | BG164: 7 | BH164: 19 | BI164: ='HourGH-APR'!U17 -> 0 | BJ164: 163 | BK164: 7 | BL164: 19 | BM164: ='HourGH-MAY'!U17 -> 0 | BN164: 163 | BO164: 7 | BP164: 19 | BQ164: ='HourGH-JUN'!U17 -> 0 | BR164: 163 | BS164: 7 | BT164: 19 | BU164: ='HourGH-JUL'!U17 -> 0 | BV164: 163 | BW164: 7 | BX164: 19 | BY164: ='HourGH-AUG'!U17 -> 0 | BZ164: 163 | CA164: 7 | CB164: 19 | CC164: ='HourGH-SEP'!U17 -> 0 | CD164: 163 | CE164: 7 | CF164: 19 | CG164: ='HourGH-OCT'!U17 -> 0 | CH164: 163 | CI164: 7 | CJ164: 19 | CK164: ='HourGH-NOV'!U17 -> 0 | CL164: 163 | CM164: 7 | CN164: 19 | CO164: ='HourGH-DEC'!U17 -> 0 | CP164: 163 | CQ164: 7 | CR164: 19 | CS164: ='HourGH-JAN'!U17 -> 0 | CT164: 163 | CU164: 7 | CV164: 19 | CW164: ='HourGH-FEB'!U17 -> 0 | CX164: 163 | CY164: 7 | CZ164: 19 | DA164: ='HourGH-MAR'!U17 -> 0
BF165: 164 | BG165: 7 | BH165: 20 | BI165: ='HourGH-APR'!V17 -> 0 | BJ165: 164 | BK165: 7 | BL165: 20 | BM165: ='HourGH-MAY'!V17 -> 0 | BN165: 164 | BO165: 7 | BP165: 20 | BQ165: ='HourGH-JUN'!V17 -> 0 | BR165: 164 | BS165: 7 | BT165: 20 | BU165: ='HourGH-JUL'!V17 -> 0 | BV165: 164 | BW165: 7 | BX165: 20 | BY165: ='HourGH-AUG'!V17 -> 0 | BZ165: 164 | CA165: 7 | CB165: 20 | CC165: ='HourGH-SEP'!V17 -> 0 | CD165: 164 | CE165: 7 | CF165: 20 | CG165: ='HourGH-OCT'!V17 -> 0 | CH165: 164 | CI165: 7 | CJ165: 20 | CK165: ='HourGH-NOV'!V17 -> 0 | CL165: 164 | CM165: 7 | CN165: 20 | CO165: ='HourGH-DEC'!V17 -> 0 | CP165: 164 | CQ165: 7 | CR165: 20 | CS165: ='HourGH-JAN'!V17 -> 0 | CT165: 164 | CU165: 7 | CV165: 20 | CW165: ='HourGH-FEB'!V17 -> 0 | CX165: 164 | CY165: 7 | CZ165: 20 | DA165: ='HourGH-MAR'!V17 -> 0
BF166: 165 | BG166: 7 | BH166: 21 | BI166: ='HourGH-APR'!W17 -> 0 | BJ166: 165 | BK166: 7 | BL166: 21 | BM166: ='HourGH-MAY'!W17 -> 0 | BN166: 165 | BO166: 7 | BP166: 21 | BQ166: ='HourGH-JUN'!W17 -> 0 | BR166: 165 | BS166: 7 | BT166: 21 | BU166: ='HourGH-JUL'!W17 -> 0 | BV166: 165 | BW166: 7 | BX166: 21 | BY166: ='HourGH-AUG'!W17 -> 0 | BZ166: 165 | CA166: 7 | CB166: 21 | CC166: ='HourGH-SEP'!W17 -> 0 | CD166: 165 | CE166: 7 | CF166: 21 | CG166: ='HourGH-OCT'!W17 -> 0 | CH166: 165 | CI166: 7 | CJ166: 21 | CK166: ='HourGH-NOV'!W17 -> 0 | CL166: 165 | CM166: 7 | CN166: 21 | CO166: ='HourGH-DEC'!W17 -> 0 | CP166: 165 | CQ166: 7 | CR166: 21 | CS166: ='HourGH-JAN'!W17 -> 0 | CT166: 165 | CU166: 7 | CV166: 21 | CW166: ='HourGH-FEB'!W17 -> 0 | CX166: 165 | CY166: 7 | CZ166: 21 | DA166: ='HourGH-MAR'!W17 -> 0
BF167: 166 | BG167: 7 | BH167: 22 | BI167: ='HourGH-APR'!X17 -> 0 | BJ167: 166 | BK167: 7 | BL167: 22 | BM167: ='HourGH-MAY'!X17 -> 0 | BN167: 166 | BO167: 7 | BP167: 22 | BQ167: ='HourGH-JUN'!X17 -> 0 | BR167: 166 | BS167: 7 | BT167: 22 | BU167: ='HourGH-JUL'!X17 -> 0 | BV167: 166 | BW167: 7 | BX167: 22 | BY167: ='HourGH-AUG'!X17 -> 0 | BZ167: 166 | CA167: 7 | CB167: 22 | CC167: ='HourGH-SEP'!X17 -> 0 | CD167: 166 | CE167: 7 | CF167: 22 | CG167: ='HourGH-OCT'!X17 -> 0 | CH167: 166 | CI167: 7 | CJ167: 22 | CK167: ='HourGH-NOV'!X17 -> 0 | CL167: 166 | CM167: 7 | CN167: 22 | CO167: ='HourGH-DEC'!X17 -> 0 | CP167: 166 | CQ167: 7 | CR167: 22 | CS167: ='HourGH-JAN'!X17 -> 0 | CT167: 166 | CU167: 7 | CV167: 22 | CW167: ='HourGH-FEB'!X17 -> 0 | CX167: 166 | CY167: 7 | CZ167: 22 | DA167: ='HourGH-MAR'!X17 -> 0
BF168: 167 | BG168: 7 | BH168: 23 | BI168: ='HourGH-APR'!Y17 -> 0 | BJ168: 167 | BK168: 7 | BL168: 23 | BM168: ='HourGH-MAY'!Y17 -> 0 | BN168: 167 | BO168: 7 | BP168: 23 | BQ168: ='HourGH-JUN'!Y17 -> 0 | BR168: 167 | BS168: 7 | BT168: 23 | BU168: ='HourGH-JUL'!Y17 -> 0 | BV168: 167 | BW168: 7 | BX168: 23 | BY168: ='HourGH-AUG'!Y17 -> 0 | BZ168: 167 | CA168: 7 | CB168: 23 | CC168: ='HourGH-SEP'!Y17 -> 0 | CD168: 167 | CE168: 7 | CF168: 23 | CG168: ='HourGH-OCT'!Y17 -> 0 | CH168: 167 | CI168: 7 | CJ168: 23 | CK168: ='HourGH-NOV'!Y17 -> 0 | CL168: 167 | CM168: 7 | CN168: 23 | CO168: ='HourGH-DEC'!Y17 -> 0 | CP168: 167 | CQ168: 7 | CR168: 23 | CS168: ='HourGH-JAN'!Y17 -> 0 | CT168: 167 | CU168: 7 | CV168: 23 | CW168: ='HourGH-FEB'!Y17 -> 0 | CX168: 167 | CY168: 7 | CZ168: 23 | DA168: ='HourGH-MAR'!Y17 -> 0
BF169: 168 | BG169: 7 | BH169: 24 | BI169: ='HourGH-APR'!Z17 -> 0 | BJ169: 168 | BK169: 7 | BL169: 24 | BM169: ='HourGH-MAY'!Z17 -> 0 | BN169: 168 | BO169: 7 | BP169: 24 | BQ169: ='HourGH-JUN'!Z17 -> 0 | BR169: 168 | BS169: 7 | BT169: 24 | BU169: ='HourGH-JUL'!Z17 -> 0 | BV169: 168 | BW169: 7 | BX169: 24 | BY169: ='HourGH-AUG'!Z17 -> 0 | BZ169: 168 | CA169: 7 | CB169: 24 | CC169: ='HourGH-SEP'!Z17 -> 0 | CD169: 168 | CE169: 7 | CF169: 24 | CG169: ='HourGH-OCT'!Z17 -> 0 | CH169: 168 | CI169: 7 | CJ169: 24 | CK169: ='HourGH-NOV'!Z17 -> 0 | CL169: 168 | CM169: 7 | CN169: 24 | CO169: ='HourGH-DEC'!Z17 -> 0 | CP169: 168 | CQ169: 7 | CR169: 24 | CS169: ='HourGH-JAN'!Z17 -> 0 | CT169: 168 | CU169: 7 | CV169: 24 | CW169: ='HourGH-FEB'!Z17 -> 0 | CX169: 168 | CY169: 7 | CZ169: 24 | DA169: ='HourGH-MAR'!Z17 -> 0
BF170: 169 | BG170: 8 | BH170: 1 | BI170: ='HourGH-APR'!C18 -> 0 | BJ170: 169 | BK170: 8 | BL170: 1 | BM170: ='HourGH-MAY'!C18 -> 0 | BN170: 169 | BO170: 8 | BP170: 1 | BQ170: ='HourGH-JUN'!C18 -> 0 | BR170: 169 | BS170: 8 | BT170: 1 | BU170: ='HourGH-JUL'!C18 -> 0 | BV170: 169 | BW170: 8 | BX170: 1 | BY170: ='HourGH-AUG'!C18 -> 0 | BZ170: 169 | CA170: 8 | CB170: 1 | CC170: ='HourGH-SEP'!C18 -> 0 | CD170: 169 | CE170: 8 | CF170: 1 | CG170: ='HourGH-OCT'!C18 -> 0 | CH170: 169 | CI170: 8 | CJ170: 1 | CK170: ='HourGH-NOV'!C18 -> 0 | CL170: 169 | CM170: 8 | CN170: 1 | CO170: ='HourGH-DEC'!C18 -> 0 | CP170: 169 | CQ170: 8 | CR170: 1 | CS170: ='HourGH-JAN'!C18 -> 0 | CT170: 169 | CU170: 8 | CV170: 1 | CW170: ='HourGH-FEB'!C18 -> 0 | CX170: 169 | CY170: 8 | CZ170: 1 | DA170: ='HourGH-MAR'!C18 -> 0
BF171: 170 | BG171: 8 | BH171: 2 | BI171: ='HourGH-APR'!D18 -> 0 | BJ171: 170 | BK171: 8 | BL171: 2 | BM171: ='HourGH-MAY'!D18 -> 0 | BN171: 170 | BO171: 8 | BP171: 2 | BQ171: ='HourGH-JUN'!D18 -> 0 | BR171: 170 | BS171: 8 | BT171: 2 | BU171: ='HourGH-JUL'!D18 -> 0 | BV171: 170 | BW171: 8 | BX171: 2 | BY171: ='HourGH-AUG'!D18 -> 0 | BZ171: 170 | CA171: 8 | CB171: 2 | CC171: ='HourGH-SEP'!D18 -> 0 | CD171: 170 | CE171: 8 | CF171: 2 | CG171: ='HourGH-OCT'!D18 -> 0 | CH171: 170 | CI171: 8 | CJ171: 2 | CK171: ='HourGH-NOV'!D18 -> 0 | CL171: 170 | CM171: 8 | CN171: 2 | CO171: ='HourGH-DEC'!D18 -> 0 | CP171: 170 | CQ171: 8 | CR171: 2 | CS171: ='HourGH-JAN'!D18 -> 0 | CT171: 170 | CU171: 8 | CV171: 2 | CW171: ='HourGH-FEB'!D18 -> 0 | CX171: 170 | CY171: 8 | CZ171: 2 | DA171: ='HourGH-MAR'!D18 -> 0
BF172: 171 | BG172: 8 | BH172: 3 | BI172: ='HourGH-APR'!E18 -> 0 | BJ172: 171 | BK172: 8 | BL172: 3 | BM172: ='HourGH-MAY'!E18 -> 0 | BN172: 171 | BO172: 8 | BP172: 3 | BQ172: ='HourGH-JUN'!E18 -> 0 | BR172: 171 | BS172: 8 | BT172: 3 | BU172: ='HourGH-JUL'!E18 -> 0 | BV172: 171 | BW172: 8 | BX172: 3 | BY172: ='HourGH-AUG'!E18 -> 0 | BZ172: 171 | CA172: 8 | CB172: 3 | CC172: ='HourGH-SEP'!E18 -> 0 | CD172: 171 | CE172: 8 | CF172: 3 | CG172: ='HourGH-OCT'!E18 -> 0 | CH172: 171 | CI172: 8 | CJ172: 3 | CK172: ='HourGH-NOV'!E18 -> 0 | CL172: 171 | CM172: 8 | CN172: 3 | CO172: ='HourGH-DEC'!E18 -> 0 | CP172: 171 | CQ172: 8 | CR172: 3 | CS172: ='HourGH-JAN'!E18 -> 0 | CT172: 171 | CU172: 8 | CV172: 3 | CW172: ='HourGH-FEB'!E18 -> 0 | CX172: 171 | CY172: 8 | CZ172: 3 | DA172: ='HourGH-MAR'!E18 -> 0
BF173: 172 | BG173: 8 | BH173: 4 | BI173: ='HourGH-APR'!F18 -> 0 | BJ173: 172 | BK173: 8 | BL173: 4 | BM173: ='HourGH-MAY'!F18 -> 0 | BN173: 172 | BO173: 8 | BP173: 4 | BQ173: ='HourGH-JUN'!F18 -> 0 | BR173: 172 | BS173: 8 | BT173: 4 | BU173: ='HourGH-JUL'!F18 -> 0 | BV173: 172 | BW173: 8 | BX173: 4 | BY173: ='HourGH-AUG'!F18 -> 0 | BZ173: 172 | CA173: 8 | CB173: 4 | CC173: ='HourGH-SEP'!F18 -> 0 | CD173: 172 | CE173: 8 | CF173: 4 | CG173: ='HourGH-OCT'!F18 -> 0 | CH173: 172 | CI173: 8 | CJ173: 4 | CK173: ='HourGH-NOV'!F18 -> 0 | CL173: 172 | CM173: 8 | CN173: 4 | CO173: ='HourGH-DEC'!F18 -> 0 | CP173: 172 | CQ173: 8 | CR173: 4 | CS173: ='HourGH-JAN'!F18 -> 0 | CT173: 172 | CU173: 8 | CV173: 4 | CW173: ='HourGH-FEB'!F18 -> 0 | CX173: 172 | CY173: 8 | CZ173: 4 | DA173: ='HourGH-MAR'!F18 -> 0
BF174: 173 | BG174: 8 | BH174: 5 | BI174: ='HourGH-APR'!G18 -> 0 | BJ174: 173 | BK174: 8 | BL174: 5 | BM174: ='HourGH-MAY'!G18 -> 0 | BN174: 173 | BO174: 8 | BP174: 5 | BQ174: ='HourGH-JUN'!G18 -> 0 | BR174: 173 | BS174: 8 | BT174: 5 | BU174: ='HourGH-JUL'!G18 -> 0 | BV174: 173 | BW174: 8 | BX174: 5 | BY174: ='HourGH-AUG'!G18 -> 0 | BZ174: 173 | CA174: 8 | CB174: 5 | CC174: ='HourGH-SEP'!G18 -> 0 | CD174: 173 | CE174: 8 | CF174: 5 | CG174: ='HourGH-OCT'!G18 -> 0 | CH174: 173 | CI174: 8 | CJ174: 5 | CK174: ='HourGH-NOV'!G18 -> 0 | CL174: 173 | CM174: 8 | CN174: 5 | CO174: ='HourGH-DEC'!G18 -> 0 | CP174: 173 | CQ174: 8 | CR174: 5 | CS174: ='HourGH-JAN'!G18 -> 0 | CT174: 173 | CU174: 8 | CV174: 5 | CW174: ='HourGH-FEB'!G18 -> 0 | CX174: 173 | CY174: 8 | CZ174: 5 | DA174: ='HourGH-MAR'!G18 -> 0
BF175: 174 | BG175: 8 | BH175: 6 | BI175: ='HourGH-APR'!H18 -> 0.35 | BJ175: 174 | BK175: 8 | BL175: 6 | BM175: ='HourGH-MAY'!H18 -> 0.35 | BN175: 174 | BO175: 8 | BP175: 6 | BQ175: ='HourGH-JUN'!H18 -> 0.45 | BR175: 174 | BS175: 8 | BT175: 6 | BU175: ='HourGH-JUL'!H18 -> 0.35 | BV175: 174 | BW175: 8 | BX175: 6 | BY175: ='HourGH-AUG'!H18 -> 1.07 | BZ175: 174 | CA175: 8 | CB175: 6 | CC175: ='HourGH-SEP'!H18 -> 0 | CD175: 174 | CE175: 8 | CF175: 6 | CG175: ='HourGH-OCT'!H18 -> 0 | CH175: 174 | CI175: 8 | CJ175: 6 | CK175: ='HourGH-NOV'!H18 -> 0 | CL175: 174 | CM175: 8 | CN175: 6 | CO175: ='HourGH-DEC'!H18 -> 0 | CP175: 174 | CQ175: 8 | CR175: 6 | CS175: ='HourGH-JAN'!H18 -> 0 | CT175: 174 | CU175: 8 | CV175: 6 | CW175: ='HourGH-FEB'!H18 -> 0 | CX175: 174 | CY175: 8 | CZ175: 6 | DA175: ='HourGH-MAR'!H18 -> 0
BF176: 175 | BG176: 8 | BH176: 7 | BI176: ='HourGH-APR'!I18 -> 0 | BJ176: 175 | BK176: 8 | BL176: 7 | BM176: ='HourGH-MAY'!I18 -> 0 | BN176: 175 | BO176: 8 | BP176: 7 | BQ176: ='HourGH-JUN'!I18 -> 0 | BR176: 175 | BS176: 8 | BT176: 7 | BU176: ='HourGH-JUL'!I18 -> 0 | BV176: 175 | BW176: 8 | BX176: 7 | BY176: ='HourGH-AUG'!I18 -> 0 | BZ176: 175 | CA176: 8 | CB176: 7 | CC176: ='HourGH-SEP'!I18 -> 0 | CD176: 175 | CE176: 8 | CF176: 7 | CG176: ='HourGH-OCT'!I18 -> 0 | CH176: 175 | CI176: 8 | CJ176: 7 | CK176: ='HourGH-NOV'!I18 -> 0 | CL176: 175 | CM176: 8 | CN176: 7 | CO176: ='HourGH-DEC'!I18 -> 0 | CP176: 175 | CQ176: 8 | CR176: 7 | CS176: ='HourGH-JAN'!I18 -> 0 | CT176: 175 | CU176: 8 | CV176: 7 | CW176: ='HourGH-FEB'!I18 -> 0 | CX176: 175 | CY176: 8 | CZ176: 7 | DA176: ='HourGH-MAR'!I18 -> 0
BF177: 176 | BG177: 8 | BH177: 8 | BI177: ='HourGH-APR'!J18 -> 0 | BJ177: 176 | BK177: 8 | BL177: 8 | BM177: ='HourGH-MAY'!J18 -> 0 | BN177: 176 | BO177: 8 | BP177: 8 | BQ177: ='HourGH-JUN'!J18 -> 0 | BR177: 176 | BS177: 8 | BT177: 8 | BU177: ='HourGH-JUL'!J18 -> 0 | BV177: 176 | BW177: 8 | BX177: 8 | BY177: ='HourGH-AUG'!J18 -> 0 | BZ177: 176 | CA177: 8 | CB177: 8 | CC177: ='HourGH-SEP'!J18 -> 0 | CD177: 176 | CE177: 8 | CF177: 8 | CG177: ='HourGH-OCT'!J18 -> 0 | CH177: 176 | CI177: 8 | CJ177: 8 | CK177: ='HourGH-NOV'!J18 -> 0 | CL177: 176 | CM177: 8 | CN177: 8 | CO177: ='HourGH-DEC'!J18 -> 0 | CP177: 176 | CQ177: 8 | CR177: 8 | CS177: ='HourGH-JAN'!J18 -> 0 | CT177: 176 | CU177: 8 | CV177: 8 | CW177: ='HourGH-FEB'!J18 -> 0 | CX177: 176 | CY177: 8 | CZ177: 8 | DA177: ='HourGH-MAR'!J18 -> 0
BF178: 177 | BG178: 8 | BH178: 9 | BI178: ='HourGH-APR'!K18 -> 0.35 | BJ178: 177 | BK178: 8 | BL178: 9 | BM178: ='HourGH-MAY'!K18 -> 0.35 | BN178: 177 | BO178: 8 | BP178: 9 | BQ178: ='HourGH-JUN'!K18 -> 0.45 | BR178: 177 | BS178: 8 | BT178: 9 | BU178: ='HourGH-JUL'!K18 -> 0.35 | BV178: 177 | BW178: 8 | BX178: 9 | BY178: ='HourGH-AUG'!K18 -> 1.04 | BZ178: 177 | CA178: 8 | CB178: 9 | CC178: ='HourGH-SEP'!K18 -> 0 | CD178: 177 | CE178: 8 | CF178: 9 | CG178: ='HourGH-OCT'!K18 -> 0 | CH178: 177 | CI178: 8 | CJ178: 9 | CK178: ='HourGH-NOV'!K18 -> 0 | CL178: 177 | CM178: 8 | CN178: 9 | CO178: ='HourGH-DEC'!K18 -> 0 | CP178: 177 | CQ178: 8 | CR178: 9 | CS178: ='HourGH-JAN'!K18 -> 0 | CT178: 177 | CU178: 8 | CV178: 9 | CW178: ='HourGH-FEB'!K18 -> 0 | CX178: 177 | CY178: 8 | CZ178: 9 | DA178: ='HourGH-MAR'!K18 -> 0
BF179: 178 | BG179: 8 | BH179: 10 | BI179: ='HourGH-APR'!L18 -> 0 | BJ179: 178 | BK179: 8 | BL179: 10 | BM179: ='HourGH-MAY'!L18 -> 0 | BN179: 178 | BO179: 8 | BP179: 10 | BQ179: ='HourGH-JUN'!L18 -> 0 | BR179: 178 | BS179: 8 | BT179: 10 | BU179: ='HourGH-JUL'!L18 -> 0 | BV179: 178 | BW179: 8 | BX179: 10 | BY179: ='HourGH-AUG'!L18 -> 0 | BZ179: 178 | CA179: 8 | CB179: 10 | CC179: ='HourGH-SEP'!L18 -> 0 | CD179: 178 | CE179: 8 | CF179: 10 | CG179: ='HourGH-OCT'!L18 -> 0 | CH179: 178 | CI179: 8 | CJ179: 10 | CK179: ='HourGH-NOV'!L18 -> 0 | CL179: 178 | CM179: 8 | CN179: 10 | CO179: ='HourGH-DEC'!L18 -> 0 | CP179: 178 | CQ179: 8 | CR179: 10 | CS179: ='HourGH-JAN'!L18 -> 0 | CT179: 178 | CU179: 8 | CV179: 10 | CW179: ='HourGH-FEB'!L18 -> 0 | CX179: 178 | CY179: 8 | CZ179: 10 | DA179: ='HourGH-MAR'!L18 -> 0
BF180: 179 | BG180: 8 | BH180: 11 | BI180: ='HourGH-APR'!M18 -> 0 | BJ180: 179 | BK180: 8 | BL180: 11 | BM180: ='HourGH-MAY'!M18 -> 0 | BN180: 179 | BO180: 8 | BP180: 11 | BQ180: ='HourGH-JUN'!M18 -> 0 | BR180: 179 | BS180: 8 | BT180: 11 | BU180: ='HourGH-JUL'!M18 -> 0 | BV180: 179 | BW180: 8 | BX180: 11 | BY180: ='HourGH-AUG'!M18 -> 0 | BZ180: 179 | CA180: 8 | CB180: 11 | CC180: ='HourGH-SEP'!M18 -> 0 | CD180: 179 | CE180: 8 | CF180: 11 | CG180: ='HourGH-OCT'!M18 -> 0 | CH180: 179 | CI180: 8 | CJ180: 11 | CK180: ='HourGH-NOV'!M18 -> 0 | CL180: 179 | CM180: 8 | CN180: 11 | CO180: ='HourGH-DEC'!M18 -> 0 | CP180: 179 | CQ180: 8 | CR180: 11 | CS180: ='HourGH-JAN'!M18 -> 0 | CT180: 179 | CU180: 8 | CV180: 11 | CW180: ='HourGH-FEB'!M18 -> 0 | CX180: 179 | CY180: 8 | CZ180: 11 | DA180: ='HourGH-MAR'!M18 -> 0
BF181: 180 | BG181: 8 | BH181: 12 | BI181: ='HourGH-APR'!N18 -> 0.35 | BJ181: 180 | BK181: 8 | BL181: 12 | BM181: ='HourGH-MAY'!N18 -> 0.35 | BN181: 180 | BO181: 8 | BP181: 12 | BQ181: ='HourGH-JUN'!N18 -> 0.45 | BR181: 180 | BS181: 8 | BT181: 12 | BU181: ='HourGH-JUL'!N18 -> 0.35 | BV181: 180 | BW181: 8 | BX181: 12 | BY181: ='HourGH-AUG'!N18 -> 1.1 | BZ181: 180 | CA181: 8 | CB181: 12 | CC181: ='HourGH-SEP'!N18 -> 0 | CD181: 180 | CE181: 8 | CF181: 12 | CG181: ='HourGH-OCT'!N18 -> 0 | CH181: 180 | CI181: 8 | CJ181: 12 | CK181: ='HourGH-NOV'!N18 -> 0 | CL181: 180 | CM181: 8 | CN181: 12 | CO181: ='HourGH-DEC'!N18 -> 0 | CP181: 180 | CQ181: 8 | CR181: 12 | CS181: ='HourGH-JAN'!N18 -> 0 | CT181: 180 | CU181: 8 | CV181: 12 | CW181: ='HourGH-FEB'!N18 -> 0 | CX181: 180 | CY181: 8 | CZ181: 12 | DA181: ='HourGH-MAR'!N18 -> 0
BF182: 181 | BG182: 8 | BH182: 13 | BI182: ='HourGH-APR'!O18 -> 0 | BJ182: 181 | BK182: 8 | BL182: 13 | BM182: ='HourGH-MAY'!O18 -> 0 | BN182: 181 | BO182: 8 | BP182: 13 | BQ182: ='HourGH-JUN'!O18 -> 0 | BR182: 181 | BS182: 8 | BT182: 13 | BU182: ='HourGH-JUL'!O18 -> 0 | BV182: 181 | BW182: 8 | BX182: 13 | BY182: ='HourGH-AUG'!O18 -> 0 | BZ182: 181 | CA182: 8 | CB182: 13 | CC182: ='HourGH-SEP'!O18 -> 0 | CD182: 181 | CE182: 8 | CF182: 13 | CG182: ='HourGH-OCT'!O18 -> 0 | CH182: 181 | CI182: 8 | CJ182: 13 | CK182: ='HourGH-NOV'!O18 -> 0 | CL182: 181 | CM182: 8 | CN182: 13 | CO182: ='HourGH-DEC'!O18 -> 0 | CP182: 181 | CQ182: 8 | CR182: 13 | CS182: ='HourGH-JAN'!O18 -> 0 | CT182: 181 | CU182: 8 | CV182: 13 | CW182: ='HourGH-FEB'!O18 -> 0 | CX182: 181 | CY182: 8 | CZ182: 13 | DA182: ='HourGH-MAR'!O18 -> 0
BF183: 182 | BG183: 8 | BH183: 14 | BI183: ='HourGH-APR'!P18 -> 0 | BJ183: 182 | BK183: 8 | BL183: 14 | BM183: ='HourGH-MAY'!P18 -> 0 | BN183: 182 | BO183: 8 | BP183: 14 | BQ183: ='HourGH-JUN'!P18 -> 0 | BR183: 182 | BS183: 8 | BT183: 14 | BU183: ='HourGH-JUL'!P18 -> 0 | BV183: 182 | BW183: 8 | BX183: 14 | BY183: ='HourGH-AUG'!P18 -> 0 | BZ183: 182 | CA183: 8 | CB183: 14 | CC183: ='HourGH-SEP'!P18 -> 0 | CD183: 182 | CE183: 8 | CF183: 14 | CG183: ='HourGH-OCT'!P18 -> 0 | CH183: 182 | CI183: 8 | CJ183: 14 | CK183: ='HourGH-NOV'!P18 -> 0 | CL183: 182 | CM183: 8 | CN183: 14 | CO183: ='HourGH-DEC'!P18 -> 0 | CP183: 182 | CQ183: 8 | CR183: 14 | CS183: ='HourGH-JAN'!P18 -> 0 | CT183: 182 | CU183: 8 | CV183: 14 | CW183: ='HourGH-FEB'!P18 -> 0 | CX183: 182 | CY183: 8 | CZ183: 14 | DA183: ='HourGH-MAR'!P18 -> 0
BF184: 183 | BG184: 8 | BH184: 15 | BI184: ='HourGH-APR'!Q18 -> 0.35 | BJ184: 183 | BK184: 8 | BL184: 15 | BM184: ='HourGH-MAY'!Q18 -> 0.35 | BN184: 183 | BO184: 8 | BP184: 15 | BQ184: ='HourGH-JUN'!Q18 -> 0.45 | BR184: 183 | BS184: 8 | BT184: 15 | BU184: ='HourGH-JUL'!Q18 -> 0.35 | BV184: 183 | BW184: 8 | BX184: 15 | BY184: ='HourGH-AUG'!Q18 -> 1.26 | BZ184: 183 | CA184: 8 | CB184: 15 | CC184: ='HourGH-SEP'!Q18 -> 0 | CD184: 183 | CE184: 8 | CF184: 15 | CG184: ='HourGH-OCT'!Q18 -> 0 | CH184: 183 | CI184: 8 | CJ184: 15 | CK184: ='HourGH-NOV'!Q18 -> 0 | CL184: 183 | CM184: 8 | CN184: 15 | CO184: ='HourGH-DEC'!Q18 -> 0 | CP184: 183 | CQ184: 8 | CR184: 15 | CS184: ='HourGH-JAN'!Q18 -> 0 | CT184: 183 | CU184: 8 | CV184: 15 | CW184: ='HourGH-FEB'!Q18 -> 0 | CX184: 183 | CY184: 8 | CZ184: 15 | DA184: ='HourGH-MAR'!Q18 -> 0
BF185: 184 | BG185: 8 | BH185: 16 | BI185: ='HourGH-APR'!R18 -> 0 | BJ185: 184 | BK185: 8 | BL185: 16 | BM185: ='HourGH-MAY'!R18 -> 0 | BN185: 184 | BO185: 8 | BP185: 16 | BQ185: ='HourGH-JUN'!R18 -> 0 | BR185: 184 | BS185: 8 | BT185: 16 | BU185: ='HourGH-JUL'!R18 -> 0 | BV185: 184 | BW185: 8 | BX185: 16 | BY185: ='HourGH-AUG'!R18 -> 0 | BZ185: 184 | CA185: 8 | CB185: 16 | CC185: ='HourGH-SEP'!R18 -> 0 | CD185: 184 | CE185: 8 | CF185: 16 | CG185: ='HourGH-OCT'!R18 -> 0 | CH185: 184 | CI185: 8 | CJ185: 16 | CK185: ='HourGH-NOV'!R18 -> 0 | CL185: 184 | CM185: 8 | CN185: 16 | CO185: ='HourGH-DEC'!R18 -> 0 | CP185: 184 | CQ185: 8 | CR185: 16 | CS185: ='HourGH-JAN'!R18 -> 0 | CT185: 184 | CU185: 8 | CV185: 16 | CW185: ='HourGH-FEB'!R18 -> 0 | CX185: 184 | CY185: 8 | CZ185: 16 | DA185: ='HourGH-MAR'!R18 -> 0
BF186: 185 | BG186: 8 | BH186: 17 | BI186: ='HourGH-APR'!S18 -> 0 | BJ186: 185 | BK186: 8 | BL186: 17 | BM186: ='HourGH-MAY'!S18 -> 0 | BN186: 185 | BO186: 8 | BP186: 17 | BQ186: ='HourGH-JUN'!S18 -> 0 | BR186: 185 | BS186: 8 | BT186: 17 | BU186: ='HourGH-JUL'!S18 -> 0 | BV186: 185 | BW186: 8 | BX186: 17 | BY186: ='HourGH-AUG'!S18 -> 0 | BZ186: 185 | CA186: 8 | CB186: 17 | CC186: ='HourGH-SEP'!S18 -> 0 | CD186: 185 | CE186: 8 | CF186: 17 | CG186: ='HourGH-OCT'!S18 -> 0 | CH186: 185 | CI186: 8 | CJ186: 17 | CK186: ='HourGH-NOV'!S18 -> 0 | CL186: 185 | CM186: 8 | CN186: 17 | CO186: ='HourGH-DEC'!S18 -> 0 | CP186: 185 | CQ186: 8 | CR186: 17 | CS186: ='HourGH-JAN'!S18 -> 0 | CT186: 185 | CU186: 8 | CV186: 17 | CW186: ='HourGH-FEB'!S18 -> 0 | CX186: 185 | CY186: 8 | CZ186: 17 | DA186: ='HourGH-MAR'!S18 -> 0
BF187: 186 | BG187: 8 | BH187: 18 | BI187: ='HourGH-APR'!T18 -> 0.35 | BJ187: 186 | BK187: 8 | BL187: 18 | BM187: ='HourGH-MAY'!T18 -> 0.35 | BN187: 186 | BO187: 8 | BP187: 18 | BQ187: ='HourGH-JUN'!T18 -> 0.45 | BR187: 186 | BS187: 8 | BT187: 18 | BU187: ='HourGH-JUL'!T18 -> 0.35 | BV187: 186 | BW187: 8 | BX187: 18 | BY187: ='HourGH-AUG'!T18 -> 1.38 | BZ187: 186 | CA187: 8 | CB187: 18 | CC187: ='HourGH-SEP'!T18 -> 0 | CD187: 186 | CE187: 8 | CF187: 18 | CG187: ='HourGH-OCT'!T18 -> 0 | CH187: 186 | CI187: 8 | CJ187: 18 | CK187: ='HourGH-NOV'!T18 -> 0 | CL187: 186 | CM187: 8 | CN187: 18 | CO187: ='HourGH-DEC'!T18 -> 0 | CP187: 186 | CQ187: 8 | CR187: 18 | CS187: ='HourGH-JAN'!T18 -> 0 | CT187: 186 | CU187: 8 | CV187: 18 | CW187: ='HourGH-FEB'!T18 -> 0 | CX187: 186 | CY187: 8 | CZ187: 18 | DA187: ='HourGH-MAR'!T18 -> 0
BF188: 187 | BG188: 8 | BH188: 19 | BI188: ='HourGH-APR'!U18 -> 0 | BJ188: 187 | BK188: 8 | BL188: 19 | BM188: ='HourGH-MAY'!U18 -> 0 | BN188: 187 | BO188: 8 | BP188: 19 | BQ188: ='HourGH-JUN'!U18 -> 0 | BR188: 187 | BS188: 8 | BT188: 19 | BU188: ='HourGH-JUL'!U18 -> 0 | BV188: 187 | BW188: 8 | BX188: 19 | BY188: ='HourGH-AUG'!U18 -> 0 | BZ188: 187 | CA188: 8 | CB188: 19 | CC188: ='HourGH-SEP'!U18 -> 0 | CD188: 187 | CE188: 8 | CF188: 19 | CG188: ='HourGH-OCT'!U18 -> 0 | CH188: 187 | CI188: 8 | CJ188: 19 | CK188: ='HourGH-NOV'!U18 -> 0 | CL188: 187 | CM188: 8 | CN188: 19 | CO188: ='HourGH-DEC'!U18 -> 0 | CP188: 187 | CQ188: 8 | CR188: 19 | CS188: ='HourGH-JAN'!U18 -> 0 | CT188: 187 | CU188: 8 | CV188: 19 | CW188: ='HourGH-FEB'!U18 -> 0 | CX188: 187 | CY188: 8 | CZ188: 19 | DA188: ='HourGH-MAR'!U18 -> 0
BF189: 188 | BG189: 8 | BH189: 20 | BI189: ='HourGH-APR'!V18 -> 0 | BJ189: 188 | BK189: 8 | BL189: 20 | BM189: ='HourGH-MAY'!V18 -> 0 | BN189: 188 | BO189: 8 | BP189: 20 | BQ189: ='HourGH-JUN'!V18 -> 0 | BR189: 188 | BS189: 8 | BT189: 20 | BU189: ='HourGH-JUL'!V18 -> 0 | BV189: 188 | BW189: 8 | BX189: 20 | BY189: ='HourGH-AUG'!V18 -> 0 | BZ189: 188 | CA189: 8 | CB189: 20 | CC189: ='HourGH-SEP'!V18 -> 0 | CD189: 188 | CE189: 8 | CF189: 20 | CG189: ='HourGH-OCT'!V18 -> 0 | CH189: 188 | CI189: 8 | CJ189: 20 | CK189: ='HourGH-NOV'!V18 -> 0 | CL189: 188 | CM189: 8 | CN189: 20 | CO189: ='HourGH-DEC'!V18 -> 0 | CP189: 188 | CQ189: 8 | CR189: 20 | CS189: ='HourGH-JAN'!V18 -> 0 | CT189: 188 | CU189: 8 | CV189: 20 | CW189: ='HourGH-FEB'!V18 -> 0 | CX189: 188 | CY189: 8 | CZ189: 20 | DA189: ='HourGH-MAR'!V18 -> 0
BF190: 189 | BG190: 8 | BH190: 21 | BI190: ='HourGH-APR'!W18 -> 0 | BJ190: 189 | BK190: 8 | BL190: 21 | BM190: ='HourGH-MAY'!W18 -> 0 | BN190: 189 | BO190: 8 | BP190: 21 | BQ190: ='HourGH-JUN'!W18 -> 0 | BR190: 189 | BS190: 8 | BT190: 21 | BU190: ='HourGH-JUL'!W18 -> 0 | BV190: 189 | BW190: 8 | BX190: 21 | BY190: ='HourGH-AUG'!W18 -> 0 | BZ190: 189 | CA190: 8 | CB190: 21 | CC190: ='HourGH-SEP'!W18 -> 0 | CD190: 189 | CE190: 8 | CF190: 21 | CG190: ='HourGH-OCT'!W18 -> 0 | CH190: 189 | CI190: 8 | CJ190: 21 | CK190: ='HourGH-NOV'!W18 -> 0 | CL190: 189 | CM190: 8 | CN190: 21 | CO190: ='HourGH-DEC'!W18 -> 0 | CP190: 189 | CQ190: 8 | CR190: 21 | CS190: ='HourGH-JAN'!W18 -> 0 | CT190: 189 | CU190: 8 | CV190: 21 | CW190: ='HourGH-FEB'!W18 -> 0 | CX190: 189 | CY190: 8 | CZ190: 21 | DA190: ='HourGH-MAR'!W18 -> 0
BF191: 190 | BG191: 8 | BH191: 22 | BI191: ='HourGH-APR'!X18 -> 0 | BJ191: 190 | BK191: 8 | BL191: 22 | BM191: ='HourGH-MAY'!X18 -> 0 | BN191: 190 | BO191: 8 | BP191: 22 | BQ191: ='HourGH-JUN'!X18 -> 0 | BR191: 190 | BS191: 8 | BT191: 22 | BU191: ='HourGH-JUL'!X18 -> 0 | BV191: 190 | BW191: 8 | BX191: 22 | BY191: ='HourGH-AUG'!X18 -> 0 | BZ191: 190 | CA191: 8 | CB191: 22 | CC191: ='HourGH-SEP'!X18 -> 0 | CD191: 190 | CE191: 8 | CF191: 22 | CG191: ='HourGH-OCT'!X18 -> 0 | CH191: 190 | CI191: 8 | CJ191: 22 | CK191: ='HourGH-NOV'!X18 -> 0 | CL191: 190 | CM191: 8 | CN191: 22 | CO191: ='HourGH-DEC'!X18 -> 0 | CP191: 190 | CQ191: 8 | CR191: 22 | CS191: ='HourGH-JAN'!X18 -> 0 | CT191: 190 | CU191: 8 | CV191: 22 | CW191: ='HourGH-FEB'!X18 -> 0 | CX191: 190 | CY191: 8 | CZ191: 22 | DA191: ='HourGH-MAR'!X18 -> 0
BF192: 191 | BG192: 8 | BH192: 23 | BI192: ='HourGH-APR'!Y18 -> 0 | BJ192: 191 | BK192: 8 | BL192: 23 | BM192: ='HourGH-MAY'!Y18 -> 0 | BN192: 191 | BO192: 8 | BP192: 23 | BQ192: ='HourGH-JUN'!Y18 -> 0 | BR192: 191 | BS192: 8 | BT192: 23 | BU192: ='HourGH-JUL'!Y18 -> 0 | BV192: 191 | BW192: 8 | BX192: 23 | BY192: ='HourGH-AUG'!Y18 -> 0 | BZ192: 191 | CA192: 8 | CB192: 23 | CC192: ='HourGH-SEP'!Y18 -> 0 | CD192: 191 | CE192: 8 | CF192: 23 | CG192: ='HourGH-OCT'!Y18 -> 0 | CH192: 191 | CI192: 8 | CJ192: 23 | CK192: ='HourGH-NOV'!Y18 -> 0 | CL192: 191 | CM192: 8 | CN192: 23 | CO192: ='HourGH-DEC'!Y18 -> 0 | CP192: 191 | CQ192: 8 | CR192: 23 | CS192: ='HourGH-JAN'!Y18 -> 0 | CT192: 191 | CU192: 8 | CV192: 23 | CW192: ='HourGH-FEB'!Y18 -> 0 | CX192: 191 | CY192: 8 | CZ192: 23 | DA192: ='HourGH-MAR'!Y18 -> 0
BF193: 192 | BG193: 8 | BH193: 24 | BI193: ='HourGH-APR'!Z18 -> 0 | BJ193: 192 | BK193: 8 | BL193: 24 | BM193: ='HourGH-MAY'!Z18 -> 0 | BN193: 192 | BO193: 8 | BP193: 24 | BQ193: ='HourGH-JUN'!Z18 -> 0 | BR193: 192 | BS193: 8 | BT193: 24 | BU193: ='HourGH-JUL'!Z18 -> 0 | BV193: 192 | BW193: 8 | BX193: 24 | BY193: ='HourGH-AUG'!Z18 -> 0 | BZ193: 192 | CA193: 8 | CB193: 24 | CC193: ='HourGH-SEP'!Z18 -> 0 | CD193: 192 | CE193: 8 | CF193: 24 | CG193: ='HourGH-OCT'!Z18 -> 0 | CH193: 192 | CI193: 8 | CJ193: 24 | CK193: ='HourGH-NOV'!Z18 -> 0 | CL193: 192 | CM193: 8 | CN193: 24 | CO193: ='HourGH-DEC'!Z18 -> 0 | CP193: 192 | CQ193: 8 | CR193: 24 | CS193: ='HourGH-JAN'!Z18 -> 0 | CT193: 192 | CU193: 8 | CV193: 24 | CW193: ='HourGH-FEB'!Z18 -> 0 | CX193: 192 | CY193: 8 | CZ193: 24 | DA193: ='HourGH-MAR'!Z18 -> 0
BF194: 193 | BG194: 9 | BH194: 1 | BI194: ='HourGH-APR'!C19 -> 0 | BJ194: 193 | BK194: 9 | BL194: 1 | BM194: ='HourGH-MAY'!C19 -> 0 | BN194: 193 | BO194: 9 | BP194: 1 | BQ194: ='HourGH-JUN'!C19 -> 0 | BR194: 193 | BS194: 9 | BT194: 1 | BU194: ='HourGH-JUL'!C19 -> 0 | BV194: 193 | BW194: 9 | BX194: 1 | BY194: ='HourGH-AUG'!C19 -> 0 | BZ194: 193 | CA194: 9 | CB194: 1 | CC194: ='HourGH-SEP'!C19 -> 0 | CD194: 193 | CE194: 9 | CF194: 1 | CG194: ='HourGH-OCT'!C19 -> 0 | CH194: 193 | CI194: 9 | CJ194: 1 | CK194: ='HourGH-NOV'!C19 -> 0 | CL194: 193 | CM194: 9 | CN194: 1 | CO194: ='HourGH-DEC'!C19 -> 0 | CP194: 193 | CQ194: 9 | CR194: 1 | CS194: ='HourGH-JAN'!C19 -> 0 | CT194: 193 | CU194: 9 | CV194: 1 | CW194: ='HourGH-FEB'!C19 -> 0 | CX194: 193 | CY194: 9 | CZ194: 1 | DA194: ='HourGH-MAR'!C19 -> 0
BF195: 194 | BG195: 9 | BH195: 2 | BI195: ='HourGH-APR'!D19 -> 0 | BJ195: 194 | BK195: 9 | BL195: 2 | BM195: ='HourGH-MAY'!D19 -> 0 | BN195: 194 | BO195: 9 | BP195: 2 | BQ195: ='HourGH-JUN'!D19 -> 0 | BR195: 194 | BS195: 9 | BT195: 2 | BU195: ='HourGH-JUL'!D19 -> 0 | BV195: 194 | BW195: 9 | BX195: 2 | BY195: ='HourGH-AUG'!D19 -> 0 | BZ195: 194 | CA195: 9 | CB195: 2 | CC195: ='HourGH-SEP'!D19 -> 0 | CD195: 194 | CE195: 9 | CF195: 2 | CG195: ='HourGH-OCT'!D19 -> 0 | CH195: 194 | CI195: 9 | CJ195: 2 | CK195: ='HourGH-NOV'!D19 -> 0 | CL195: 194 | CM195: 9 | CN195: 2 | CO195: ='HourGH-DEC'!D19 -> 0 | CP195: 194 | CQ195: 9 | CR195: 2 | CS195: ='HourGH-JAN'!D19 -> 0 | CT195: 194 | CU195: 9 | CV195: 2 | CW195: ='HourGH-FEB'!D19 -> 0 | CX195: 194 | CY195: 9 | CZ195: 2 | DA195: ='HourGH-MAR'!D19 -> 0
BF196: 195 | BG196: 9 | BH196: 3 | BI196: ='HourGH-APR'!E19 -> 0 | BJ196: 195 | BK196: 9 | BL196: 3 | BM196: ='HourGH-MAY'!E19 -> 0 | BN196: 195 | BO196: 9 | BP196: 3 | BQ196: ='HourGH-JUN'!E19 -> 0 | BR196: 195 | BS196: 9 | BT196: 3 | BU196: ='HourGH-JUL'!E19 -> 0 | BV196: 195 | BW196: 9 | BX196: 3 | BY196: ='HourGH-AUG'!E19 -> 0 | BZ196: 195 | CA196: 9 | CB196: 3 | CC196: ='HourGH-SEP'!E19 -> 0 | CD196: 195 | CE196: 9 | CF196: 3 | CG196: ='HourGH-OCT'!E19 -> 0 | CH196: 195 | CI196: 9 | CJ196: 3 | CK196: ='HourGH-NOV'!E19 -> 0 | CL196: 195 | CM196: 9 | CN196: 3 | CO196: ='HourGH-DEC'!E19 -> 0 | CP196: 195 | CQ196: 9 | CR196: 3 | CS196: ='HourGH-JAN'!E19 -> 0 | CT196: 195 | CU196: 9 | CV196: 3 | CW196: ='HourGH-FEB'!E19 -> 0 | CX196: 195 | CY196: 9 | CZ196: 3 | DA196: ='HourGH-MAR'!E19 -> 0
BF197: 196 | BG197: 9 | BH197: 4 | BI197: ='HourGH-APR'!F19 -> 0 | BJ197: 196 | BK197: 9 | BL197: 4 | BM197: ='HourGH-MAY'!F19 -> 0 | BN197: 196 | BO197: 9 | BP197: 4 | BQ197: ='HourGH-JUN'!F19 -> 0 | BR197: 196 | BS197: 9 | BT197: 4 | BU197: ='HourGH-JUL'!F19 -> 0 | BV197: 196 | BW197: 9 | BX197: 4 | BY197: ='HourGH-AUG'!F19 -> 0 | BZ197: 196 | CA197: 9 | CB197: 4 | CC197: ='HourGH-SEP'!F19 -> 0 | CD197: 196 | CE197: 9 | CF197: 4 | CG197: ='HourGH-OCT'!F19 -> 0 | CH197: 196 | CI197: 9 | CJ197: 4 | CK197: ='HourGH-NOV'!F19 -> 0 | CL197: 196 | CM197: 9 | CN197: 4 | CO197: ='HourGH-DEC'!F19 -> 0 | CP197: 196 | CQ197: 9 | CR197: 4 | CS197: ='HourGH-JAN'!F19 -> 0 | CT197: 196 | CU197: 9 | CV197: 4 | CW197: ='HourGH-FEB'!F19 -> 0 | CX197: 196 | CY197: 9 | CZ197: 4 | DA197: ='HourGH-MAR'!F19 -> 0
BF198: 197 | BG198: 9 | BH198: 5 | BI198: ='HourGH-APR'!G19 -> 0 | BJ198: 197 | BK198: 9 | BL198: 5 | BM198: ='HourGH-MAY'!G19 -> 0 | BN198: 197 | BO198: 9 | BP198: 5 | BQ198: ='HourGH-JUN'!G19 -> 0 | BR198: 197 | BS198: 9 | BT198: 5 | BU198: ='HourGH-JUL'!G19 -> 0 | BV198: 197 | BW198: 9 | BX198: 5 | BY198: ='HourGH-AUG'!G19 -> 0 | BZ198: 197 | CA198: 9 | CB198: 5 | CC198: ='HourGH-SEP'!G19 -> 0 | CD198: 197 | CE198: 9 | CF198: 5 | CG198: ='HourGH-OCT'!G19 -> 0 | CH198: 197 | CI198: 9 | CJ198: 5 | CK198: ='HourGH-NOV'!G19 -> 0 | CL198: 197 | CM198: 9 | CN198: 5 | CO198: ='HourGH-DEC'!G19 -> 0 | CP198: 197 | CQ198: 9 | CR198: 5 | CS198: ='HourGH-JAN'!G19 -> 0 | CT198: 197 | CU198: 9 | CV198: 5 | CW198: ='HourGH-FEB'!G19 -> 0 | CX198: 197 | CY198: 9 | CZ198: 5 | DA198: ='HourGH-MAR'!G19 -> 0
BF199: 198 | BG199: 9 | BH199: 6 | BI199: ='HourGH-APR'!H19 -> 0.35 | BJ199: 198 | BK199: 9 | BL199: 6 | BM199: ='HourGH-MAY'!H19 -> 0.35 | BN199: 198 | BO199: 9 | BP199: 6 | BQ199: ='HourGH-JUN'!H19 -> 0.43 | BR199: 198 | BS199: 9 | BT199: 6 | BU199: ='HourGH-JUL'!H19 -> 0.45 | BV199: 198 | BW199: 9 | BX199: 6 | BY199: ='HourGH-AUG'!H19 -> 1.55 | BZ199: 198 | CA199: 9 | CB199: 6 | CC199: ='HourGH-SEP'!H19 -> 0 | CD199: 198 | CE199: 9 | CF199: 6 | CG199: ='HourGH-OCT'!H19 -> 0 | CH199: 198 | CI199: 9 | CJ199: 6 | CK199: ='HourGH-NOV'!H19 -> 0 | CL199: 198 | CM199: 9 | CN199: 6 | CO199: ='HourGH-DEC'!H19 -> 0 | CP199: 198 | CQ199: 9 | CR199: 6 | CS199: ='HourGH-JAN'!H19 -> 0 | CT199: 198 | CU199: 9 | CV199: 6 | CW199: ='HourGH-FEB'!H19 -> 0 | CX199: 198 | CY199: 9 | CZ199: 6 | DA199: ='HourGH-MAR'!H19 -> 0
BF200: 199 | BG200: 9 | BH200: 7 | BI200: ='HourGH-APR'!I19 -> 0 | BJ200: 199 | BK200: 9 | BL200: 7 | BM200: ='HourGH-MAY'!I19 -> 0 | BN200: 199 | BO200: 9 | BP200: 7 | BQ200: ='HourGH-JUN'!I19 -> 0 | BR200: 199 | BS200: 9 | BT200: 7 | BU200: ='HourGH-JUL'!I19 -> 0 | BV200: 199 | BW200: 9 | BX200: 7 | BY200: ='HourGH-AUG'!I19 -> 0 | BZ200: 199 | CA200: 9 | CB200: 7 | CC200: ='HourGH-SEP'!I19 -> 0 | CD200: 199 | CE200: 9 | CF200: 7 | CG200: ='HourGH-OCT'!I19 -> 0 | CH200: 199 | CI200: 9 | CJ200: 7 | CK200: ='HourGH-NOV'!I19 -> 0 | CL200: 199 | CM200: 9 | CN200: 7 | CO200: ='HourGH-DEC'!I19 -> 0 | CP200: 199 | CQ200: 9 | CR200: 7 | CS200: ='HourGH-JAN'!I19 -> 0 | CT200: 199 | CU200: 9 | CV200: 7 | CW200: ='HourGH-FEB'!I19 -> 0 | CX200: 199 | CY200: 9 | CZ200: 7 | DA200: ='HourGH-MAR'!I19 -> 0
... 545 more rows

Sheet Graph-GH
A1: การแก้ไขค่ามากที่สุด - น้อยที่สุดของแกนY ให้คลิ๊กขวาที่แกนนั้นแล้วแก้ไขที่มาตราส่วนกำหนดค่าสูงสุด-ต่ำสุดตามที่ต้องการ
A2: ต้องการพิมพ์กราฟรูปไหนให้คลิ๊กที่กราฟรูปนั้นแล้วสั่งพิมพ์
AC3: Daily Mean-GH | AI3: Daily Max-GH | AO3: Daily Min-GH | AU3: Daily Discharge
AB5: 1 | AC5: 1 | AD5: 1 | AE5: =DailyMeanGH!C9 -> 268.84 | AH5: 1 | AI5: 1 | AJ5: 1 | AK5: ='HourGH-APR'!AC11 -> 268.84 | AN5: 1 | AO5: 1 | AP5: 1 | AQ5: ='HourGH-APR'!AE11 -> 268.84 | AT5: 1 | AU5: 1 | AV5: 1 | AW5: =Discharge!C9 -> 5.02
AB6: 1 | AC6: 2 | AD6: 2 | AE6: =DailyMeanGH!C10 -> 268.83 | AH6: 1 | AI6: 2 | AJ6: 2 | AK6: ='HourGH-APR'!AC12 -> 268.83 | AN6: 1 | AO6: 2 | AP6: 2 | AQ6: ='HourGH-APR'!AE12 -> 268.83 | AT6: 1 | AU6: 2 | AV6: 2 | AW6: =Discharge!C10 -> 4.74
AB7: 1 | AC7: 3 | AD7: 3 | AE7: =DailyMeanGH!C11 -> 268.83 | AH7: 1 | AI7: 3 | AJ7: 3 | AK7: ='HourGH-APR'!AC13 -> 268.83 | AN7: 1 | AO7: 3 | AP7: 3 | AQ7: ='HourGH-APR'!AE13 -> 268.83 | AT7: 1 | AU7: 3 | AV7: 3 | AW7: =Discharge!C11 -> 4.74
AB8: 1 | AC8: 4 | AD8: 4 | AE8: =DailyMeanGH!C12 -> 268.83 | AH8: 1 | AI8: 4 | AJ8: 4 | AK8: ='HourGH-APR'!AC14 -> 268.83 | AN8: 1 | AO8: 4 | AP8: 4 | AQ8: ='HourGH-APR'!AE14 -> 268.83 | AT8: 1 | AU8: 4 | AV8: 4 | AW8: =Discharge!C12 -> 4.74
AB9: 1 | AC9: 5 | AD9: 5 | AE9: =DailyMeanGH!C13 -> 268.83 | AH9: 1 | AI9: 5 | AJ9: 5 | AK9: ='HourGH-APR'!AC15 -> 268.83 | AN9: 1 | AO9: 5 | AP9: 5 | AQ9: ='HourGH-APR'!AE15 -> 268.83 | AT9: 1 | AU9: 5 | AV9: 5 | AW9: =Discharge!C13 -> 4.74
AB10: 1 | AC10: 6 | AD10: 6 | AE10: =DailyMeanGH!C14 -> 268.82 | AH10: 1 | AI10: 6 | AJ10: 6 | AK10: ='HourGH-APR'!AC16 -> 268.82 | AN10: 1 | AO10: 6 | AP10: 6 | AQ10: ='HourGH-APR'!AE16 -> 268.82 | AT10: 1 | AU10: 6 | AV10: 6 | AW10: =Discharge!C14 -> 4.46
AB11: 1 | AC11: 7 | AD11: 7 | AE11: =DailyMeanGH!C15 -> 268.82 | AH11: 1 | AI11: 7 | AJ11: 7 | AK11: ='HourGH-APR'!AC17 -> 268.82 | AN11: 1 | AO11: 7 | AP11: 7 | AQ11: ='HourGH-APR'!AE17 -> 268.82 | AT11: 1 | AU11: 7 | AV11: 7 | AW11: =Discharge!C15 -> 4.46
AB12: 1 | AC12: 8 | AD12: 8 | AE12: =DailyMeanGH!C16 -> 268.82 | AH12: 1 | AI12: 8 | AJ12: 8 | AK12: ='HourGH-APR'!AC18 -> 268.82 | AN12: 1 | AO12: 8 | AP12: 8 | AQ12: ='HourGH-APR'!AE18 -> 268.82 | AT12: 1 | AU12: 8 | AV12: 8 | AW12: =Discharge!C16 -> 4.46
AB13: 1 | AC13: 9 | AD13: 9 | AE13: =DailyMeanGH!C17 -> 268.82 | AH13: 1 | AI13: 9 | AJ13: 9 | AK13: ='HourGH-APR'!AC19 -> 268.82 | AN13: 1 | AO13: 9 | AP13: 9 | AQ13: ='HourGH-APR'!AE19 -> 268.82 | AT13: 1 | AU13: 9 | AV13: 9 | AW13: =Discharge!C17 -> 4.46
AB14: 1 | AC14: 10 | AD14: 10 | AE14: =DailyMeanGH!C18 -> 268.87 | AH14: 1 | AI14: 10 | AJ14: 10 | AK14: ='HourGH-APR'!AC20 -> 268.87 | AN14: 1 | AO14: 10 | AP14: 10 | AQ14: ='HourGH-APR'!AE20 -> 268.87 | AT14: 1 | AU14: 10 | AV14: 10 | AW14: =Discharge!C18 -> 5.86
AB15: 1 | AC15: 11 | AD15: 11 | AE15: =DailyMeanGH!C20 -> 268.85 | AH15: 1 | AI15: 11 | AJ15: 11 | AK15: ='HourGH-APR'!AC22 -> 268.85 | AN15: 1 | AO15: 11 | AP15: 11 | AQ15: ='HourGH-APR'!AE22 -> 268.85 | AT15: 1 | AU15: 11 | AV15: 11 | AW15: =Discharge!C20 -> 5.3
AB16: 1 | AC16: 12 | AD16: 12 | AE16: =DailyMeanGH!C21 -> 268.82 | AH16: 1 | AI16: 12 | AJ16: 12 | AK16: ='HourGH-APR'!AC23 -> 268.82 | AN16: 1 | AO16: 12 | AP16: 12 | AQ16: ='HourGH-APR'!AE23 -> 268.82 | AT16: 1 | AU16: 12 | AV16: 12 | AW16: =Discharge!C21 -> 4.46
AB17: 1 | AC17: 13 | AD17: 13 | AE17: =DailyMeanGH!C22 -> 268.82 | AH17: 1 | AI17: 13 | AJ17: 13 | AK17: ='HourGH-APR'!AC24 -> 268.82 | AN17: 1 | AO17: 13 | AP17: 13 | AQ17: ='HourGH-APR'!AE24 -> 268.82 | AT17: 1 | AU17: 13 | AV17: 13 | AW17: =Discharge!C22 -> 4.46
AB18: 1 | AC18: 14 | AD18: 14 | AE18: =DailyMeanGH!C23 -> 268.81 | AH18: 1 | AI18: 14 | AJ18: 14 | AK18: ='HourGH-APR'!AC25 -> 268.81 | AN18: 1 | AO18: 14 | AP18: 14 | AQ18: ='HourGH-APR'!AE25 -> 268.81 | AT18: 1 | AU18: 14 | AV18: 14 | AW18: =Discharge!C23 -> 4.18
AB19: 1 | AC19: 15 | AD19: 15 | AE19: =DailyMeanGH!C24 -> 268.81 | AH19: 1 | AI19: 15 | AJ19: 15 | AK19: ='HourGH-APR'!AC26 -> 268.81 | AN19: 1 | AO19: 15 | AP19: 15 | AQ19: ='HourGH-APR'!AE26 -> 268.81 | AT19: 1 | AU19: 15 | AV19: 15 | AW19: =Discharge!C24 -> 4.18
AB20: 1 | AC20: 16 | AD20: 16 | AE20: =DailyMeanGH!C25 -> 268.81 | AH20: 1 | AI20: 16 | AJ20: 16 | AK20: ='HourGH-APR'!AC27 -> 268.81 | AN20: 1 | AO20: 16 | AP20: 16 | AQ20: ='HourGH-APR'!AE27 -> 268.81 | AT20: 1 | AU20: 16 | AV20: 16 | AW20: =Discharge!C25 -> 4.18
AB21: 1 | AC21: 17 | AD21: 17 | AE21: =DailyMeanGH!C26 -> 268.81 | AH21: 1 | AI21: 17 | AJ21: 17 | AK21: ='HourGH-APR'!AC28 -> 268.81 | AN21: 1 | AO21: 17 | AP21: 17 | AQ21: ='HourGH-APR'!AE28 -> 268.81 | AT21: 1 | AU21: 17 | AV21: 17 | AW21: =Discharge!C26 -> 4.18
AB22: 1 | AC22: 18 | AD22: 18 | AE22: =DailyMeanGH!C27 -> 268.81 | AH22: 1 | AI22: 18 | AJ22: 18 | AK22: ='HourGH-APR'!AC29 -> 268.81 | AN22: 1 | AO22: 18 | AP22: 18 | AQ22: ='HourGH-APR'!AE29 -> 268.81 | AT22: 1 | AU22: 18 | AV22: 18 | AW22: =Discharge!C27 -> 4.18
AB23: 1 | AC23: 19 | AD23: 19 | AE23: =DailyMeanGH!C28 -> 268.8 | AH23: 1 | AI23: 19 | AJ23: 19 | AK23: ='HourGH-APR'!AC30 -> 268.8 | AN23: 1 | AO23: 19 | AP23: 19 | AQ23: ='HourGH-APR'!AE30 -> 268.8 | AT23: 1 | AU23: 19 | AV23: 19 | AW23: =Discharge!C28 -> 3.9
AB24: 1 | AC24: 20 | AD24: 20 | AE24: =DailyMeanGH!C29 -> 268.8 | AH24: 1 | AI24: 20 | AJ24: 20 | AK24: ='HourGH-APR'!AC31 -> 268.8 | AN24: 1 | AO24: 20 | AP24: 20 | AQ24: ='HourGH-APR'!AE31 -> 268.8 | AT24: 1 | AU24: 20 | AV24: 20 | AW24: =Discharge!C29 -> 3.9
AB25: 1 | AC25: 21 | AD25: 21 | AE25: =DailyMeanGH!C31 -> 268.8 | AH25: 1 | AI25: 21 | AJ25: 21 | AK25: ='HourGH-APR'!AC33 -> 268.8 | AN25: 1 | AO25: 21 | AP25: 21 | AQ25: ='HourGH-APR'!AE33 -> 268.8 | AT25: 1 | AU25: 21 | AV25: 21 | AW25: =Discharge!C31 -> 3.9
AB26: 1 | AC26: 22 | AD26: 22 | AE26: =DailyMeanGH!C32 -> 268.8 | AH26: 1 | AI26: 22 | AJ26: 22 | AK26: ='HourGH-APR'!AC34 -> 268.8 | AN26: 1 | AO26: 22 | AP26: 22 | AQ26: ='HourGH-APR'!AE34 -> 268.8 | AT26: 1 | AU26: 22 | AV26: 22 | AW26: =Discharge!C32 -> 3.9
AB27: 1 | AC27: 23 | AD27: 23 | AE27: =DailyMeanGH!C33 -> 268.8 | AH27: 1 | AI27: 23 | AJ27: 23 | AK27: ='HourGH-APR'!AC35 -> 268.8 | AN27: 1 | AO27: 23 | AP27: 23 | AQ27: ='HourGH-APR'!AE35 -> 268.8 | AT27: 1 | AU27: 23 | AV27: 23 | AW27: =Discharge!C33 -> 3.9
AB28: 1 | AC28: 24 | AD28: 24 | AE28: =DailyMeanGH!C34 -> 268.84 | AH28: 1 | AI28: 24 | AJ28: 24 | AK28: ='HourGH-APR'!AC36 -> 268.84 | AN28: 1 | AO28: 24 | AP28: 24 | AQ28: ='HourGH-APR'!AE36 -> 268.84 | AT28: 1 | AU28: 24 | AV28: 24 | AW28: =Discharge!C34 -> 5.02
AB29: 1 | AC29: 25 | AD29: 25 | AE29: =DailyMeanGH!C35 -> 268.85 | AH29: 1 | AI29: 25 | AJ29: 25 | AK29: ='HourGH-APR'!AC37 -> 268.85 | AN29: 1 | AO29: 25 | AP29: 25 | AQ29: ='HourGH-APR'!AE37 -> 268.85 | AT29: 1 | AU29: 25 | AV29: 25 | AW29: =Discharge!C35 -> 5.3
AB30: 1 | AC30: 26 | AD30: 26 | AE30: =DailyMeanGH!C36 -> 268.87 | AH30: 1 | AI30: 26 | AJ30: 26 | AK30: ='HourGH-APR'!AC38 -> 268.87 | AN30: 1 | AO30: 26 | AP30: 26 | AQ30: ='HourGH-APR'!AE38 -> 268.87 | AT30: 1 | AU30: 26 | AV30: 26 | AW30: =Discharge!C36 -> 5.86
AB31: 1 | AC31: 27 | AD31: 27 | AE31: =DailyMeanGH!C37 -> 268.87 | AH31: 1 | AI31: 27 | AJ31: 27 | AK31: ='HourGH-APR'!AC39 -> 268.87 | AN31: 1 | AO31: 27 | AP31: 27 | AQ31: ='HourGH-APR'!AE39 -> 268.87 | AT31: 1 | AU31: 27 | AV31: 27 | AW31: =Discharge!C37 -> 5.86
AB32: 1 | AC32: 28 | AD32: 28 | AE32: =DailyMeanGH!C38 -> 268.87 | AH32: 1 | AI32: 28 | AJ32: 28 | AK32: ='HourGH-APR'!AC40 -> 268.87 | AN32: 1 | AO32: 28 | AP32: 28 | AQ32: ='HourGH-APR'!AE40 -> 268.87 | AT32: 1 | AU32: 28 | AV32: 28 | AW32: =Discharge!C38 -> 5.86
AB33: 1 | AC33: 29 | AD33: 29 | AE33: =DailyMeanGH!C39 -> 268.87 | AH33: 1 | AI33: 29 | AJ33: 29 | AK33: ='HourGH-APR'!AC41 -> 268.87 | AN33: 1 | AO33: 29 | AP33: 29 | AQ33: ='HourGH-APR'!AE41 -> 268.87 | AT33: 1 | AU33: 29 | AV33: 29 | AW33: =Discharge!C39 -> 5.86
AB34: 1 | AC34: 30 | AD34: 30 | AE34: =DailyMeanGH!C40 -> 268.83 | AH34: 1 | AI34: 30 | AJ34: 30 | AK34: ='HourGH-APR'!AC42 -> 268.83 | AN34: 1 | AO34: 30 | AP34: 30 | AQ34: ='HourGH-APR'!AE42 -> 268.83 | AT34: 1 | AU34: 30 | AV34: 30 | AW34: =Discharge!C40 -> 4.74
AB35: 2 | AC35: 1 | AD35: 31 | AE35: =DailyMeanGH!D9 -> 268.85 | AH35: 2 | AI35: 1 | AJ35: 31 | AK35: ='HourGH-MAY'!AC11 -> 268.86 | AN35: 2 | AO35: 1 | AP35: 31 | AQ35: ='HourGH-MAY'!AE11 -> 268.85 | AT35: 2 | AU35: 1 | AV35: 31 | AW35: =Discharge!D9 -> 5.3
AB36: 2 | AC36: 2 | AD36: 32 | AE36: =DailyMeanGH!D10 -> 268.86 | AH36: 2 | AI36: 2 | AJ36: 32 | AK36: ='HourGH-MAY'!AC12 -> 268.89 | AN36: 2 | AO36: 2 | AP36: 32 | AQ36: ='HourGH-MAY'!AE12 -> 268.84 | AT36: 2 | AU36: 2 | AV36: 32 | AW36: =Discharge!D10 -> 5.58
AB37: 2 | AC37: 3 | AD37: 33 | AE37: =DailyMeanGH!D11 -> 268.97 | AH37: 2 | AI37: 3 | AJ37: 33 | AK37: ='HourGH-MAY'!AC13 -> 269.01 | AN37: 2 | AO37: 3 | AP37: 33 | AQ37: ='HourGH-MAY'!AE13 -> 268.93 | AT37: 2 | AU37: 3 | AV37: 33 | AW37: =Discharge!D11 -> 9.01
AB38: 2 | AC38: 4 | AD38: 34 | AE38: =DailyMeanGH!D12 -> 268.9 | AH38: 2 | AI38: 4 | AJ38: 34 | AK38: ='HourGH-MAY'!AC14 -> 268.92 | AN38: 2 | AO38: 4 | AP38: 34 | AQ38: ='HourGH-MAY'!AE14 -> 268.889 | AT38: 2 | AU38: 4 | AV38: 34 | AW38: =Discharge!D12 -> 6.7
AB39: 2 | AC39: 5 | AD39: 35 | AE39: =DailyMeanGH!D13 -> 268.93 | AH39: 2 | AI39: 5 | AJ39: 35 | AK39: ='HourGH-MAY'!AC15 -> 269.01 | AN39: 2 | AO39: 5 | AP39: 35 | AQ39: ='HourGH-MAY'!AE15 -> 268.9 | AT39: 2 | AU39: 5 | AV39: 35 | AW39: =Discharge!D13 -> 7.69
AB40: 2 | AC40: 6 | AD40: 36 | AE40: =DailyMeanGH!D14 -> 268.86 | AH40: 2 | AI40: 6 | AJ40: 36 | AK40: ='HourGH-MAY'!AC16 -> 268.86 | AN40: 2 | AO40: 6 | AP40: 36 | AQ40: ='HourGH-MAY'!AE16 -> 268.86 | AT40: 2 | AU40: 6 | AV40: 36 | AW40: =Discharge!D14 -> 5.58
AB41: 2 | AC41: 7 | AD41: 37 | AE41: =DailyMeanGH!D15 -> 268.83 | AH41: 2 | AI41: 7 | AJ41: 37 | AK41: ='HourGH-MAY'!AC17 -> 268.83 | AN41: 2 | AO41: 7 | AP41: 37 | AQ41: ='HourGH-MAY'!AE17 -> 268.83 | AT41: 2 | AU41: 7 | AV41: 37 | AW41: =Discharge!D15 -> 4.74
AB42: 2 | AC42: 8 | AD42: 38 | AE42: =DailyMeanGH!D16 -> 268.82 | AH42: 2 | AI42: 8 | AJ42: 38 | AK42: ='HourGH-MAY'!AC18 -> 268.82 | AN42: 2 | AO42: 8 | AP42: 38 | AQ42: ='HourGH-MAY'!AE18 -> 268.82 | AT42: 2 | AU42: 8 | AV42: 38 | AW42: =Discharge!D16 -> 4.46
AB43: 2 | AC43: 9 | AD43: 39 | AE43: =DailyMeanGH!D17 -> 268.82 | AH43: 2 | AI43: 9 | AJ43: 39 | AK43: ='HourGH-MAY'!AC19 -> 268.82 | AN43: 2 | AO43: 9 | AP43: 39 | AQ43: ='HourGH-MAY'!AE19 -> 268.82 | AT43: 2 | AU43: 9 | AV43: 39 | AW43: =Discharge!D17 -> 4.46
AB44: 2 | AC44: 10 | AD44: 40 | AE44: =DailyMeanGH!D18 -> 269.24 | AH44: 2 | AI44: 10 | AJ44: 40 | AK44: ='HourGH-MAY'!AC20 -> 269.44 | AN44: 2 | AO44: 10 | AP44: 40 | AQ44: ='HourGH-MAY'!AE20 -> 268.99 | AT44: 2 | AU44: 10 | AV44: 40 | AW44: =Discharge!D18 -> 20.2
AB45: 2 | AC45: 11 | AD45: 41 | AE45: =DailyMeanGH!D20 -> 268.99 | AH45: 2 | AI45: 11 | AJ45: 41 | AK45: ='HourGH-MAY'!AC22 -> 269.02 | AN45: 2 | AO45: 11 | AP45: 41 | AQ45: ='HourGH-MAY'!AE22 -> 268.97 | AT45: 2 | AU45: 11 | AV45: 41 | AW45: =Discharge!D20 -> 9.67
AB46: 2 | AC46: 12 | AD46: 42 | AE46: =DailyMeanGH!D21 -> 268.93 | AH46: 2 | AI46: 12 | AJ46: 42 | AK46: ='HourGH-MAY'!AC23 -> 268.93 | AN46: 2 | AO46: 12 | AP46: 42 | AQ46: ='HourGH-MAY'!AE23 -> 268.93 | AT46: 2 | AU46: 12 | AV46: 42 | AW46: =Discharge!D21 -> 7.69
AB47: 2 | AC47: 13 | AD47: 43 | AE47: =DailyMeanGH!D22 -> 269.21 | AH47: 2 | AI47: 13 | AJ47: 43 | AK47: ='HourGH-MAY'!AC24 -> 269.43 | AN47: 2 | AO47: 13 | AP47: 43 | AQ47: ='HourGH-MAY'!AE24 -> 269.01 | AT47: 2 | AU47: 13 | AV47: 43 | AW47: =Discharge!D22 -> 18.85
AB48: 2 | AC48: 14 | AD48: 44 | AE48: =DailyMeanGH!D23 -> 269.04 | AH48: 2 | AI48: 14 | AJ48: 44 | AK48: ='HourGH-MAY'!AC25 -> 269.06 | AN48: 2 | AO48: 14 | AP48: 44 | AQ48: ='HourGH-MAY'!AE25 -> 269.01 | AT48: 2 | AU48: 14 | AV48: 44 | AW48: =Discharge!D23 -> 11.68
AB49: 2 | AC49: 15 | AD49: 45 | AE49: =DailyMeanGH!D24 -> 268.94 | AH49: 2 | AI49: 15 | AJ49: 45 | AK49: ='HourGH-MAY'!AC26 -> 268.94 | AN49: 2 | AO49: 15 | AP49: 45 | AQ49: ='HourGH-MAY'!AE26 -> 268.94 | AT49: 2 | AU49: 15 | AV49: 45 | AW49: =Discharge!D24 -> 8.02
AB50: 2 | AC50: 16 | AD50: 46 | AE50: =DailyMeanGH!D25 -> 268.93 | AH50: 2 | AI50: 16 | AJ50: 46 | AK50: ='HourGH-MAY'!AC27 -> 268.94 | AN50: 2 | AO50: 16 | AP50: 46 | AQ50: ='HourGH-MAY'!AE27 -> 268.92 | AT50: 2 | AU50: 16 | AV50: 46 | AW50: =Discharge!D25 -> 7.69
AB51: 2 | AC51: 17 | AD51: 47 | AE51: =DailyMeanGH!D26 -> 268.88 | AH51: 2 | AI51: 17 | AJ51: 47 | AK51: ='HourGH-MAY'!AC28 -> 268.9 | AN51: 2 | AO51: 17 | AP51: 47 | AQ51: ='HourGH-MAY'!AE28 -> 268.87 | AT51: 2 | AU51: 17 | AV51: 47 | AW51: =Discharge!D26 -> 6.14
AB52: 2 | AC52: 18 | AD52: 48 | AE52: =DailyMeanGH!D27 -> 268.88 | AH52: 2 | AI52: 18 | AJ52: 48 | AK52: ='HourGH-MAY'!AC29 -> 268.88 | AN52: 2 | AO52: 18 | AP52: 48 | AQ52: ='HourGH-MAY'!AE29 -> 268.88 | AT52: 2 | AU52: 18 | AV52: 48 | AW52: =Discharge!D27 -> 6.14
AB53: 2 | AC53: 19 | AD53: 49 | AE53: =DailyMeanGH!D28 -> 268.86 | AH53: 2 | AI53: 19 | AJ53: 49 | AK53: ='HourGH-MAY'!AC30 -> 268.86 | AN53: 2 | AO53: 19 | AP53: 49 | AQ53: ='HourGH-MAY'!AE30 -> 268.86 | AT53: 2 | AU53: 19 | AV53: 49 | AW53: =Discharge!D28 -> 5.58
AB54: 2 | AC54: 20 | AD54: 50 | AE54: =DailyMeanGH!D29 -> 268.84 | AH54: 2 | AI54: 20 | AJ54: 50 | AK54: ='HourGH-MAY'!AC31 -> 268.84 | AN54: 2 | AO54: 20 | AP54: 50 | AQ54: ='HourGH-MAY'!AE31 -> 268.84 | AT54: 2 | AU54: 20 | AV54: 50 | AW54: =Discharge!D29 -> 5.02
AB55: 2 | AC55: 21 | AD55: 51 | AE55: =DailyMeanGH!D31 -> 268.83 | AH55: 2 | AI55: 21 | AJ55: 51 | AK55: ='HourGH-MAY'!AC33 -> 268.83 | AN55: 2 | AO55: 21 | AP55: 51 | AQ55: ='HourGH-MAY'!AE33 -> 268.83 | AT55: 2 | AU55: 21 | AV55: 51 | AW55: =Discharge!D31 -> 4.74
AB56: 2 | AC56: 22 | AD56: 52 | AE56: =DailyMeanGH!D32 -> 268.83 | AH56: 2 | AI56: 22 | AJ56: 52 | AK56: ='HourGH-MAY'!AC34 -> 268.83 | AN56: 2 | AO56: 22 | AP56: 52 | AQ56: ='HourGH-MAY'!AE34 -> 268.83 | AT56: 2 | AU56: 22 | AV56: 52 | AW56: =Discharge!D32 -> 4.74
AB57: 2 | AC57: 23 | AD57: 53 | AE57: =DailyMeanGH!D33 -> 269.1 | AH57: 2 | AI57: 23 | AJ57: 53 | AK57: ='HourGH-MAY'!AC35 -> 269.15 | AN57: 2 | AO57: 23 | AP57: 53 | AQ57: ='HourGH-MAY'!AE35 -> 269.07 | AT57: 2 | AU57: 23 | AV57: 53 | AW57: =Discharge!D33 -> 14.2
AB58: 2 | AC58: 24 | AD58: 54 | AE58: =DailyMeanGH!D34 -> 268.9 | AH58: 2 | AI58: 24 | AJ58: 54 | AK58: ='HourGH-MAY'!AC36 -> 268.92 | AN58: 2 | AO58: 24 | AP58: 54 | AQ58: ='HourGH-MAY'!AE36 -> 268.87 | AT58: 2 | AU58: 24 | AV58: 54 | AW58: =Discharge!D34 -> 6.7
AB59: 2 | AC59: 25 | AD59: 55 | AE59: =DailyMeanGH!D35 -> 268.86 | AH59: 2 | AI59: 25 | AJ59: 55 | AK59: ='HourGH-MAY'!AC37 -> 268.86 | AN59: 2 | AO59: 25 | AP59: 55 | AQ59: ='HourGH-MAY'!AE37 -> 268.86 | AT59: 2 | AU59: 25 | AV59: 55 | AW59: =Discharge!D35 -> 5.58
AB60: 2 | AC60: 26 | AD60: 56 | AE60: =DailyMeanGH!D36 -> 268.83 | AH60: 2 | AI60: 26 | AJ60: 56 | AK60: ='HourGH-MAY'!AC38 -> 268.83 | AN60: 2 | AO60: 26 | AP60: 56 | AQ60: ='HourGH-MAY'!AE38 -> 268.83 | AT60: 2 | AU60: 26 | AV60: 56 | AW60: =Discharge!D36 -> 4.74
AB61: 2 | AC61: 27 | AD61: 57 | AE61: =DailyMeanGH!D37 -> 268.83 | AH61: 2 | AI61: 27 | AJ61: 57 | AK61: ='HourGH-MAY'!AC39 -> 268.83 | AN61: 2 | AO61: 27 | AP61: 57 | AQ61: ='HourGH-MAY'!AE39 -> 268.83 | AT61: 2 | AU61: 27 | AV61: 57 | AW61: =Discharge!D37 -> 4.74
AB62: 2 | AC62: 28 | AD62: 58 | AE62: =DailyMeanGH!D38 -> 268.83 | AH62: 2 | AI62: 28 | AJ62: 58 | AK62: ='HourGH-MAY'!AC40 -> 268.83 | AN62: 2 | AO62: 28 | AP62: 58 | AQ62: ='HourGH-MAY'!AE40 -> 268.83 | AT62: 2 | AU62: 28 | AV62: 58 | AW62: =Discharge!D38 -> 4.74
AB63: 2 | AC63: 29 | AD63: 59 | AE63: =DailyMeanGH!D39 -> 268.94 | AH63: 2 | AI63: 29 | AJ63: 59 | AK63: ='HourGH-MAY'!AC41 -> 268.95 | AN63: 2 | AO63: 29 | AP63: 59 | AQ63: ='HourGH-MAY'!AE41 -> 268.92 | AT63: 2 | AU63: 29 | AV63: 59 | AW63: =Discharge!D39 -> 8.02
AB64: 2 | AC64: 30 | AD64: 60 | AE64: =DailyMeanGH!D40 -> 268.96 | AH64: 2 | AI64: 30 | AJ64: 60 | AK64: ='HourGH-MAY'!AC42 -> 268.97 | AN64: 2 | AO64: 30 | AP64: 60 | AQ64: ='HourGH-MAY'!AE42 -> 268.94 | AT64: 2 | AU64: 30 | AV64: 60 | AW64: =Discharge!D40 -> 8.68
AB65: 2 | AC65: 31 | AD65: 61 | AE65: =DailyMeanGH!D41 -> 268.88 | AH65: 2 | AI65: 31 | AJ65: 61 | AK65: ='HourGH-MAY'!AC43 -> 268.88 | AN65: 2 | AO65: 31 | AP65: 61 | AQ65: ='HourGH-MAY'!AE43 -> 268.88 | AT65: 2 | AU65: 31 | AV65: 61 | AW65: =Discharge!D41 -> 6.14
AB66: 3 | AC66: 1 | AD66: 62 | AE66: =DailyMeanGH!E9 -> 268.88 | AH66: 3 | AI66: 1 | AJ66: 62 | AK66: ='HourGH-JUN'!AC11 -> 268.88 | AN66: 3 | AO66: 1 | AP66: 62 | AQ66: ='HourGH-JUN'!AE11 -> 268.88 | AT66: 3 | AU66: 1 | AV66: 62 | AW66: =Discharge!E9 -> 6.14
AB67: 3 | AC67: 2 | AD67: 63 | AE67: =DailyMeanGH!E10 -> 268.86 | AH67: 3 | AI67: 2 | AJ67: 63 | AK67: ='HourGH-JUN'!AC12 -> 268.86 | AN67: 3 | AO67: 2 | AP67: 63 | AQ67: ='HourGH-JUN'!AE12 -> 268.86 | AT67: 3 | AU67: 2 | AV67: 63 | AW67: =Discharge!E10 -> 5.58
AB68: 3 | AC68: 3 | AD68: 64 | AE68: =DailyMeanGH!E11 -> 268.84 | AH68: 3 | AI68: 3 | AJ68: 64 | AK68: ='HourGH-JUN'!AC13 -> 268.84 | AN68: 3 | AO68: 3 | AP68: 64 | AQ68: ='HourGH-JUN'!AE13 -> 268.84 | AT68: 3 | AU68: 3 | AV68: 64 | AW68: =Discharge!E11 -> 5.02
AB69: 3 | AC69: 4 | AD69: 65 | AE69: =DailyMeanGH!E12 -> 268.83 | AH69: 3 | AI69: 4 | AJ69: 65 | AK69: ='HourGH-JUN'!AC14 -> 268.83 | AN69: 3 | AO69: 4 | AP69: 65 | AQ69: ='HourGH-JUN'!AE14 -> 268.83 | AT69: 3 | AU69: 4 | AV69: 65 | AW69: =Discharge!E12 -> 4.74
AB70: 3 | AC70: 5 | AD70: 66 | AE70: =DailyMeanGH!E13 -> 268.82 | AH70: 3 | AI70: 5 | AJ70: 66 | AK70: ='HourGH-JUN'!AC15 -> 268.82 | AN70: 3 | AO70: 5 | AP70: 66 | AQ70: ='HourGH-JUN'!AE15 -> 268.82 | AT70: 3 | AU70: 5 | AV70: 66 | AW70: =Discharge!E13 -> 4.46
AB71: 3 | AC71: 6 | AD71: 67 | AE71: =DailyMeanGH!E14 -> 268.84 | AH71: 3 | AI71: 6 | AJ71: 67 | AK71: ='HourGH-JUN'!AC16 -> 268.84 | AN71: 3 | AO71: 6 | AP71: 67 | AQ71: ='HourGH-JUN'!AE16 -> 268.84 | AT71: 3 | AU71: 6 | AV71: 67 | AW71: =Discharge!E14 -> 5.02
AB72: 3 | AC72: 7 | AD72: 68 | AE72: =DailyMeanGH!E15 -> 268.95 | AH72: 3 | AI72: 7 | AJ72: 68 | AK72: ='HourGH-JUN'!AC17 -> 268.95 | AN72: 3 | AO72: 7 | AP72: 68 | AQ72: ='HourGH-JUN'!AE17 -> 268.95 | AT72: 3 | AU72: 7 | AV72: 68 | AW72: =Discharge!E15 -> 8.35
AB73: 3 | AC73: 8 | AD73: 69 | AE73: =DailyMeanGH!E16 -> 268.92 | AH73: 3 | AI73: 8 | AJ73: 69 | AK73: ='HourGH-JUN'!AC18 -> 268.92 | AN73: 3 | AO73: 8 | AP73: 69 | AQ73: ='HourGH-JUN'!AE18 -> 268.92 | AT73: 3 | AU73: 8 | AV73: 69 | AW73: =Discharge!E16 -> 7.36
AB74: 3 | AC74: 9 | AD74: 70 | AE74: =DailyMeanGH!E17 -> 268.9 | AH74: 3 | AI74: 9 | AJ74: 70 | AK74: ='HourGH-JUN'!AC19 -> 268.9 | AN74: 3 | AO74: 9 | AP74: 70 | AQ74: ='HourGH-JUN'!AE19 -> 268.9 | AT74: 3 | AU74: 9 | AV74: 70 | AW74: =Discharge!E17 -> 6.7
AB75: 3 | AC75: 10 | AD75: 71 | AE75: =DailyMeanGH!E18 -> 268.87 | AH75: 3 | AI75: 10 | AJ75: 71 | AK75: ='HourGH-JUN'!AC20 -> 268.87 | AN75: 3 | AO75: 10 | AP75: 71 | AQ75: ='HourGH-JUN'!AE20 -> 268.87 | AT75: 3 | AU75: 10 | AV75: 71 | AW75: =Discharge!E18 -> 5.86
AB76: 3 | AC76: 11 | AD76: 72 | AE76: =DailyMeanGH!E20 -> 268.87 | AH76: 3 | AI76: 11 | AJ76: 72 | AK76: ='HourGH-JUN'!AC22 -> 268.87 | AN76: 3 | AO76: 11 | AP76: 72 | AQ76: ='HourGH-JUN'!AE22 -> 268.87 | AT76: 3 | AU76: 11 | AV76: 72 | AW76: =Discharge!E20 -> 5.86
AB77: 3 | AC77: 12 | AD77: 73 | AE77: =DailyMeanGH!E21 -> 268.95 | AH77: 3 | AI77: 12 | AJ77: 73 | AK77: ='HourGH-JUN'!AC23 -> 268.95 | AN77: 3 | AO77: 12 | AP77: 73 | AQ77: ='HourGH-JUN'!AE23 -> 268.95 | AT77: 3 | AU77: 12 | AV77: 73 | AW77: =Discharge!E21 -> 8.35
AB78: 3 | AC78: 13 | AD78: 74 | AE78: =DailyMeanGH!E22 -> 268.89 | AH78: 3 | AI78: 13 | AJ78: 74 | AK78: ='HourGH-JUN'!AC24 -> 268.89 | AN78: 3 | AO78: 13 | AP78: 74 | AQ78: ='HourGH-JUN'!AE24 -> 268.89 | AT78: 3 | AU78: 13 | AV78: 74 | AW78: =Discharge!E22 -> 6.42
AB79: 3 | AC79: 14 | AD79: 75 | AE79: =DailyMeanGH!E23 -> 268.86 | AH79: 3 | AI79: 14 | AJ79: 75 | AK79: ='HourGH-JUN'!AC25 -> 268.86 | AN79: 3 | AO79: 14 | AP79: 75 | AQ79: ='HourGH-JUN'!AE25 -> 268.86 | AT79: 3 | AU79: 14 | AV79: 75 | AW79: =Discharge!E23 -> 5.58
AB80: 3 | AC80: 15 | AD80: 76 | AE80: =DailyMeanGH!E24 -> 268.87 | AH80: 3 | AI80: 15 | AJ80: 76 | AK80: ='HourGH-JUN'!AC26 -> 268.87 | AN80: 3 | AO80: 15 | AP80: 76 | AQ80: ='HourGH-JUN'!AE26 -> 268.87 | AT80: 3 | AU80: 15 | AV80: 76 | AW80: =Discharge!E24 -> 5.86
AB81: 3 | AC81: 16 | AD81: 77 | AE81: =DailyMeanGH!E25 -> 268.9 | AH81: 3 | AI81: 16 | AJ81: 77 | AK81: ='HourGH-JUN'!AC27 -> 268.9 | AN81: 3 | AO81: 16 | AP81: 77 | AQ81: ='HourGH-JUN'!AE27 -> 268.9 | AT81: 3 | AU81: 16 | AV81: 77 | AW81: =Discharge!E25 -> 6.7
AB82: 3 | AC82: 17 | AD82: 78 | AE82: =DailyMeanGH!E26 -> 268.87 | AH82: 3 | AI82: 17 | AJ82: 78 | AK82: ='HourGH-JUN'!AC28 -> 268.87 | AN82: 3 | AO82: 17 | AP82: 78 | AQ82: ='HourGH-JUN'!AE28 -> 268.87 | AT82: 3 | AU82: 17 | AV82: 78 | AW82: =Discharge!E26 -> 5.86
AB83: 3 | AC83: 18 | AD83: 79 | AE83: =DailyMeanGH!E27 -> 268.86 | AH83: 3 | AI83: 18 | AJ83: 79 | AK83: ='HourGH-JUN'!AC29 -> 268.86 | AN83: 3 | AO83: 18 | AP83: 79 | AQ83: ='HourGH-JUN'!AE29 -> 268.86 | AT83: 3 | AU83: 18 | AV83: 79 | AW83: =Discharge!E27 -> 5.58
AB84: 3 | AC84: 19 | AD84: 80 | AE84: =DailyMeanGH!E28 -> 268.86 | AH84: 3 | AI84: 19 | AJ84: 80 | AK84: ='HourGH-JUN'!AC30 -> 268.86 | AN84: 3 | AO84: 19 | AP84: 80 | AQ84: ='HourGH-JUN'!AE30 -> 268.86 | AT84: 3 | AU84: 19 | AV84: 80 | AW84: =Discharge!E28 -> 5.58
AB85: 3 | AC85: 20 | AD85: 81 | AE85: =DailyMeanGH!E29 -> 268.89 | AH85: 3 | AI85: 20 | AJ85: 81 | AK85: ='HourGH-JUN'!AC31 -> 268.89 | AN85: 3 | AO85: 20 | AP85: 81 | AQ85: ='HourGH-JUN'!AE31 -> 268.89 | AT85: 3 | AU85: 20 | AV85: 81 | AW85: =Discharge!E29 -> 6.42
AB86: 3 | AC86: 21 | AD86: 82 | AE86: =DailyMeanGH!E31 -> 268.86 | AH86: 3 | AI86: 21 | AJ86: 82 | AK86: ='HourGH-JUN'!AC33 -> 268.86 | AN86: 3 | AO86: 21 | AP86: 82 | AQ86: ='HourGH-JUN'!AE33 -> 268.86 | AT86: 3 | AU86: 21 | AV86: 82 | AW86: =Discharge!E31 -> 5.58
AB87: 3 | AC87: 22 | AD87: 83 | AE87: =DailyMeanGH!E32 -> 268.86 | AH87: 3 | AI87: 22 | AJ87: 83 | AK87: ='HourGH-JUN'!AC34 -> 268.86 | AN87: 3 | AO87: 22 | AP87: 83 | AQ87: ='HourGH-JUN'!AE34 -> 268.86 | AT87: 3 | AU87: 22 | AV87: 83 | AW87: =Discharge!E32 -> 5.58
AB88: 3 | AC88: 23 | AD88: 84 | AE88: =DailyMeanGH!E33 -> 268.86 | AH88: 3 | AI88: 23 | AJ88: 84 | AK88: ='HourGH-JUN'!AC35 -> 268.86 | AN88: 3 | AO88: 23 | AP88: 84 | AQ88: ='HourGH-JUN'!AE35 -> 268.86 | AT88: 3 | AU88: 23 | AV88: 84 | AW88: =Discharge!E33 -> 5.58
AB89: 3 | AC89: 24 | AD89: 85 | AE89: =DailyMeanGH!E34 -> 268.86 | AH89: 3 | AI89: 24 | AJ89: 85 | AK89: ='HourGH-JUN'!AC36 -> 268.86 | AN89: 3 | AO89: 24 | AP89: 85 | AQ89: ='HourGH-JUN'!AE36 -> 268.86 | AT89: 3 | AU89: 24 | AV89: 85 | AW89: =Discharge!E34 -> 5.58
AB90: 3 | AC90: 25 | AD90: 86 | AE90: =DailyMeanGH!E35 -> 268.86 | AH90: 3 | AI90: 25 | AJ90: 86 | AK90: ='HourGH-JUN'!AC37 -> 268.86 | AN90: 3 | AO90: 25 | AP90: 86 | AQ90: ='HourGH-JUN'!AE37 -> 268.86 | AT90: 3 | AU90: 25 | AV90: 86 | AW90: =Discharge!E35 -> 5.58
AB91: 3 | AC91: 26 | AD91: 87 | AE91: =DailyMeanGH!E36 -> 268.86 | AH91: 3 | AI91: 26 | AJ91: 87 | AK91: ='HourGH-JUN'!AC38 -> 268.86 | AN91: 3 | AO91: 26 | AP91: 87 | AQ91: ='HourGH-JUN'!AE38 -> 268.86 | AT91: 3 | AU91: 26 | AV91: 87 | AW91: =Discharge!E36 -> 5.58
AB92: 3 | AC92: 27 | AD92: 88 | AE92: =DailyMeanGH!E37 -> 268.91 | AH92: 3 | AI92: 27 | AJ92: 88 | AK92: ='HourGH-JUN'!AC39 -> 268.91 | AN92: 3 | AO92: 27 | AP92: 88 | AQ92: ='HourGH-JUN'!AE39 -> 268.91 | AT92: 3 | AU92: 27 | AV92: 88 | AW92: =Discharge!E37 -> 7.03
AB93: 3 | AC93: 28 | AD93: 89 | AE93: =DailyMeanGH!E38 -> 268.88 | AH93: 3 | AI93: 28 | AJ93: 89 | AK93: ='HourGH-JUN'!AC40 -> 268.88 | AN93: 3 | AO93: 28 | AP93: 89 | AQ93: ='HourGH-JUN'!AE40 -> 268.88 | AT93: 3 | AU93: 28 | AV93: 89 | AW93: =Discharge!E38 -> 6.14
AB94: 3 | AC94: 29 | AD94: 90 | AE94: =DailyMeanGH!E39 -> 268.88 | AH94: 3 | AI94: 29 | AJ94: 90 | AK94: ='HourGH-JUN'!AC41 -> 268.88 | AN94: 3 | AO94: 29 | AP94: 90 | AQ94: ='HourGH-JUN'!AE41 -> 268.88 | AT94: 3 | AU94: 29 | AV94: 90 | AW94: =Discharge!E39 -> 6.14
AB95: 3 | AC95: 30 | AD95: 91 | AE95: =DailyMeanGH!E40 -> 268.86 | AH95: 3 | AI95: 30 | AJ95: 91 | AK95: ='HourGH-JUN'!AC42 -> 268.86 | AN95: 3 | AO95: 30 | AP95: 91 | AQ95: ='HourGH-JUN'!AE42 -> 268.86 | AT95: 3 | AU95: 30 | AV95: 91 | AW95: =Discharge!E40 -> 5.58
AB96: 4 | AC96: 1 | AD96: 92 | AE96: =DailyMeanGH!F9 -> 268.86 | AH96: 4 | AI96: 1 | AJ96: 92 | AK96: ='HourGH-JUL'!AC11 -> 268.86 | AN96: 4 | AO96: 1 | AP96: 92 | AQ96: ='HourGH-JUL'!AE11 -> 268.86 | AT96: 4 | AU96: 1 | AV96: 92 | AW96: =Discharge!F9 -> 5.58
AB97: 4 | AC97: 2 | AD97: 93 | AE97: =DailyMeanGH!F10 -> 268.86 | AH97: 4 | AI97: 2 | AJ97: 93 | AK97: ='HourGH-JUL'!AC12 -> 268.86 | AN97: 4 | AO97: 2 | AP97: 93 | AQ97: ='HourGH-JUL'!AE12 -> 268.86 | AT97: 4 | AU97: 2 | AV97: 93 | AW97: =Discharge!F10 -> 5.58
AB98: 4 | AC98: 3 | AD98: 94 | AE98: =DailyMeanGH!F11 -> 268.86 | AH98: 4 | AI98: 3 | AJ98: 94 | AK98: ='HourGH-JUL'!AC13 -> 268.86 | AN98: 4 | AO98: 3 | AP98: 94 | AQ98: ='HourGH-JUL'!AE13 -> 268.86 | AT98: 4 | AU98: 3 | AV98: 94 | AW98: =Discharge!F11 -> 5.58
AB99: 4 | AC99: 4 | AD99: 95 | AE99: =DailyMeanGH!F12 -> 268.86 | AH99: 4 | AI99: 4 | AJ99: 95 | AK99: ='HourGH-JUL'!AC14 -> 268.86 | AN99: 4 | AO99: 4 | AP99: 95 | AQ99: ='HourGH-JUL'!AE14 -> 268.86 | AT99: 4 | AU99: 4 | AV99: 95 | AW99: =Discharge!F12 -> 5.58
AB100: 4 | AC100: 5 | AD100: 96 | AE100: =DailyMeanGH!F13 -> 268.85 | AH100: 4 | AI100: 5 | AJ100: 96 | AK100: ='HourGH-JUL'!AC15 -> 268.85 | AN100: 4 | AO100: 5 | AP100: 96 | AQ100: ='HourGH-JUL'!AE15 -> 268.85 | AT100: 4 | AU100: 5 | AV100: 96 | AW100: =Discharge!F13 -> 5.3
AB101: 4 | AC101: 6 | AD101: 97 | AE101: =DailyMeanGH!F14 -> 268.85 | AH101: 4 | AI101: 6 | AJ101: 97 | AK101: ='HourGH-JUL'!AC16 -> 268.85 | AN101: 4 | AO101: 6 | AP101: 97 | AQ101: ='HourGH-JUL'!AE16 -> 268.85 | AT101: 4 | AU101: 6 | AV101: 97 | AW101: =Discharge!F14 -> 5.3
AB102: 4 | AC102: 7 | AD102: 98 | AE102: =DailyMeanGH!F15 -> 268.83 | AH102: 4 | AI102: 7 | AJ102: 98 | AK102: ='HourGH-JUL'!AC17 -> 268.83 | AN102: 4 | AO102: 7 | AP102: 98 | AQ102: ='HourGH-JUL'!AE17 -> 268.83 | AT102: 4 | AU102: 7 | AV102: 98 | AW102: =Discharge!F15 -> 4.74
AB103: 4 | AC103: 8 | AD103: 99 | AE103: =DailyMeanGH!F16 -> 268.82 | AH103: 4 | AI103: 8 | AJ103: 99 | AK103: ='HourGH-JUL'!AC18 -> 268.82 | AN103: 4 | AO103: 8 | AP103: 99 | AQ103: ='HourGH-JUL'!AE18 -> 268.82 | AT103: 4 | AU103: 8 | AV103: 99 | AW103: =Discharge!F16 -> 4.46
AB104: 4 | AC104: 9 | AD104: 100 | AE104: =DailyMeanGH!F17 -> 268.9 | AH104: 4 | AI104: 9 | AJ104: 100 | AK104: ='HourGH-JUL'!AC19 -> 268.92 | AN104: 4 | AO104: 9 | AP104: 100 | AQ104: ='HourGH-JUL'!AE19 -> 268.87 | AT104: 4 | AU104: 9 | AV104: 100 | AW104: =Discharge!F17 -> 6.7
AB105: 4 | AC105: 10 | AD105: 101 | AE105: =DailyMeanGH!F18 -> 268.96 | AH105: 4 | AI105: 10 | AJ105: 101 | AK105: ='HourGH-JUL'!AC20 -> 269.01 | AN105: 4 | AO105: 10 | AP105: 101 | AQ105: ='HourGH-JUL'!AE20 -> 268.91 | AT105: 4 | AU105: 10 | AV105: 101 | AW105: =Discharge!F18 -> 8.68
AB106: 4 | AC106: 11 | AD106: 102 | AE106: =DailyMeanGH!F20 -> 269.31 | AH106: 4 | AI106: 11 | AJ106: 102 | AK106: ='HourGH-JUL'!AC22 -> 269.44 | AN106: 4 | AO106: 11 | AP106: 102 | AQ106: ='HourGH-JUL'!AE22 -> 269.22 | AT106: 4 | AU106: 11 | AV106: 102 | AW106: =Discharge!F20 -> 23.35
AB107: 4 | AC107: 12 | AD107: 103 | AE107: =DailyMeanGH!F21 -> 268.99 | AH107: 4 | AI107: 12 | AJ107: 103 | AK107: ='HourGH-JUL'!AC23 -> 269 | AN107: 4 | AO107: 12 | AP107: 103 | AQ107: ='HourGH-JUL'!AE23 -> 268.97 | AT107: 4 | AU107: 12 | AV107: 103 | AW107: =Discharge!F21 -> 9.67
AB108: 4 | AC108: 13 | AD108: 104 | AE108: =DailyMeanGH!F22 -> 268.94 | AH108: 4 | AI108: 13 | AJ108: 104 | AK108: ='HourGH-JUL'!AC24 -> 268.94 | AN108: 4 | AO108: 13 | AP108: 104 | AQ108: ='HourGH-JUL'!AE24 -> 268.94 | AT108: 4 | AU108: 13 | AV108: 104 | AW108: =Discharge!F22 -> 8.02
AB109: 4 | AC109: 14 | AD109: 105 | AE109: =DailyMeanGH!F23 -> 268.92 | AH109: 4 | AI109: 14 | AJ109: 105 | AK109: ='HourGH-JUL'!AC25 -> 268.92 | AN109: 4 | AO109: 14 | AP109: 105 | AQ109: ='HourGH-JUL'!AE25 -> 268.92 | AT109: 4 | AU109: 14 | AV109: 105 | AW109: =Discharge!F23 -> 7.36
AB110: 4 | AC110: 15 | AD110: 106 | AE110: =DailyMeanGH!F24 -> 268.92 | AH110: 4 | AI110: 15 | AJ110: 106 | AK110: ='HourGH-JUL'!AC26 -> 268.92 | AN110: 4 | AO110: 15 | AP110: 106 | AQ110: ='HourGH-JUL'!AE26 -> 268.92 | AT110: 4 | AU110: 15 | AV110: 106 | AW110: =Discharge!F24 -> 7.36
AB111: 4 | AC111: 16 | AD111: 107 | AE111: =DailyMeanGH!F25 -> 268.92 | AH111: 4 | AI111: 16 | AJ111: 107 | AK111: ='HourGH-JUL'!AC27 -> 268.92 | AN111: 4 | AO111: 16 | AP111: 107 | AQ111: ='HourGH-JUL'!AE27 -> 268.92 | AT111: 4 | AU111: 16 | AV111: 107 | AW111: =Discharge!F25 -> 7.36
AB112: 4 | AC112: 17 | AD112: 108 | AE112: =DailyMeanGH!F26 -> 268.9 | AH112: 4 | AI112: 17 | AJ112: 108 | AK112: ='HourGH-JUL'!AC28 -> 268.9 | AN112: 4 | AO112: 17 | AP112: 108 | AQ112: ='HourGH-JUL'!AE28 -> 268.9 | AT112: 4 | AU112: 17 | AV112: 108 | AW112: =Discharge!F26 -> 6.7
AB113: 4 | AC113: 18 | AD113: 109 | AE113: =DailyMeanGH!F27 -> 268.9 | AH113: 4 | AI113: 18 | AJ113: 109 | AK113: ='HourGH-JUL'!AC29 -> 268.9 | AN113: 4 | AO113: 18 | AP113: 109 | AQ113: ='HourGH-JUL'!AE29 -> 268.9 | AT113: 4 | AU113: 18 | AV113: 109 | AW113: =Discharge!F27 -> 6.7
AB114: 4 | AC114: 19 | AD114: 110 | AE114: =DailyMeanGH!F28 -> 269.18 | AH114: 4 | AI114: 19 | AJ114: 110 | AK114: ='HourGH-JUL'!AC30 -> 269.23 | AN114: 4 | AO114: 19 | AP114: 110 | AQ114: ='HourGH-JUL'!AE30 -> 269.16 | AT114: 4 | AU114: 19 | AV114: 110 | AW114: =Discharge!F28 -> 17.56
AB115: 4 | AC115: 20 | AD115: 111 | AE115: =DailyMeanGH!F29 -> 269.1 | AH115: 4 | AI115: 20 | AJ115: 111 | AK115: ='HourGH-JUL'!AC31 -> 269.14 | AN115: 4 | AO115: 20 | AP115: 111 | AQ115: ='HourGH-JUL'!AE31 -> 269.07 | AT115: 4 | AU115: 20 | AV115: 111 | AW115: =Discharge!F29 -> 14.2
AB116: 4 | AC116: 21 | AD116: 112 | AE116: =DailyMeanGH!F31 -> 269.03 | AH116: 4 | AI116: 21 | AJ116: 112 | AK116: ='HourGH-JUL'!AC33 -> 269.04 | AN116: 4 | AO116: 21 | AP116: 112 | AQ116: ='HourGH-JUL'!AE33 -> 269 | AT116: 4 | AU116: 21 | AV116: 112 | AW116: =Discharge!F31 -> 11.26
AB117: 4 | AC117: 22 | AD117: 113 | AE117: =DailyMeanGH!F32 -> 269 | AH117: 4 | AI117: 22 | AJ117: 113 | AK117: ='HourGH-JUL'!AC34 -> 269 | AN117: 4 | AO117: 22 | AP117: 113 | AQ117: ='HourGH-JUL'!AE34 -> 269 | AT117: 4 | AU117: 22 | AV117: 113 | AW117: =Discharge!F32 -> 10
AB118: 4 | AC118: 23 | AD118: 114 | AE118: =DailyMeanGH!F33 -> 269 | AH118: 4 | AI118: 23 | AJ118: 114 | AK118: ='HourGH-JUL'!AC35 -> 269 | AN118: 4 | AO118: 23 | AP118: 114 | AQ118: ='HourGH-JUL'!AE35 -> 269 | AT118: 4 | AU118: 23 | AV118: 114 | AW118: =Discharge!F33 -> 10
AB119: 4 | AC119: 24 | AD119: 115 | AE119: =DailyMeanGH!F34 -> 269.11 | AH119: 4 | AI119: 24 | AJ119: 115 | AK119: ='HourGH-JUL'!AC36 -> 269.12 | AN119: 4 | AO119: 24 | AP119: 115 | AQ119: ='HourGH-JUL'!AE36 -> 269.1 | AT119: 4 | AU119: 24 | AV119: 115 | AW119: =Discharge!F34 -> 14.62
AB120: 4 | AC120: 25 | AD120: 116 | AE120: =DailyMeanGH!F35 -> 269.08 | AH120: 4 | AI120: 25 | AJ120: 116 | AK120: ='HourGH-JUL'!AC37 -> 269.08 | AN120: 4 | AO120: 25 | AP120: 116 | AQ120: ='HourGH-JUL'!AE37 -> 269.07 | AT120: 4 | AU120: 25 | AV120: 116 | AW120: =Discharge!F35 -> 13.36
AB121: 4 | AC121: 26 | AD121: 117 | AE121: =DailyMeanGH!F36 -> 269.01 | AH121: 4 | AI121: 26 | AJ121: 117 | AK121: ='HourGH-JUL'!AC38 -> 269.01 | AN121: 4 | AO121: 26 | AP121: 117 | AQ121: ='HourGH-JUL'!AE38 -> 269.01 | AT121: 4 | AU121: 26 | AV121: 117 | AW121: =Discharge!F36 -> 10.42
AB122: 4 | AC122: 27 | AD122: 118 | AE122: =DailyMeanGH!F37 -> 268.98 | AH122: 4 | AI122: 27 | AJ122: 118 | AK122: ='HourGH-JUL'!AC39 -> 268.98 | AN122: 4 | AO122: 27 | AP122: 118 | AQ122: ='HourGH-JUL'!AE39 -> 268.98 | AT122: 4 | AU122: 27 | AV122: 118 | AW122: =Discharge!F37 -> 9.34
AB123: 4 | AC123: 28 | AD123: 119 | AE123: =DailyMeanGH!F38 -> 268.99 | AH123: 4 | AI123: 28 | AJ123: 119 | AK123: ='HourGH-JUL'!AC40 -> 269 | AN123: 4 | AO123: 28 | AP123: 119 | AQ123: ='HourGH-JUL'!AE40 -> 268.98 | AT123: 4 | AU123: 28 | AV123: 119 | AW123: =Discharge!F38 -> 9.67
AB124: 4 | AC124: 29 | AD124: 120 | AE124: =DailyMeanGH!F39 -> 268.98 | AH124: 4 | AI124: 29 | AJ124: 120 | AK124: ='HourGH-JUL'!AC41 -> 268.98 | AN124: 4 | AO124: 29 | AP124: 120 | AQ124: ='HourGH-JUL'!AE41 -> 268.98 | AT124: 4 | AU124: 29 | AV124: 120 | AW124: =Discharge!F39 -> 9.34
AB125: 4 | AC125: 30 | AD125: 121 | AE125: =DailyMeanGH!F40 -> 269 | AH125: 4 | AI125: 30 | AJ125: 121 | AK125: ='HourGH-JUL'!AC42 -> 269.02 | AN125: 4 | AO125: 30 | AP125: 121 | AQ125: ='HourGH-JUL'!AE42 -> 268.98 | AT125: 4 | AU125: 30 | AV125: 121 | AW125: =Discharge!F40 -> 10
AB126: 4 | AC126: 31 | AD126: 122 | AE126: =DailyMeanGH!F41 -> 269.09 | AH126: 4 | AI126: 31 | AJ126: 122 | AK126: ='HourGH-JUL'!AC43 -> 269.14 | AN126: 4 | AO126: 31 | AP126: 122 | AQ126: ='HourGH-JUL'!AE43 -> 269 | AT126: 4 | AU126: 31 | AV126: 122 | AW126: =Discharge!F41 -> 13.78
AB127: 5 | AC127: 1 | AD127: 123 | AE127: =DailyMeanGH!G9 -> 269.04 | AH127: 5 | AI127: 1 | AJ127: 123 | AK127: ='HourGH-AUG'!AC11 -> 269.04 | AN127: 5 | AO127: 1 | AP127: 123 | AQ127: ='HourGH-AUG'!AE11 -> 269.04 | AT127: 5 | AU127: 1 | AV127: 123 | AW127: =Discharge!G9 -> 11.68
AB128: 5 | AC128: 2 | AD128: 124 | AE128: =DailyMeanGH!G10 -> 269.17 | AH128: 5 | AI128: 2 | AJ128: 124 | AK128: ='HourGH-AUG'!AC12 -> 269.2 | AN128: 5 | AO128: 2 | AP128: 124 | AQ128: ='HourGH-AUG'!AE12 -> 269.13 | AT128: 5 | AU128: 2 | AV128: 124 | AW128: =Discharge!G10 -> 17.14
AB129: 5 | AC129: 3 | AD129: 125 | AE129: =DailyMeanGH!G11 -> 269.35 | AH129: 5 | AI129: 3 | AJ129: 125 | AK129: ='HourGH-AUG'!AC13 -> 269.43 | AN129: 5 | AO129: 3 | AP129: 125 | AQ129: ='HourGH-AUG'!AE13 -> 269.27 | AT129: 5 | AU129: 3 | AV129: 125 | AW129: =Discharge!G11 -> 25.15
AB130: 5 | AC130: 4 | AD130: 126 | AE130: =DailyMeanGH!G12 -> 269.44 | AH130: 5 | AI130: 4 | AJ130: 126 | AK130: ='HourGH-AUG'!AC14 -> 269.58 | AN130: 5 | AO130: 4 | AP130: 126 | AQ130: ='HourGH-AUG'!AE14 -> 269.3 | AT130: 5 | AU130: 4 | AV130: 126 | AW130: =Discharge!G12 -> 29.2
AB131: 5 | AC131: 5 | AD131: 127 | AE131: =DailyMeanGH!G13 -> 269.26 | AH131: 5 | AI131: 5 | AJ131: 127 | AK131: ='HourGH-AUG'!AC15 -> 269.3 | AN131: 5 | AO131: 5 | AP131: 127 | AQ131: ='HourGH-AUG'!AE15 -> 269.2 | AT131: 5 | AU131: 5 | AV131: 127 | AW131: =Discharge!G13 -> 21.1
AB132: 5 | AC132: 6 | AD132: 128 | AE132: =DailyMeanGH!G14 -> 269.68 | AH132: 5 | AI132: 6 | AJ132: 128 | AK132: ='HourGH-AUG'!AC16 -> 269.72 | AN132: 5 | AO132: 6 | AP132: 128 | AQ132: ='HourGH-AUG'!AE16 -> 269.64 | AT132: 5 | AU132: 6 | AV132: 128 | AW132: =Discharge!G14 -> 40.24
AB133: 5 | AC133: 7 | AD133: 129 | AE133: =DailyMeanGH!G15 -> 269.81 | AH133: 5 | AI133: 7 | AJ133: 129 | AK133: ='HourGH-AUG'!AC17 -> 269.97 | AN133: 5 | AO133: 7 | AP133: 129 | AQ133: ='HourGH-AUG'!AE17 -> 269.63 | AT133: 5 | AU133: 7 | AV133: 129 | AW133: =Discharge!G15 -> 46.5
AB134: 5 | AC134: 8 | AD134: 130 | AE134: =DailyMeanGH!G16 -> 269.64 | AH134: 5 | AI134: 8 | AJ134: 130 | AK134: ='HourGH-AUG'!AC18 -> 269.85 | AN134: 5 | AO134: 8 | AP134: 130 | AQ134: ='HourGH-AUG'!AE18 -> 269.51 | AT134: 5 | AU134: 8 | AV134: 130 | AW134: =Discharge!G16 -> 38.32
AB135: 5 | AC135: 9 | AD135: 131 | AE135: =DailyMeanGH!G17 -> 269.82 | AH135: 5 | AI135: 9 | AJ135: 131 | AK135: ='HourGH-AUG'!AC19 -> 270.02 | AN135: 5 | AO135: 9 | AP135: 131 | AQ135: ='HourGH-AUG'!AE19 -> 269.65 | AT135: 5 | AU135: 9 | AV135: 131 | AW135: =Discharge!G17 -> 47.01
AB136: 5 | AC136: 10 | AD136: 132 | AE136: =DailyMeanGH!G18 -> 269.48 | AH136: 5 | AI136: 10 | AJ136: 132 | AK136: ='HourGH-AUG'!AC20 -> 269.5 | AN136: 5 | AO136: 10 | AP136: 132 | AQ136: ='HourGH-AUG'!AE20 -> 269.47 | AT136: 5 | AU136: 10 | AV136: 132 | AW136: =Discharge!G18 -> 31
AB137: 5 | AC137: 11 | AD137: 133 | AE137: =DailyMeanGH!G20 -> 269.34 | AH137: 5 | AI137: 11 | AJ137: 133 | AK137: ='HourGH-AUG'!AC22 -> 269.41 | AN137: 5 | AO137: 11 | AP137: 133 | AQ137: ='HourGH-AUG'!AE22 -> 269.27 | AT137: 5 | AU137: 11 | AV137: 133 | AW137: =Discharge!G20 -> 24.7
AB138: 5 | AC138: 12 | AD138: 134 | AE138: =DailyMeanGH!G21 -> 269.13 | AH138: 5 | AI138: 12 | AJ138: 134 | AK138: ='HourGH-AUG'!AC23 -> 269.2 | AN138: 5 | AO138: 12 | AP138: 134 | AQ138: ='HourGH-AUG'!AE23 -> 269.06 | AT138: 5 | AU138: 12 | AV138: 134 | AW138: =Discharge!G21 -> 15.46
AB139: 5 | AC139: 13 | AD139: 135 | AE139: =DailyMeanGH!G22 -> 269.19 | AH139: 5 | AI139: 13 | AJ139: 135 | AK139: ='HourGH-AUG'!AC24 -> 269.2 | AN139: 5 | AO139: 13 | AP139: 135 | AQ139: ='HourGH-AUG'!AE24 -> 269.17 | AT139: 5 | AU139: 13 | AV139: 135 | AW139: =Discharge!G22 -> 17.98
AB140: 5 | AC140: 14 | AD140: 136 | AE140: =DailyMeanGH!G23 -> 269.09 | AH140: 5 | AI140: 14 | AJ140: 136 | AK140: ='HourGH-AUG'!AC25 -> 269.12 | AN140: 5 | AO140: 14 | AP140: 136 | AQ140: ='HourGH-AUG'!AE25 -> 269.07 | AT140: 5 | AU140: 14 | AV140: 136 | AW140: =Discharge!G23 -> 13.78
AB141: 5 | AC141: 15 | AD141: 137 | AE141: =DailyMeanGH!G24 -> 269.14 | AH141: 5 | AI141: 15 | AJ141: 137 | AK141: ='HourGH-AUG'!AC26 -> 269.15 | AN141: 5 | AO141: 15 | AP141: 137 | AQ141: ='HourGH-AUG'!AE26 -> 269.12 | AT141: 5 | AU141: 15 | AV141: 137 | AW141: =Discharge!G24 -> 15.88
AB142: 5 | AC142: 16 | AD142: 138 | AE142: =DailyMeanGH!G25 -> 269.08 | AH142: 5 | AI142: 16 | AJ142: 138 | AK142: ='HourGH-AUG'!AC27 -> 269.08 | AN142: 5 | AO142: 16 | AP142: 138 | AQ142: ='HourGH-AUG'!AE27 -> 269.08 | AT142: 5 | AU142: 16 | AV142: 138 | AW142: =Discharge!G25 -> 13.36
AB143: 5 | AC143: 17 | AD143: 139 | AE143: =DailyMeanGH!G26 -> 269.12 | AH143: 5 | AI143: 17 | AJ143: 139 | AK143: ='HourGH-AUG'!AC28 -> 269.14 | AN143: 5 | AO143: 17 | AP143: 139 | AQ143: ='HourGH-AUG'!AE28 -> 269.1 | AT143: 5 | AU143: 17 | AV143: 139 | AW143: =Discharge!G26 -> 15.04
AB144: 5 | AC144: 18 | AD144: 140 | AE144: =DailyMeanGH!G27 -> 269.07 | AH144: 5 | AI144: 18 | AJ144: 140 | AK144: ='HourGH-AUG'!AC29 -> 269.08 | AN144: 5 | AO144: 18 | AP144: 140 | AQ144: ='HourGH-AUG'!AE29 -> 269.06 | AT144: 5 | AU144: 18 | AV144: 140 | AW144: =Discharge!G27 -> 12.94
AB145: 5 | AC145: 19 | AD145: 141 | AE145: =DailyMeanGH!G28 -> 269.03 | AH145: 5 | AI145: 19 | AJ145: 141 | AK145: ='HourGH-AUG'!AC30 -> 269.03 | AN145: 5 | AO145: 19 | AP145: 141 | AQ145: ='HourGH-AUG'!AE30 -> 269.03 | AT145: 5 | AU145: 19 | AV145: 141 | AW145: =Discharge!G28 -> 11.26
AB146: 5 | AC146: 20 | AD146: 142 | AE146: =DailyMeanGH!G29 -> 269.01 | AH146: 5 | AI146: 20 | AJ146: 142 | AK146: ='HourGH-AUG'!AC31 -> 269.01 | AN146: 5 | AO146: 20 | AP146: 142 | AQ146: ='HourGH-AUG'!AE31 -> 269.01 | AT146: 5 | AU146: 20 | AV146: 142 | AW146: =Discharge!G29 -> 10.42
AB147: 5 | AC147: 21 | AD147: 143 | AE147: =DailyMeanGH!G31 -> 269 | AH147: 5 | AI147: 21 | AJ147: 143 | AK147: ='HourGH-AUG'!AC33 -> 269.05 | AN147: 5 | AO147: 21 | AP147: 143 | AQ147: ='HourGH-AUG'!AE33 -> 268.99 | AT147: 5 | AU147: 21 | AV147: 143 | AW147: =Discharge!G31 -> 10
AB148: 5 | AC148: 22 | AD148: 144 | AE148: =DailyMeanGH!G32 -> 269.47 | AH148: 5 | AI148: 22 | AJ148: 144 | AK148: ='HourGH-AUG'!AC34 -> 269.57 | AN148: 5 | AO148: 22 | AP148: 144 | AQ148: ='HourGH-AUG'!AE34 -> 269.37 | AT148: 5 | AU148: 22 | AV148: 144 | AW148: =Discharge!G32 -> 30.55
AB149: 5 | AC149: 23 | AD149: 145 | AE149: =DailyMeanGH!G33 -> 269.11 | AH149: 5 | AI149: 23 | AJ149: 145 | AK149: ='HourGH-AUG'!AC35 -> 269.11 | AN149: 5 | AO149: 23 | AP149: 145 | AQ149: ='HourGH-AUG'!AE35 -> 269.11 | AT149: 5 | AU149: 23 | AV149: 145 | AW149: =Discharge!G33 -> 14.62
AB150: 5 | AC150: 24 | AD150: 146 | AE150: =DailyMeanGH!G34 -> 269.07 | AH150: 5 | AI150: 24 | AJ150: 146 | AK150: ='HourGH-AUG'!AC36 -> 269.07 | AN150: 5 | AO150: 24 | AP150: 146 | AQ150: ='HourGH-AUG'!AE36 -> 269.07 | AT150: 5 | AU150: 24 | AV150: 146 | AW150: =Discharge!G34 -> 12.94
AB151: 5 | AC151: 25 | AD151: 147 | AE151: =DailyMeanGH!G35 -> 269.04 | AH151: 5 | AI151: 25 | AJ151: 147 | AK151: ='HourGH-AUG'!AC37 -> 269.04 | AN151: 5 | AO151: 25 | AP151: 147 | AQ151: ='HourGH-AUG'!AE37 -> 269.04 | AT151: 5 | AU151: 25 | AV151: 147 | AW151: =Discharge!G35 -> 11.68
AB152: 5 | AC152: 26 | AD152: 148 | AE152: =DailyMeanGH!G36 -> 269.03 | AH152: 5 | AI152: 26 | AJ152: 148 | AK152: ='HourGH-AUG'!AC38 -> 269.03 | AN152: 5 | AO152: 26 | AP152: 148 | AQ152: ='HourGH-AUG'!AE38 -> 269.03 | AT152: 5 | AU152: 26 | AV152: 148 | AW152: =Discharge!G36 -> 11.26
AB153: 5 | AC153: 27 | AD153: 149 | AE153: =DailyMeanGH!G37 -> 269.08 | AH153: 5 | AI153: 27 | AJ153: 149 | AK153: ='HourGH-AUG'!AC39 -> 269.08 | AN153: 5 | AO153: 27 | AP153: 149 | AQ153: ='HourGH-AUG'!AE39 -> 269.08 | AT153: 5 | AU153: 27 | AV153: 149 | AW153: =Discharge!G37 -> 13.36 | BA153: Min | BB153: Max
AB154: 5 | AC154: 28 | AD154: 150 | AE154: =DailyMeanGH!G38 -> 269.05 | AH154: 5 | AI154: 28 | AJ154: 150 | AK154: ='HourGH-AUG'!AC40 -> 269.05 | AN154: 5 | AO154: 28 | AP154: 150 | AQ154: ='HourGH-AUG'!AE40 -> 269.05 | AT154: 5 | AU154: 28 | AV154: 150 | AW154: =Discharge!G38 -> 12.1 | BA154: =IF(COUNT(AQ5:AQ370)=0,"",MIN(AQ5:AQ370)) -> 268.8 | BB154: =IF(COUNT(AK5:AK370)=0,"",MAX(AK5:AK370)) -> 270.02
AB155: 5 | AC155: 29 | AD155: 151 | AE155: =DailyMeanGH!G39 -> 269.02 | AH155: 5 | AI155: 29 | AJ155: 151 | AK155: ='HourGH-AUG'!AC41 -> 269.02 | AN155: 5 | AO155: 29 | AP155: 151 | AQ155: ='HourGH-AUG'!AE41 -> 269.02 | AT155: 5 | AU155: 29 | AV155: 151 | AW155: =Discharge!G39 -> 10.84
AB156: 5 | AC156: 30 | AD156: 152 | AE156: =DailyMeanGH!G40 -> 269.01 | AH156: 5 | AI156: 30 | AJ156: 152 | AK156: ='HourGH-AUG'!AC42 -> 269.01 | AN156: 5 | AO156: 30 | AP156: 152 | AQ156: ='HourGH-AUG'!AE42 -> 269.01 | AT156: 5 | AU156: 30 | AV156: 152 | AW156: =Discharge!G40 -> 10.42
AB157: 5 | AC157: 31 | AD157: 153 | AE157: =DailyMeanGH!G41 -> 269.37 | AH157: 5 | AI157: 31 | AJ157: 153 | AK157: ='HourGH-AUG'!AC43 -> 269.6 | AN157: 5 | AO157: 31 | AP157: 153 | AQ157: ='HourGH-AUG'!AE43 -> 269.16 | AT157: 5 | AU157: 31 | AV157: 153 | AW157: =Discharge!G41 -> 26.05
AB158: 6 | AC158: 1 | AD158: 154 | AE158: =DailyMeanGH!H9 ->  | AH158: 6 | AI158: 1 | AJ158: 154 | AK158: ='HourGH-SEP'!AC11 ->  | AN158: 6 | AO158: 1 | AP158: 154 | AQ158: ='HourGH-SEP'!AE11 ->  | AT158: 6 | AU158: 1 | AV158: 154 | AW158: =Discharge!H9 -> 
AB159: 6 | AC159: 2 | AD159: 155 | AE159: =DailyMeanGH!H10 ->  | AH159: 6 | AI159: 2 | AJ159: 155 | AK159: ='HourGH-SEP'!AC12 ->  | AN159: 6 | AO159: 2 | AP159: 155 | AQ159: ='HourGH-SEP'!AE12 ->  | AT159: 6 | AU159: 2 | AV159: 155 | AW159: =Discharge!H10 -> 
AB160: 6 | AC160: 3 | AD160: 156 | AE160: =DailyMeanGH!H11 ->  | AH160: 6 | AI160: 3 | AJ160: 156 | AK160: ='HourGH-SEP'!AC13 ->  | AN160: 6 | AO160: 3 | AP160: 156 | AQ160: ='HourGH-SEP'!AE13 ->  | AT160: 6 | AU160: 3 | AV160: 156 | AW160: =Discharge!H11 -> 
AB161: 6 | AC161: 4 | AD161: 157 | AE161: =DailyMeanGH!H12 ->  | AH161: 6 | AI161: 4 | AJ161: 157 | AK161: ='HourGH-SEP'!AC14 ->  | AN161: 6 | AO161: 4 | AP161: 157 | AQ161: ='HourGH-SEP'!AE14 ->  | AT161: 6 | AU161: 4 | AV161: 157 | AW161: =Discharge!H12 -> 
AB162: 6 | AC162: 5 | AD162: 158 | AE162: =DailyMeanGH!H13 ->  | AH162: 6 | AI162: 5 | AJ162: 158 | AK162: ='HourGH-SEP'!AC15 ->  | AN162: 6 | AO162: 5 | AP162: 158 | AQ162: ='HourGH-SEP'!AE15 ->  | AT162: 6 | AU162: 5 | AV162: 158 | AW162: =Discharge!H13 -> 
AB163: 6 | AC163: 6 | AD163: 159 | AE163: =DailyMeanGH!H14 ->  | AH163: 6 | AI163: 6 | AJ163: 159 | AK163: ='HourGH-SEP'!AC16 ->  | AN163: 6 | AO163: 6 | AP163: 159 | AQ163: ='HourGH-SEP'!AE16 ->  | AT163: 6 | AU163: 6 | AV163: 159 | AW163: =Discharge!H14 -> 
AB164: 6 | AC164: 7 | AD164: 160 | AE164: =DailyMeanGH!H15 ->  | AH164: 6 | AI164: 7 | AJ164: 160 | AK164: ='HourGH-SEP'!AC17 ->  | AN164: 6 | AO164: 7 | AP164: 160 | AQ164: ='HourGH-SEP'!AE17 ->  | AT164: 6 | AU164: 7 | AV164: 160 | AW164: =Discharge!H15 -> 
AB165: 6 | AC165: 8 | AD165: 161 | AE165: =DailyMeanGH!H16 ->  | AH165: 6 | AI165: 8 | AJ165: 161 | AK165: ='HourGH-SEP'!AC18 ->  | AN165: 6 | AO165: 8 | AP165: 161 | AQ165: ='HourGH-SEP'!AE18 ->  | AT165: 6 | AU165: 8 | AV165: 161 | AW165: =Discharge!H16 -> 
AB166: 6 | AC166: 9 | AD166: 162 | AE166: =DailyMeanGH!H17 ->  | AH166: 6 | AI166: 9 | AJ166: 162 | AK166: ='HourGH-SEP'!AC19 ->  | AN166: 6 | AO166: 9 | AP166: 162 | AQ166: ='HourGH-SEP'!AE19 ->  | AT166: 6 | AU166: 9 | AV166: 162 | AW166: =Discharge!H17 -> 
AB167: 6 | AC167: 10 | AD167: 163 | AE167: =DailyMeanGH!H18 ->  | AH167: 6 | AI167: 10 | AJ167: 163 | AK167: ='HourGH-SEP'!AC20 ->  | AN167: 6 | AO167: 10 | AP167: 163 | AQ167: ='HourGH-SEP'!AE20 ->  | AT167: 6 | AU167: 10 | AV167: 163 | AW167: =Discharge!H18 -> 
AB168: 6 | AC168: 11 | AD168: 164 | AE168: =DailyMeanGH!H20 ->  | AH168: 6 | AI168: 11 | AJ168: 164 | AK168: ='HourGH-SEP'!AC22 ->  | AN168: 6 | AO168: 11 | AP168: 164 | AQ168: ='HourGH-SEP'!AE22 ->  | AT168: 6 | AU168: 11 | AV168: 164 | AW168: =Discharge!H20 -> 
AB169: 6 | AC169: 12 | AD169: 165 | AE169: =DailyMeanGH!H21 ->  | AH169: 6 | AI169: 12 | AJ169: 165 | AK169: ='HourGH-SEP'!AC23 ->  | AN169: 6 | AO169: 12 | AP169: 165 | AQ169: ='HourGH-SEP'!AE23 ->  | AT169: 6 | AU169: 12 | AV169: 165 | AW169: =Discharge!H21 -> 
AB170: 6 | AC170: 13 | AD170: 166 | AE170: =DailyMeanGH!H22 ->  | AH170: 6 | AI170: 13 | AJ170: 166 | AK170: ='HourGH-SEP'!AC24 ->  | AN170: 6 | AO170: 13 | AP170: 166 | AQ170: ='HourGH-SEP'!AE24 ->  | AT170: 6 | AU170: 13 | AV170: 166 | AW170: =Discharge!H22 -> 
AB171: 6 | AC171: 14 | AD171: 167 | AE171: =DailyMeanGH!H23 ->  | AH171: 6 | AI171: 14 | AJ171: 167 | AK171: ='HourGH-SEP'!AC25 ->  | AN171: 6 | AO171: 14 | AP171: 167 | AQ171: ='HourGH-SEP'!AE25 ->  | AT171: 6 | AU171: 14 | AV171: 167 | AW171: =Discharge!H23 -> 
AB172: 6 | AC172: 15 | AD172: 168 | AE172: =DailyMeanGH!H24 ->  | AH172: 6 | AI172: 15 | AJ172: 168 | AK172: ='HourGH-SEP'!AC26 ->  | AN172: 6 | AO172: 15 | AP172: 168 | AQ172: ='HourGH-SEP'!AE26 ->  | AT172: 6 | AU172: 15 | AV172: 168 | AW172: =Discharge!H24 -> 
AB173: 6 | AC173: 16 | AD173: 169 | AE173: =DailyMeanGH!H25 ->  | AH173: 6 | AI173: 16 | AJ173: 169 | AK173: ='HourGH-SEP'!AC27 ->  | AN173: 6 | AO173: 16 | AP173: 169 | AQ173: ='HourGH-SEP'!AE27 ->  | AT173: 6 | AU173: 16 | AV173: 169 | AW173: =Discharge!H25 -> 
AB174: 6 | AC174: 17 | AD174: 170 | AE174: =DailyMeanGH!H26 ->  | AH174: 6 | AI174: 17 | AJ174: 170 | AK174: ='HourGH-SEP'!AC28 ->  | AN174: 6 | AO174: 17 | AP174: 170 | AQ174: ='HourGH-SEP'!AE28 ->  | AT174: 6 | AU174: 17 | AV174: 170 | AW174: =Discharge!H26 -> 
AB175: 6 | AC175: 18 | AD175: 171 | AE175: =DailyMeanGH!H27 ->  | AH175: 6 | AI175: 18 | AJ175: 171 | AK175: ='HourGH-SEP'!AC29 ->  | AN175: 6 | AO175: 18 | AP175: 171 | AQ175: ='HourGH-SEP'!AE29 ->  | AT175: 6 | AU175: 18 | AV175: 171 | AW175: =Discharge!H27 -> 
AB176: 6 | AC176: 19 | AD176: 172 | AE176: =DailyMeanGH!H28 ->  | AH176: 6 | AI176: 19 | AJ176: 172 | AK176: ='HourGH-SEP'!AC30 ->  | AN176: 6 | AO176: 19 | AP176: 172 | AQ176: ='HourGH-SEP'!AE30 ->  | AT176: 6 | AU176: 19 | AV176: 172 | AW176: =Discharge!H28 -> 
AB177: 6 | AC177: 20 | AD177: 173 | AE177: =DailyMeanGH!H29 ->  | AH177: 6 | AI177: 20 | AJ177: 173 | AK177: ='HourGH-SEP'!AC31 ->  | AN177: 6 | AO177: 20 | AP177: 173 | AQ177: ='HourGH-SEP'!AE31 ->  | AT177: 6 | AU177: 20 | AV177: 173 | AW177: =Discharge!H29 -> 
AB178: 6 | AC178: 21 | AD178: 174 | AE178: =DailyMeanGH!H31 ->  | AH178: 6 | AI178: 21 | AJ178: 174 | AK178: ='HourGH-SEP'!AC33 ->  | AN178: 6 | AO178: 21 | AP178: 174 | AQ178: ='HourGH-SEP'!AE33 ->  | AT178: 6 | AU178: 21 | AV178: 174 | AW178: =Discharge!H31 -> 
AB179: 6 | AC179: 22 | AD179: 175 | AE179: =DailyMeanGH!H32 ->  | AH179: 6 | AI179: 22 | AJ179: 175 | AK179: ='HourGH-SEP'!AC34 ->  | AN179: 6 | AO179: 22 | AP179: 175 | AQ179: ='HourGH-SEP'!AE34 ->  | AT179: 6 | AU179: 22 | AV179: 175 | AW179: =Discharge!H32 -> 
AB180: 6 | AC180: 23 | AD180: 176 | AE180: =DailyMeanGH!H33 ->  | AH180: 6 | AI180: 23 | AJ180: 176 | AK180: ='HourGH-SEP'!AC35 ->  | AN180: 6 | AO180: 23 | AP180: 176 | AQ180: ='HourGH-SEP'!AE35 ->  | AT180: 6 | AU180: 23 | AV180: 176 | AW180: =Discharge!H33 -> 
AB181: 6 | AC181: 24 | AD181: 177 | AE181: =DailyMeanGH!H34 ->  | AH181: 6 | AI181: 24 | AJ181: 177 | AK181: ='HourGH-SEP'!AC36 ->  | AN181: 6 | AO181: 24 | AP181: 177 | AQ181: ='HourGH-SEP'!AE36 ->  | AT181: 6 | AU181: 24 | AV181: 177 | AW181: =Discharge!H34 -> 
AB182: 6 | AC182: 25 | AD182: 178 | AE182: =DailyMeanGH!H35 ->  | AH182: 6 | AI182: 25 | AJ182: 178 | AK182: ='HourGH-SEP'!AC37 ->  | AN182: 6 | AO182: 25 | AP182: 178 | AQ182: ='HourGH-SEP'!AE37 ->  | AT182: 6 | AU182: 25 | AV182: 178 | AW182: =Discharge!H35 -> 
AB183: 6 | AC183: 26 | AD183: 179 | AE183: =DailyMeanGH!H36 ->  | AH183: 6 | AI183: 26 | AJ183: 179 | AK183: ='HourGH-SEP'!AC38 ->  | AN183: 6 | AO183: 26 | AP183: 179 | AQ183: ='HourGH-SEP'!AE38 ->  | AT183: 6 | AU183: 26 | AV183: 179 | AW183: =Discharge!H36 -> 
AB184: 6 | AC184: 27 | AD184: 180 | AE184: =DailyMeanGH!H37 ->  | AH184: 6 | AI184: 27 | AJ184: 180 | AK184: ='HourGH-SEP'!AC39 ->  | AN184: 6 | AO184: 27 | AP184: 180 | AQ184: ='HourGH-SEP'!AE39 ->  | AT184: 6 | AU184: 27 | AV184: 180 | AW184: =Discharge!H37 -> 
AB185: 6 | AC185: 28 | AD185: 181 | AE185: =DailyMeanGH!H38 ->  | AH185: 6 | AI185: 28 | AJ185: 181 | AK185: ='HourGH-SEP'!AC40 ->  | AN185: 6 | AO185: 28 | AP185: 181 | AQ185: ='HourGH-SEP'!AE40 ->  | AT185: 6 | AU185: 28 | AV185: 181 | AW185: =Discharge!H38 -> 
AB186: 6 | AC186: 29 | AD186: 182 | AE186: =DailyMeanGH!H39 ->  | AH186: 6 | AI186: 29 | AJ186: 182 | AK186: ='HourGH-SEP'!AC41 ->  | AN186: 6 | AO186: 29 | AP186: 182 | AQ186: ='HourGH-SEP'!AE41 ->  | AT186: 6 | AU186: 29 | AV186: 182 | AW186: =Discharge!H39 -> 
AB187: 6 | AC187: 30 | AD187: 183 | AE187: =DailyMeanGH!H40 ->  | AH187: 6 | AI187: 30 | AJ187: 183 | AK187: ='HourGH-SEP'!AC42 ->  | AN187: 6 | AO187: 30 | AP187: 183 | AQ187: ='HourGH-SEP'!AE42 ->  | AT187: 6 | AU187: 30 | AV187: 183 | AW187: =Discharge!H40 -> 
AB188: 7 | AC188: 1 | AD188: 184 | AE188: =DailyMeanGH!I9 ->  | AH188: 7 | AI188: 1 | AJ188: 184 | AK188: ='HourGH-OCT'!AC11 ->  | AN188: 7 | AO188: 1 | AP188: 184 | AQ188: ='HourGH-OCT'!AE11 ->  | AT188: 7 | AU188: 1 | AV188: 184 | AW188: =Discharge!I9 -> 
AB189: 7 | AC189: 2 | AD189: 185 | AE189: =DailyMeanGH!I10 ->  | AH189: 7 | AI189: 2 | AJ189: 185 | AK189: ='HourGH-OCT'!AC12 ->  | AN189: 7 | AO189: 2 | AP189: 185 | AQ189: ='HourGH-OCT'!AE12 ->  | AT189: 7 | AU189: 2 | AV189: 185 | AW189: =Discharge!I10 -> 
AB190: 7 | AC190: 3 | AD190: 186 | AE190: =DailyMeanGH!I11 ->  | AH190: 7 | AI190: 3 | AJ190: 186 | AK190: ='HourGH-OCT'!AC13 ->  | AN190: 7 | AO190: 3 | AP190: 186 | AQ190: ='HourGH-OCT'!AE13 ->  | AT190: 7 | AU190: 3 | AV190: 186 | AW190: =Discharge!I11 -> 
AB191: 7 | AC191: 4 | AD191: 187 | AE191: =DailyMeanGH!I12 ->  | AH191: 7 | AI191: 4 | AJ191: 187 | AK191: ='HourGH-OCT'!AC14 ->  | AN191: 7 | AO191: 4 | AP191: 187 | AQ191: ='HourGH-OCT'!AE14 ->  | AT191: 7 | AU191: 4 | AV191: 187 | AW191: =Discharge!I12 -> 
AB192: 7 | AC192: 5 | AD192: 188 | AE192: =DailyMeanGH!I13 ->  | AH192: 7 | AI192: 5 | AJ192: 188 | AK192: ='HourGH-OCT'!AC15 ->  | AN192: 7 | AO192: 5 | AP192: 188 | AQ192: ='HourGH-OCT'!AE15 ->  | AT192: 7 | AU192: 5 | AV192: 188 | AW192: =Discharge!I13 -> 
AB193: 7 | AC193: 6 | AD193: 189 | AE193: =DailyMeanGH!I14 ->  | AH193: 7 | AI193: 6 | AJ193: 189 | AK193: ='HourGH-OCT'!AC16 ->  | AN193: 7 | AO193: 6 | AP193: 189 | AQ193: ='HourGH-OCT'!AE16 ->  | AT193: 7 | AU193: 6 | AV193: 189 | AW193: =Discharge!I14 -> 
AB194: 7 | AC194: 7 | AD194: 190 | AE194: =DailyMeanGH!I15 ->  | AH194: 7 | AI194: 7 | AJ194: 190 | AK194: ='HourGH-OCT'!AC17 ->  | AN194: 7 | AO194: 7 | AP194: 190 | AQ194: ='HourGH-OCT'!AE17 ->  | AT194: 7 | AU194: 7 | AV194: 190 | AW194: =Discharge!I15 -> 
AB195: 7 | AC195: 8 | AD195: 191 | AE195: =DailyMeanGH!I16 ->  | AH195: 7 | AI195: 8 | AJ195: 191 | AK195: ='HourGH-OCT'!AC18 ->  | AN195: 7 | AO195: 8 | AP195: 191 | AQ195: ='HourGH-OCT'!AE18 ->  | AT195: 7 | AU195: 8 | AV195: 191 | AW195: =Discharge!I16 -> 
AB196: 7 | AC196: 9 | AD196: 192 | AE196: =DailyMeanGH!I17 ->  | AH196: 7 | AI196: 9 | AJ196: 192 | AK196: ='HourGH-OCT'!AC19 ->  | AN196: 7 | AO196: 9 | AP196: 192 | AQ196: ='HourGH-OCT'!AE19 ->  | AT196: 7 | AU196: 9 | AV196: 192 | AW196: =Discharge!I17 -> 
AB197: 7 | AC197: 10 | AD197: 193 | AE197: =DailyMeanGH!I18 ->  | AH197: 7 | AI197: 10 | AJ197: 193 | AK197: ='HourGH-OCT'!AC20 ->  | AN197: 7 | AO197: 10 | AP197: 193 | AQ197: ='HourGH-OCT'!AE20 ->  | AT197: 7 | AU197: 10 | AV197: 193 | AW197: =Discharge!I18 -> 
AB198: 7 | AC198: 11 | AD198: 194 | AE198: =DailyMeanGH!I20 ->  | AH198: 7 | AI198: 11 | AJ198: 194 | AK198: ='HourGH-OCT'!AC22 ->  | AN198: 7 | AO198: 11 | AP198: 194 | AQ198: ='HourGH-OCT'!AE22 ->  | AT198: 7 | AU198: 11 | AV198: 194 | AW198: =Discharge!I20 -> 
AB199: 7 | AC199: 12 | AD199: 195 | AE199: =DailyMeanGH!I21 ->  | AH199: 7 | AI199: 12 | AJ199: 195 | AK199: ='HourGH-OCT'!AC23 ->  | AN199: 7 | AO199: 12 | AP199: 195 | AQ199: ='HourGH-OCT'!AE23 ->  | AT199: 7 | AU199: 12 | AV199: 195 | AW199: =Discharge!I21 -> 
AB200: 7 | AC200: 13 | AD200: 196 | AE200: =DailyMeanGH!I22 ->  | AH200: 7 | AI200: 13 | AJ200: 196 | AK200: ='HourGH-OCT'!AC24 ->  | AN200: 7 | AO200: 13 | AP200: 196 | AQ200: ='HourGH-OCT'!AE24 ->  | AT200: 7 | AU200: 13 | AV200: 196 | AW200: =Discharge!I22 -> 
AB201: 7 | AC201: 14 | AD201: 197 | AE201: =DailyMeanGH!I23 ->  | AH201: 7 | AI201: 14 | AJ201: 197 | AK201: ='HourGH-OCT'!AC25 ->  | AN201: 7 | AO201: 14 | AP201: 197 | AQ201: ='HourGH-OCT'!AE25 ->  | AT201: 7 | AU201: 14 | AV201: 197 | AW201: =Discharge!I23 -> 
... 169 more rows

Sheet Sediment
A1: Station - | C1: ='c-form'!AG4 -> Ban Mae Lamao, Mae Sot, Tak,SW.6 | M1: Royal Irrigation | Y1: =name -> SW.6
A2: Stream - | C2: ='c-form'!AG3 -> Huai Mae Lamao | M2: Thailand | Y2: =FIND(".",Y1) -> 3
A3: River - | C3: ='c-form'!AH3 -> Huai Mae Lamao | M3: Hydrology Division | Y3: =LEFT(Y1,Y2-1) & RIGHT(Y1,Y2) -> SWW.6
A4: River System - | C4: ='c-form'!AI3 -> Huai Mae Lamao | J4: Log C = | M4: 1.9683 | Y4: =IF(TRIM('c-form'!C7)="","",'c-form'!C7) -> 2023
J5: ใช้สมการ log C ตั้งแต่ปี | L5: 2019 | M5: ถึงปี | N5: 2019 | O5: 15 | P5: 36 | Q5: จุด
H6: =IF(TRIM('c-form'!AJ3)<>"","Water Year " & 'c-form'!AJ3,"Water Year ") -> Water Year 2023 | N6: Unit 0,1 = | O6: 0
B7: =IF(TRIM('c-form'!AJ3)<>"","Suspended Sediment, in Tons per Day, Water Year April 1, "&'c-form'!AJ3&" to March 31, "&'c-form'!AJ3+1,"Suspended Sediment, in Tons per Day, Water Year April 1, to March 31, ") -> Suspended Sediment, in Tons per Day, Water Year April 1, 2023 to March 31, 2024
B9: Date | C9: Apr | D9: May | E9: Jun | F9: Jul | G9: Aug | H9: Sep | I9: Oct | J9: Nov | K9: Dec | L9: Jan | M9: Feb | N9: Mar | O9: Annual
B11: 1 | C11: =IF(Discharge!C9=0,0,IF(TRIM(Discharge!C9)="","",IF(COUNT(O6)=0,"",IF(O6=1,(((10^K4)*(Discharge!C9^N4))/100),((10^K4)*(Discharge!C9^N4)))))) -> 1 | D11: =IF(Discharge!D9=0,0,IF(TRIM(Discharge!D9)="","",IF(COUNT(O6)=0,"",IF(O6=1,(((10^K4)*(Discharge!D9^N4))/100),((10^K4)*(Discharge!D9^N4)))))) -> 1 | E11: =IF(Discharge!E9=0,0,IF(TRIM(Discharge!E9)="","",IF(COUNT(O6)=0,"",IF(O6=1,(((10^K4)*(Discharge!E9^N4))/100),((10^K4)*(Discharge!E9^N4)))))) -> 1 | F11: =IF(Discharge!F9=0,0,IF(TRIM(Discharge!F9)="","",IF(COUNT(O6)=0,"",IF(O6=1,(((10^K4)*(Discharge!F9^N4))/100),((10^K4)*(Discharge!F9^N4)))))) -> 1 | G11: =IF(Discharge!G9=0,0,IF(TRIM(Discharge!G9)="","",IF(COUNT(O6)=0,"",IF(O6=1,(((10^K4)*(Discharge!G9^N4))/100),((10^K4)*(Discharge!G9^N4)))))) -> 1 | H11: =IF(Discharge!H9=0,0,IF(TRIM(Discharge!H9)="","",IF(COUNT(O6)=0,"",IF(O6=1,(((10^K4)*(Discharge!H9^N4))/100),((10^K4)*(Discharge!H9^N4)))))) ->  | I11: =IF(Discharge!I9=0,0,IF(TRIM(Discharge!I9)="","",IF(COUNT(O6)=0,"",IF(O6=1,(((10^K4)*(Discharge!I9^N4))/100),((10^K4)*(Discharge!I9^N4)))))) ->  | J11: =IF(Discharge!J9=0,0,IF(TRIM(Discharge!J9)="","",IF(COUNT(O6)=0,"",IF(O6=1,(((10^K4)*(Discharge!J9^N4))/100),((10^K4)*(Discharge!J9^N4)))))) ->  | K11: =IF(Discharge!K9=0,0,IF(TRIM(Discharge!K9)="","",IF(COUNT(O6)=0,"",IF(O6=1,(((10^K4)*(Discharge!K9^N4))/100),((10^K4)*(Discharge!K9^N4)))))) ->  | L11: =IF(Discharge!L9=0,0,IF(TRIM(Discharge!L9)="","",IF(COUNT(O6)=0,"",IF(O6=1,(((10^K4)*(Discharge!L9^N4))/100),((10^K4)*(Discharge!L9^N4)))))) ->  | M11: =IF(Discharge!M9=0,0,IF(TRIM(Discharge!M9)="","",IF(COUNT(O6)=0,"",IF(O6=1,(((10^K4)*(Discharge!M9^N4))/100),((10^K4)*(Discharge!M9^N4)))))) ->  | N11: =IF(Discharge!N9=0,0,IF(TRIM(Discharge!N9)="","",IF(COUNT(O6)=0,"",IF(O6=1,(((10^K4)*(Discharge!N9^N4))/100),((10^K4)*(Discharge!N9^N4)))))) ->  | O11: =IF(AND(C11="",D11="",E11="",F11="",G11="",H11="",I11="",J11="",K11="",L11="",M11="",N11=""),"",SUM(C11:N11)) -> 5
B12: 2 | C12: =IF(Discharge!C10=0,0,IF(TRIM(Discharge!C10)="","",IF(COUNT(O6)=0,"",IF(O6=1,(((10^K4)*(Discharge!C10^N4))/100),((10^K4)*(Discharge!C10^N4)))))) -> 1 | D12: =IF(Discharge!D10=0,0,IF(TRIM(Discharge!D10)="","",IF(COUNT(O6)=0,"",IF(O6=1,(((10^K4)*(Discharge!D10^N4))/100),((10^K4)*(Discharge!D10^N4)))))) -> 1 | E12: =IF(Discharge!E10=0,0,IF(TRIM(Discharge!E10)="","",IF(COUNT(O6)=0,"",IF(O6=1,(((10^K4)*(Discharge!E10^N4))/100),((10^K4)*(Discharge!E10^N4)))))) -> 1 | F12: =IF(Discharge!F10=0,0,IF(TRIM(Discharge!F10)="","",IF(COUNT(O6)=0,"",IF(O6=1,(((10^K4)*(Discharge!F10^N4))/100),((10^K4)*(Discharge!F10^N4)))))) -> 1 | G12: =IF(Discharge!G10=0,0,IF(TRIM(Discharge!G10)="","",IF(COUNT(O6)=0,"",IF(O6=1,(((10^K4)*(Discharge!G10^N4))/100),((10^K4)*(Discharge!G10^N4)))))) -> 1 | H12: =IF(Discharge!H10=0,0,IF(TRIM(Discharge!H10)="","",IF(COUNT(O6)=0,"",IF(O6=1,(((10^K4)*(Discharge!H10^N4))/100),((10^K4)*(Discharge!H10^N4)))))) ->  | I12: =IF(Discharge!I10=0,0,IF(TRIM(Discharge!I10)="","",IF(COUNT(O6)=0,"",IF(O6=1,(((10^K4)*(Discharge!I10^N4))/100),((10^K4)*(Discharge!I10^N4)))))) ->  | J12: =IF(Discharge!J10=0,0,IF(TRIM(Discharge!J10)="","",IF(COUNT(O6)=0,"",IF(O6=1,(((10^K4)*(Discharge!J10^N4))/100),((10^K4)*(Discharge!J10^N4)))))) ->  | K12: =IF(Discharge!K10=0,0,IF(TRIM(Discharge!K10)="","",IF(COUNT(O6)=0,"",IF(O6=1,(((10^K4)*(Discharge!K10^N4))/100),((10^K4)*(Discharge!K10^N4)))))) ->  | L12: =IF(Discharge!L10=0,0,IF(TRIM(Discharge!L10)="","",IF(COUNT(O6)=0,"",IF(O6=1,(((10^K4)*(Discharge!L10^N4))/100),((10^K4)*(Discharge!L10^N4)))))) ->  | M12: =IF(Discharge!M10=0,0,IF(TRIM(Discharge!M10)="","",IF(COUNT(O6)=0,"",IF(O6=1,(((10^K4)*(Discharge!M10^N4))/100),((10^K4)*(Discharge!M10^N4)))))) ->  | N12: =IF(Discharge!N10=0,0,IF(TRIM(Discharge!N10)="","",IF(COUNT(O6)=0,"",IF(O6=1,(((10^K4)*(Discharge!N10^N4))/100),((10^K4)*(Discharge!N10^N4)))))) ->  | O12: =IF(AND(C12="",D12="",E12="",F12="",G12="",H12="",I12="",J12="",K12="",L12="",M12="",N12=""),"",SUM(C12:N12)) -> 5
B13: 3 | C13: =IF(Discharge!C11=0,0,IF(TRIM(Discharge!C11)="","",IF(COUNT(O6)=0,"",IF(O6=1,(((10^K4)*(Discharge!C11^N4))/100),((10^K4)*(Discharge!C11^N4)))))) -> 1 | D13: =IF(Discharge!D11=0,0,IF(TRIM(Discharge!D11)="","",IF(COUNT(O6)=0,"",IF(O6=1,(((10^K4)*(Discharge!D11^N4))/100),((10^K4)*(Discharge!D11^N4)))))) -> 1 | E13: =IF(Discharge!E11=0,0,IF(TRIM(Discharge!E11)="","",IF(COUNT(O6)=0,"",IF(O6=1,(((10^K4)*(Discharge!E11^N4))/100),((10^K4)*(Discharge!E11^N4)))))) -> 1 | F13: =IF(Discharge!F11=0,0,IF(TRIM(Discharge!F11)="","",IF(COUNT(O6)=0,"",IF(O6=1,(((10^K4)*(Discharge!F11^N4))/100),((10^K4)*(Discharge!F11^N4)))))) -> 1 | G13: =IF(Discharge!G11=0,0,IF(TRIM(Discharge!G11)="","",IF(COUNT(O6)=0,"",IF(O6=1,(((10^K4)*(Discharge!G11^N4))/100),((10^K4)*(Discharge!G11^N4)))))) -> 1 | H13: =IF(Discharge!H11=0,0,IF(TRIM(Discharge!H11)="","",IF(COUNT(O6)=0,"",IF(O6=1,(((10^K4)*(Discharge!H11^N4))/100),((10^K4)*(Discharge!H11^N4)))))) ->  | I13: =IF(Discharge!I11=0,0,IF(TRIM(Discharge!I11)="","",IF(COUNT(O6)=0,"",IF(O6=1,(((10^K4)*(Discharge!I11^N4))/100),((10^K4)*(Discharge!I11^N4)))))) ->  | J13: =IF(Discharge!J11=0,0,IF(TRIM(Discharge!J11)="","",IF(COUNT(O6)=0,"",IF(O6=1,(((10^K4)*(Discharge!J11^N4))/100),((10^K4)*(Discharge!J11^N4)))))) ->  | K13: =IF(Discharge!K11=0,0,IF(TRIM(Discharge!K11)="","",IF(COUNT(O6)=0,"",IF(O6=1,(((10^K4)*(Discharge!K11^N4))/100),((10^K4)*(Discharge!K11^N4)))))) ->  | L13: =IF(Discharge!L11=0,0,IF(TRIM(Discharge!L11)="","",IF(COUNT(O6)=0,"",IF(O6=1,(((10^K4)*(Discharge!L11^N4))/100),((10^K4)*(Discharge!L11^N4)))))) ->  | M13: =IF(Discharge!M11=0,0,IF(TRIM(Discharge!M11)="","",IF(COUNT(O6)=0,"",IF(O6=1,(((10^K4)*(Discharge!M11^N4))/100),((10^K4)*(Discharge!M11^N4)))))) ->  | N13: =IF(Discharge!N11=0,0,IF(TRIM(Discharge!N11)="","",IF(COUNT(O6)=0,"",IF(O6=1,(((10^K4)*(Discharge!N11^N4))/100),((10^K4)*(Discharge!N11^N4)))))) ->  | O13: 5
B14: 4 | C14: =IF(Discharge!C12=0,0,IF(TRIM(Discharge!C12)="","",IF(COUNT(O6)=0,"",IF(O6=1,(((10^K4)*(Discharge!C12^N4))/100),((10^K4)*(Discharge!C12^N4)))))) -> 1 | D14: =IF(Discharge!D12=0,0,IF(TRIM(Discharge!D12)="","",IF(COUNT(O6)=0,"",IF(O6=1,(((10^K4)*(Discharge!D12^N4))/100),((10^K4)*(Discharge!D12^N4)))))) -> 1 | E14: =IF(Discharge!E12=0,0,IF(TRIM(Discharge!E12)="","",IF(COUNT(O6)=0,"",IF(O6=1,(((10^K4)*(Discharge!E12^N4))/100),((10^K4)*(Discharge!E12^N4)))))) -> 1 | F14: =IF(Discharge!F12=0,0,IF(TRIM(Discharge!F12)="","",IF(COUNT(O6)=0,"",IF(O6=1,(((10^K4)*(Discharge!F12^N4))/100),((10^K4)*(Discharge!F12^N4)))))) -> 1 | G14: =IF(Discharge!G12=0,0,IF(TRIM(Discharge!G12)="","",IF(COUNT(O6)=0,"",IF(O6=1,(((10^K4)*(Discharge!G12^N4))/100),((10^K4)*(Discharge!G12^N4)))))) -> 1 | H14: =IF(Discharge!H12=0,0,IF(TRIM(Discharge!H12)="","",IF(COUNT(O6)=0,"",IF(O6=1,(((10^K4)*(Discharge!H12^N4))/100),((10^K4)*(Discharge!H12^N4)))))) ->  | I14: =IF(Discharge!I12=0,0,IF(TRIM(Discharge!I12)="","",IF(COUNT(O6)=0,"",IF(O6=1,(((10^K4)*(Discharge!I12^N4))/100),((10^K4)*(Discharge!I12^N4)))))) ->  | J14: =IF(Discharge!J12=0,0,IF(TRIM(Discharge!J12)="","",IF(COUNT(O6)=0,"",IF(O6=1,(((10^K4)*(Discharge!J12^N4))/100),((10^K4)*(Discharge!J12^N4)))))) ->  | K14: =IF(Discharge!K12=0,0,IF(TRIM(Discharge!K12)="","",IF(COUNT(O6)=0,"",IF(O6=1,(((10^K4)*(Discharge!K12^N4))/100),((10^K4)*(Discharge!K12^N4)))))) ->  | L14: =IF(Discharge!L12=0,0,IF(TRIM(Discharge!L12)="","",IF(COUNT(O6)=0,"",IF(O6=1,(((10^K4)*(Discharge!L12^N4))/100),((10^K4)*(Discharge!L12^N4)))))) ->  | M14: =IF(Discharge!M12=0,0,IF(TRIM(Discharge!M12)="","",IF(COUNT(O6)=0,"",IF(O6=1,(((10^K4)*(Discharge!M12^N4))/100),((10^K4)*(Discharge!M12^N4)))))) ->  | N14: =IF(Discharge!N12=0,0,IF(TRIM(Discharge!N12)="","",IF(COUNT(O6)=0,"",IF(O6=1,(((10^K4)*(Discharge!N12^N4))/100),((10^K4)*(Discharge!N12^N4)))))) ->  | O14: 5
B15: 5 | C15: =IF(Discharge!C13=0,0,IF(TRIM(Discharge!C13)="","",IF(COUNT(O6)=0,"",IF(O6=1,(((10^K4)*(Discharge!C13^N4))/100),(((10^K4)*(Discharge!C13^N4))))))) -> 1 | D15: =IF(Discharge!D13=0,0,IF(TRIM(Discharge!D13)="","",IF(COUNT(O6)=0,"",IF(O6=1,(((10^K4)*(Discharge!D13^N4))/100),((10^K4)*(Discharge!D13^N4)))))) -> 1 | E15: =IF(Discharge!E13=0,0,IF(TRIM(Discharge!E13)="","",IF(COUNT(O6)=0,"",IF(O6=1,(((10^K4)*(Discharge!E13^N4))/100),((10^K4)*(Discharge!E13^N4)))))) -> 1 | F15: =IF(Discharge!F13=0,0,IF(TRIM(Discharge!F13)="","",IF(COUNT(O6)=0,"",IF(O6=1,(((10^K4)*(Discharge!F13^N4))/100),((10^K4)*(Discharge!F13^N4)))))) -> 1 | G15: =IF(Discharge!G13=0,0,IF(TRIM(Discharge!G13)="","",IF(COUNT(O6)=0,"",IF(O6=1,(((10^K4)*(Discharge!G13^N4))/100),((10^K4)*(Discharge!G13^N4)))))) -> 1 | H15: =IF(Discharge!H13=0,0,IF(TRIM(Discharge!H13)="","",IF(COUNT(O6)=0,"",IF(O6=1,(((10^K4)*(Discharge!H13^N4))/100),((10^K4)*(Discharge!H13^N4)))))) ->  | I15: =IF(Discharge!I13=0,0,IF(TRIM(Discharge!I13)="","",IF(COUNT(O6)=0,"",IF(O6=1,(((10^K4)*(Discharge!I13^N4))/100),((10^K4)*(Discharge!I13^N4)))))) ->  | J15: =IF(Discharge!J13=0,0,IF(TRIM(Discharge!J13)="","",IF(COUNT(O6)=0,"",IF(O6=1,(((10^K4)*(Discharge!J13^N4))/100),((10^K4)*(Discharge!J13^N4)))))) ->  | K15: =IF(Discharge!K13=0,0,IF(TRIM(Discharge!K13)="","",IF(COUNT(O6)=0,"",IF(O6=1,(((10^K4)*(Discharge!K13^N4))/100),((10^K4)*(Discharge!K13^N4)))))) ->  | L15: =IF(Discharge!L13=0,0,IF(TRIM(Discharge!L13)="","",IF(COUNT(O6)=0,"",IF(O6=1,(((10^K4)*(Discharge!L13^N4))/100),((10^K4)*(Discharge!L13^N4)))))) ->  | M15: =IF(Discharge!M13=0,0,IF(TRIM(Discharge!M13)="","",IF(COUNT(O6)=0,"",IF(O6=1,(((10^K4)*(Discharge!M13^N4))/100),((10^K4)*(Discharge!M13^N4)))))) ->  | N15: =IF(Discharge!N13=0,0,IF(TRIM(Discharge!N13)="","",IF(COUNT(O6)=0,"",IF(O6=1,(((10^K4)*(Discharge!N13^N4))/100),((10^K4)*(Discharge!N13^N4)))))) ->  | O15: 5
B16: 6 | C16: =IF(Discharge!C14=0,0,IF(TRIM(Discharge!C14)="","",IF(COUNT(O6)=0,"",IF(O6=1,(((10^K4)*(Discharge!C14^N4))/100),((10^K4)*(Discharge!C14^N4)))))) -> 1 | D16: =IF(Discharge!D14=0,0,IF(TRIM(Discharge!D14)="","",IF(COUNT(O6)=0,"",IF(O6=1,(((10^K4)*(Discharge!D14^N4))/100),((10^K4)*(Discharge!D14^N4)))))) -> 1 | E16: =IF(Discharge!E14=0,0,IF(TRIM(Discharge!E14)="","",IF(COUNT(O6)=0,"",IF(O6=1,(((10^K4)*(Discharge!E14^N4))/100),((10^K4)*(Discharge!E14^N4)))))) -> 1 | F16: =IF(Discharge!F14=0,0,IF(TRIM(Discharge!F14)="","",IF(COUNT(O6)=0,"",IF(O6=1,(((10^K4)*(Discharge!F14^N4))/100),((10^K4)*(Discharge!F14^N4)))))) -> 1 | G16: =IF(Discharge!G14=0,0,IF(TRIM(Discharge!G14)="","",IF(COUNT(O6)=0,"",IF(O6=1,(((10^K4)*(Discharge!G14^N4))/100),((10^K4)*(Discharge!G14^N4)))))) -> 1 | H16: =IF(Discharge!H14=0,0,IF(TRIM(Discharge!H14)="","",IF(COUNT(O6)=0,"",IF(O6=1,(((10^K4)*(Discharge!H14^N4))/100),((10^K4)*(Discharge!H14^N4)))))) ->  | I16: =IF(Discharge!I14=0,0,IF(TRIM(Discharge!I14)="","",IF(COUNT(O6)=0,"",IF(O6=1,(((10^K4)*(Discharge!I14^N4))/100),((10^K4)*(Discharge!I14^N4)))))) ->  | J16: =IF(Discharge!J14=0,0,IF(TRIM(Discharge!J14)="","",IF(COUNT(O6)=0,"",IF(O6=1,(((10^K4)*(Discharge!J14^N4))/100),((10^K4)*(Discharge!J14^N4)))))) ->  | K16: =IF(Discharge!K14=0,0,IF(TRIM(Discharge!K14)="","",IF(COUNT(O6)=0,"",IF(O6=1,(((10^K4)*(Discharge!K14^N4))/100),((10^K4)*(Discharge!K14^N4)))))) ->  | L16: =IF(Discharge!L14=0,0,IF(TRIM(Discharge!L14)="","",IF(COUNT(O6)=0,"",IF(O6=1,(((10^K4)*(Discharge!L14^N4))/100),((10^K4)*(Discharge!L14^N4)))))) ->  | M16: =IF(Discharge!M14=0,0,IF(TRIM(Discharge!M14)="","",IF(COUNT(O6)=0,"",IF(O6=1,(((10^K4)*(Discharge!M14^N4))/100),((10^K4)*(Discharge!M14^N4)))))) ->  | N16: =IF(Discharge!N14=0,0,IF(TRIM(Discharge!N14)="","",IF(COUNT(O6)=0,"",IF(O6=1,(((10^K4)*(Discharge!N14^N4))/100),((10^K4)*(Discharge!N14^N4)))))) ->  | O16: 5
B17: 7 | C17: =IF(Discharge!C15=0,0,IF(TRIM(Discharge!C15)="","",IF(COUNT(O6)=0,"",IF(O6=1,(((10^K4)*(Discharge!C15^N4))/100),((10^K4)*(Discharge!C15^N4)))))) -> 1 | D17: =IF(Discharge!D15=0,0,IF(TRIM(Discharge!D15)="","",IF(COUNT(O6)=0,"",IF(O6=1,(((10^K4)*(Discharge!D15^N4))/100),((10^K4)*(Discharge!D15^N4)))))) -> 1 | E17: =IF(Discharge!E15=0,0,IF(TRIM(Discharge!E15)="","",IF(COUNT(O6)=0,"",IF(O6=1,(((10^K4)*(Discharge!E15^N4))/100),((10^K4)*(Discharge!E15^N4)))))) -> 1 | F17: =IF(Discharge!F15=0,0,IF(TRIM(Discharge!F15)="","",IF(COUNT(O6)=0,"",IF(O6=1,(((10^K4)*(Discharge!F15^N4))/100),((10^K4)*(Discharge!F15^N4)))))) -> 1 | G17: =IF(Discharge!G15=0,0,IF(TRIM(Discharge!G15)="","",IF(COUNT(O6)=0,"",IF(O6=1,(((10^K4)*(Discharge!G15^N4))/100),((10^K4)*(Discharge!G15^N4)))))) -> 1 | H17: =IF(Discharge!H15=0,0,IF(TRIM(Discharge!H15)="","",IF(COUNT(O6)=0,"",IF(O6=1,(((10^K4)*(Discharge!H15^N4))/100),((10^K4)*(Discharge!H15^N4)))))) ->  | I17: =IF(Discharge!I15=0,0,IF(TRIM(Discharge!I15)="","",IF(COUNT(O6)=0,"",IF(O6=1,(((10^K4)*(Discharge!I15^N4))/100),((10^K4)*(Discharge!I15^N4)))))) ->  | J17: =IF(Discharge!J15=0,0,IF(TRIM(Discharge!J15)="","",IF(COUNT(O6)=0,"",IF(O6=1,(((10^K4)*(Discharge!J15^N4))/100),((10^K4)*(Discharge!J15^N4)))))) ->  | K17: =IF(Discharge!K15=0,0,IF(TRIM(Discharge!K15)="","",IF(COUNT(O6)=0,"",IF(O6=1,(((10^K4)*(Discharge!K15^N4))/100),((10^K4)*(Discharge!K15^N4)))))) ->  | L17: =IF(Discharge!L15=0,0,IF(TRIM(Discharge!L15)="","",IF(COUNT(O6)=0,"",IF(O6=1,(((10^K4)*(Discharge!L15^N4))/100),((10^K4)*(Discharge!L15^N4)))))) ->  | M17: =IF(Discharge!M15=0,0,IF(TRIM(Discharge!M15)="","",IF(COUNT(O6)=0,"",IF(O6=1,(((10^K4)*(Discharge!M15^N4))/100),((10^K4)*(Discharge!M15^N4)))))) ->  | N17: =IF(Discharge!N15=0,0,IF(TRIM(Discharge!N15)="","",IF(COUNT(O6)=0,"",IF(O6=1,(((10^K4)*(Discharge!N15^N4))/100),((10^K4)*(Discharge!N15^N4)))))) ->  | O17: 5
B18: 8 | C18: =IF(Discharge!C16=0,0,IF(TRIM(Discharge!C16)="","",IF(COUNT(O6)=0,"",IF(O6=1,(((10^K4)*(Discharge!C16^N4))/100),((10^K4)*(Discharge!C16^N4)))))) -> 1 | D18: =IF(Discharge!D16=0,0,IF(TRIM(Discharge!D16)="","",IF(COUNT(O6)=0,"",IF(O6=1,(((10^K4)*(Discharge!D16^N4))/100),((10^K4)*(Discharge!D16^N4)))))) -> 1 | E18: =IF(Discharge!E16=0,0,IF(TRIM(Discharge!E16)="","",IF(COUNT(O6)=0,"",IF(O6=1,(((10^K4)*(Discharge!E16^N4))/100),((10^K4)*(Discharge!E16^N4)))))) -> 1 | F18: =IF(Discharge!F16=0,0,IF(TRIM(Discharge!F16)="","",IF(COUNT(O6)=0,"",IF(O6=1,(((10^K4)*(Discharge!F16^N4))/100),((10^K4)*(Discharge!F16^N4)))))) -> 1 | G18: =IF(Discharge!G16=0,0,IF(TRIM(Discharge!G16)="","",IF(COUNT(O6)=0,"",IF(O6=1,(((10^K4)*(Discharge!G16^N4))/100),((10^K4)*(Discharge!G16^N4)))))) -> 1 | H18: =IF(Discharge!H16=0,0,IF(TRIM(Discharge!H16)="","",IF(COUNT(O6)=0,"",IF(O6=1,(((10^K4)*(Discharge!H16^N4))/100),((10^K4)*(Discharge!H16^N4)))))) ->  | I18: =IF(Discharge!I16=0,0,IF(TRIM(Discharge!I16)="","",IF(COUNT(O6)=0,"",IF(O6=1,(((10^K4)*(Discharge!I16^N4))/100),((10^K4)*(Discharge!I16^N4)))))) ->  | J18: =IF(Discharge!J16=0,0,IF(TRIM(Discharge!J16)="","",IF(COUNT(O6)=0,"",IF(O6=1,(((10^K4)*(Discharge!J16^N4))/100),((10^K4)*(Discharge!J16^N4)))))) ->  | K18: =IF(Discharge!K16=0,0,IF(TRIM(Discharge!K16)="","",IF(COUNT(O6)=0,"",IF(O6=1,(((10^K4)*(Discharge!K16^N4))/100),((10^K4)*(Discharge!K16^N4)))))) ->  | L18: =IF(Discharge!L16=0,0,IF(TRIM(Discharge!L16)="","",IF(COUNT(O6)=0,"",IF(O6=1,(((10^K4)*(Discharge!L16^N4))/100),((10^K4)*(Discharge!L16^N4)))))) ->  | M18: =IF(Discharge!M16=0,0,IF(TRIM(Discharge!M16)="","",IF(COUNT(O6)=0,"",IF(O6=1,(((10^K4)*(Discharge!M16^N4))/100),((10^K4)*(Discharge!M16^N4)))))) ->  | N18: =IF(Discharge!N16=0,0,IF(TRIM(Discharge!N16)="","",IF(COUNT(O6)=0,"",IF(O6=1,(((10^K4)*(Discharge!N16^N4))/100),((10^K4)*(Discharge!N16^N4)))))) ->  | O18: 5
B19: 9 | C19: =IF(Discharge!C17=0,0,IF(TRIM(Discharge!C17)="","",IF(COUNT(O6)=0,"",IF(O6=1,(((10^K4)*(Discharge!C17^N4))/100),((10^K4)*(Discharge!C17^N4)))))) -> 1 | D19: =IF(Discharge!D17=0,0,IF(TRIM(Discharge!D17)="","",IF(COUNT(O6)=0,"",IF(O6=1,(((10^K4)*(Discharge!D17^N4))/100),((10^K4)*(Discharge!D17^N4)))))) -> 1 | E19: =IF(Discharge!E17=0,0,IF(TRIM(Discharge!E17)="","",IF(COUNT(O6)=0,"",IF(O6=1,(((10^K4)*(Discharge!E17^N4))/100),((10^K4)*(Discharge!E17^N4)))))) -> 1 | F19: =IF(Discharge!F17=0,0,IF(TRIM(Discharge!F17)="","",IF(COUNT(O6)=0,"",IF(O6=1,(((10^K4)*(Discharge!F17^N4))/100),((10^K4)*(Discharge!F17^N4)))))) -> 1 | G19: =IF(Discharge!G17=0,0,IF(TRIM(Discharge!G17)="","",IF(COUNT(O6)=0,"",IF(O6=1,(((10^K4)*(Discharge!G17^N4))/100),((10^K4)*(Discharge!G17^N4)))))) -> 1 | H19: =IF(Discharge!H17=0,0,IF(TRIM(Discharge!H17)="","",IF(COUNT(O6)=0,"",IF(O6=1,(((10^K4)*(Discharge!H17^N4))/100),((10^K4)*(Discharge!H17^N4)))))) ->  | I19: =IF(Discharge!I17=0,0,IF(TRIM(Discharge!I17)="","",IF(COUNT(O6)=0,"",IF(O6=1,(((10^K4)*(Discharge!I17^N4))/100),((10^K4)*(Discharge!I17^N4)))))) ->  | J19: =IF(Discharge!J17=0,0,IF(TRIM(Discharge!J17)="","",IF(COUNT(O6)=0,"",IF(O6=1,(((10^K4)*(Discharge!J17^N4))/100),((10^K4)*(Discharge!J17^N4)))))) ->  | K19: =IF(Discharge!K17=0,0,IF(TRIM(Discharge!K17)="","",IF(COUNT(O6)=0,"",IF(O6=1,(((10^K4)*(Discharge!K17^N4))/100),((10^K4)*(Discharge!K17^N4)))))) ->  | L19: =IF(Discharge!L17=0,0,IF(TRIM(Discharge!L17)="","",IF(COUNT(O6)=0,"",IF(O6=1,(((10^K4)*(Discharge!L17^N4))/100),((10^K4)*(Discharge!L17^N4)))))) ->  | M19: =IF(Discharge!M17=0,0,IF(TRIM(Discharge!M17)="","",IF(COUNT(O6)=0,"",IF(O6=1,(((10^K4)*(Discharge!M17^N4))/100),((10^K4)*(Discharge!M17^N4)))))) ->  | N19: =IF(Discharge!N17=0,0,IF(TRIM(Discharge!N17)="","",IF(COUNT(O6)=0,"",IF(O6=1,(((10^K4)*(Discharge!N17^N4))/100),((10^K4)*(Discharge!N17^N4)))))) ->  | O19: 5
B20: 10 | C20: =IF(Discharge!C18=0,0,IF(TRIM(Discharge!C18)="","",IF(COUNT(O6)=0,"",IF(O6=1,(((10^K4)*(Discharge!C18^N4))/100),((10^K4)*(Discharge!C18^N4)))))) -> 1 | D20: =IF(Discharge!D18=0,0,IF(TRIM(Discharge!D18)="","",IF(COUNT(O6)=0,"",IF(O6=1,(((10^K4)*(Discharge!D18^N4))/100),((10^K4)*(Discharge!D18^N4)))))) -> 1 | E20: =IF(Discharge!E18=0,0,IF(TRIM(Discharge!E18)="","",IF(COUNT(O6)=0,"",IF(O6=1,(((10^K4)*(Discharge!E18^N4))/100),((10^K4)*(Discharge!E18^N4)))))) -> 1 | F20: =IF(Discharge!F18=0,0,IF(TRIM(Discharge!F18)="","",IF(COUNT(O6)=0,"",IF(O6=1,(((10^K4)*(Discharge!F18^N4))/100),((10^K4)*(Discharge!F18^N4)))))) -> 1 | G20: =IF(Discharge!G18=0,0,IF(TRIM(Discharge!G18)="","",IF(COUNT(O6)=0,"",IF(O6=1,(((10^K4)*(Discharge!G18^N4))/100),((10^K4)*(Discharge!G18^N4)))))) -> 1 | H20: =IF(Discharge!H18=0,0,IF(TRIM(Discharge!H18)="","",IF(COUNT(O6)=0,"",IF(O6=1,(((10^K4)*(Discharge!H18^N4))/100),((10^K4)*(Discharge!H18^N4)))))) ->  | I20: =IF(Discharge!I18=0,0,IF(TRIM(Discharge!I18)="","",IF(COUNT(O6)=0,"",IF(O6=1,(((10^K4)*(Discharge!I18^N4))/100),((10^K4)*(Discharge!I18^N4)))))) ->  | J20: =IF(Discharge!J18=0,0,IF(TRIM(Discharge!J18)="","",IF(COUNT(O6)=0,"",IF(O6=1,(((10^K4)*(Discharge!J18^N4))/100),((10^K4)*(Discharge!J18^N4)))))) ->  | K20: =IF(Discharge!K18=0,0,IF(TRIM(Discharge!K18)="","",IF(COUNT(O6)=0,"",IF(O6=1,(((10^K4)*(Discharge!K18^N4))/100),((10^K4)*(Discharge!K18^N4)))))) ->  | L20: =IF(Discharge!L18=0,0,IF(TRIM(Discharge!L18)="","",IF(COUNT(O6)=0,"",IF(O6=1,(((10^K4)*(Discharge!L18^N4))/100),((10^K4)*(Discharge!L18^N4)))))) ->  | M20: =IF(Discharge!M18=0,0,IF(TRIM(Discharge!M18)="","",IF(COUNT(O6)=0,"",IF(O6=1,(((10^K4)*(Discharge!M18^N4))/100),((10^K4)*(Discharge!M18^N4)))))) ->  | N20: =IF(Discharge!N18=0,0,IF(TRIM(Discharge!N18)="","",IF(COUNT(O6)=0,"",IF(O6=1,(((10^K4)*(Discharge!N18^N4))/100),((10^K4)*(Discharge!N18^N4)))))) ->  | O20: 5
B22: 11 | C22: =IF(Discharge!C20=0,0,IF(TRIM(Discharge!C20)="","",IF(COUNT(O6)=0,"",IF(O6=1,(((10^K4)*(Discharge!C20^N4))/100),((10^K4)*(Discharge!C20^N4)))))) -> 1 | D22: =IF(Discharge!D20=0,0,IF(TRIM(Discharge!D20)="","",IF(COUNT(O6)=0,"",IF(O6=1,(((10^K4)*(Discharge!D20^N4))/100),((10^K4)*(Discharge!D20^N4)))))) -> 1 | E22: =IF(Discharge!E20=0,0,IF(TRIM(Discharge!E20)="","",IF(COUNT(O6)=0,"",IF(O6=1,(((10^K4)*(Discharge!E20^N4))/100),((10^K4)*(Discharge!E20^N4)))))) -> 1 | F22: =IF(Discharge!F20=0,0,IF(TRIM(Discharge!F20)="","",IF(COUNT(O6)=0,"",IF(O6=1,(((10^K4)*(Discharge!F20^N4))/100),((10^K4)*(Discharge!F20^N4)))))) -> 1 | G22: =IF(Discharge!G20=0,0,IF(TRIM(Discharge!G20)="","",IF(COUNT(O6)=0,"",IF(O6=1,(((10^K4)*(Discharge!G20^N4))/100),((10^K4)*(Discharge!G20^N4)))))) -> 1 | H22: =IF(Discharge!H20=0,0,IF(TRIM(Discharge!H20)="","",IF(COUNT(O6)=0,"",IF(O6=1,(((10^K4)*(Discharge!H20^N4))/100),((10^K4)*(Discharge!H20^N4)))))) ->  | I22: =IF(Discharge!I20=0,0,IF(TRIM(Discharge!I20)="","",IF(COUNT(O6)=0,"",IF(O6=1,(((10^K4)*(Discharge!I20^N4))/100),((10^K4)*(Discharge!I20^N4)))))) ->  | J22: =IF(Discharge!J20=0,0,IF(TRIM(Discharge!J20)="","",IF(COUNT(O6)=0,"",IF(O6=1,(((10^K4)*(Discharge!J20^N4))/100),((10^K4)*(Discharge!J20^N4)))))) ->  | K22: =IF(Discharge!K20=0,0,IF(TRIM(Discharge!K20)="","",IF(COUNT(O6)=0,"",IF(O6=1,(((10^K4)*(Discharge!K20^N4))/100),((10^K4)*(Discharge!K20^N4)))))) ->  | L22: =IF(Discharge!L20=0,0,IF(TRIM(Discharge!L20)="","",IF(COUNT(O6)=0,"",IF(O6=1,(((10^K4)*(Discharge!L20^N4))/100),((10^K4)*(Discharge!L20^N4)))))) ->  | M22: =IF(Discharge!M20=0,0,IF(TRIM(Discharge!M20)="","",IF(COUNT(O6)=0,"",IF(O6=1,(((10^K4)*(Discharge!M20^N4))/100),((10^K4)*(Discharge!M20^N4)))))) ->  | N22: =IF(Discharge!N20=0,0,IF(TRIM(Discharge!N20)="","",IF(COUNT(O6)=0,"",IF(O6=1,(((10^K4)*(Discharge!N20^N4))/100),((10^K4)*(Discharge!N20^N4)))))) ->  | O22: 5
B23: 12 | C23: =IF(Discharge!C21=0,0,IF(TRIM(Discharge!C21)="","",IF(COUNT(O6)=0,"",IF(O6=1,(((10^K4)*(Discharge!C21^N4))/100),((10^K4)*(Discharge!C21^N4)))))) -> 1 | D23: =IF(Discharge!D21=0,0,IF(TRIM(Discharge!D21)="","",IF(COUNT(O6)=0,"",IF(O6=1,(((10^K4)*(Discharge!D21^N4))/100),((10^K4)*(Discharge!D21^N4)))))) -> 1 | E23: =IF(Discharge!E21=0,0,IF(TRIM(Discharge!E21)="","",IF(COUNT(O6)=0,"",IF(O6=1,(((10^K4)*(Discharge!E21^N4))/100),((10^K4)*(Discharge!E21^N4)))))) -> 1 | F23: =IF(Discharge!F21=0,0,IF(TRIM(Discharge!F21)="","",IF(COUNT(O6)=0,"",IF(O6=1,(((10^K4)*(Discharge!F21^N4))/100),((10^K4)*(Discharge!F21^N4)))))) -> 1 | G23: =IF(Discharge!G21=0,0,IF(TRIM(Discharge!G21)="","",IF(COUNT(O6)=0,"",IF(O6=1,(((10^K4)*(Discharge!G21^N4))/100),((10^K4)*(Discharge!G21^N4)))))) -> 1 | H23: =IF(Discharge!H21=0,0,IF(TRIM(Discharge!H21)="","",IF(COUNT(O6)=0,"",IF(O6=1,(((10^K4)*(Discharge!H21^N4))/100),((10^K4)*(Discharge!H21^N4)))))) ->  | I23: =IF(Discharge!I21=0,0,IF(TRIM(Discharge!I21)="","",IF(COUNT(O6)=0,"",IF(O6=1,(((10^K4)*(Discharge!I21^N4))/100),((10^K4)*(Discharge!I21^N4)))))) ->  | J23: =IF(Discharge!J21=0,0,IF(TRIM(Discharge!J21)="","",IF(COUNT(O6)=0,"",IF(O6=1,(((10^K4)*(Discharge!J21^N4))/100),((10^K4)*(Discharge!J21^N4)))))) ->  | K23: =IF(Discharge!K21=0,0,IF(TRIM(Discharge!K21)="","",IF(COUNT(O6)=0,"",IF(O6=1,(((10^K4)*(Discharge!K21^N4))/100),((10^K4)*(Discharge!K21^N4)))))) ->  | L23: =IF(Discharge!L21=0,0,IF(TRIM(Discharge!L21)="","",IF(COUNT(O6)=0,"",IF(O6=1,(((10^K4)*(Discharge!L21^N4))/100),((10^K4)*(Discharge!L21^N4)))))) ->  | M23: =IF(Discharge!M21=0,0,IF(TRIM(Discharge!M21)="","",IF(COUNT(O6)=0,"",IF(O6=1,(((10^K4)*(Discharge!M21^N4))/100),((10^K4)*(Discharge!M21^N4)))))) ->  | N23: =IF(Discharge!N21=0,0,IF(TRIM(Discharge!N21)="","",IF(COUNT(O6)=0,"",IF(O6=1,(((10^K4)*(Discharge!N21^N4))/100),((10^K4)*(Discharge!N21^N4)))))) ->  | O23: 5
B24: 13 | C24: =IF(Discharge!C10=0,0,IF(TRIM(Discharge!C22)="","",IF(COUNT(O6)=0,"",IF(O6=1,(((10^K4)*(Discharge!C22^N4))/100),((10^K4)*(Discharge!C22^N4)))))) -> 1 | D24: =IF(Discharge!D22=0,0,IF(TRIM(Discharge!D22)="","",IF(COUNT(O6)=0,"",IF(O6=1,(((10^K4)*(Discharge!D22^N4))/100),((10^K4)*(Discharge!D22^N4)))))) -> 1 | E24: =IF(Discharge!E22=0,0,IF(TRIM(Discharge!E22)="","",IF(COUNT(O6)=0,"",IF(O6=1,(((10^K4)*(Discharge!E22^N4))/100),((10^K4)*(Discharge!E22^N4)))))) -> 1 | F24: =IF(Discharge!F22=0,0,IF(TRIM(Discharge!F22)="","",IF(COUNT(O6)=0,"",IF(O6=1,(((10^K4)*(Discharge!F22^N4))/100),((10^K4)*(Discharge!F22^N4)))))) -> 1 | G24: =IF(Discharge!G22=0,0,IF(TRIM(Discharge!G22)="","",IF(COUNT(O6)=0,"",IF(O6=1,(((10^K4)*(Discharge!G22^N4))/100),((10^K4)*(Discharge!G22^N4)))))) -> 1 | H24: =IF(Discharge!H22=0,0,IF(TRIM(Discharge!H22)="","",IF(COUNT(O6)=0,"",IF(O6=1,(((10^K4)*(Discharge!H22^N4))/100),((10^K4)*(Discharge!H22^N4)))))) ->  | I24: =IF(Discharge!I22=0,0,IF(TRIM(Discharge!I22)="","",IF(COUNT(O6)=0,"",IF(O6=1,(((10^K4)*(Discharge!I22^N4))/100),((10^K4)*(Discharge!I22^N4)))))) ->  | J24: =IF(Discharge!J22=0,0,IF(TRIM(Discharge!J22)="","",IF(COUNT(O6)=0,"",IF(O6=1,(((10^K4)*(Discharge!J22^N4))/100),((10^K4)*(Discharge!J22^N4)))))) ->  | K24: =IF(Discharge!K22=0,0,IF(TRIM(Discharge!K22)="","",IF(COUNT(O6)=0,"",IF(O6=1,(((10^K4)*(Discharge!K22^N4))/100),((10^K4)*(Discharge!K22^N4)))))) ->  | L24: =IF(Discharge!L22=0,0,IF(TRIM(Discharge!L22)="","",IF(COUNT(O6)=0,"",IF(O6=1,(((10^K4)*(Discharge!L22^N4))/100),((10^K4)*(Discharge!L22^N4)))))) ->  | M24: =IF(Discharge!M22=0,0,IF(TRIM(Discharge!M22)="","",IF(COUNT(O6)=0,"",IF(O6=1,(((10^K4)*(Discharge!M22^N4))/100),((10^K4)*(Discharge!M22^N4)))))) ->  | N24: =IF(Discharge!N22=0,0,IF(TRIM(Discharge!N22)="","",IF(COUNT(O6)=0,"",IF(O6=1,(((10^K4)*(Discharge!N22^N4))/100),((10^K4)*(Discharge!N22^N4)))))) ->  | O24: 5
B25: 14 | C25: =IF(Discharge!C10=0,0,IF(TRIM(Discharge!C23)="","",IF(COUNT(O6)=0,"",IF(O6=1,(((10^K4)*(Discharge!C23^N4))/100),((10^K4)*(Discharge!C23^N4)))))) -> 1 | D25: =IF(Discharge!D23=0,0,IF(TRIM(Discharge!D23)="","",IF(COUNT(O6)=0,"",IF(O6=1,(((10^K4)*(Discharge!D23^N4))/100),((10^K4)*(Discharge!D23^N4)))))) -> 1 | E25: =IF(Discharge!E23=0,0,IF(TRIM(Discharge!E23)="","",IF(COUNT(O6)=0,"",IF(O6=1,(((10^K4)*(Discharge!E23^N4))/100),((10^K4)*(Discharge!E23^N4)))))) -> 1 | F25: =IF(Discharge!F23=0,0,IF(TRIM(Discharge!F23)="","",IF(COUNT(O6)=0,"",IF(O6=1,(((10^K4)*(Discharge!F23^N4))/100),((10^K4)*(Discharge!F23^N4)))))) -> 1 | G25: =IF(Discharge!G23=0,0,IF(TRIM(Discharge!G23)="","",IF(COUNT(O6)=0,"",IF(O6=1,(((10^K4)*(Discharge!G23^N4))/100),((10^K4)*(Discharge!G23^N4)))))) -> 1 | H25: =IF(Discharge!H23=0,0,IF(TRIM(Discharge!H23)="","",IF(COUNT(O6)=0,"",IF(O6=1,(((10^K4)*(Discharge!H23^N4))/100),((10^K4)*(Discharge!H23^N4)))))) ->  | I25: =IF(Discharge!I23=0,0,IF(TRIM(Discharge!I23)="","",IF(COUNT(O6)=0,"",IF(O6=1,(((10^K4)*(Discharge!I23^N4))/100),((10^K4)*(Discharge!I23^N4)))))) ->  | J25: =IF(Discharge!J23=0,0,IF(TRIM(Discharge!J23)="","",IF(COUNT(O6)=0,"",IF(O6=1,(((10^K4)*(Discharge!J23^N4))/100),((10^K4)*(Discharge!J23^N4)))))) ->  | K25: =IF(Discharge!K23=0,0,IF(TRIM(Discharge!K23)="","",IF(COUNT(O6)=0,"",IF(O6=1,(((10^K4)*(Discharge!K23^N4))/100),((10^K4)*(Discharge!K23^N4)))))) ->  | L25: =IF(Discharge!L23=0,0,IF(TRIM(Discharge!L23)="","",IF(COUNT(O6)=0,"",IF(O6=1,(((10^K4)*(Discharge!L23^N4))/100),((10^K4)*(Discharge!L23^N4)))))) ->  | M25: =IF(Discharge!M23=0,0,IF(TRIM(Discharge!M23)="","",IF(COUNT(O6)=0,"",IF(O6=1,(((10^K4)*(Discharge!M23^N4))/100),((10^K4)*(Discharge!M23^N4)))))) ->  | N25: =IF(Discharge!N23=0,0,IF(TRIM(Discharge!N23)="","",IF(COUNT(O6)=0,"",IF(O6=1,(((10^K4)*(Discharge!N23^N4))/100),((10^K4)*(Discharge!N23^N4)))))) ->  | O25: 5
B26: 15 | C26: =IF(Discharge!C24=0,0,IF(TRIM(Discharge!C24)="","",IF(COUNT(O6)=0,"",IF(O6=1,(((10^K4)*(Discharge!C24^N4))/100),((10^K4)*(Discharge!C24^N4)))))) -> 1 | D26: =IF(Discharge!D24=0,0,IF(TRIM(Discharge!D24)="","",IF(COUNT(O6)=0,"",IF(O6=1,(((10^K4)*(Discharge!D24^N4))/100),((10^K4)*(Discharge!D24^N4)))))) -> 1 | E26: =IF(Discharge!E24=0,0,IF(TRIM(Discharge!E24)="","",IF(COUNT(O6)=0,"",IF(O6=1,(((10^K4)*(Discharge!E24^N4))/100),((10^K4)*(Discharge!E24^N4)))))) -> 1 | F26: =IF(Discharge!F24=0,0,IF(TRIM(Discharge!F24)="","",IF(COUNT(O6)=0,"",IF(O6=1,(((10^K4)*(Discharge!F24^N4))/100),((10^K4)*(Discharge!F24^N4)))))) -> 1 | G26: =IF(Discharge!G24=0,0,IF(TRIM(Discharge!G24)="","",IF(COUNT(O6)=0,"",IF(O6=1,(((10^K4)*(Discharge!G24^N4))/100),((10^K4)*(Discharge!G24^N4)))))) -> 1 | H26: =IF(Discharge!H24=0,0,IF(TRIM(Discharge!H24)="","",IF(COUNT(O6)=0,"",IF(O6=1,(((10^K4)*(Discharge!H24^N4))/100),((10^K4)*(Discharge!H24^N4)))))) ->  | I26: =IF(Discharge!I24=0,0,IF(TRIM(Discharge!I24)="","",IF(COUNT(O6)=0,"",IF(O6=1,(((10^K4)*(Discharge!I24^N4))/100),((10^K4)*(Discharge!I24^N4)))))) ->  | J26: =IF(Discharge!J24=0,0,IF(TRIM(Discharge!J24)="","",IF(COUNT(O6)=0,"",IF(O6=1,(((10^K4)*(Discharge!J24^N4))/100),((10^K4)*(Discharge!J24^N4)))))) ->  | K26: =IF(Discharge!K24=0,0,IF(TRIM(Discharge!K24)="","",IF(COUNT(O6)=0,"",IF(O6=1,(((10^K4)*(Discharge!K24^N4))/100),((10^K4)*(Discharge!K24^N4)))))) ->  | L26: =IF(Discharge!L24=0,0,IF(TRIM(Discharge!L24)="","",IF(COUNT(O6)=0,"",IF(O6=1,(((10^K4)*(Discharge!L24^N4))/100),((10^K4)*(Discharge!L24^N4)))))) ->  | M26: =IF(Discharge!M24=0,0,IF(TRIM(Discharge!M24)="","",IF(COUNT(O6)=0,"",IF(O6=1,(((10^K4)*(Discharge!M24^N4))/100),((10^K4)*(Discharge!M24^N4)))))) ->  | N26: =IF(Discharge!N24=0,0,IF(TRIM(Discharge!N24)="","",IF(COUNT(O6)=0,"",IF(O6=1,(((10^K4)*(Discharge!N24^N4))/100),((10^K4)*(Discharge!N24^N4)))))) ->  | O26: 5
B27: 16 | C27: =IF(Discharge!C25=0,0,IF(TRIM(Discharge!C25)="","",IF(COUNT(O6)=0,"",IF(O6=1,(((10^K4)*(Discharge!C25^N4))/100),((10^K4)*(Discharge!C25^N4)))))) -> 1 | D27: =IF(Discharge!D25=0,0,IF(TRIM(Discharge!D25)="","",IF(COUNT(O6)=0,"",IF(O6=1,(((10^K4)*(Discharge!D25^N4))/100),((10^K4)*(Discharge!D25^N4)))))) -> 1 | E27: =IF(Discharge!E25=0,0,IF(TRIM(Discharge!E25)="","",IF(COUNT(O6)=0,"",IF(O6=1,(((10^K4)*(Discharge!E25^N4))/100),((10^K4)*(Discharge!E25^N4)))))) -> 1 | F27: =IF(Discharge!F25=0,0,IF(TRIM(Discharge!F25)="","",IF(COUNT(O6)=0,"",IF(O6=1,(((10^K4)*(Discharge!F25^N4))/100),((10^K4)*(Discharge!F25^N4)))))) -> 1 | G27: =IF(Discharge!G25=0,0,IF(TRIM(Discharge!G25)="","",IF(COUNT(O6)=0,"",IF(O6=1,(((10^K4)*(Discharge!G25^N4))/100),((10^K4)*(Discharge!G25^N4)))))) -> 1 | H27: =IF(Discharge!H25=0,0,IF(TRIM(Discharge!H25)="","",IF(COUNT(O6)=0,"",IF(O6=1,(((10^K4)*(Discharge!H25^N4))/100),((10^K4)*(Discharge!H25^N4)))))) ->  | I27: =IF(Discharge!I25=0,0,IF(TRIM(Discharge!I25)="","",IF(COUNT(O6)=0,"",IF(O6=1,(((10^K4)*(Discharge!I25^N4))/100),((10^K4)*(Discharge!I25^N4)))))) ->  | J27: =IF(Discharge!J25=0,0,IF(TRIM(Discharge!J25)="","",IF(COUNT(O6)=0,"",IF(O6=1,(((10^K4)*(Discharge!J25^N4))/100),((10^K4)*(Discharge!J25^N4)))))) ->  | K27: =IF(Discharge!K25=0,0,IF(TRIM(Discharge!K25)="","",IF(COUNT(O6)=0,"",IF(O6=1,(((10^K4)*(Discharge!K25^N4))/100),((10^K4)*(Discharge!K25^N4)))))) ->  | L27: =IF(Discharge!L25=0,0,IF(TRIM(Discharge!L25)="","",IF(COUNT(O6)=0,"",IF(O6=1,(((10^K4)*(Discharge!L25^N4))/100),((10^K4)*(Discharge!L25^N4)))))) ->  | M27: =IF(Discharge!M25=0,0,IF(TRIM(Discharge!M25)="","",IF(COUNT(O6)=0,"",IF(O6=1,(((10^K4)*(Discharge!M25^N4))/100),((10^K4)*(Discharge!M25^N4)))))) ->  | N27: =IF(Discharge!N25=0,0,IF(TRIM(Discharge!N25)="","",IF(COUNT(O6)=0,"",IF(O6=1,(((10^K4)*(Discharge!N25^N4))/100),((10^K4)*(Discharge!N25^N4)))))) ->  | O27: 5
B28: 17 | C28: =IF(Discharge!C26=0,0,IF(TRIM(Discharge!C26)="","",IF(COUNT(O6)=0,"",IF(O6=1,(((10^K4)*(Discharge!C26^N4))/100),((10^K4)*(Discharge!C26^N4)))))) -> 1 | D28: =IF(Discharge!D26=0,0,IF(TRIM(Discharge!D26)="","",IF(COUNT(O6)=0,"",IF(O6=1,(((10^K4)*(Discharge!D26^N4))/100),((10^K4)*(Discharge!D26^N4)))))) -> 1 | E28: =IF(Discharge!E26=0,0,IF(TRIM(Discharge!E26)="","",IF(COUNT(O6)=0,"",IF(O6=1,(((10^K4)*(Discharge!E26^N4))/100),((10^K4)*(Discharge!E26^N4)))))) -> 1 | F28: =IF(Discharge!F26=0,0,IF(TRIM(Discharge!F26)="","",IF(COUNT(O6)=0,"",IF(O6=1,(((10^K4)*(Discharge!F26^N4))/100),((10^K4)*(Discharge!F26^N4)))))) -> 1 | G28: =IF(Discharge!G26=0,0,IF(TRIM(Discharge!G26)="","",IF(COUNT(O6)=0,"",IF(O6=1,(((10^K4)*(Discharge!G26^N4))/100),((10^K4)*(Discharge!G26^N4)))))) -> 1 | H28: =IF(Discharge!H26=0,0,IF(TRIM(Discharge!H26)="","",IF(COUNT(O6)=0,"",IF(O6=1,(((10^K4)*(Discharge!H26^N4))/100),((10^K4)*(Discharge!H26^N4)))))) ->  | I28: =IF(Discharge!I26=0,0,IF(TRIM(Discharge!I26)="","",IF(COUNT(O6)=0,"",IF(O6=1,(((10^K4)*(Discharge!I26^N4))/100),((10^K4)*(Discharge!I26^N4)))))) ->  | J28: =IF(Discharge!J26=0,0,IF(TRIM(Discharge!J26)="","",IF(COUNT(O6)=0,"",IF(O6=1,(((10^K4)*(Discharge!J26^N4))/100),((10^K4)*(Discharge!J26^N4)))))) ->  | K28: =IF(Discharge!K26=0,0,IF(TRIM(Discharge!K26)="","",IF(COUNT(O6)=0,"",IF(O6=1,(((10^K4)*(Discharge!K26^N4))/100),((10^K4)*(Discharge!K26^N4)))))) ->  | L28: =IF(Discharge!L26=0,0,IF(TRIM(Discharge!L26)="","",IF(COUNT(O6)=0,"",IF(O6=1,(((10^K4)*(Discharge!L26^N4))/100),((10^K4)*(Discharge!L26^N4)))))) ->  | M28: =IF(Discharge!M26=0,0,IF(TRIM(Discharge!M26)="","",IF(COUNT(O6)=0,"",IF(O6=1,(((10^K4)*(Discharge!M26^N4))/100),((10^K4)*(Discharge!M26^N4)))))) ->  | N28: =IF(Discharge!N26=0,0,IF(TRIM(Discharge!N26)="","",IF(COUNT(O6)=0,"",IF(O6=1,(((10^K4)*(Discharge!N26^N4))/100),((10^K4)*(Discharge!N26^N4)))))) ->  | O28: 5
B29: 18 | C29: =IF(Discharge!C27=0,0,IF(TRIM(Discharge!C27)="","",IF(COUNT(O6)=0,"",IF(O6=1,(((10^K4)*(Discharge!C27^N4))/100),((10^K4)*(Discharge!C27^N4)))))) -> 1 | D29: =IF(Discharge!D27=0,0,IF(TRIM(Discharge!D27)="","",IF(COUNT(O6)=0,"",IF(O6=1,(((10^K4)*(Discharge!D27^N4))/100),((10^K4)*(Discharge!D27^N4)))))) -> 1 | E29: =IF(Discharge!E27=0,0,IF(TRIM(Discharge!E27)="","",IF(COUNT(O6)=0,"",IF(O6=1,(((10^K4)*(Discharge!E27^N4))/100),((10^K4)*(Discharge!E27^N4)))))) -> 1 | F29: =IF(Discharge!F27=0,0,IF(TRIM(Discharge!F27)="","",IF(COUNT(O6)=0,"",IF(O6=1,(((10^K4)*(Discharge!F27^N4))/100),((10^K4)*(Discharge!F27^N4)))))) -> 1 | G29: =IF(Discharge!G27=0,0,IF(TRIM(Discharge!G27)="","",IF(COUNT(O6)=0,"",IF(O6=1,(((10^K4)*(Discharge!G27^N4))/100),((10^K4)*(Discharge!G27^N4)))))) -> 1 | H29: =IF(Discharge!H27=0,0,IF(TRIM(Discharge!H27)="","",IF(COUNT(O6)=0,"",IF(O6=1,(((10^K4)*(Discharge!H27^N4))/100),((10^K4)*(Discharge!H27^N4)))))) ->  | I29: =IF(Discharge!I27=0,0,IF(TRIM(Discharge!I27)="","",IF(COUNT(O6)=0,"",IF(O6=1,(((10^K4)*(Discharge!I27^N4))/100),((10^K4)*(Discharge!I27^N4)))))) ->  | J29: =IF(Discharge!J27=0,0,IF(TRIM(Discharge!J27)="","",IF(COUNT(O6)=0,"",IF(O6=1,(((10^K4)*(Discharge!J27^N4))/100),((10^K4)*(Discharge!J27^N4)))))) ->  | K29: =IF(Discharge!K27=0,0,IF(TRIM(Discharge!K27)="","",IF(COUNT(O6)=0,"",IF(O6=1,(((10^K4)*(Discharge!K27^N4))/100),((10^K4)*(Discharge!K27^N4)))))) ->  | L29: =IF(Discharge!L27=0,0,IF(TRIM(Discharge!L27)="","",IF(COUNT(O6)=0,"",IF(O6=1,(((10^K4)*(Discharge!L27^N4))/100),((10^K4)*(Discharge!L27^N4)))))) ->  | M29: =IF(Discharge!M27=0,0,IF(TRIM(Discharge!M27)="","",IF(COUNT(O6)=0,"",IF(O6=1,(((10^K4)*(Discharge!M27^N4))/100),((10^K4)*(Discharge!M27^N4)))))) ->  | N29: =IF(Discharge!N27=0,0,IF(TRIM(Discharge!N27)="","",IF(COUNT(O6)=0,"",IF(O6=1,(((10^K4)*(Discharge!N27^N4))/100),((10^K4)*(Discharge!N27^N4)))))) ->  | O29: =IF(AND(C29="",D29="",E29="",F29="",G29="",H29="",I29="",J29="",K29="",L29="",M29="",N29=""),"",SUM(C29:N29)) -> 5
B30: 19 | C30: =IF(Discharge!C28=0,0,IF(TRIM(Discharge!C28)="","",IF(COUNT(O6)=0,"",IF(O6=1,(((10^K4)*(Discharge!C28^N4))/100),((10^K4)*(Discharge!C28^N4)))))) -> 1 | D30: =IF(Discharge!D28=0,0,IF(TRIM(Discharge!D28)="","",IF(COUNT(O6)=0,"",IF(O6=1,(((10^K4)*(Discharge!D28^N4))/100),((10^K4)*(Discharge!D28^N4)))))) -> 1 | E30: =IF(Discharge!E28=0,0,IF(Discharge!E28=0,0,IF(TRIM(Discharge!E28)="","",IF(COUNT(O6)=0,"",IF(O6=1,(((10^K4)*(Discharge!E28^N4))/100),((10^K4)*(Discharge!E28^N4))))))) -> 1 | F30: =IF(Discharge!F28=0,0,IF(TRIM(Discharge!F28)="","",IF(COUNT(O6)=0,"",IF(O6=1,(((10^K4)*(Discharge!F28^N4))/100),((10^K4)*(Discharge!F28^N4)))))) -> 1 | G30: =IF(Discharge!G28=0,0,IF(TRIM(Discharge!G28)="","",IF(COUNT(O6)=0,"",IF(O6=1,(((10^K4)*(Discharge!G28^N4))/100),((10^K4)*(Discharge!G28^N4)))))) -> 1 | H30: =IF(Discharge!H28=0,0,IF(TRIM(Discharge!H28)="","",IF(COUNT(O6)=0,"",IF(O6=1,(((10^K4)*(Discharge!H28^N4))/100),((10^K4)*(Discharge!H28^N4)))))) ->  | I30: =IF(Discharge!I28=0,0,IF(TRIM(Discharge!I28)="","",IF(COUNT(O6)=0,"",IF(O6=1,(((10^K4)*(Discharge!I28^N4))/100),((10^K4)*(Discharge!I28^N4)))))) ->  | J30: =IF(Discharge!J28=0,0,IF(TRIM(Discharge!J28)="","",IF(COUNT(O6)=0,"",IF(O6=1,(((10^K4)*(Discharge!J28^N4))/100),((10^K4)*(Discharge!J28^N4)))))) ->  | K30: =IF(Discharge!K28=0,0,IF(TRIM(Discharge!K28)="","",IF(COUNT(O6)=0,"",IF(O6=1,(((10^K4)*(Discharge!K28^N4))/100),((10^K4)*(Discharge!K28^N4)))))) ->  | L30: =IF(Discharge!L28=0,0,IF(TRIM(Discharge!L28)="","",IF(COUNT(O6)=0,"",IF(O6=1,(((10^K4)*(Discharge!L28^N4))/100),((10^K4)*(Discharge!L28^N4)))))) ->  | M30: =IF(Discharge!M28=0,0,IF(TRIM(Discharge!M28)="","",IF(COUNT(O6)=0,"",IF(O6=1,(((10^K4)*(Discharge!M28^N4))/100),((10^K4)*(Discharge!M28^N4)))))) ->  | N30: =IF(Discharge!N28=0,0,IF(TRIM(Discharge!N28)="","",IF(COUNT(O6)=0,"",IF(O6=1,(((10^K4)*(Discharge!N28^N4))/100),((10^K4)*(Discharge!N28^N4)))))) ->  | O30: 5
B31: 20 | C31: =IF(Discharge!C29=0,0,IF(TRIM(Discharge!C29)="","",IF(COUNT(O6)=0,"",IF(O6=1,(((10^K4)*(Discharge!C29^N4))/100),((10^K4)*(Discharge!C29^N4)))))) -> 1 | D31: =IF(Discharge!D29=0,0,IF(TRIM(Discharge!D29)="","",IF(COUNT(O6)=0,"",IF(O6=1,(((10^K4)*(Discharge!D29^N4))/100),((10^K4)*(Discharge!D29^N4)))))) -> 1 | E31: =IF(Discharge!E29=0,0,IF(TRIM(Discharge!E29)="","",IF(COUNT(O6)=0,"",IF(O6=1,(((10^K4)*(Discharge!E29^N4))/100),((10^K4)*(Discharge!E29^N4)))))) -> 1 | F31: =IF(Discharge!F29=0,0,IF(TRIM(Discharge!F29)="","",IF(COUNT(O6)=0,"",IF(O6=1,(((10^K4)*(Discharge!F29^N4))/100),((10^K4)*(Discharge!F29^N4)))))) -> 1 | G31: =IF(Discharge!G29=0,0,IF(TRIM(Discharge!G29)="","",IF(COUNT(O6)=0,"",IF(O6=1,(((10^K4)*(Discharge!G29^N4))/100),((10^K4)*(Discharge!G29^N4)))))) -> 1 | H31: =IF(Discharge!H29=0,0,IF(TRIM(Discharge!H29)="","",IF(COUNT(O6)=0,"",IF(O6=1,(((10^K4)*(Discharge!H29^N4))/100),((10^K4)*(Discharge!H29^N4)))))) ->  | I31: =IF(Discharge!I29=0,0,IF(TRIM(Discharge!I29)="","",IF(COUNT(O6)=0,"",IF(O6=1,(((10^K4)*(Discharge!I29^N4))/100),((10^K4)*(Discharge!I29^N4)))))) ->  | J31: =IF(Discharge!J29=0,0,IF(TRIM(Discharge!J29)="","",IF(COUNT(O6)=0,"",IF(O6=1,(((10^K4)*(Discharge!J29^N4))/100),((10^K4)*(Discharge!J29^N4)))))) ->  | K31: =IF(Discharge!K29=0,0,IF(TRIM(Discharge!K29)="","",IF(COUNT(O6)=0,"",IF(O6=1,(((10^K4)*(Discharge!K29^N4))/100),((10^K4)*(Discharge!K29^N4)))))) ->  | L31: =IF(Discharge!L29=0,0,IF(TRIM(Discharge!L29)="","",IF(COUNT(O6)=0,"",IF(O6=1,(((10^K4)*(Discharge!L29^N4))/100),((10^K4)*(Discharge!L29^N4)))))) ->  | M31: =IF(Discharge!M29=0,0,IF(TRIM(Discharge!M29)="","",IF(COUNT(O6)=0,"",IF(O6=1,(((10^K4)*(Discharge!M29^N4))/100),((10^K4)*(Discharge!M29^N4)))))) ->  | N31: =IF(Discharge!N29=0,0,IF(TRIM(Discharge!N29)="","",IF(COUNT(O6)=0,"",IF(O6=1,(((10^K4)*(Discharge!N29^N4))/100),((10^K4)*(Discharge!N29^N4)))))) ->  | O31: 5
B33: 21 | C33: =IF(Discharge!C31=0,0,IF(TRIM(Discharge!C31)="","",IF(COUNT(O6)=0,"",IF(O6=1,(((10^K4)*(Discharge!C31^N4))/100),((10^K4)*(Discharge!C31^N4)))))) -> 1 | D33: =IF(Discharge!D31=0,0,IF(TRIM(Discharge!D31)="","",IF(COUNT(O6)=0,"",IF(O6=1,(((10^K4)*(Discharge!D31^N4))/100),((10^K4)*(Discharge!D31^N4)))))) -> 1 | E33: =IF(Discharge!E31=0,0,IF(TRIM(Discharge!E31)="","",IF(COUNT(O6)=0,"",IF(O6=1,(((10^K4)*(Discharge!E31^N4))/100),((10^K4)*(Discharge!E31^N4)))))) -> 1 | F33: =IF(Discharge!F31=0,0,IF(TRIM(Discharge!F31)="","",IF(COUNT(O6)=0,"",IF(O6=1,(((10^K4)*(Discharge!F31^N4))/100),((10^K4)*(Discharge!F31^N4)))))) -> 1 | G33: =IF(Discharge!G31=0,0,IF(TRIM(Discharge!G31)="","",IF(COUNT(O6)=0,"",IF(O6=1,(((10^K4)*(Discharge!G31^N4))/100),((10^K4)*(Discharge!G31^N4)))))) -> 1 | H33: =IF(Discharge!H31=0,0,IF(TRIM(Discharge!H31)="","",IF(COUNT(O6)=0,"",IF(O6=1,(((10^K4)*(Discharge!H31^N4))/100),((10^K4)*(Discharge!H31^N4)))))) ->  | I33: =IF(Discharge!I31=0,0,IF(TRIM(Discharge!I31)="","",IF(COUNT(O6)=0,"",IF(O6=1,(((10^K4)*(Discharge!I31^N4))/100),((10^K4)*(Discharge!I31^N4)))))) ->  | J33: =IF(Discharge!J31=0,0,IF(TRIM(Discharge!J31)="","",IF(COUNT(O6)=0,"",IF(O6=1,(((10^K4)*(Discharge!J31^N4))/100),((10^K4)*(Discharge!J31^N4)))))) ->  | K33: =IF(Discharge!K31=0,0,IF(TRIM(Discharge!K31)="","",IF(COUNT(O6)=0,"",IF(O6=1,(((10^K4)*(Discharge!K31^N4))/100),((10^K4)*(Discharge!K31^N4)))))) ->  | L33: =IF(Discharge!L31=0,0,IF(TRIM(Discharge!L31)="","",IF(COUNT(O6)=0,"",IF(O6=1,(((10^K4)*(Discharge!L31^N4))/100),((10^K4)*(Discharge!L31^N4)))))) ->  | M33: =IF(Discharge!M31=0,0,IF(TRIM(Discharge!M31)="","",IF(COUNT(O6)=0,"",IF(O6=1,(((10^K4)*(Discharge!M31^N4))/100),((10^K4)*(Discharge!M31^N4)))))) ->  | N33: =IF(Discharge!N31=0,0,IF(TRIM(Discharge!N31)="","",IF(COUNT(O6)=0,"",IF(O6=1,(((10^K4)*(Discharge!N31^N4))/100),((10^K4)*(Discharge!N31^N4)))))) ->  | O33: 5
B34: 22 | C34: =IF(Discharge!C32=0,0,IF(TRIM(Discharge!C32)="","",IF(COUNT(O6)=0,"",IF(O6=1,(((10^K4)*(Discharge!C32^N4))/100),((10^K4)*(Discharge!C32^N4)))))) -> 1 | D34: =IF(Discharge!D32=0,0,IF(TRIM(Discharge!D32)="","",IF(COUNT(O6)=0,"",IF(O6=1,(((10^K4)*(Discharge!D32^N4))/100),((10^K4)*(Discharge!D32^N4)))))) -> 1 | E34: =IF(Discharge!E32=0,0,IF(TRIM(Discharge!E32)="","",IF(COUNT(O6)=0,"",IF(O6=1,(((10^K4)*(Discharge!E32^N4))/100),((10^K4)*(Discharge!E32^N4)))))) -> 1 | F34: =IF(Discharge!F32=0,0,IF(TRIM(Discharge!F32)="","",IF(COUNT(O6)=0,"",IF(O6=1,(((10^K4)*(Discharge!F32^N4))/100),((10^K4)*(Discharge!F32^N4)))))) -> 1 | G34: =IF(Discharge!G32=0,0,IF(TRIM(Discharge!G32)="","",IF(COUNT(O6)=0,"",IF(O6=1,(((10^K4)*(Discharge!G32^N4))/100),((10^K4)*(Discharge!G32^N4)))))) -> 1 | H34: =IF(Discharge!H32=0,0,IF(TRIM(Discharge!H32)="","",IF(COUNT(O6)=0,"",IF(O6=1,(((10^K4)*(Discharge!H32^N4))/100),((10^K4)*(Discharge!H32^N4)))))) ->  | I34: =IF(Discharge!I32=0,0,IF(TRIM(Discharge!I32)="","",IF(COUNT(O6)=0,"",IF(O6=1,(((10^K4)*(Discharge!I32^N4))/100),((10^K4)*(Discharge!I32^N4)))))) ->  | J34: =IF(Discharge!J32=0,0,IF(TRIM(Discharge!J32)="","",IF(COUNT(O6)=0,"",IF(O6=1,(((10^K4)*(Discharge!J32^N4))/100),((10^K4)*(Discharge!J32^N4)))))) ->  | K34: =IF(Discharge!K32=0,0,IF(TRIM(Discharge!K32)="","",IF(COUNT(O6)=0,"",IF(O6=1,(((10^K4)*(Discharge!K32^N4))/100),((10^K4)*(Discharge!K32^N4)))))) ->  | L34: =IF(Discharge!L32=0,0,IF(TRIM(Discharge!L32)="","",IF(COUNT(O6)=0,"",IF(O6=1,(((10^K4)*(Discharge!L32^N4))/100),((10^K4)*(Discharge!L32^N4)))))) ->  | M34: =IF(Discharge!M32=0,0,IF(TRIM(Discharge!M32)="","",IF(COUNT(O6)=0,"",IF(O6=1,(((10^K4)*(Discharge!M32^N4))/100),((10^K4)*(Discharge!M32^N4)))))) ->  | N34: =IF(Discharge!N32=0,0,IF(TRIM(Discharge!N32)="","",IF(COUNT(O6)=0,"",IF(O6=1,(((10^K4)*(Discharge!N32^N4))/100),((10^K4)*(Discharge!N32^N4)))))) ->  | O34: 5
B35: 23 | C35: =IF(Discharge!C33=0,0,IF(TRIM(Discharge!C33)="","",IF(COUNT(O6)=0,"",IF(O6=1,(((10^K4)*(Discharge!C33^N4))/100),((10^K4)*(Discharge!C33^N4)))))) -> 1 | D35: =IF(Discharge!D33=0,0,IF(TRIM(Discharge!D33)="","",IF(COUNT(O6)=0,"",IF(O6=1,(((10^K4)*(Discharge!D33^N4))/100),((10^K4)*(Discharge!D33^N4)))))) -> 1 | E35: =IF(Discharge!E33=0,0,IF(TRIM(Discharge!E33)="","",IF(COUNT(O6)=0,"",IF(O6=1,(((10^K4)*(Discharge!E33^N4))/100),((10^K4)*(Discharge!E33^N4)))))) -> 1 | F35: =IF(Discharge!F33=0,0,IF(TRIM(Discharge!F33)="","",IF(COUNT(O6)=0,"",IF(O6=1,(((10^K4)*(Discharge!F33^N4))/100),((10^K4)*(Discharge!F33^N4)))))) -> 1 | G35: =IF(Discharge!G33=0,0,IF(TRIM(Discharge!G33)="","",IF(COUNT(O6)=0,"",IF(O6=1,(((10^K4)*(Discharge!G33^N4))/100),((10^K4)*(Discharge!G33^N4)))))) -> 1 | H35: =IF(Discharge!H33=0,0,IF(TRIM(Discharge!H33)="","",IF(COUNT(O6)=0,"",IF(O6=1,(((10^K4)*(Discharge!H33^N4))/100),((10^K4)*(Discharge!H33^N4)))))) ->  | I35: =IF(Discharge!I33=0,0,IF(TRIM(Discharge!I33)="","",IF(COUNT(O6)=0,"",IF(O6=1,(((10^K4)*(Discharge!I33^N4))/100),((10^K4)*(Discharge!I33^N4)))))) ->  | J35: =IF(Discharge!J33=0,0,IF(TRIM(Discharge!J33)="","",IF(COUNT(O6)=0,"",IF(O6=1,(((10^K4)*(Discharge!J33^N4))/100),((10^K4)*(Discharge!J33^N4)))))) ->  | K35: =IF(Discharge!K33=0,0,IF(TRIM(Discharge!K33)="","",IF(COUNT(O6)=0,"",IF(O6=1,(((10^K4)*(Discharge!K33^N4))/100),((10^K4)*(Discharge!K33^N4)))))) ->  | L35: =IF(Discharge!L33=0,0,IF(TRIM(Discharge!L33)="","",IF(COUNT(O6)=0,"",IF(O6=1,(((10^K4)*(Discharge!L33^N4))/100),((10^K4)*(Discharge!L33^N4)))))) ->  | M35: =IF(Discharge!M33=0,0,IF(TRIM(Discharge!M33)="","",IF(COUNT(O6)=0,"",IF(O6=1,(((10^K4)*(Discharge!M33^N4))/100),((10^K4)*(Discharge!M33^N4)))))) ->  | N35: =IF(Discharge!N33=0,0,IF(TRIM(Discharge!N33)="","",IF(COUNT(O6)=0,"",IF(O6=1,(((10^K4)*(Discharge!N33^N4))/100),((10^K4)*(Discharge!N33^N4)))))) ->  | O35: 5
B36: 24 | C36: =IF(Discharge!C34=0,0,IF(TRIM(Discharge!C34)="","",IF(COUNT(O6)=0,"",IF(O6=1,(((10^K4)*(Discharge!C34^N4))/100),((10^K4)*(Discharge!C34^N4)))))) -> 1 | D36: =IF(Discharge!D34=0,0,IF(TRIM(Discharge!D34)="","",IF(COUNT(O6)=0,"",IF(O6=1,(((10^K4)*(Discharge!D34^N4))/100),((10^K4)*(Discharge!D34^N4)))))) -> 1 | E36: =IF(Discharge!E34=0,0,IF(TRIM(Discharge!E34)="","",IF(COUNT(O6)=0,"",IF(O6=1,(((10^K4)*(Discharge!E34^N4))/100),((10^K4)*(Discharge!E34^N4)))))) -> 1 | F36: =IF(Discharge!F34=0,0,IF(TRIM(Discharge!F34)="","",IF(COUNT(O6)=0,"",IF(O6=1,(((10^K4)*(Discharge!F34^N4))/100),((10^K4)*(Discharge!F34^N4)))))) -> 1 | G36: =IF(Discharge!G34=0,0,IF(TRIM(Discharge!G34)="","",IF(COUNT(O6)=0,"",IF(O6=1,(((10^K4)*(Discharge!G34^N4))/100),((10^K4)*(Discharge!G34^N4)))))) -> 1 | H36: =IF(Discharge!H34=0,0,IF(TRIM(Discharge!H34)="","",IF(COUNT(O6)=0,"",IF(O6=1,(((10^K4)*(Discharge!H34^N4))/100),((10^K4)*(Discharge!H34^N4)))))) ->  | I36: =IF(Discharge!I34=0,0,IF(TRIM(Discharge!I34)="","",IF(COUNT(O6)=0,"",IF(O6=1,(((10^K4)*(Discharge!I34^N4))/100),((10^K4)*(Discharge!I34^N4)))))) ->  | J36: =IF(Discharge!J34=0,0,IF(TRIM(Discharge!J34)="","",IF(COUNT(O6)=0,"",IF(O6=1,(((10^K4)*(Discharge!J34^N4))/100),((10^K4)*(Discharge!J34^N4)))))) ->  | K36: =IF(Discharge!K34=0,0,IF(TRIM(Discharge!K34)="","",IF(COUNT(O6)=0,"",IF(O6=1,(((10^K4)*(Discharge!K34^N4))/100),((10^K4)*(Discharge!K34^N4)))))) ->  | L36: =IF(Discharge!L34=0,0,IF(TRIM(Discharge!L34)="","",IF(COUNT(O6)=0,"",IF(O6=1,(((10^K4)*(Discharge!L34^N4))/100),((10^K4)*(Discharge!L34^N4)))))) ->  | M36: =IF(Discharge!M34=0,0,IF(TRIM(Discharge!M34)="","",IF(COUNT(O6)=0,"",IF(O6=1,(((10^K4)*(Discharge!M34^N4))/100),((10^K4)*(Discharge!M34^N4)))))) ->  | N36: =IF(Discharge!N34=0,0,IF(TRIM(Discharge!N34)="","",IF(COUNT(O6)=0,"",IF(O6=1,(((10^K4)*(Discharge!N34^N4))/100),((10^K4)*(Discharge!N34^N4)))))) ->  | O36: 5
B37: 25 | C37: =IF(Discharge!C35=0,0,IF(TRIM(Discharge!C35)="","",IF(COUNT(O6)=0,"",IF(O6=1,(((10^K4)*(Discharge!C35^N4))/100),((10^K4)*(Discharge!C35^N4)))))) -> 1 | D37: =IF(Discharge!D35=0,0,IF(TRIM(Discharge!D35)="","",IF(COUNT(O6)=0,"",IF(O6=1,(((10^K4)*(Discharge!D35^N4))/100),((10^K4)*(Discharge!D35^N4)))))) -> 1 | E37: =IF(Discharge!E35=0,0,IF(TRIM(Discharge!E35)="","",IF(COUNT(O6)=0,"",IF(O6=1,(((10^K4)*(Discharge!E35^N4))/100),((10^K4)*(Discharge!E35^N4)))))) -> 1 | F37: =IF(Discharge!F35=0,0,IF(TRIM(Discharge!F35)="","",IF(COUNT(O6)=0,"",IF(O6=1,(((10^K4)*(Discharge!F35^N4))/100),((10^K4)*(Discharge!F35^N4)))))) -> 1 | G37: =IF(Discharge!G35=0,0,IF(TRIM(Discharge!G35)="","",IF(COUNT(O6)=0,"",IF(O6=1,(((10^K4)*(Discharge!G35^N4))/100),((10^K4)*(Discharge!G35^N4)))))) -> 1 | H37: =IF(Discharge!H35=0,0,IF(TRIM(Discharge!H35)="","",IF(COUNT(O6)=0,"",IF(O6=1,(((10^K4)*(Discharge!H35^N4))/100),((10^K4)*(Discharge!H35^N4)))))) ->  | I37: =IF(Discharge!I35=0,0,IF(TRIM(Discharge!I35)="","",IF(COUNT(O6)=0,"",IF(O6=1,(((10^K4)*(Discharge!I35^N4))/100),((10^K4)*(Discharge!I35^N4)))))) ->  | J37: =IF(Discharge!J35=0,0,IF(TRIM(Discharge!J35)="","",IF(COUNT(O6)=0,"",IF(O6=1,(((10^K4)*(Discharge!J35^N4))/100),((10^K4)*(Discharge!J35^N4)))))) ->  | K37: =IF(Discharge!K35=0,0,IF(TRIM(Discharge!K35)="","",IF(COUNT(O6)=0,"",IF(O6=1,(((10^K4)*(Discharge!K35^N4))/100),((10^K4)*(Discharge!K35^N4)))))) ->  | L37: =IF(Discharge!L35=0,0,IF(TRIM(Discharge!L35)="","",IF(COUNT(O6)=0,"",IF(O6=1,(((10^K4)*(Discharge!L35^N4))/100),((10^K4)*(Discharge!L35^N4)))))) ->  | M37: =IF(Discharge!M35=0,0,IF(TRIM(Discharge!M35)="","",IF(COUNT(O6)=0,"",IF(O6=1,(((10^K4)*(Discharge!M35^N4))/100),((10^K4)*(Discharge!M35^N4)))))) ->  | N37: =IF(Discharge!N35=0,0,IF(TRIM(Discharge!N35)="","",IF(COUNT(O6)=0,"",IF(O6=1,(((10^K4)*(Discharge!N35^N4))/100),((10^K4)*(Discharge!N35^N4)))))) ->  | O37: 5
B38: 26 | C38: =IF(Discharge!C36=0,0,IF(TRIM(Discharge!C36)="","",IF(COUNT(O6)=0,"",IF(O6=1,(((10^K4)*(Discharge!C36^N4))/100),((10^K4)*(Discharge!C36^N4)))))) -> 1 | D38: =IF(Discharge!D36=0,0,IF(TRIM(Discharge!D36)="","",IF(COUNT(O6)=0,"",IF(O6=1,(((10^K4)*(Discharge!D36^N4))/100),((10^K4)*(Discharge!D36^N4)))))) -> 1 | E38: =IF(Discharge!E36=0,0,IF(TRIM(Discharge!E36)="","",IF(COUNT(O6)=0,"",IF(O6=1,(((10^K4)*(Discharge!E36^N4))/100),((10^K4)*(Discharge!E36^N4)))))) -> 1 | F38: =IF(Discharge!F36=0,0,IF(TRIM(Discharge!F36)="","",IF(COUNT(O6)=0,"",IF(O6=1,(((10^K4)*(Discharge!F36^N4))/100),((10^K4)*(Discharge!F36^N4)))))) -> 1 | G38: =IF(Discharge!G36=0,0,IF(TRIM(Discharge!G36)="","",IF(COUNT(O6)=0,"",IF(O6=1,(((10^K4)*(Discharge!G36^N4))/100),((10^K4)*(Discharge!G36^N4)))))) -> 1 | H38: =IF(Discharge!H36=0,0,IF(TRIM(Discharge!H36)="","",IF(COUNT(O6)=0,"",IF(O6=1,(((10^K4)*(Discharge!H36^N4))/100),((10^K4)*(Discharge!H36^N4)))))) ->  | I38: =IF(Discharge!I36=0,0,IF(TRIM(Discharge!I36)="","",IF(COUNT(O6)=0,"",IF(O6=1,(((10^K4)*(Discharge!I36^N4))/100),((10^K4)*(Discharge!I36^N4)))))) ->  | J38: =IF(Discharge!J36=0,0,IF(TRIM(Discharge!J36)="","",IF(COUNT(O6)=0,"",IF(O6=1,(((10^K4)*(Discharge!J36^N4))/100),((10^K4)*(Discharge!J36^N4)))))) ->  | K38: =IF(Discharge!K36=0,0,IF(TRIM(Discharge!K36)="","",IF(COUNT(O6)=0,"",IF(O6=1,(((10^K4)*(Discharge!K36^N4))/100),((10^K4)*(Discharge!K36^N4)))))) ->  | L38: =IF(Discharge!L36=0,0,IF(TRIM(Discharge!L36)="","",IF(COUNT(O6)=0,"",IF(O6=1,(((10^K4)*(Discharge!L36^N4))/100),((10^K4)*(Discharge!L36^N4)))))) ->  | M38: =IF(Discharge!M36=0,0,IF(TRIM(Discharge!M36)="","",IF(COUNT(O6)=0,"",IF(O6=1,(((10^K4)*(Discharge!M36^N4))/100),((10^K4)*(Discharge!M36^N4)))))) ->  | N38: =IF(Discharge!N36=0,0,IF(TRIM(Discharge!N36)="","",IF(COUNT(O6)=0,"",IF(O6=1,(((10^K4)*(Discharge!N36^N4))/100),((10^K4)*(Discharge!N36^N4)))))) ->  | O38: 5
B39: 27 | C39: =IF(Discharge!C37=0,0,IF(TRIM(Discharge!C37)="","",IF(COUNT(O6)=0,"",IF(O6=1,(((10^K4)*(Discharge!C37^N4))/100),((10^K4)*(Discharge!C37^N4)))))) -> 1 | D39: =IF(Discharge!D37=0,0,IF(TRIM(Discharge!D37)="","",IF(COUNT(O6)=0,"",IF(O6=1,(((10^K4)*(Discharge!D37^N4))/100),((10^K4)*(Discharge!D37^N4)))))) -> 1 | E39: =IF(Discharge!E37=0,0,IF(TRIM(Discharge!E37)="","",IF(COUNT(O6)=0,"",IF(O6=1,(((10^K4)*(Discharge!E37^N4))/100),((10^K4)*(Discharge!E37^N4)))))) -> 1 | F39: =IF(Discharge!F37=0,0,IF(TRIM(Discharge!F37)="","",IF(COUNT(O6)=0,"",IF(O6=1,(((10^K4)*(Discharge!F37^N4))/100),((10^K4)*(Discharge!F37^N4)))))) -> 1 | G39: =IF(Discharge!G37=0,0,IF(TRIM(Discharge!G37)="","",IF(COUNT(O6)=0,"",IF(O6=1,(((10^K4)*(Discharge!G37^N4))/100),((10^K4)*(Discharge!G37^N4)))))) -> 1 | H39: =IF(Discharge!H37=0,0,IF(TRIM(Discharge!H37)="","",IF(COUNT(O6)=0,"",IF(O6=1,(((10^K4)*(Discharge!H37^N4))/100),((10^K4)*(Discharge!H37^N4)))))) ->  | I39: =IF(Discharge!I37=0,0,IF(TRIM(Discharge!I37)="","",IF(COUNT(O6)=0,"",IF(O6=1,(((10^K4)*(Discharge!I37^N4))/100),((10^K4)*(Discharge!I37^N4)))))) ->  | J39: =IF(Discharge!J37=0,0,IF(TRIM(Discharge!J37)="","",IF(COUNT(O6)=0,"",IF(O6=1,(((10^K4)*(Discharge!J37^N4))/100),((10^K4)*(Discharge!J37^N4)))))) ->  | K39: =IF(Discharge!K37=0,0,IF(TRIM(Discharge!K37)="","",IF(COUNT(O6)=0,"",IF(O6=1,(((10^K4)*(Discharge!K37^N4))/100),((10^K4)*(Discharge!K37^N4)))))) ->  | L39: =IF(Discharge!L37=0,0,IF(TRIM(Discharge!L37)="","",IF(COUNT(O6)=0,"",IF(O6=1,(((10^K4)*(Discharge!L37^N4))/100),((10^K4)*(Discharge!L37^N4)))))) ->  | M39: =IF(Discharge!M37=0,0,IF(TRIM(Discharge!M37)="","",IF(COUNT(O6)=0,"",IF(O6=1,(((10^K4)*(Discharge!M37^N4))/100),((10^K4)*(Discharge!M37^N4)))))) ->  | N39: =IF(Discharge!N37=0,0,IF(TRIM(Discharge!N37)="","",IF(COUNT(O6)=0,"",IF(O6=1,(((10^K4)*(Discharge!N37^N4))/100),((10^K4)*(Discharge!N37^N4)))))) ->  | O39: 5
B40: 28 | C40: =IF(Discharge!C38=0,0,IF(TRIM(Discharge!C38)="","",IF(COUNT(O6)=0,"",IF(O6=1,(((10^K4)*(Discharge!C38^N4))/100),((10^K4)*(Discharge!C38^N4)))))) -> 1 | D40: =IF(Discharge!D38=0,0,IF(TRIM(Discharge!D38)="","",IF(COUNT(O6)=0,"",IF(O6=1,(((10^K4)*(Discharge!D38^N4))/100),((10^K4)*(Discharge!D38^N4)))))) -> 1 | E40: =IF(Discharge!E38=0,0,IF(TRIM(Discharge!E38)="","",IF(COUNT(O6)=0,"",IF(O6=1,(((10^K4)*(Discharge!E38^N4))/100),((10^K4)*(Discharge!E38^N4)))))) -> 1 | F40: =IF(Discharge!F38=0,0,IF(TRIM(Discharge!F38)="","",IF(COUNT(O6)=0,"",IF(O6=1,(((10^K4)*(Discharge!F38^N4))/100),((10^K4)*(Discharge!F38^N4)))))) -> 1 | G40: =IF(Discharge!G38=0,0,IF(TRIM(Discharge!G38)="","",IF(COUNT(O6)=0,"",IF(O6=1,(((10^K4)*(Discharge!G38^N4))/100),((10^K4)*(Discharge!G38^N4)))))) -> 1 | H40: =IF(Discharge!H38=0,0,IF(TRIM(Discharge!H38)="","",IF(COUNT(O6)=0,"",IF(O6=1,(((10^K4)*(Discharge!H38^N4))/100),((10^K4)*(Discharge!H38^N4)))))) ->  | I40: =IF(Discharge!I38=0,0,IF(TRIM(Discharge!I38)="","",IF(COUNT(O6)=0,"",IF(O6=1,(((10^K4)*(Discharge!I38^N4))/100),((10^K4)*(Discharge!I38^N4)))))) ->  | J40: =IF(Discharge!J38=0,0,IF(TRIM(Discharge!J38)="","",IF(COUNT(O6)=0,"",IF(O6=1,(((10^K4)*(Discharge!J38^N4))/100),((10^K4)*(Discharge!J38^N4)))))) ->  | K40: =IF(Discharge!K38=0,0,IF(TRIM(Discharge!K38)="","",IF(COUNT(O6)=0,"",IF(O6=1,(((10^K4)*(Discharge!K38^N4))/100),((10^K4)*(Discharge!K38^N4)))))) ->  | L40: =IF(Discharge!L38=0,0,IF(TRIM(Discharge!L38)="","",IF(COUNT(O6)=0,"",IF(O6=1,(((10^K4)*(Discharge!L38^N4))/100),((10^K4)*(Discharge!L38^N4)))))) ->  | M40: =IF(Discharge!M38=0,0,IF(TRIM(Discharge!M38)="","",IF(COUNT(O6)=0,"",IF(O6=1,(((10^K4)*(Discharge!M38^N4))/100),((10^K4)*(Discharge!M38^N4)))))) ->  | N40: =IF(Discharge!N38=0,0,IF(TRIM(Discharge!N38)="","",IF(COUNT(O6)=0,"",IF(O6=1,(((10^K4)*(Discharge!N38^N4))/100),((10^K4)*(Discharge!N38^N4)))))) ->  | O40: 5
B41: 29 | C41: =IF(Discharge!C39=0,0,IF(TRIM(Discharge!C39)="","",IF(COUNT(O6)=0,"",IF(O6=1,(((10^K4)*(Discharge!C39^N4))/100),((10^K4)*(Discharge!C39^N4)))))) -> 1 | D41: =IF(Discharge!D39=0,0,IF(TRIM(Discharge!D39)="","",IF(COUNT(O6)=0,"",IF(O6=1,(((10^K4)*(Discharge!D39^N4))/100),((10^K4)*(Discharge!D39^N4)))))) -> 1 | E41: =IF(Discharge!E39=0,0,IF(TRIM(Discharge!E39)="","",IF(COUNT(O6)=0,"",IF(O6=1,(((10^K4)*(Discharge!E39^N4))/100),((10^K4)*(Discharge!E39^N4)))))) -> 1 | F41: =IF(Discharge!F39=0,0,IF(TRIM(Discharge!F39)="","",IF(COUNT(O6)=0,"",IF(O6=1,(((10^K4)*(Discharge!F39^N4))/100),((10^K4)*(Discharge!F39^N4)))))) -> 1 | G41: =IF(Discharge!G39=0,0,IF(TRIM(Discharge!G39)="","",IF(COUNT(O6)=0,"",IF(O6=1,(((10^K4)*(Discharge!G39^N4))/100),((10^K4)*(Discharge!G39^N4)))))) -> 1 | H41: =IF(Discharge!H39=0,0,IF(TRIM(Discharge!H39)="","",IF(COUNT(O6)=0,"",IF(O6=1,(((10^K4)*(Discharge!H39^N4))/100),((10^K4)*(Discharge!H39^N4)))))) ->  | I41: =IF(Discharge!I39=0,0,IF(TRIM(Discharge!I39)="","",IF(COUNT(O6)=0,"",IF(O6=1,(((10^K4)*(Discharge!I39^N4))/100),((10^K4)*(Discharge!I39^N4)))))) ->  | J41: =IF(Discharge!J39=0,0,IF(TRIM(Discharge!J39)="","",IF(COUNT(O6)=0,"",IF(O6=1,(((10^K4)*(Discharge!J39^N4))/100),((10^K4)*(Discharge!J39^N4)))))) ->  | K41: =IF(Discharge!K39=0,0,IF(TRIM(Discharge!K39)="","",IF(COUNT(O6)=0,"",IF(O6=1,(((10^K4)*(Discharge!K39^N4))/100),((10^K4)*(Discharge!K39^N4)))))) ->  | L41: =IF(Discharge!L39=0,0,IF(TRIM(Discharge!L39)="","",IF(COUNT(O6)=0,"",IF(O6=1,(((10^K4)*(Discharge!L39^N4))/100),((10^K4)*(Discharge!L39^N4)))))) ->  | M41: =IF(Discharge!M39=0,0,IF(TRIM(Discharge!M39)="","",IF(COUNT(O6)=0,"",IF(O6=1,(((10^K4)*(Discharge!M39^N4))/100),((10^K4)*(Discharge!M39^N4)))))) ->  | N41: =IF(Discharge!N39=0,0,IF(TRIM(Discharge!N39)="","",IF(COUNT(O6)=0,"",IF(O6=1,(((10^K4)*(Discharge!N39^N4))/100),((10^K4)*(Discharge!N39^N4)))))) ->  | O41: 5
B42: 30 | C42: =IF(Discharge!C40=0,0,IF(TRIM(Discharge!C40)="","",IF(COUNT(O6)=0,"",IF(O6=1,(((10^K4)*(Discharge!C40^N4))/100),((10^K4)*(Discharge!C40^N4)))))) -> 1 | D42: =IF(Discharge!D40=0,0,IF(TRIM(Discharge!D40)="","",IF(COUNT(O6)=0,"",IF(O6=1,(((10^K4)*(Discharge!D40^N4))/100),((10^K4)*(Discharge!D40^N4)))))) -> 1 | E42: =IF(Discharge!E40=0,0,IF(TRIM(Discharge!E40)="","",IF(COUNT(O6)=0,"",IF(O6=1,(((10^K4)*(Discharge!E40^N4))/100),((10^K4)*(Discharge!E40^N4)))))) -> 1 | F42: =IF(Discharge!F40=0,0,IF(TRIM(Discharge!F40)="","",IF(COUNT(O6)=0,"",IF(O6=1,(((10^K4)*(Discharge!F40^N4))/100),((10^K4)*(Discharge!F40^N4)))))) -> 1 | G42: =IF(Discharge!G40=0,0,IF(TRIM(Discharge!G40)="","",IF(COUNT(O6)=0,"",IF(O6=1,(((10^K4)*(Discharge!G40^N4))/100),((10^K4)*(Discharge!G40^N4)))))) -> 1 | H42: =IF(Discharge!H40=0,0,IF(TRIM(Discharge!H40)="","",IF(COUNT(O6)=0,"",IF(O6=1,(((10^K4)*(Discharge!H40^N4))/100),((10^K4)*(Discharge!H40^N4)))))) ->  | I42: =IF(Discharge!I40=0,0,IF(TRIM(Discharge!I40)="","",IF(COUNT(O6)=0,"",IF(O6=1,(((10^K4)*(Discharge!I40^N4))/100),((10^K4)*(Discharge!I40^N4)))))) ->  | J42: =IF(Discharge!J40=0,0,IF(TRIM(Discharge!J40)="","",IF(COUNT(O6)=0,"",IF(O6=1,(((10^K4)*(Discharge!J40^N4))/100),((10^K4)*(Discharge!J40^N4)))))) ->  | K42: =IF(Discharge!K40=0,0,IF(TRIM(Discharge!K40)="","",IF(COUNT(O6)=0,"",IF(O6=1,(((10^K4)*(Discharge!K40^N4))/100),((10^K4)*(Discharge!K40^N4)))))) ->  | L42: =IF(Discharge!L40=0,0,IF(TRIM(Discharge!L40)="","",IF(COUNT(O6)=0,"",IF(O6=1,(((10^K4)*(Discharge!L40^N4))/100),((10^K4)*(Discharge!L40^N4)))))) ->  | N42: =IF(Discharge!N40=0,0,IF(TRIM(Discharge!N40)="","",IF(COUNT(O6)=0,"",IF(O6=1,(((10^K4)*(Discharge!N40^N4))/100),((10^K4)*(Discharge!N40^N4)))))) ->  | O42: =IF(AND(C42="",D42="",E42="",F42="",G42="",H42="",I42="",J42="",K42="",L42="",M42="",N42=""),"",SUM(C42:N42)) -> 5
B43: 31 | D43: =IF(Discharge!D41=0,0,IF(TRIM(Discharge!D41)="","",IF(COUNT(O6)=0,"",IF(O6=1,(((10^K4)*(Discharge!D41^N4))/100),((10^K4)*(Discharge!D41^N4)))))) -> 1 | F43: =IF(Discharge!F41=0,0,IF(TRIM(Discharge!F41)="","",IF(COUNT(O6)=0,"",IF(O6=1,(((10^K4)*(Discharge!F41^N4))/100),((10^K4)*(Discharge!F41^N4)))))) -> 1 | G43: =IF(Discharge!G41=0,0,IF(TRIM(Discharge!G41)="","",IF(COUNT(O6)=0,"",IF(O6=1,(((10^K4)*(Discharge!G41^N4))/100),((10^K4)*(Discharge!G41^N4)))))) -> 1 | I43: =IF(Discharge!I41=0,0,IF(TRIM(Discharge!I41)="","",IF(COUNT(O6)=0,"",IF(O6=1,(((10^K4)*(Discharge!I41^N4))/100),((10^K4)*(Discharge!I41^N4)))))) ->  | K43: =IF(Discharge!K41=0,0,IF(TRIM(Discharge!K41)="","",IF(COUNT(O6)=0,"",IF(O6=1,(((10^K4)*(Discharge!K41^N4))/100),((10^K4)*(Discharge!K41^N4)))))) ->  | L43: =IF(TRIM(Discharge!L41)="","",IF(COUNT(O6)=0,"",IF(O6=1,(((10^K4)*(Discharge!L41^N4))/100),((10^K4)*(Discharge!L41^N4))))) ->  | N43: =IF(Discharge!N41=0,0,IF(TRIM(Discharge!N41)="","",IF(COUNT(O6)=0,"",IF(O6=1,(((10^K4)*(Discharge!N41^N4))/100),((10^K4)*(Discharge!N41^N4)))))) ->  | O43: 3
B45: Total | C45: =IF(COUNT(C11:C43)=0,"",SUM(C11:C43)) -> 30 | D45: =IF(COUNT(D11:D43)=0,"",SUM(D11:D43)) -> 31 | E45: 30 | F45: 31 | G45: 31 | N45: =IF(COUNT(N11:N43)=0,"",SUM(N11:N43)) ->  | O45: =IF(COUNT(C45:N45)=0,"",SUM(C45:N45)) -> 153 | Q45: Ton
B46: Mean | C46: =IF(COUNT(C11:C43)=0,"",AVERAGE(C11:C43)) -> 1 | D46: =IF(COUNT(D11:D43)=0,"",AVERAGE(D11:D43)) -> 1 | E46: 1 | F46: 1 | G46: 1 | O46: =IF(COUNT(C46:N46)=0,"",SUM(C46:N46)) -> 5
B47: Max | C47: =IF(COUNT(C11:C43)=0,"",MAX(C11:C43)) -> 1 | D47: =IF(COUNT(D11:D43)=0,"",MAX(D11:D43)) -> 1 | E47: 1 | F47: 1 | G47: 1 | O47: =IF(COUNT(C47:N47)=0,"",MAX(C47:N47)) -> 1
B48: Min | C48: =IF(COUNT(C11:C43)=0,"",MIN(C11:C43)) -> 1 | D48: =IF(COUNT(D11:D43)=0,"",MIN(D11:D43)) -> 1 | E48: 1 | F48: 1 | G48: 1 | O48: =IF(COUNT(C48:N48)=0,"",MIN(C48:N48)) -> 1

Sheet Discharge
A1: Station - | C1: ='c-form'!AG4 -> Ban Mae Lamao, Mae Sot, Tak,SW.6 | M1: Royal Irrigation By Pc | Y1: =name -> SW.6 | Z1: =IF(TRIM(AG1)="","",IF(AL1="r1",IF(COUNT(AA1)=0,0,AA1),IF(AL1="n",0,IF(COUNT(AB1)=0,0,AB1)))) -> 5.02 | AA1: =IF(TRIM(AG1)="","",IF(INDEX(AZ1:AZ51,AC1)=AG1,INDEX(BA1:BA51,AC1),((AG1-INDEX(AZ1:AZ51,AC1))*(INDEX(BA1:BA51,AC1+1)-INDEX(BA1:BA51,AC1)))/(INDEX(AZ1:AZ51,AC1+1)-INDEX(AZ1:AZ51,AC1))+INDEX(BA1:BA51,AC1))) -> 5.02 | AB1: =IF(TRIM(AG1)="","",IF(INDEX(BD1:BD51,AD1)=AG1,INDEX(BE1:BE51,AD1),((AG1-INDEX(BD1:BD51,AD1))*(INDEX(BE1:BE51,AD1+1)-INDEX(BE1:BE51,AD1)))/(INDEX(BD1:BD51,AD1+1)-INDEX(BD1:BD51,AD1))+INDEX(BE1:BE51,AD1))) ->  | AC1: =MATCH(AG1,AZ1:AZ51,1) -> 4 | AD1: =MATCH(AG1,BD1:BD51,1) ->  | AE1: 1 | AF1: 1 | AG1: =FIXED('HourGH-APR'!AB11)*1 -> 268.84 | AH1: =IF(AND(AE1=AP5,AE1=AR5,AF1>=AQ5,AF1<=AS5),"r1",IF(AND(AE1>AP5,AE1<AR5),"r1",IF(AND(AE1>AP5,AE1=AR5,AF1<=AS5),"r1",IF(AND(AE1=AP5,AE1<AR5,AF1>=AQ5),"r1","n")))) -> r1 | AI1: =IF(AH1<>"n",AH1,IF(AND(AE1=AT5,AE1=AV5,AF1>=AU5,AF1<=AW5),"r2",IF(AND(AE1>AT5,AE1<AV5),"r2",IF(AND(AE1>AT5,AE1=AV5,AF1<=AW5),"r2",IF(AND(AE1=AT5,AE1<AV5,AF1>=AU5),"r2","n"))))) -> r1 | AJ1: =IF(AI1<>"n",AI1,IF(AND(AE1=AP6,AE1=AR6,AF1>=AQ6,AF1<=AS6),"r1",IF(AND(AE1>AP6,AE1<AR6),"r1",IF(AND(AE1>AP6,AE1=AR6,AF1<=AS6),"r1",IF(AND(AE1=AP6,AE1<AR6,AF1>=AQ6),"r1","n"))))) -> r1 | AK1: =IF(AJ1<>"n",AJ1,IF(AND(AE1=AT6,AE1=AV6,AF1>=AU6,AF1<=AW6),"r2",IF(AND(AE1>AT6,AE1<AV6),"r2",IF(AND(AE1>AT6,AE1=AV6,AF1<=AW6),"r2",IF(AND(AE1=AT6,AE1<AV6,AF1>=AU6),"r2","n"))))) -> r1 | AL1: =IF(AK1<>"n",AK1,IF(AND(AE1=AP7,AE1=AR7,AF1>=AQ7,AF1<=AS7),"r1",IF(AND(AE1>AP7,AE1<AR7),"r1",IF(AND(AE1>AP7,AE1=AR7,AF1<=AS7),"r1",IF(AND(AE1=AP7,AE1<AR7,AF1>=AQ7),"r1","n"))))) -> r1 | AP1: =IF('c-form'!N18="","",'c-form'!N18) -> 101 | AR1: =IF('c-form'!P18="","",'c-form'!P18) -> 3112 | AT1: =IF('c-form'!Q18="","",'c-form'!Q18) ->  | AV1: =IF('c-form'!R18="","",'c-form'!R18) ->  | AX1: R1(GH) | AY1: R1(CMS) | AZ1: =IF(OR(AX2*1<>0,AY2*1<>0),AX2,0) -> 268.5 | BA1: =IF(OR(AX2*1<>0,AY2*1<>0),AY2,0) -> 0 | BB1: R2(GH) | BC1: R2(CMS) | BD1: =IF(OR(BB2*1<>0,BC2*1<>0),BB2,"") ->  | BE1: =IF(OR(BB2*1<>0,BC2*1<>0),BC2,"") -> 
A2: Stream - | C2: ='c-form'!AG3 -> Huai Mae Lamao | M2: Thailand | Y2: =FIND(".",Y1) -> 3 | Z2: 4.74 | AA2: =IF(TRIM(AG2)="","",IF(INDEX(AZ1:AZ51,AC2)=AG2,INDEX(BA1:BA51,AC2),((AG2-INDEX(AZ1:AZ51,AC2))*(INDEX(BA1:BA51,AC2+1)-INDEX(BA1:BA51,AC2)))/(INDEX(AZ1:AZ51,AC2+1)-INDEX(AZ1:AZ51,AC2))+INDEX(BA1:BA51,AC2))) -> 4.74 | AB2: =IF(TRIM(AG2)="","",IF(INDEX(BD1:BD51,AD2)=AG2,INDEX(BE1:BE51,AD2),((AG2-INDEX(BD1:BD51,AD2))*(INDEX(BE1:BE51,AD2+1)-INDEX(BE1:BE51,AD2)))/(INDEX(BD1:BD51,AD2+1)-INDEX(BD1:BD51,AD2))+INDEX(BE1:BE51,AD2))) ->  | AC2: =MATCH(AG2,AZ1:AZ51,1) -> 4 | AD2: =MATCH(AG2,BD1:BD51,1) ->  | AE2: 1 | AF2: 2 | AG2: =FIXED('HourGH-APR'!AB12)*1 -> 268.83 | AH2: =IF(AND(AE2=AP5,AE2=AR5,AF2>=AQ5,AF2<=AS5),"r1",IF(AND(AE2>AP5,AE2<AR5),"r1",IF(AND(AE2>AP5,AE2=AR5,AF2<=AS5),"r1",IF(AND(AE2=AP5,AE2<AR5,AF2>=AQ5),"r1","n")))) -> r1 | AI2: =IF(AH2<>"n",AH2,IF(AND(AE2=AT5,AE2=AV5,AF2>=AU5,AF2<=AW5),"r2",IF(AND(AE2>AT5,AE2<AV5),"r2",IF(AND(AE2>AT5,AE2=AV5,AF2<=AW5),"r2",IF(AND(AE2=AT5,AE2<AV5,AF2>=AU5),"r2","n"))))) -> r1 | AJ2: =IF(AI2<>"n",AI2,IF(AND(AE2=AP6,AE2=AR6,AF2>=AQ6,AF2<=AS6),"r1",IF(AND(AE2>AP6,AE2<AR6),"r1",IF(AND(AE2>AP6,AE2=AR6,AF2<=AS6),"r1",IF(AND(AE2=AP6,AE2<AR6,AF2>=AQ6),"r1","n"))))) -> r1 | AK2: =IF(AJ2<>"n",AJ2,IF(AND(AE2=AT6,AE2=AV6,AF2>=AU6,AF2<=AW6),"r2",IF(AND(AE2>AT6,AE2<AV6),"r2",IF(AND(AE2>AT6,AE2=AV6,AF2<=AW6),"r2",IF(AND(AE2=AT6,AE2<AV6,AF2>=AU6),"r2","n"))))) -> r1 | AL2: =IF(AK2<>"n",AK2,IF(AND(AE2=AP7,AE2=AR7,AF2>=AQ7,AF2<=AS7),"r1",IF(AND(AE2>AP7,AE2<AR7),"r1",IF(AND(AE2>AP7,AE2=AR7,AF2<=AS7),"r1",IF(AND(AE2=AP7,AE2<AR7,AF2>=AQ7),"r1","n"))))) -> r1 | AP2: =IF('c-form'!S18="","",'c-form'!S18) ->  | AR2: =IF('c-form'!V18="","",'c-form'!V18) ->  | AT2: =IF('c-form'!W18="","",'c-form'!W18) ->  | AV2: =IF('c-form'!Y18="","",'c-form'!Y18) ->  | AX2: ='c-form'!D21 -> 268.5 | AY2: ='c-form'!F21 -> 0 | AZ2: =IF(OR(AX3*1<>0,AY3*1<>0),AX3,0) -> 268.6 | BA2: =IF(OR(AX3*1<>0,AY3*1<>0),AY3,0) -> 0.7 | BB2: ='c-form'!D63 -> 0 | BC2: ='c-form'!F63 -> 0 | BD2: =IF(OR(BB3*1<>0,BC3*1<>0),BB3,"") -> 
A3: River - | C3: ='c-form'!AH3 -> Huai Mae Lamao | M3: Hydrology Division | Y3: =LEFT(Y1,Y2-1) & RIGHT(Y1,Y2) -> SWW.6 | Z3: 4.74 | AA3: =IF(TRIM(AG3)="","",IF(INDEX(AZ1:AZ51,AC3)=AG3,INDEX(BA1:BA51,AC3),((AG3-INDEX(AZ1:AZ51,AC3))*(INDEX(BA1:BA51,AC3+1)-INDEX(BA1:BA51,AC3)))/(INDEX(AZ1:AZ51,AC3+1)-INDEX(AZ1:AZ51,AC3))+INDEX(BA1:BA51,AC3))) -> 4.74 | AB3: =IF(TRIM(AG3)="","",IF(INDEX(BD1:BD51,AD3)=AG3,INDEX(BE1:BE51,AD3),((AG3-INDEX(BD1:BD51,AD3))*(INDEX(BE1:BE51,AD3+1)-INDEX(BE1:BE51,AD3)))/(INDEX(BD1:BD51,AD3+1)-INDEX(BD1:BD51,AD3))+INDEX(BE1:BE51,AD3))) ->  | AC3: =MATCH(AG3,AZ1:AZ51,1) -> 4 | AD3: =MATCH(AG3,BD1:BD51,1) ->  | AE3: 1 | AF3: 3 | AG3: =FIXED('HourGH-APR'!AB13)*1 -> 268.83 | AH3: =IF(AND(AE3=AP5,AE3=AR5,AF3>=AQ5,AF3<=AS5),"r1",IF(AND(AE3>AP5,AE3<AR5),"r1",IF(AND(AE3>AP5,AE3=AR5,AF3<=AS5),"r1",IF(AND(AE3=AP5,AE3<AR5,AF3>=AQ5),"r1","n")))) -> r1 | AI3: =IF(AH3<>"n",AH3,IF(AND(AE3=AT5,AE3=AV5,AF3>=AU5,AF3<=AW5),"r2",IF(AND(AE3>AT5,AE3<AV5),"r2",IF(AND(AE3>AT5,AE3=AV5,AF3<=AW5),"r2",IF(AND(AE3=AT5,AE3<AV5,AF3>=AU5),"r2","n"))))) -> r1 | AJ3: =IF(AI3<>"n",AI3,IF(AND(AE3=AP6,AE3=AR6,AF3>=AQ6,AF3<=AS6),"r1",IF(AND(AE3>AP6,AE3<AR6),"r1",IF(AND(AE3>AP6,AE3=AR6,AF3<=AS6),"r1",IF(AND(AE3=AP6,AE3<AR6,AF3>=AQ6),"r1","n"))))) -> r1 | AK3: =IF(AJ3<>"n",AJ3,IF(AND(AE3=AT6,AE3=AV6,AF3>=AU6,AF3<=AW6),"r2",IF(AND(AE3>AT6,AE3<AV6),"r2",IF(AND(AE3>AT6,AE3=AV6,AF3<=AW6),"r2",IF(AND(AE3=AT6,AE3<AV6,AF3>=AU6),"r2","n"))))) -> r1 | AL3: =IF(AK3<>"n",AK3,IF(AND(AE3=AP7,AE3=AR7,AF3>=AQ7,AF3<=AS7),"r1",IF(AND(AE3>AP7,AE3<AR7),"r1",IF(AND(AE3>AP7,AE3=AR7,AF3<=AS7),"r1",IF(AND(AE3=AP7,AE3<AR7,AF3>=AQ7),"r1","n"))))) -> r1 | AP3: =IF('c-form'!AA18="","",'c-form'!AA18) ->  | AR3: =IF('c-form'!AB18="","",'c-form'!AB18) ->  | AT3: =IF('c-form'!AA18="","",'c-form'!AA18) ->  | AV3: =IF('c-form'!AB18="","",'c-form'!AB18) ->  | AX3: ='c-form'!H21 -> 268.6 | AY3: ='c-form'!J21 -> 0.7 | AZ3: =IF(OR(AX4*1<>0,AY4*1<>0),AX4,"") -> 268.7 | BA3: =IF(OR(AX4*1<>0,AY4*1<>0),AY4,"") -> 2 | BB3: ='c-form'!H63 -> 0 | BC3: ='c-form'!J63 -> 0
A4: River System - | C4: ='c-form'!AI3 -> Huai Mae Lamao | H4: =IF(TRIM('c-form'!AJ3)<>"","Water Year " & 'c-form'!AJ3,"Water Year ") -> Water Year 2023 | M4: ="Rating Curve" &" " & BG4 -> Rating Curve HC2 014/Y2022 | Y4: =IF(TRIM('c-form'!C7)="","",'c-form'!C7) -> 2023 | Z4: 4.74 | AA4: =IF(TRIM(AG4)="","",IF(INDEX(AZ1:AZ51,AC4)=AG4,INDEX(BA1:BA51,AC4),((AG4-INDEX(AZ1:AZ51,AC4))*(INDEX(BA1:BA51,AC4+1)-INDEX(BA1:BA51,AC4)))/(INDEX(AZ1:AZ51,AC4+1)-INDEX(AZ1:AZ51,AC4))+INDEX(BA1:BA51,AC4))) -> 4.74 | AB4: =IF(TRIM(AG4)="","",IF(INDEX(BD1:BD51,AD4)=AG4,INDEX(BE1:BE51,AD4),((AG4-INDEX(BD1:BD51,AD4))*(INDEX(BE1:BE51,AD4+1)-INDEX(BE1:BE51,AD4)))/(INDEX(BD1:BD51,AD4+1)-INDEX(BD1:BD51,AD4))+INDEX(BE1:BE51,AD4))) ->  | AC4: =MATCH(AG4,AZ1:AZ51,1) -> 4 | AD4: =MATCH(AG4,BD1:BD51,1) ->  | AE4: 1 | AF4: 4 | AG4: =FIXED('HourGH-APR'!AB14)*1 -> 268.83 | AH4: =IF(AND(AE4=AP5,AE4=AR5,AF4>=AQ5,AF4<=AS5),"r1",IF(AND(AE4>AP5,AE4<AR5),"r1",IF(AND(AE4>AP5,AE4=AR5,AF4<=AS5),"r1",IF(AND(AE4=AP5,AE4<AR5,AF4>=AQ5),"r1","n")))) -> r1 | AI4: =IF(AH4<>"n",AH4,IF(AND(AE4=AT5,AE4=AV5,AF4>=AU5,AF4<=AW5),"r2",IF(AND(AE4>AT5,AE4<AV5),"r2",IF(AND(AE4>AT5,AE4=AV5,AF4<=AW5),"r2",IF(AND(AE4=AT5,AE4<AV5,AF4>=AU5),"r2","n"))))) -> r1 | AJ4: =IF(AI4<>"n",AI4,IF(AND(AE4=AP6,AE4=AR6,AF4>=AQ6,AF4<=AS6),"r1",IF(AND(AE4>AP6,AE4<AR6),"r1",IF(AND(AE4>AP6,AE4=AR6,AF4<=AS6),"r1",IF(AND(AE4=AP6,AE4<AR6,AF4>=AQ6),"r1","n"))))) -> r1 | AK4: =IF(AJ4<>"n",AJ4,IF(AND(AE4=AT6,AE4=AV6,AF4>=AU6,AF4<=AW6),"r2",IF(AND(AE4>AT6,AE4<AV6),"r2",IF(AND(AE4>AT6,AE4=AV6,AF4<=AW6),"r2",IF(AND(AE4=AT6,AE4<AV6,AF4>=AU6),"r2","n"))))) -> r1 | AL4: =IF(AK4<>"n",AK4,IF(AND(AE4=AP7,AE4=AR7,AF4>=AQ7,AF4<=AS7),"r1",IF(AND(AE4>AP7,AE4<AR7),"r1",IF(AND(AE4>AP7,AE4=AR7,AF4<=AS7),"r1",IF(AND(AE4=AP7,AE4<AR7,AF4>=AQ7),"r1","n"))))) -> r1 | AV4: =IF('c-form'!Y60="","",'c-form'!Y60) ->  | AX4: ='c-form'!M21 -> 268.7 | AY4: ='c-form'!P21 -> 2 | AZ4: 268.8 | BA4: 3.9 | BB4: ='c-form'!M63 -> 0 | BC4: ='c-form'!P63 -> 0 | BG4: =IF(TRIM('c-form'!C18)="","",TRIM('c-form'!C18)) -> HC2 014/Y2022
B5: =IF(TRIM('c-form'!AJ3)<>"","Discharge, in Cubic Meter per Second, Water Year April 1, "&'c-form'!AJ3&" to March 31, "&'c-form'!AJ3+1,"Discharge, in Cubic Meter per Second, Water Year April 1, to March 31, ") -> Discharge, in Cubic Meter per Second, Water Year April 1, 2023 to March 31, 2024 | Z5: 4.74 | AA5: =IF(TRIM(AG5)="","",IF(INDEX(AZ1:AZ51,AC5)=AG5,INDEX(BA1:BA51,AC5),((AG5-INDEX(AZ1:AZ51,AC5))*(INDEX(BA1:BA51,AC5+1)-INDEX(BA1:BA51,AC5)))/(INDEX(AZ1:AZ51,AC5+1)-INDEX(AZ1:AZ51,AC5))+INDEX(BA1:BA51,AC5))) -> 4.74 | AB5: =IF(TRIM(AG5)="","",IF(INDEX(BD1:BD51,AD5)=AG5,INDEX(BE1:BE51,AD5),((AG5-INDEX(BD1:BD51,AD5))*(INDEX(BE1:BE51,AD5+1)-INDEX(BE1:BE51,AD5)))/(INDEX(BD1:BD51,AD5+1)-INDEX(BD1:BD51,AD5))+INDEX(BE1:BE51,AD5))) ->  | AC5: =MATCH(AG5,AZ1:AZ51,1) -> 4 | AD5: =MATCH(AG5,BD1:BD51,1) ->  | AE5: 1 | AF5: 5 | AG5: =FIXED('HourGH-APR'!AB15)*1 -> 268.83 | AH5: =IF(AND(AE5=AP5,AE5=AR5,AF5>=AQ5,AF5<=AS5),"r1",IF(AND(AE5>AP5,AE5<AR5),"r1",IF(AND(AE5>AP5,AE5=AR5,AF5<=AS5),"r1",IF(AND(AE5=AP5,AE5<AR5,AF5>=AQ5),"r1","n")))) -> r1 | AI5: =IF(AH5<>"n",AH5,IF(AND(AE5=AT5,AE5=AV5,AF5>=AU5,AF5<=AW5),"r2",IF(AND(AE5>AT5,AE5<AV5),"r2",IF(AND(AE5>AT5,AE5=AV5,AF5<=AW5),"r2",IF(AND(AE5=AT5,AE5<AV5,AF5>=AU5),"r2","n"))))) -> r1 | AJ5: =IF(AI5<>"n",AI5,IF(AND(AE5=AP6,AE5=AR6,AF5>=AQ6,AF5<=AS6),"r1",IF(AND(AE5>AP6,AE5<AR6),"r1",IF(AND(AE5>AP6,AE5=AR6,AF5<=AS6),"r1",IF(AND(AE5=AP6,AE5<AR6,AF5>=AQ6),"r1","n"))))) -> r1 | AK5: =IF(AJ5<>"n",AJ5,IF(AND(AE5=AT6,AE5=AV6,AF5>=AU6,AF5<=AW6),"r2",IF(AND(AE5>AT6,AE5<AV6),"r2",IF(AND(AE5>AT6,AE5=AV6,AF5<=AW6),"r2",IF(AND(AE5=AT6,AE5<AV6,AF5>=AU6),"r2","n"))))) -> r1 | AL5: =IF(AK5<>"n",AK5,IF(AND(AE5=AP7,AE5=AR7,AF5>=AQ7,AF5<=AS7),"r1",IF(AND(AE5>AP7,AE5<AR7),"r1",IF(AND(AE5>AP7,AE5=AR7,AF5<=AS7),"r1",IF(AND(AE5=AP7,AE5<AR7,AF5>=AQ7),"r1","n"))))) -> r1 | AP5: =IF(AP1="","",RIGHT(AP1,2)*1) -> 1 | AQ5: =IF(AP1="","",LEFT(AP1,LEN(AP1)-2)*1) -> 1 | AR5: =IF(AR1="","",RIGHT(AR1,2)*1) -> 12 | AS5: =IF(AR1="","",LEFT(AR1,LEN(AR1)-2)*1) -> 31 | AT5: =IF(AT1="","",RIGHT(AT1,2)*1) ->  | AU5: =IF(AT1="","",LEFT(AT1,LEN(AT1)-2)*1) ->  | AV5: =IF(AV1="","",RIGHT(AV1,2)*1) ->  | AW5: =IF(AV1="","",LEFT(AV1,LEN(AV1)-2)*1) ->  | AX5: ='c-form'!R21 -> 268.8 | AY5: ='c-form'!T21 -> 3.9 | AZ5: 268.9 | BA5: 6.7 | BB5: ='c-form'!R63 -> 0 | BC5: ='c-form'!T63 -> 0
Z6: 4.46 | AA6: =IF(TRIM(AG6)="","",IF(INDEX(AZ1:AZ51,AC6)=AG6,INDEX(BA1:BA51,AC6),((AG6-INDEX(AZ1:AZ51,AC6))*(INDEX(BA1:BA51,AC6+1)-INDEX(BA1:BA51,AC6)))/(INDEX(AZ1:AZ51,AC6+1)-INDEX(AZ1:AZ51,AC6))+INDEX(BA1:BA51,AC6))) -> 4.46 | AB6: =IF(TRIM(AG6)="","",IF(INDEX(BD1:BD51,AD6)=AG6,INDEX(BE1:BE51,AD6),((AG6-INDEX(BD1:BD51,AD6))*(INDEX(BE1:BE51,AD6+1)-INDEX(BE1:BE51,AD6)))/(INDEX(BD1:BD51,AD6+1)-INDEX(BD1:BD51,AD6))+INDEX(BE1:BE51,AD6))) ->  | AC6: =MATCH(AG6,AZ1:AZ51,1) -> 4 | AD6: =MATCH(AG6,BD1:BD51,1) ->  | AE6: 1 | AF6: 6 | AG6: =FIXED('HourGH-APR'!AB16)*1 -> 268.82 | AH6: =IF(AND(AE6=AP5,AE6=AR5,AF6>=AQ5,AF6<=AS5),"r1",IF(AND(AE6>AP5,AE6<AR5),"r1",IF(AND(AE6>AP5,AE6=AR5,AF6<=AS5),"r1",IF(AND(AE6=AP5,AE6<AR5,AF6>=AQ5),"r1","n")))) -> r1 | AI6: =IF(AH6<>"n",AH6,IF(AND(AE6=AT5,AE6=AV5,AF6>=AU5,AF6<=AW5),"r2",IF(AND(AE6>AT5,AE6<AV5),"r2",IF(AND(AE6>AT5,AE6=AV5,AF6<=AW5),"r2",IF(AND(AE6=AT5,AE6<AV5,AF6>=AU5),"r2","n"))))) -> r1 | AJ6: =IF(AI6<>"n",AI6,IF(AND(AE6=AP6,AE6=AR6,AF6>=AQ6,AF6<=AS6),"r1",IF(AND(AE6>AP6,AE6<AR6),"r1",IF(AND(AE6>AP6,AE6=AR6,AF6<=AS6),"r1",IF(AND(AE6=AP6,AE6<AR6,AF6>=AQ6),"r1","n"))))) -> r1 | AK6: =IF(AJ6<>"n",AJ6,IF(AND(AE6=AT6,AE6=AV6,AF6>=AU6,AF6<=AW6),"r2",IF(AND(AE6>AT6,AE6<AV6),"r2",IF(AND(AE6>AT6,AE6=AV6,AF6<=AW6),"r2",IF(AND(AE6=AT6,AE6<AV6,AF6>=AU6),"r2","n"))))) -> r1 | AL6: =IF(AK6<>"n",AK6,IF(AND(AE6=AP7,AE6=AR7,AF6>=AQ7,AF6<=AS7),"r1",IF(AND(AE6>AP7,AE6<AR7),"r1",IF(AND(AE6>AP7,AE6=AR7,AF6<=AS7),"r1",IF(AND(AE6=AP7,AE6<AR7,AF6>=AQ7),"r1","n"))))) -> r1 | AP6: =IF(AP2="","",RIGHT(AP2,2)*1) ->  | AQ6: =IF(AP2="","",LEFT(AP2,LEN(AP2)-2)*1) ->  | AR6: =IF(AR2="","",RIGHT(AR2,2)*1) ->  | AS6: =IF(AR2="","",LEFT(AR2,LEN(AR2)-2)*1) ->  | AT6: =IF(AT2="","",RIGHT(AT2,2)*1) ->  | AU6: =IF(AT2="","",LEFT(AT2,LEN(AT2)-2)*1) ->  | AV6: =IF(AV2="","",RIGHT(AV2,2)*1) ->  | AW6: =IF(AV2="","",LEFT(AV2,LEN(AV2)-2)*1) ->  | AX6: ='c-form'!W21 -> 268.9 | AY6: ='c-form'!AA21 -> 6.7 | AZ6: 269 | BA6: 10 | BB6: ='c-form'!W63 -> 0 | BC6: ='c-form'!AA63 -> 0
B7: Date | C7: Apr | D7: May | E7: Jun | F7: Jul | G7: Aug | H7: Sep | I7: Oct | J7: Nov | K7: Dec | L7: Jan | M7: Feb | N7: Mar | O7: Annual | Z7: 4.46 | AA7: =IF(TRIM(AG7)="","",IF(INDEX(AZ1:AZ51,AC7)=AG7,INDEX(BA1:BA51,AC7),((AG7-INDEX(AZ1:AZ51,AC7))*(INDEX(BA1:BA51,AC7+1)-INDEX(BA1:BA51,AC7)))/(INDEX(AZ1:AZ51,AC7+1)-INDEX(AZ1:AZ51,AC7))+INDEX(BA1:BA51,AC7))) -> 4.46 | AB7: =IF(TRIM(AG7)="","",IF(INDEX(BD1:BD51,AD7)=AG7,INDEX(BE1:BE51,AD7),((AG7-INDEX(BD1:BD51,AD7))*(INDEX(BE1:BE51,AD7+1)-INDEX(BE1:BE51,AD7)))/(INDEX(BD1:BD51,AD7+1)-INDEX(BD1:BD51,AD7))+INDEX(BE1:BE51,AD7))) ->  | AC7: =MATCH(AG7,AZ1:AZ51,1) -> 4 | AD7: =MATCH(AG7,BD1:BD51,1) ->  | AE7: 1 | AF7: 7 | AG7: =FIXED('HourGH-APR'!AB17)*1 -> 268.82 | AH7: =IF(AND(AE7=AP5,AE7=AR5,AF7>=AQ5,AF7<=AS5),"r1",IF(AND(AE7>AP5,AE7<AR5),"r1",IF(AND(AE7>AP5,AE7=AR5,AF7<=AS5),"r1",IF(AND(AE7=AP5,AE7<AR5,AF7>=AQ5),"r1","n")))) -> r1 | AI7: =IF(AH7<>"n",AH7,IF(AND(AE7=AT5,AE7=AV5,AF7>=AU5,AF7<=AW5),"r2",IF(AND(AE7>AT5,AE7<AV5),"r2",IF(AND(AE7>AT5,AE7=AV5,AF7<=AW5),"r2",IF(AND(AE7=AT5,AE7<AV5,AF7>=AU5),"r2","n"))))) -> r1 | AJ7: =IF(AI7<>"n",AI7,IF(AND(AE7=AP6,AE7=AR6,AF7>=AQ6,AF7<=AS6),"r1",IF(AND(AE7>AP6,AE7<AR6),"r1",IF(AND(AE7>AP6,AE7=AR6,AF7<=AS6),"r1",IF(AND(AE7=AP6,AE7<AR6,AF7>=AQ6),"r1","n"))))) -> r1 | AK7: =IF(AJ7<>"n",AJ7,IF(AND(AE7=AT6,AE7=AV6,AF7>=AU6,AF7<=AW6),"r2",IF(AND(AE7>AT6,AE7<AV6),"r2",IF(AND(AE7>AT6,AE7=AV6,AF7<=AW6),"r2",IF(AND(AE7=AT6,AE7<AV6,AF7>=AU6),"r2","n"))))) -> r1 | AL7: =IF(AK7<>"n",AK7,IF(AND(AE7=AP7,AE7=AR7,AF7>=AQ7,AF7<=AS7),"r1",IF(AND(AE7>AP7,AE7<AR7),"r1",IF(AND(AE7>AP7,AE7=AR7,AF7<=AS7),"r1",IF(AND(AE7=AP7,AE7<AR7,AF7>=AQ7),"r1","n"))))) -> r1 | AP7: =IF(AP3="","",RIGHT(AP3,2)*1) ->  | AQ7: =IF(AP3="","",LEFT(AP3,LEN(AP3)-2)*1) ->  | AR7: =IF(AR3="","",RIGHT(AR3,2)*1) ->  | AS7: =IF(AR3="","",LEFT(AR3,LEN(AR3)-2)*1) ->  | AT7: =IF(AT3="","",RIGHT(AT3,2)*1) ->  | AU7: =IF(AT3="","",LEFT(AT3,LEN(AT3)-2)*1) ->  | AV7: =IF(AV3="","",RIGHT(AV3,2)*1) ->  | AW7: =IF(AV3="","",LEFT(AV3,LEN(AV3)-2)*1) ->  | AX7: ='c-form'!D22 -> 269 | AY7: ='c-form'!F22 -> 10 | AZ7: =IF(OR(AX8*1<>0,AY8*1<>0),AX8,"") -> 269.2 | BA7: =IF(OR(AX8*1<>0,AY8*1<>0),AY8,"") -> 18.4 | BB7: ='c-form'!D64 -> 0 | BC7: ='c-form'!F64 -> 0 | BD7: =IF(OR(BB8*1<>0,BC8*1<>0),BB8,"") ->  | BE7: =IF(OR(BB8*1<>0,BC8*1<>0),BC8,"") -> 
Z8: 4.46 | AA8: =IF(TRIM(AG8)="","",IF(INDEX(AZ1:AZ51,AC8)=AG8,INDEX(BA1:BA51,AC8),((AG8-INDEX(AZ1:AZ51,AC8))*(INDEX(BA1:BA51,AC8+1)-INDEX(BA1:BA51,AC8)))/(INDEX(AZ1:AZ51,AC8+1)-INDEX(AZ1:AZ51,AC8))+INDEX(BA1:BA51,AC8))) -> 4.46 | AB8: =IF(TRIM(AG8)="","",IF(INDEX(BD1:BD51,AD8)=AG8,INDEX(BE1:BE51,AD8),((AG8-INDEX(BD1:BD51,AD8))*(INDEX(BE1:BE51,AD8+1)-INDEX(BE1:BE51,AD8)))/(INDEX(BD1:BD51,AD8+1)-INDEX(BD1:BD51,AD8))+INDEX(BE1:BE51,AD8))) ->  | AC8: =MATCH(AG8,AZ1:AZ51,1) -> 4 | AD8: =MATCH(AG8,BD1:BD51,1) ->  | AE8: 1 | AF8: 8 | AG8: =FIXED('HourGH-APR'!AB18)*1 -> 268.82 | AH8: =IF(AND(AE8=AP5,AE8=AR5,AF8>=AQ5,AF8<=AS5),"r1",IF(AND(AE8>AP5,AE8<AR5),"r1",IF(AND(AE8>AP5,AE8=AR5,AF8<=AS5),"r1",IF(AND(AE8=AP5,AE8<AR5,AF8>=AQ5),"r1","n")))) -> r1 | AI8: =IF(AH8<>"n",AH8,IF(AND(AE8=AT5,AE8=AV5,AF8>=AU5,AF8<=AW5),"r2",IF(AND(AE8>AT5,AE8<AV5),"r2",IF(AND(AE8>AT5,AE8=AV5,AF8<=AW5),"r2",IF(AND(AE8=AT5,AE8<AV5,AF8>=AU5),"r2","n"))))) -> r1 | AJ8: =IF(AI8<>"n",AI8,IF(AND(AE8=AP6,AE8=AR6,AF8>=AQ6,AF8<=AS6),"r1",IF(AND(AE8>AP6,AE8<AR6),"r1",IF(AND(AE8>AP6,AE8=AR6,AF8<=AS6),"r1",IF(AND(AE8=AP6,AE8<AR6,AF8>=AQ6),"r1","n"))))) -> r1 | AK8: =IF(AJ8<>"n",AJ8,IF(AND(AE8=AT6,AE8=AV6,AF8>=AU6,AF8<=AW6),"r2",IF(AND(AE8>AT6,AE8<AV6),"r2",IF(AND(AE8>AT6,AE8=AV6,AF8<=AW6),"r2",IF(AND(AE8=AT6,AE8<AV6,AF8>=AU6),"r2","n"))))) -> r1 | AL8: =IF(AK8<>"n",AK8,IF(AND(AE8=AP7,AE8=AR7,AF8>=AQ7,AF8<=AS7),"r1",IF(AND(AE8>AP7,AE8<AR7),"r1",IF(AND(AE8>AP7,AE8=AR7,AF8<=AS7),"r1",IF(AND(AE8=AP7,AE8<AR7,AF8>=AQ7),"r1","n"))))) -> r1 | AP8: =IF(AP4="","",RIGHT(AP4,2)*1) ->  | AX8: ='c-form'!H22 -> 269.2 | AY8: ='c-form'!J22 -> 18.4 | AZ8: 269.6 | BA8: 36.4 | BB8: ='c-form'!H64 -> 0 | BC8: ='c-form'!J64 -> 0
